Workbook

Sheet FlashCards
B2: Mounce Chapter (4th edition) | G2: Word Type | J2: Properties | V2: Chapter | W2: Chapter | Y2: Type | Z2: Type | AB2: Properties | AC2: Properties | AF2: Library | AT2: Selected | AU2: Selected | AW2: Include? | AX2: Include? | AY2: Include? | AZ2: Include? | BA2: Include? | BB2: Include? | BC2: Include? | BD2: Include? | BE2: Include? | BF2: Include? | BI2: Count: | BJ2: =COUNTIF(BG4:BG2003,"<2500") -> 1504 | CI2: English to Greek: | CK2: =LOWER('English To Greek'!D4) -> comp | CL2: =IF(LEN(CK2)<2,"^%*^&%*&^%&^",CK2) -> comp | CN2: Contains "Extra"… | CO2: Count: | CP2: =COUNTIF(CI4:CI1503,TRUE) -> 13 | CT2: Greek To English | CV2: =LOWER('Greek to English'!D6) -> dom | CW2: =IF(LEN(CV2)<2,"^%*^&%*&^%&^",CV2) -> dom | CZ2: Count: | DA2: =COUNTIF(CT4:CT2003,TRUE) -> 4 | DE2: Short Word Def: | DF2: 3 | DH2: count: | DI2: =COUNTIF(DE4:DE2003,TRUE) -> 121
B3: R | C3: Chapter 4 | D3: R | E3: Chapter 22 | G3: R | H3: Nouns | J3: R | K3: Chapter? | N3: Chapter: | O3: =IF(BJ2=0,"None",IF(AA24="37","Extra",IF(AA24="38","Index",AA24))) -> 11 | P3: =IF(BJ2=1,BJ2& " word available",BJ2& " words available") -> 1504 words available | V3: 04 | W3: =IF(B3="R",TRUE,FALSE) -> TRUE | X3: =IF(W3,V3&":",":") -> 04: | Y3: Noun | Z3: =IF(G3="R",TRUE,FALSE) -> TRUE | AA3: =IF(Z3,Y3&":",":") -> Noun : | AB3: Chapter | AC3: =IF(J3="R",TRUE,FALSE) -> TRUE | AE3: # | AF3: Chapter | AG3: Lexical | AH3: Root | AI3: English Definition | AJ3: Pronunciation | AK3: Part of Speech | AL3: Article | AM3: Past Imperfect | AN3: Future Active | AO3: Aorist Active | AP3: Phonetic. | AQ3: Strong #s | AR3: Sort # | AS3: Copy | AT3: Chapter? | AU3: Type? | AV3: Selected? | AW3: Chapter | AX3: Root | AY3: Definition | AZ3: Pronunciation | BA3: Grammar | BB3: Article | BC3: Past | BD3: Future | BE3: Aorist | BF3: Strongs | BG3: Num | BH3: Rank | BI3: Chapter | BJ3: Lexical | BK3: Root | BL3: English Definition | BM3: Pronunciation | BN3: Part of Speech | BO3: Article | BP3: Past Imperfect | BQ3: Future Active | BR3: Force Art | BS3: Aorist | BT3: Strongs | BU3: Index | BV3: Lookup | BW3: Chapter | BX3: Type | BY3: Lexical | BZ3: Past | CA3: Future | CB3: Root | CC3: Pronunc | CD3: Def | CE3: Force Article | CF3: Formatted Chapter | CG3: Aorist | CH3: Strong # | CI3: Has Text? | CJ3: Num | CK3: Rank | CL3: Lexical | CM3: English | CN3: Chapter | CO3: Index | CP3: Lookup | CQ3: Result A | CR3: Result B | CT3: Has Text? | CU3: Num | CV3: Rank | CW3: Root | CX3: Type | CY3: Result | CZ3: Index | DA3: Lookup | DB3: Result A | DE3: Is Short? | DF3: Number | DG3: Rank | DH3: Index | DI3: Lookup | DJ3: Greek | DK3: English | DL3: Result
B4: R | C4: Chapter 6 | D4: R | E4: Chapter 23 | G4: R | H4: Proper Nouns | J4: R | K4: Root? | V4: 06 | W4: =IF(B4="R",TRUE,FALSE) -> TRUE | X4: =IF(W4,V4&":",":") -> 06: | Y4: Proper Noun | Z4: =IF(G4="R",TRUE,FALSE) -> TRUE | AA4: =IF(Z4,Y4&":",":") -> Proper Noun: | AB4: Root | AC4: =IF(J4="R",TRUE,FALSE) -> TRUE | AE4: 1 | AF4: 07 | AG4: -ς, -ος | AI4: (nominative, singular, masculine) | AK4: Noun Ending | AQ4: 0 | AR4: 0.01 | AS4: =IF(AG4="","",AG4) -> -ς, -ος | AT4: =IF(ISERR(FIND(AF4,$Y$22,1)),FALSE,TRUE) -> TRUE | AU4: =IF(ISERR(FIND(AK4,$Y$23,1)),FALSE,TRUE) -> TRUE | AV4: =AND(AT4,AU4) -> TRUE | AW4: =IF(AC$3,AF4," ") -> 07 | AX4: =IF(AC$4,AH4," ") ->  | AY4: =IF(TRUE,AI4," ") -> (nominative, singular, masculine) | AZ4: =IF(AC$6,AJ4," ") ->  | BA4: =IF(AC$7,AK4," ") -> Noun Ending | BB4: =IF(AC$8,AL4," ") ->  | BC4: =IF(AC$9,AM4," ") ->  | BD4: =IF(AC$10,AN4," ") ->  | BE4: =IF(AC$9,AO4," ") ->  | BF4: =IF(AC$12,AQ4," ") -> 0 | BG4: =IF(AV4,AE4,AE4+5000) -> 1 | BH4: =RANK(BG4,BG$4:BG$2003,1) -> 1 | BI4: =IF($AV4,AW4," ") -> 07 | BJ4: =IF($AV4,BO4&AG4," ") -> -ς, -ος | BK4: =IF($AV4,AX4," ") ->  | BL4: (nominative, singular, masculine) | BN4: Noun Ending | BO4: =IF($AV4,IF(BB4=" ","",BB4&" "),"") ->  | BP4: =IF($AV4,BC4," ") ->  | BR4: =IF($AV4,IF(AL4=" ","",AL4&" "),"") ->  | BS4: =IF($AV4,BE4," ") ->  | BT4: =IF($AV4,BF4," ") -> 0 | BU4: 1 | BV4: =IF(BU4<=BJ$2,MATCH(BU4,BH$4:BH$2003,0),"") -> 1 | BW4: =VLOOKUP($BU4,BH$4:BQ$2003,2,0) -> 07 | BX4: =VLOOKUP($BU4,BH$4:BQ$2003,7,0) -> Noun Ending | BY4: =VLOOKUP($BU4,BH$4:BQ$2003,3,0) -> -ς, -ος | BZ4: =VLOOKUP($BU4,BH$4:BQ$2003,9,0) ->  | CA4: =VLOOKUP($BU4,BH$4:BQ$2003,10,0) ->  | CB4: =VLOOKUP($BU4,BH$4:BQ$2003,4,0) ->  | CC4: =VLOOKUP($BU4,BH$4:BQ$2003,6,0) ->  | CD4: =VLOOKUP($BU4,BH$4:BQ$2003,5,0) -> (nominative, singular, masculine) | CE4: =IF(AC$8,BY4,VLOOKUP($BU4,BH$4:BR$2003,11,0)&BY4) -> -ς, -ος | CF4: =IF(BV4="","",IF(BW4="37","Extra", IF(BW4=38, "Index of Textbook","Chapter " &BW4))&": "&BX4) -> Chapter 07: Noun Ending | CG4: =VLOOKUP($BU4,BH$4:BS$2003,12,0) ->  | CH4: =VLOOKUP($BU4,BH$4:BT$2003,13,0) -> 0 | CI4: =IF(ISERR(SEARCH(CL$2,AY4,1)),FALSE, TRUE) -> FALSE | CJ4: =IF(CI4,AE4,AE4+5000) -> 5001 | CK4: =RANK(CJ4,CJ$4:CJ$2003,1) -> 14 | CL4: =IF($CI4,IF(BB4=" ","",BB4&" ")&AG4," ") ->  | CM4: =IF($CI4,AY4," ") ->  | CN4: =IF($CI4,IF(AW4="37"," [Extra]",IF(AW4="38"," [Index]", " [Chap. "&TEXT(VALUE(AW4),"#")&"]"))," ") ->  | CO4: 1 | CP4: =IF(CO4<=CP$2,MATCH(CO4,CK$4:CK$2003,0),"") -> 109 | CQ4: =VLOOKUP($CO4,CK$4:CM$2003,2,0) -> ἀκολουθέω | CR4: =VLOOKUP($CO4,CK$4:CN$2003,3,0)&VLOOKUP($CO4,CK$4:CN$2003,4,0) -> I follow, I accompany [Chap. 21] | CT4: =IF(ISERR(FIND(CW$2,AP4,1)),FALSE, TRUE) -> FALSE | CU4: =IF(CT4,AE4,AE4+5000) -> 5001 | CV4: =RANK(CU4,CU$4:CU$2003,1) -> 5 | CW4: =IF($CT4,IF(AH4=" ",""," ["&AH4&"]")," ") ->  | CX4: =IF($CT4,IF(AK4="Noun ","Noun",IF(AK4="Verb ","Verb",AK4))," ") ->  | CY4: =IF($CT4,IF(BB4=" ","",BB4&" ")&AG4&CW4&": "&AY4& IF(AF4="37"," (Extra",IF(AF4="38"," (Index"," (Chapter "&TEXT(AF4,"#"))) &", "&CX4& IF(LEN(AM4)>1," ["&AM4&"]","") &IF(LEN(AN4)>1," ["&AN4&"]","") &")"," ") ->  | CZ4: 1 | DA4: =IF(CZ4<=DA$2,MATCH(CZ4,CV$4:CV$2003,0),"") -> 964 | DB4: =VLOOKUP($CZ4,CV$4:CY$2003,4,0) -> οἰκοδομέω: I build, I construct (Chapter 38, Verb [ᾠκοδόμουν] [οἰκοδομήσω]) | DE4: =IF(AND(LEN(AG4)<=DF$2,AG4<>" "),TRUE,FALSE) -> FALSE | DF4: =IF(DE4,AE4,AE4+5000) -> 5001 | DG4: =RANK(DF4,DF$4:DF$2003,1) -> 122 | DH4: 1 | DI4: =IF(DH4<=DA$2,MATCH(DH4,DG$4:DG$2003,0),"") -> 10 | DJ4: =IF($DE4,IF(BB4=" ","",BB4&" ")&AG4," ") ->  | DK4: =IF($DE4,AY4," ") ->  | DL4: =IF($DH4<=$DI$2,VLOOKUP($DH4,DG$4:DK$2003,4,0)&" [" &VLOOKUP($DH4,DG$4:DK$2003,5,0) &"]"," ") -> -ες [(nominative, plural, masculine or feminine, 3ʳᵈ declension)]
B5: R | C5: Chapter 7 | D5: R | E5: Chapter 24 | G5: R | H5: Pronouns | J5: £ | K5: Show Definition? | N5: Root: | O5: =Z27 -> *ἐκκλησια | P5: ="(word " & TEXT(Z19,"#") & " of " & TEXT(BJ2,"#")&")" -> (word 471 of 1504) | V5: 07 | W5: TRUE | X5: 07: | Y5: Pronoun | Z5: TRUE | AA5: Pronoun: | AB5: Definition | AC5: FALSE | AE5: 2 | AF5: 07 | AG5: -, -η, -α | AI5: (nominative, singular, feminine) | AK5: Noun Ending | AQ5: 0 | AR5: 0.02 | AS5: =IF(AG5="","",AG5) -> -, -η, -α | AT5: TRUE | AU5: =IF(ISERR(FIND(AK5,$Y$23,1)),FALSE,TRUE) -> TRUE | AV5: =AND(AT5,AU5) -> TRUE | AW5: =IF(AC$3,AF5," ") -> 07 | AX5: =IF(AC$4,AH5," ") ->  | AY5: =IF(TRUE,AI5," ") -> (nominative, singular, feminine) | AZ5: =IF(AC$6,AJ5," ") ->  | BA5: =IF(AC$7,AK5," ") -> Noun Ending | BB5: =IF(AC$8,AL5," ") ->  | BC5: =IF(AC$9,AM5," ") ->  | BD5: =IF(AC$10,AN5," ") ->  | BE5: =IF(AC$9,AO5," ") ->  | BF5: =IF(AC$12,AQ5," ") -> 0 | BG5: 2 | BH5: 2 | BI5: =IF(AV5,AW5," ") -> 07 | BJ5: -, -η, -α | BL5: (nominative, singular, feminine) | BN5: Noun Ending | BR5: =IF($AV5,IF(AL5=" ","",AL5&" "),"") ->  | BS5: =IF($AV5,BE5," ") ->  | BT5: 0 | BU5: 2 | BV5: 2 | BW5: 07 | BX5: Noun Ending | BY5: -, -η, -α | CD5: (nominative, singular, feminine) | CE5: -, -η, -α | CF5: =IF(BV5="","",IF(BW5="37","Extra", IF(BW5=38, "Index of Textbook","Chapter " &BW5))&": "&BX5) -> Chapter 07: Noun Ending | CH5: 0 | CI5: =IF(ISERR(SEARCH(CL$2,AY5,1)),FALSE, TRUE) -> FALSE | CJ5: 5002 | CK5: 15 | CM5: =IF($CI5,AY5," ") ->  | CN5: =IF($CI5,IF(AW5="37"," [Extra]",IF(AW5="38"," [Index]", " [Chap. "&TEXT(VALUE(AW5),"#")&"]"))," ") ->  | CO5: 2 | CP5: 178 | CQ5: ἀποδίδωμι | CR5: I pay, I recompense; [middle]: I sell [Chap. 38] | CT5: =IF(ISERR(FIND(CW$2,AP5,1)),FALSE, TRUE) -> FALSE | CU5: 5002 | CV5: 6 | CY5: =IF($CT5,IF(BB5=" ","",BB5&" ")&AG5&CW5&": "&AY5& IF(AF5="37"," (Extra",IF(AF5="38"," (Index"," (Chapter "&TEXT(AF5,"#"))) &", "&CX5& IF(LEN(AM5)>1," ["&AM5&"]","") &IF(LEN(AN5)>1," ["&AN5&"]","") &")"," ") ->  | CZ5: 2 | DA5: 965 | DB5: ἡ οἰκοδομή: building, edification (Chapter 38, Noun) | DE5: FALSE | DF5: 5002 | DG5: 123 | DH5: 2 | DI5: 87 | DK5: =IF($DE5,AY5," ") ->  | DL5: ἄγω [I lead, I bring, I arrest]
B6: R | C6: Chapter 8 | D6: R | E6: Chapter 25 | G6: R | H6: Noun Endings | J6: R | K6: Pronunciation? | V6: 08 | W6: TRUE | X6: 08: | Y6: Noun Ending | Z6: TRUE | AA6: Noun Ending: | AB6: Pronunciation | AC6: TRUE | AE6: 3 | AF6: 07 | AG6: -ν, -ον | AI6: (nominative, singular, neuter; accusative, singular, masculine or neuter) | AK6: Noun Ending | AQ6: 0 | AR6: 0.03 | AS6: -ν, -ον | AT6: TRUE | AU6: TRUE | AV6: TRUE | AW6: 07 | AY6: (nominative, singular, neuter; accusative, singular, masculine or neuter) | BA6: Noun Ending | BF6: 0 | BG6: 3 | BH6: 3 | BI6: 07 | BJ6: -ν, -ον | BL6: (nominative, singular, neuter; accusative, singular, masculine or neuter) | BN6: Noun Ending | BT6: 0 | BU6: 3 | BV6: 3 | BW6: 07 | BX6: Noun Ending | BY6: -ν, -ον | CD6: (nominative, singular, neuter; accusative, singular, masculine or neuter) | CE6: -ν, -ον | CF6: Chapter 07: Noun Ending | CH6: 0 | CI6: FALSE | CJ6: 5003 | CK6: 16 | CO6: 3 | CP6: 488 | CQ6: τό ἔλεος | CR6: mercy, compassion [Chap. 38] | CT6: FALSE | CU6: 5003 | CV6: 7 | CZ6: 3 | DA6: 1433 | DB6: φείδομαι: I spare (Chapter 38, Verb [φείσομαι]) | DE6: FALSE | DF6: 5003 | DG6: 124 | DH6: 3 | DI6: 122 | DL6: ἅμα [together with [dative]]
B7: R | C7: Chapter 9 | D7: R | E7: Chapter 27 | G7: R | H7: Articles | J7: R | K7: Part of Speech? | N7: Type: | O7: =Z25 -> Noun | P7: =IF(Q7<>" ","Imperfect","") ->  | Q7: =AA26 ->  | V7: 09 | W7: TRUE | X7: 09: | Y7: Article | Z7: TRUE | AA7: Article: | AB7: Grammar | AC7: TRUE | AE7: 4 | AF7: 07 | AG7: -υ, -ου | AI7: (genitive, singular, masculine or neuter) | AK7: Noun Ending | AQ7: 0 | AR7: 0.04 | AS7: -υ, -ου | AT7: TRUE | AU7: TRUE | AV7: TRUE | AW7: 07 | AY7: (genitive, singular, masculine or neuter) | BA7: Noun Ending | BF7: 0 | BG7: 4 | BH7: 4 | BI7: 07 | BJ7: -υ, -ου | BL7: (genitive, singular, masculine or neuter) | BN7: Noun Ending | BT7: 0 | BU7: 4 | BV7: 4 | BW7: 07 | BX7: Noun Ending | BY7: -υ, -ου | CD7: (genitive, singular, masculine or neuter) | CE7: -υ, -ου | CF7: Chapter 07: Noun Ending | CH7: 0 | CI7: FALSE | CJ7: 5004 | CK7: 17 | CO7: 4 | CP7: 568 | CQ7: ἐπιτελέω | CR7: I finish, I complete, I accomplish [Index] | CT7: FALSE | CU7: 5004 | CV7: 8 | CZ7: 4 | DA7: 1491 | DB7: ψεύδομαι: I lie (Chapter 38, Verb) | DE7: FALSE | DF7: 5004 | DG7: 125 | DH7: 4 | DI7: 123 | DL7: ἅμα [at the same time]
B8: R | C8: Chapter 10 | D8: R | E8: Chapter 28 | G8: R | H8: Verbs | J8: R | K8: Article? | P8: =IF(Q8<>" ","Future Active","") ->  | Q8: =AB26 ->  | V8: 10 | W8: TRUE | X8: 10: | Y8: Verb | Z8: TRUE | AA8: Verb : | AB8: Article | AC8: TRUE | AE8: 5 | AF8: 07 | AG8: -ς, -ης, -ας | AI8: (genitive, singular, feminine) | AK8: Noun Ending | AQ8: 0 | AR8: 0.05 | AS8: -ς, -ης, -ας | AT8: TRUE | AU8: TRUE | AV8: TRUE | AW8: 07 | AY8: (genitive, singular, feminine) | BA8: Noun Ending | BF8: 0 | BG8: 5 | BH8: 5 | BI8: 07 | BJ8: -ς, -ης, -ας | BL8: (genitive, singular, feminine) | BN8: Noun Ending | BT8: 0 | BU8: 5 | BV8: 5 | BW8: 07 | BX8: Noun Ending | BY8: -ς, -ης, -ας | CD8: (genitive, singular, feminine) | CE8: -ς, -ης, -ας | CF8: Chapter 07: Noun Ending | CH8: 0 | CI8: FALSE | CJ8: 5005 | CK8: 18 | CO8: 5 | CP8: 759 | CQ8: κατεργάζομαι | CR8: I accomplish, I produce [Index] | CT8: FALSE | CU8: 5005 | CV8: 9 | CZ8: 5 | DE8: FALSE | DF8: 5005 | DG8: 126 | DH8: 5 | DL8: ἄν [modifies relative pronoun ("who" becomes "whoever") (particle)]
B9: R | C9: Chapter 11 | D9: R | E9: Chapter 29 | G9: R | H9: Verb Endings | J9: R | K9: Verb Tenses? | N9: Greek: | O9: =Z26 -> ἡ ἐκκλησία | P9: =IF(Q7<>" ","Aorist Active","") ->  | Q9: =AC26 ->  | V9: 11 | W9: TRUE | X9: 11: | Y9: Verb Ending | Z9: TRUE | AA9: Verb Ending: | AB9: Tenses | AC9: TRUE | AE9: 6 | AF9: 07 | AG9: -ι, -ῳ | AI9: (dative, singular, masculine; dative, singular, neuter) | AK9: Noun Ending | AQ9: 0 | AR9: 0.06 | AS9: -ι, -ῳ | AT9: TRUE | AU9: TRUE | AV9: TRUE | AW9: 07 | AY9: (dative, singular, masculine; dative, singular, neuter) | BA9: Noun Ending | BF9: 0 | BG9: 6 | BH9: 6 | BI9: 07 | BJ9: -ι, -ῳ | BK9: =IF($AV9,AX9," ") ->  | BL9: =IF($AV9,AY9," ") -> (dative, singular, masculine; dative, singular, neuter) | BM9: =IF($AV9,AZ9," ") ->  | BN9: =IF($AV9,BA9," ") -> Noun Ending | BP9: =IF($AV9,BC9," ") ->  | BQ9: =IF($AV9,BD9," ") ->  | BT9: 0 | BU9: 6 | BV9: 6 | BW9: 07 | BX9: Noun Ending | BY9: -ι, -ῳ | CD9: (dative, singular, masculine; dative, singular, neuter) | CE9: -ι, -ῳ | CF9: Chapter 07: Noun Ending | CH9: 0 | CI9: FALSE | CJ9: 5006 | CK9: 19 | CO9: 6 | CP9: 972 | CQ9: ὅλος | CR9: whole, complete [Chap. 19] | CT9: FALSE | CU9: 5006 | CV9: 10 | CZ9: 6 | DE9: FALSE | DF9: 5006 | DG9: 127 | DH9: 6 | DL9: -ἄν [ending that changes "what" to "whatever"]
B10: R | C10: Chapter 12 | D10: R | E10: Chapter 30 | G10: R | H10: Prepositions | J10: R | K10: Endings Chart? | V10: 12 | W10: TRUE | X10: 12: | Y10: Preposition | Z10: TRUE | AA10: Preposition: | AB10: (updated to just link to "tenses") | AC10: =AC9 -> TRUE | AE10: 7 | AF10: 07 | AG10: -ι, -ῃ, -ᾳ | AI10: (dative, singular, feminine) | AK10: Noun Ending | AQ10: 0 | AR10: 0.07 | AS10: -ι, -ῃ, -ᾳ | AT10: TRUE | AU10: =IF(ISERR(FIND(AK10,$Y$23,1)),FALSE,TRUE) -> TRUE | AV10: TRUE | AW10: 07 | AY10: (dative, singular, feminine) | BA10: Noun Ending | BF10: 0 | BG10: 7 | BH10: 7 | BI10: 07 | BJ10: -ι, -ῃ, -ᾳ | BL10: (dative, singular, feminine) | BN10: Noun Ending | BT10: 0 | BU10: 7 | BV10: 7 | BW10: 07 | BX10: Noun Ending | BY10: -ι, -ῃ, -ᾳ | CD10: (dative, singular, feminine) | CE10: -ι, -ῃ, -ᾳ | CF10: Chapter 07: Noun Ending | CH10: 0 | CI10: FALSE | CJ10: 5007 | CK10: 20 | CO10: 7 | CP10: 974 | CQ10: ὁμιλέω | CR10: I converse with, I keep company with [Extra] | CT10: FALSE | CU10: 5007 | CV10: 11 | CZ10: 7 | DE10: FALSE | DF10: 5007 | DG10: 128 | DH10: 7 | DL10: ἀνά [among, between, each]
B11: R | C11: Chapter 13 | D11: R | E11: Chapter 31 | G11: R | H11: Conjunctions | J11: R | K11: Strong's #? | N11: Pronunciation: | O11: =Z28 -> ek-lase-EE-ah | V11: 13 | W11: TRUE | X11: 13: | Y11: Conjunction | Z11: TRUE | AA11: Conjunction: | AB11: Chart | AC11: =IF(J10="R",TRUE,FALSE) -> TRUE | AE11: 8 | AF11: 07 | AG11: -ν, -ην, -αν | AI11: (accusative, singular, feminine) | AK11: Noun Ending | AQ11: 0 | AR11: 0.08 | AS11: -ν, -ην, -αν | AT11: TRUE | AU11: TRUE | AV11: TRUE | AW11: 07 | AY11: (accusative, singular, feminine) | BA11: Noun Ending | BF11: 0 | BG11: 8 | BH11: 8 | BI11: 07 | BJ11: -ν, -ην, -αν | BL11: (accusative, singular, feminine) | BN11: Noun Ending | BT11: 0 | BU11: 8 | BV11: 8 | BW11: 07 | BX11: Noun Ending | BY11: -ν, -ην, -αν | CD11: (accusative, singular, feminine) | CE11: -ν, -ην, -αν | CF11: Chapter 07: Noun Ending | CH11: 0 | CI11: FALSE | CJ11: 5008 | CK11: 21 | CO11: 8 | CP11: 978 | CQ11: ὁμοιόω | CR11: I compare, I make like [Chap. 38] | CT11: FALSE | CU11: 5008 | CV11: 12 | CZ11: 8 | DE11: FALSE | DF11: 5008 | DG11: 129 | DH11: 8 | DL11: ἄρα [then, therefore (particle)]
B12: R | C12: Chapter 14 | D12: R | E12: Chapter 32 | G12: R | H12: Adjectives | V12: 14 | W12: TRUE | X12: 14: | Y12: Adjective | Z12: TRUE | AA12: Adjective: | AB12: Strong's Number | AC12: =IF(J11="R",TRUE,FALSE) -> TRUE | AE12: 9 | AF12: 07 | AG12: -ι, -οι | AI12: (nominative, plural, masculine) | AK12: Noun Ending | AQ12: 0 | AR12: 0.1 | AS12: -ι, -οι | AT12: TRUE | AU12: TRUE | AV12: TRUE | AW12: 07 | AY12: (nominative, plural, masculine) | BA12: Noun Ending | BB12: =IF(AC$8,AL12," ") ->  | BF12: 0 | BG12: 9 | BH12: 9 | BI12: 07 | BJ12: -ι, -οι | BL12: (nominative, plural, masculine) | BN12: Noun Ending | BT12: 0 | BU12: 9 | BV12: 9 | BW12: 07 | BX12: Noun Ending | BY12: -ι, -οι | CD12: (nominative, plural, masculine) | CE12: -ι, -οι | CF12: Chapter 07: Noun Ending | CH12: 0 | CI12: FALSE | CJ12: 5009 | CK12: 22 | CO12: 9 | CP12: 1152 | CQ12: πληρόω | CR12: I fill, I fulfill, I complete [Chap. 17] | CT12: FALSE | CU12: 5009 | CV12: 13 | CZ12: 9 | DE12: FALSE | DF12: 5009 | DG12: 130 | DH12: 9 | DL12: ἆρα [really? (introduces question with incredulity) (particle)]
B13: R | C13: Chapter 16 | D13: R | E13: Chapter 33 | G13: R | H13: Adverbs | K13: 0.3131633997 | N13: Definition: | O13: =Z29 -> assembly, congregation, church | Q13: Strong's Number | V13: 16 | W13: TRUE | X13: 16: | Y13: Adverb | Z13: TRUE | AA13: Adverb: | AE13: 10 | AF13: 10 | AG13: -ες | AI13: (nominative, plural, masculine or feminine, 3ʳᵈ declension) | AK13: Noun Ending | AQ13: 0 | AR13: 0.11 | AS13: -ες | AT13: TRUE | AU13: TRUE | AV13: TRUE | AW13: 10 | AY13: (nominative, plural, masculine or feminine, 3ʳᵈ declension) | BA13: Noun Ending | BF13: 0 | BG13: 10 | BH13: 10 | BI13: 10 | BJ13: -ες | BL13: (nominative, plural, masculine or feminine, 3ʳᵈ declension) | BN13: Noun Ending | BT13: 0 | BU13: 10 | BV13: 10 | BW13: 10 | BX13: Noun Ending | BY13: -ες | CD13: (nominative, plural, masculine or feminine, 3ʳᵈ declension) | CE13: -ες | CF13: Chapter 10: Noun Ending | CH13: 0 | CI13: FALSE | CJ13: 5010 | CK13: 23 | CO13: 10 | CP13: 1274 | CQ13: τό σπλάγχνον | CR13: affection, heart, compassion [Chap. 38] | CT13: FALSE | CU13: 5010 | CV13: 14 | CZ13: 10 | DE13: TRUE | DF13: 10 | DG13: 1 | DH13: 10 | DJ13: -ες | DK13: (nominative, plural, masculine or feminine, 3ʳᵈ declension) | DL13: γάρ [for, then (particle)]
B14: R | C14: Chapter 17 | D14: R | E14: Chapter 34 | G14: R | H14: Idioms | K14: TRUE | Q14: =IF(ISERR(VALUE(Z30)),Z30,IF(VALUE(Z30)<1,""," "&Z30)) -> 1577 | V14: 17 | W14: TRUE | X14: 17: | Y14: Idiom | Z14: TRUE | AA14: Idiom: | AE14: 11 | AF14: 07 | AG14: -ι, -αι | AI14: (nominative, plural, feminine) | AK14: Noun Ending | AQ14: 0 | AR14: 0.12 | AS14: -ι, -αι | AT14: TRUE | AU14: TRUE | AV14: TRUE | AW14: 07 | AY14: (nominative, plural, feminine) | BA14: Noun Ending | BF14: 0 | BG14: 11 | BH14: 11 | BI14: 07 | BJ14: -ι, -αι | BL14: (nominative, plural, feminine) | BN14: Noun Ending | BT14: 0 | BU14: 11 | BV14: 11 | BW14: 07 | BX14: Noun Ending | BY14: -ι, -αι | CD14: (nominative, plural, feminine) | CE14: -ι, -αι | CF14: Chapter 07: Noun Ending | CH14: 0 | CI14: FALSE | CJ14: 5011 | CK14: 24 | CO14: 11 | CP14: 1305 | CQ14: συνέχω | CR14: I compel, I confine, I oppress, I distress [Chap. 38] | CT14: FALSE | CU14: 5011 | CV14: 15 | CZ14: 11 | DE14: FALSE | DF14: 5011 | DG14: 131 | DH14: 11 | DL14: γε [indeed, at least, even (particle)]
B15: R | C15: Chapter 18 | D15: R | E15: Chapter 35 | G15: R | H15: Interjections | V15: 18 | W15: TRUE | X15: 18: | Y15: Interjection | Z15: =IF(G15="R",TRUE,FALSE) -> TRUE | AA15: Interjection: | AE15: 12 | AF15: 07 | AG15: -α | AI15: (nominative or accusative, plural, neuter) | AK15: Noun Ending | AQ15: 0 | AR15: 0.13 | AS15: -α | AT15: TRUE | AU15: TRUE | AV15: TRUE | AW15: 07 | AY15: (nominative or accusative, plural, neuter) | BA15: Noun Ending | BF15: 0 | BG15: 12 | BH15: 12 | BI15: 07 | BJ15: -α | BL15: (nominative or accusative, plural, neuter) | BN15: Noun Ending | BO15: =IF($AV15,IF(BB15=" ","",BB15&" "),"") ->  | BT15: 0 | BU15: 12 | BV15: 12 | BW15: 07 | BX15: Noun Ending | BY15: -α | CD15: (nominative or accusative, plural, neuter) | CE15: -α | CF15: Chapter 07: Noun Ending | CH15: 0 | CI15: FALSE | CJ15: 5012 | CK15: 25 | CO15: 12 | CP15: 1331 | CQ15: τέλειος | CR15: complete, finished, perfect [Chap. 38] | CT15: FALSE | CU15: 5012 | CV15: 16 | CZ15: 12 | DE15: FALSE | DF15: 5012 | DG15: 132 | DH15: 12 | DL15: δεῖ [it is necessary]
B16: R | C16: Chapter 19 | D16: R | E16: Chapter 36 | V16: 19 | W16: TRUE | X16: 19: | AE16: 13 | AF16: 07 | AG16: -ων | AI16: (genitive, plural, masculine, feminine, neuter) | AK16: Noun Ending | AQ16: 0 | AR16: 0.2 | AS16: -ων | AT16: TRUE | AU16: TRUE | AV16: TRUE | AW16: 07 | AY16: (genitive, plural, masculine, feminine, neuter) | BA16: Noun Ending | BF16: 0 | BG16: 13 | BH16: 13 | BI16: 07 | BJ16: -ων | BL16: (genitive, plural, masculine, feminine, neuter) | BN16: Noun Ending | BO16: =IF($AV16,IF(BB16=" ","",BB16&" "),"") ->  | BT16: 0 | BU16: 13 | BV16: 13 | BW16: 07 | BX16: Noun Ending | BY16: -ων | CD16: (genitive, plural, masculine, feminine, neuter) | CE16: -ων | CF16: Chapter 07: Noun Ending | CH16: 0 | CI16: FALSE | CJ16: 5013 | CK16: 26 | CO16: 13 | CP16: 1332 | CQ16: τελειόω | CR16: I accomplish, I complete, I perfect [Index] | CT16: FALSE | CU16: 5013 | CV16: 17 | CZ16: 13 | DE16: FALSE | DF16: 5013 | DG16: 133 | DH16: 13 | DL16: δέω [I bind]
B17: R | C17: Chapter 20 | D17: R | E17: Extra | V17: 20 | W17: TRUE | X17: 20: | Y17: when adding words, update this number | AE17: 14 | AF17: 07 | AG17: -ις, -οις | AI17: (dative, plural, masculine or neuter) | AK17: Noun Ending | AQ17: 0 | AR17: 0.211 | AS17: -ις, -οις | AT17: TRUE | AU17: TRUE | AV17: TRUE | AW17: 07 | AY17: (dative, plural, masculine or neuter) | BA17: Noun Ending | BF17: 0 | BG17: 14 | BH17: 14 | BI17: 07 | BJ17: -ις, -οις | BL17: (dative, plural, masculine or neuter) | BN17: Noun Ending | BT17: 0 | BU17: 14 | BV17: 14 | BW17: 07 | BX17: Noun Ending | BY17: -ις, -οις | CD17: (dative, plural, masculine or neuter) | CE17: -ις, -οις | CF17: Chapter 07: Noun Ending | CH17: 0 | CI17: FALSE | CJ17: 5014 | CK17: 27 | CO17: 14 | CT17: FALSE | CU17: 5014 | CV17: 18 | CZ17: 14 | DE17: FALSE | DF17: 5014 | DG17: 134 | DH17: 14 | DL17: δή [now, therefore, indeed (particle)]
B18: R | C18: Chapter 21 | D18: R | E18: Index | V18: 21 | W18: TRUE | X18: 21: | Y18: ="Currently "&BJ2 &" entries." -> Currently 1504 entries. | AA18: in all yellow cells (and below most of them) | AE18: 15 | AF18: 07 | AG18: -ις, -αις | AI18: (dative, plural, feminine) | AK18: Noun Ending | AQ18: 0 | AR18: 0.212 | AS18: -ις, -αις | AT18: TRUE | AU18: TRUE | AV18: TRUE | AW18: 07 | AY18: (dative, plural, feminine) | BA18: Noun Ending | BF18: 0 | BG18: 15 | BH18: 15 | BI18: 07 | BJ18: -ις, -αις | BL18: (dative, plural, feminine) | BN18: Noun Ending | BT18: 0 | BU18: 15 | BV18: 15 | BW18: 07 | BX18: Noun Ending | BY18: -ις, -αις | CD18: (dative, plural, feminine) | CE18: -ις, -αις | CF18: Chapter 07: Noun Ending | CH18: 0 | CI18: FALSE | CJ18: 5015 | CK18: 28 | CO18: 15 | CT18: FALSE | CU18: 5015 | CV18: 19 | CZ18: 15 | DE18: FALSE | DF18: 5015 | DG18: 135 | DH18: 15 | DL18: διό [therefore, for this reason]
V19: 22 | W19: =IF(D3="R",TRUE,FALSE) -> TRUE | X19: 22: | Y19: Chosen Index? | Z19: =INT(K13*BJ2)+1 -> 471 | AA19: (current workbook size is <2000) | AE19: 16 | AF19: 10 | AG19: -σι(ν) | AI19: (dative, plural, masculine/ feminine/neuter, 3ʳᵈ declension) | AK19: Noun Ending | AQ19: 0 | AR19: 0.213 | AS19: -σι(ν) | AT19: TRUE | AU19: TRUE | AV19: TRUE | AW19: 10 | AY19: (dative, plural, masculine/ feminine/neuter, 3ʳᵈ declension) | BA19: Noun Ending | BF19: 0 | BG19: 16 | BH19: 16 | BI19: 10 | BJ19: -σι(ν) | BL19: (dative, plural, masculine/ feminine/neuter, 3ʳᵈ declension) | BN19: Noun Ending | BT19: 0 | BU19: 16 | BV19: 16 | BW19: 10 | BX19: Noun Ending | BY19: -σι(ν) | CD19: (dative, plural, masculine/ feminine/neuter, 3ʳᵈ declension) | CE19: -σι(ν) | CF19: Chapter 10: Noun Ending | CH19: 0 | CI19: FALSE | CJ19: 5016 | CK19: 29 | CO19: 16 | CT19: FALSE | CU19: 5016 | CV19: 20 | CZ19: 16 | DE19: FALSE | DF19: 5016 | DG19: 136 | DH19: 16 | DL19: δύο [two]
N20: © 2025 E. M. Pogozelski pogo@geneseo.edu | V20: 23 | W20: =IF(D4="R",TRUE,FALSE) -> TRUE | X20: 23: | Y20: =CONCATENATE(X3,X4,X5,X6,X7,X8,X9,X10,X11,X12,X13,X14,X15,X16) -> 04:06:07:08:09:10:11:12:13:14:16:17:18:19: | AE20: 17 | AF20: 07 | AG20: -υς, -ους | AI20: (accusative, plural, masculine) | AK20: Noun Ending | AQ20: 0 | AR20: 0.22 | AS20: -υς, -ους | AT20: TRUE | AU20: TRUE | AV20: TRUE | AW20: 07 | AY20: (accusative, plural, masculine) | BA20: Noun Ending | BF20: 0 | BG20: 17 | BH20: 17 | BI20: 07 | BJ20: -υς, -ους | BL20: (accusative, plural, masculine) | BN20: Noun Ending | BT20: 0 | BU20: 17 | BV20: 17 | BW20: 07 | BX20: Noun Ending | BY20: -υς, -ους | CD20: (accusative, plural, masculine) | CE20: -υς, -ους | CF20: Chapter 07: Noun Ending | CH20: 0 | CI20: FALSE | CJ20: 5017 | CK20: 30 | CO20: 17 | CT20: FALSE | CU20: 5017 | CV20: 21 | CZ20: 17 | DE20: FALSE | DF20: 5017 | DG20: 137 | DH20: 17 | DL20: ἐάν [if, when]
N21: (you can give this away, but you can't change it, or sell it, or use it any way to make money) | V21: 24 | W21: =IF(D5="R",TRUE,FALSE) -> TRUE | X21: 24: | Y21: =CONCATENATE(X17,X18,X19,X20,X21,X22,X23,X24,X25,X26,X27,X28,X29,X30,X31,X32,X33,X34,X35) -> 20:21:22:23:24:25::27:28:29:30:31:32:33:34:35:36:37:38: | AE21: 18 | AF21: 07 | AG21: -ς, -ας | AI21: (accusative, plural, feminine) | AK21: Noun Ending | AQ21: 0 | AR21: 0.23 | AS21: -ς, -ας | AT21: TRUE | AU21: TRUE | AV21: TRUE | AW21: 07 | AY21: (accusative, plural, feminine) | BA21: Noun Ending | BF21: 0 | BG21: 18 | BH21: 18 | BI21: 07 | BJ21: -ς, -ας | BL21: (accusative, plural, feminine) | BN21: Noun Ending | BT21: 0 | BU21: 18 | BV21: 18 | BW21: 07 | BX21: Noun Ending | BY21: -ς, -ας | CD21: (accusative, plural, feminine) | CE21: -ς, -ας | CF21: Chapter 07: Noun Ending | CH21: 0 | CI21: FALSE | CJ21: 5018 | CK21: 31 | CO21: 18 | CT21: FALSE | CU21: 5018 | CV21: 22 | CZ21: 18 | DE21: FALSE | DF21: 5018 | DG21: 138 | DH21: 18 | DL21: ἐάω [I permit, I allow, I let go]
V22: 25 | W22: =IF(D6="R",TRUE,FALSE) -> TRUE | X22: 25: | Y22: =CONCATENATE(Y20,Y21) -> 04:06:07:08:09:10:11:12:13:14:16:17:18:19:20:21:22:23:24:25::27:28:29:30:31:32:33:34:35:36:37:38: | AE22: 19 | AF22: 19 | AG22: -εύς | AI22: suffix for a person related to the stem (genitive, singular, masculine) | AJ22: yoose | AK22: Noun Ending | AP22: eus | AQ22: 0 | AR22: 0.28 | AS22: -εύς | AT22: TRUE | AU22: TRUE | AV22: TRUE | AW22: 19 | AY22: suffix for a person related to the stem (genitive, singular, masculine) | AZ22: yoose | BA22: Noun Ending | BF22: 0 | BG22: 19 | BH22: 19 | BI22: 19 | BJ22: -εύς | BL22: suffix for a person related to the stem (genitive, singular, masculine) | BM22: yoose | BN22: Noun Ending | BT22: 0 | BU22: 19 | BV22: 19 | BW22: 19 | BX22: Noun Ending | BY22: -εύς | CC22: yoose | CD22: suffix for a person related to the stem (genitive, singular, masculine) | CE22: -εύς | CF22: Chapter 19: Noun Ending | CH22: 0 | CI22: FALSE | CJ22: 5019 | CK22: 32 | CO22: 19 | CT22: FALSE | CU22: 5019 | CV22: 23 | CZ22: 19 | DE22: FALSE | DF22: 5019 | DG22: 139 | DH22: 19 | DL22: ἐγώ [I (nominative, singular)]
V23: 26 | W23: FALSE | X23: : | Y23: =CONCATENATE(AA3,AA4,AA5,AA6,AA7,AA8,AA9,AA10,AA11,AA12,AA13,AA14,AA15,) -> Noun :Proper Noun:Pronoun:Noun Ending:Article:Verb :Verb Ending:Preposition:Conjunction:Adjective:Adverb:Idiom:Interjection: | AE23: 20 | AF23: 37 | AG23: -ικός | AI23: converts a noun into an adjective ("king" becomes "royal") | AJ23: ee-KOSS | AK23: Noun Ending | AP23: ikos | AQ23: 0 | AR23: 0.29 | AS23: -ικός | AT23: TRUE | AU23: TRUE | AV23: TRUE | AW23: 37 | AY23: converts a noun into an adjective ("king" becomes "royal") | AZ23: ee-KOSS | BA23: Noun Ending | BF23: 0 | BG23: 20 | BH23: 20 | BI23: 37 | BJ23: -ικός | BL23: converts a noun into an adjective ("king" becomes "royal") | BM23: ee-KOSS | BN23: Noun Ending | BT23: =IF($AV23,BF23," ") -> 0 | BU23: 20 | BV23: 20 | BW23: 37 | BX23: Noun Ending | BY23: -ικός | CC23: ee-KOSS | CD23: converts a noun into an adjective ("king" becomes "royal") | CE23: -ικός | CF23: Extra: Noun Ending | CH23: 0 | CI23: FALSE | CJ23: 5020 | CK23: 33 | CO23: 20 | CT23: FALSE | CU23: 5020 | CV23: 24 | CZ23: 20 | DE23: FALSE | DF23: 5020 | DG23: 140 | DH23: 20 | DL23: μοι [to me (dative singular)]
V24: 27 | W24: =IF(D7="R",TRUE,FALSE) -> TRUE | X24: 27: | Y24: Chapter: | Z24: =IF(TRUE,VLOOKUP($Z$19,BU$4:CD$2003,3,0),"") -> 11 | AA24: =TEXT(Z24,"#") -> 11 | AE24: 21 | AF24: 16 | AG24: [active stem] +ω | AI24: I am verbing (it) [present active indicative] | AK24: Verb Ending | AQ24: 0 | AR24: 0.3 | AS24: [active stem] +ω | AT24: TRUE | AU24: TRUE | AV24: TRUE | AW24: 16 | AY24: I am verbing (it) [present active indicative] | BA24: Verb Ending | BF24: 0 | BG24: 21 | BH24: 21 | BI24: =IF(AV24,AW24," ") -> 16 | BJ24: [active stem] +ω | BK24: =IF($AV24,AX24," ") ->  | BL24: =IF($AV24,AY24," ") -> I am verbing (it) [present active indicative] | BM24: =IF($AV24,AZ24," ") ->  | BN24: =IF($AV24,BA24," ") -> Verb Ending | BP24: =IF($AV24,BC24," ") ->  | BQ24: =IF($AV24,BD24," ") ->  | BT24: =IF($AV24,BF24," ") -> 0 | BU24: 21 | BV24: 21 | BW24: 16 | BX24: Verb Ending | BY24: [active stem] +ω | CD24: I am verbing (it) [present active indicative] | CE24: [active stem] +ω | CF24: Chapter 16: Verb Ending | CH24: 0 | CI24: FALSE | CJ24: 5021 | CK24: 34 | CO24: 21 | CT24: FALSE | CU24: 5021 | CV24: 25 | CZ24: 21 | DE24: FALSE | DF24: 5021 | DG24: 141 | DH24: 21 | DL24: με [me (accusative singular)]
V25: 28 | W25: =IF(D8="R",TRUE,FALSE) -> TRUE | X25: 28: | Y25: Type: | Z25: =IF(TRUE,VLOOKUP($Z$19,BU$4:CD$2003,4,0),"") -> Noun | AE25: 22 | AF25: 16 | AG25: [active stem] +ες, +εις | AI25: you are verbing (it) [present active indicative] | AK25: Verb Ending | AQ25: 0 | AR25: 0.301 | AS25: [active stem] +ες, +εις | AT25: TRUE | AU25: TRUE | AV25: TRUE | AW25: 16 | AY25: you are verbing (it) [present active indicative] | BA25: Verb Ending | BF25: 0 | BG25: 22 | BH25: 22 | BI25: 16 | BJ25: [active stem] +ες, +εις | BL25: you are verbing (it) [present active indicative] | BN25: Verb Ending | BT25: 0 | BU25: 22 | BV25: 22 | BW25: 16 | BX25: Verb Ending | BY25: [active stem] +ες, +εις | CD25: you are verbing (it) [present active indicative] | CE25: [active stem] +ες, +εις | CF25: Chapter 16: Verb Ending | CH25: 0 | CI25: FALSE | CJ25: 5022 | CK25: 35 | CO25: 22 | CT25: FALSE | CU25: 5022 | CV25: 26 | CZ25: 22 | DE25: FALSE | DF25: 5022 | DG25: 142 | DH25: 22 | DL25: ἐμέ [me (emphatic accusative singular)]
V26: 29 | W26: TRUE | X26: 29: | Y26: Greek: | Z26: =IF(TRUE,VLOOKUP($Z$19,BU$4:CD$2003,5,0),"") -> ἡ ἐκκλησία | AA26: =IF(TRUE,VLOOKUP($Z$19,BU$4:CD$2003,6,0),"") ->  | AB26: =IF(TRUE,VLOOKUP($Z$19,BU$4:CD$2003,7,0),"") ->  | AC26: =IF(TRUE,VLOOKUP($Z$19,BU$4:CG$2003,13,0),"") ->  | AE26: 23 | AF26: 16 | AG26: [active stem] +ει | AI26: he/she/it is verbing (it) [present active indicative] | AK26: Verb Ending | AQ26: 0 | AR26: 0.302 | AS26: [active stem] +ει | AT26: TRUE | AU26: TRUE | AV26: TRUE | AW26: 16 | AY26: he/she/it is verbing (it) [present active indicative] | BA26: Verb Ending | BF26: 0 | BG26: 23 | BH26: 23 | BI26: 16 | BJ26: [active stem] +ει | BL26: he/she/it is verbing (it) [present active indicative] | BN26: Verb Ending | BT26: 0 | BU26: 23 | BV26: 23 | BW26: 16 | BX26: Verb Ending | BY26: [active stem] +ει | CD26: he/she/it is verbing (it) [present active indicative] | CE26: [active stem] +ει | CF26: Chapter 16: Verb Ending | CH26: 0 | CI26: FALSE | CJ26: 5023 | CK26: 36 | CO26: 23 | CT26: FALSE | CU26: 5023 | CV26: 27 | CZ26: 23 | DE26: FALSE | DF26: 5023 | DG26: 143 | DH26: 23 | DL26: εἰ [if (note absence of circumflex)]
V27: 30 | W27: TRUE | X27: 30: | Y27: Root: | Z27: =IF(TRUE,VLOOKUP($Z$19,BU$4:CD$2003,8,0),"") -> *ἐκκλησια | AE27: 24 | AF27: 16 | AG27: [active stem] +ομεν | AI27: we are verbing (it) [present active indicative] | AK27: Verb Ending | AQ27: 0 | AR27: 0.303 | AS27: [active stem] +ομεν | AT27: TRUE | AU27: TRUE | AV27: TRUE | AW27: 16 | AY27: we are verbing (it) [present active indicative] | BA27: Verb Ending | BF27: 0 | BG27: 24 | BH27: 24 | BI27: 16 | BJ27: [active stem] +ομεν | BL27: we are verbing (it) [present active indicative] | BN27: Verb Ending | BT27: 0 | BU27: 24 | BV27: 24 | BW27: 16 | BX27: Verb Ending | BY27: [active stem] +ομεν | CD27: we are verbing (it) [present active indicative] | CE27: [active stem] +ομεν | CF27: Chapter 16: Verb Ending | CH27: 0 | CI27: FALSE | CJ27: 5024 | CK27: 37 | CO27: 24 | CT27: FALSE | CU27: 5024 | CV27: 28 | CZ27: 24 | DE27: FALSE | DF27: 5024 | DG27: 144 | DH27: 24 | DL27: εἶ [you (singular) are]
V28: 31 | W28: TRUE | X28: 31: | Y28: Pronunciation: | Z28: =IF(TRUE,VLOOKUP($Z$19,BU$4:CD$2003,9,0),"") -> ek-lase-EE-ah | AE28: 25 | AF28: 16 | AG28: [active stem] +ετε | AI28: ya'll are verbing (it) [present active indicative] | AK28: Verb Ending | AQ28: 0 | AR28: 0.304 | AS28: [active stem] +ετε | AT28: TRUE | AU28: TRUE | AV28: TRUE | AW28: 16 | AY28: ya'll are verbing (it) [present active indicative] | BA28: Verb Ending | BF28: 0 | BG28: 25 | BH28: 25 | BI28: 16 | BJ28: [active stem] +ετε | BL28: ya'll are verbing (it) [present active indicative] | BN28: Verb Ending | BT28: 0 | BU28: 25 | BV28: 25 | BW28: 16 | BX28: Verb Ending | BY28: [active stem] +ετε | CD28: ya'll are verbing (it) [present active indicative] | CE28: [active stem] +ετε | CF28: Chapter 16: Verb Ending | CH28: 0 | CI28: FALSE | CJ28: 5025 | CK28: 38 | CO28: 25 | CT28: FALSE | CU28: 5025 | CV28: 29 | CZ28: 25 | DE28: FALSE | DF28: 5025 | DG28: 145 | DH28: 25 | DL28: ἦν [he/she/it was]
V29: 32 | W29: TRUE | X29: 32: | Y29: Definition: | Z29: =IF(OR(AND(K14,TRUE),AND(TRUE,AC5)),VLOOKUP($Z$19,BU$4:CD$2003,10,0),"") -> assembly, congregation, church | AE29: 26 | AF29: 16 | AG29: [active stem] +ονσι, +οσιν | AI29: they are verbing (it) [present active indicative] | AK29: Verb Ending | AQ29: 0 | AR29: 0.305 | AS29: [active stem] +ονσι, +οσιν | AT29: TRUE | AU29: TRUE | AV29: TRUE | AW29: 16 | AY29: they are verbing (it) [present active indicative] | BA29: Verb Ending | BF29: 0 | BG29: 26 | BH29: 26 | BI29: 16 | BJ29: [active stem] +ονσι, +οσιν | BL29: they are verbing (it) [present active indicative] | BN29: Verb Ending | BT29: 0 | BU29: 26 | BV29: 26 | BW29: 16 | BX29: Verb Ending | BY29: [active stem] +ονσι, +οσιν | CD29: they are verbing (it) [present active indicative] | CE29: [active stem] +ονσι, +οσιν | CF29: Chapter 16: Verb Ending | CH29: 0 | CI29: FALSE | CJ29: 5026 | CK29: 39 | CO29: 26 | CT29: FALSE | CU29: 5026 | CV29: 30 | CZ29: 26 | DE29: FALSE | DF29: 5026 | DG29: 146 | DH29: 26 | DL29: εἷς [one (nominative, masculine)]
V30: 33 | W30: TRUE | X30: 33: | Y30: Strong's # | Z30: =IF(TRUE,VLOOKUP($Z$19,BU$4:CH$2003,14,0),"") -> 1577 | AE30: 27 | AF30: 18 | AG30: [middle stem] +ομαι, | AI30: I verb, I am verbing [present middle indicative] | AK30: Verb Ending | AQ30: 0 | AR30: 0.31 | AS30: [middle stem] +ομαι, | AT30: TRUE | AU30: TRUE | AV30: TRUE | AW30: 18 | AY30: I verb, I am verbing [present middle indicative] | BA30: Verb Ending | BF30: 0 | BG30: 27 | BH30: 27 | BI30: 18 | BJ30: [middle stem] +ομαι, | BL30: I verb, I am verbing [present middle indicative] | BN30: Verb Ending | BT30: 0 | BU30: 27 | BV30: 27 | BW30: 18 | BX30: Verb Ending | BY30: [middle stem] +ομαι, | CD30: I verb, I am verbing [present middle indicative] | CE30: [middle stem] +ομαι, | CF30: Chapter 18: Verb Ending | CH30: 0 | CI30: FALSE | CJ30: 5027 | CK30: 40 | CO30: 27 | CT30: FALSE | CU30: 5027 | CV30: 31 | CZ30: 27 | DE30: FALSE | DF30: 5027 | DG30: 147 | DH30: 27 | DL30: μία [one (nominative, feminine)]
V31: 34 | W31: TRUE | X31: 34: | Z31: Notes: when entering new data (in light green cells): | AE31: 28 | AF31: 18 | AG31: [middle stem] +εσαι, +ῃ | AI31: you verb, you are verbing [present middle indicative] | AK31: Verb Ending | AQ31: 0 | AR31: 0.311 | AS31: [middle stem] +εσαι, +ῃ | AT31: TRUE | AU31: TRUE | AV31: TRUE | AW31: 18 | AY31: you verb, you are verbing [present middle indicative] | BA31: Verb Ending | BF31: 0 | BG31: 28 | BH31: 28 | BI31: 18 | BJ31: [middle stem] +εσαι, +ῃ | BL31: you verb, you are verbing [present middle indicative] | BN31: Verb Ending | BT31: 0 | BU31: 28 | BV31: 28 | BW31: 18 | BX31: Verb Ending | BY31: [middle stem] +εσαι, +ῃ | CD31: you verb, you are verbing [present middle indicative] | CE31: [middle stem] +εσαι, +ῃ | CF31: Chapter 18: Verb Ending | CH31: 0 | CI31: FALSE | CJ31: 5028 | CK31: 41 | CO31: 28 | CT31: FALSE | CU31: 5028 | CV31: 32 | CZ31: 28 | DE31: FALSE | DF31: 5028 | DG31: 148 | DH31: 28 | DL31: ἕν [one (nominative or accusative, neuter)]
V32: 35 | W32: TRUE | X32: 35: | Z32: 1) "Noun " instead of "Noun" (i.e., with 2 spaces) | AE32: 29 | AF32: 18 | AG32: [middle stem] +εται | AI32: he/she/it verbs, he is verbing [present middle indicative] | AK32: Verb Ending | AQ32: 0 | AR32: 0.312 | AS32: [middle stem] +εται | AT32: TRUE | AU32: TRUE | AV32: TRUE | AW32: 18 | AY32: he/she/it verbs, he is verbing [present middle indicative] | BA32: Verb Ending | BF32: 0 | BG32: 29 | BH32: 29 | BI32: 18 | BJ32: [middle stem] +εται | BL32: he/she/it verbs, he is verbing [present middle indicative] | BN32: Verb Ending | BT32: 0 | BU32: 29 | BV32: 29 | BW32: 18 | BX32: Verb Ending | BY32: [middle stem] +εται | CD32: he/she/it verbs, he is verbing [present middle indicative] | CE32: [middle stem] +εται | CF32: Chapter 18: Verb Ending | CH32: 0 | CI32: FALSE | CJ32: 5029 | CK32: 42 | CO32: 29 | CT32: FALSE | CU32: 5029 | CV32: 33 | CZ32: 29 | DE32: FALSE | DF32: 5029 | DG32: 149 | DH32: 29 | DL32: ἑνί [to one (dative, masculine)]
V33: 36 | W33: TRUE | X33: 36: | Z33: 2) "Verb " instead of "Verb" (i.e., with 2 spaces) | AE33: 30 | AF33: 18 | AG33: [middle stem] +ομεθα | AI33: we verb, we are verbing [present middle indicative] | AK33: Verb Ending | AQ33: 0 | AR33: 0.313 | AS33: [middle stem] +ομεθα | AT33: TRUE | AU33: TRUE | AV33: TRUE | AW33: 18 | AY33: we verb, we are verbing [present middle indicative] | BA33: Verb Ending | BF33: 0 | BG33: 30 | BH33: 30 | BI33: 18 | BJ33: [middle stem] +ομεθα | BL33: we verb, we are verbing [present middle indicative] | BN33: Verb Ending | BT33: 0 | BU33: 30 | BV33: 30 | BW33: 18 | BX33: Verb Ending | BY33: [middle stem] +ομεθα | CD33: we verb, we are verbing [present middle indicative] | CE33: [middle stem] +ομεθα | CF33: Chapter 18: Verb Ending | CH33: 0 | CI33: FALSE | CJ33: 5030 | CK33: 43 | CO33: 30 | CT33: FALSE | CU33: 5030 | CV33: 34 | CZ33: 30 | DE33: FALSE | DF33: 5030 | DG33: 150 | DH33: 30 | DL33: μιᾷ [to one (dative, feminine)]
V34: 37 | W34: TRUE | X34: 37: | Z34: 3) No blank cells anywhere… always use 1 blank space instead. | AE34: 31 | AF34: 18 | AG34: [middle stem] +εσθε | AI34: ya'll verb, ya'll are verbing [present middle indicative] | AK34: Verb Ending | AQ34: 0 | AR34: 0.314 | AS34: [middle stem] +εσθε | AT34: TRUE | AU34: TRUE | AV34: TRUE | AW34: 18 | AY34: ya'll verb, ya'll are verbing [present middle indicative] | BA34: Verb Ending | BF34: 0 | BG34: 31 | BH34: 31 | BI34: 18 | BJ34: [middle stem] +εσθε | BL34: ya'll verb, ya'll are verbing [present middle indicative] | BN34: Verb Ending | BT34: 0 | BU34: 31 | BV34: 31 | BW34: 18 | BX34: Verb Ending | BY34: [middle stem] +εσθε | CD34: ya'll verb, ya'll are verbing [present middle indicative] | CE34: [middle stem] +εσθε | CF34: Chapter 18: Verb Ending | CH34: 0 | CI34: FALSE | CJ34: 5031 | CK34: 44 | CO34: 31 | CT34: FALSE | CU34: 5031 | CV34: 35 | CZ34: 31 | DE34: FALSE | DF34: 5031 | DG34: 151 | DH34: 31 | DL34: ἕνα [one (accusative, masculine)]
V35: 38 | W35: TRUE | X35: 38: | AE35: 32 | AF35: 18 | AG35: [middle stem] +ονται | AI35: they verb, they are verbing [present middle indicative] | AK35: Verb Ending | AQ35: 0 | AR35: 0.315 | AS35: [middle stem] +ονται | AT35: TRUE | AU35: TRUE | AV35: TRUE | AW35: 18 | AY35: they verb, they are verbing [present middle indicative] | BA35: Verb Ending | BF35: 0 | BG35: 32 | BH35: 32 | BI35: 18 | BJ35: [middle stem] +ονται | BL35: they verb, they are verbing [present middle indicative] | BN35: Verb Ending | BT35: 0 | BU35: 32 | BV35: 32 | BW35: 18 | BX35: Verb Ending | BY35: [middle stem] +ονται | CD35: they verb, they are verbing [present middle indicative] | CE35: [middle stem] +ονται | CF35: Chapter 18: Verb Ending | CH35: 0 | CI35: FALSE | CJ35: 5032 | CK35: 45 | CO35: 32 | CT35: FALSE | CU35: 5032 | CV35: 36 | CZ35: 32 | DE35: FALSE | DF35: 5032 | DG35: 152 | DH35: 32 | DL35: ἐμή [my, mine (feminine)]
Y36: How many boxes are checked? | AE36: 33 | AF36: 18 | AG36: [active stem] +ομαι | AI36: I am being verbed (by it) [present passive indicative] | AK36: Verb Ending | AQ36: 0 | AR36: 0.32 | AS36: [active stem] +ομαι | AT36: TRUE | AU36: TRUE | AV36: TRUE | AW36: 18 | AY36: I am being verbed (by it) [present passive indicative] | BA36: Verb Ending | BF36: 0 | BG36: 33 | BH36: 33 | BI36: 18 | BJ36: [active stem] +ομαι | BL36: I am being verbed (by it) [present passive indicative] | BN36: Verb Ending | BT36: 0 | BU36: 33 | BV36: 33 | BW36: 18 | BX36: Verb Ending | BY36: [active stem] +ομαι | CD36: I am being verbed (by it) [present passive indicative] | CE36: [active stem] +ομαι | CF36: Chapter 18: Verb Ending | CH36: 0 | CI36: FALSE | CJ36: 5033 | CK36: 46 | CO36: 33 | CT36: FALSE | CU36: 5033 | CV36: 37 | CZ36: 33 | DE36: FALSE | DF36: 5033 | DG36: 153 | DH36: 33 | DL36: ἑνί [to one (dative, masculine or neuter)]
Y37: =COUNTIF(W3:W35,TRUE)+COUNTIF(Z3:Z15,TRUE)+COUNTIF(AC3:AC12,TRUE) -> 54 | Z37: =Y37/56*100 -> 96.42857143 | AA37: percent | AE37: 34 | AF37: 18 | AG37: [active stem] +εσαι, +ῃ | AI37: you are being verbed (by it) [present passive indicative] | AK37: Verb Ending | AQ37: 0 | AR37: 0.321 | AS37: [active stem] +εσαι, +ῃ | AT37: TRUE | AU37: TRUE | AV37: TRUE | AW37: 18 | AY37: you are being verbed (by it) [present passive indicative] | BA37: Verb Ending | BF37: 0 | BG37: 34 | BH37: 34 | BI37: 18 | BJ37: [active stem] +εσαι, +ῃ | BL37: you are being verbed (by it) [present passive indicative] | BN37: Verb Ending | BT37: 0 | BU37: 34 | BV37: 34 | BW37: 18 | BX37: Verb Ending | BY37: [active stem] +εσαι, +ῃ | CD37: you are being verbed (by it) [present passive indicative] | CE37: [active stem] +εσαι, +ῃ | CF37: Chapter 18: Verb Ending | CH37: 0 | CI37: FALSE | CJ37: 5034 | CK37: 47 | CO37: 34 | CT37: FALSE | CU37: 5034 | CV37: 38 | CZ37: 34 | DE37: FALSE | DF37: 5034 | DG37: 154 | DH37: 34 | DL37: ἕξ [six]
Y38: "Chapter 37" is words appearing in the workbook or Strongs | AE38: 35 | AF38: 18 | AG38: [active stem] +εται | AI38: he/she/it is being verbed (by it) [present passive indicative] | AK38: Verb Ending | AQ38: 0 | AR38: 0.322 | AS38: [active stem] +εται | AT38: TRUE | AU38: TRUE | AV38: TRUE | AW38: 18 | AY38: he/she/it is being verbed (by it) [present passive indicative] | BA38: Verb Ending | BF38: 0 | BG38: 35 | BH38: 35 | BI38: 18 | BJ38: [active stem] +εται | BL38: he/she/it is being verbed (by it) [present passive indicative] | BN38: Verb Ending | BT38: 0 | BU38: 35 | BV38: 35 | BW38: 18 | BX38: Verb Ending | BY38: [active stem] +εται | CD38: he/she/it is being verbed (by it) [present passive indicative] | CE38: [active stem] +εται | CF38: Chapter 18: Verb Ending | CH38: 0 | CI38: FALSE | CJ38: 5035 | CK38: 48 | CO38: 35 | CT38: FALSE | CU38: 5035 | CV38: 39 | CZ38: 35 | DE38: FALSE | DF38: 5035 | DG38: 155 | DH38: 35 | DL38: ἔσῃ [you will be ]
Y39: "Chapter 38" is words appearing only in the index | AE39: 36 | AF39: 18 | AG39: [active stem] +ομεθα | AI39: we are being verbed (by it) [present passive indicative] | AK39: Verb Ending | AQ39: 0 | AR39: 0.323 | AS39: [active stem] +ομεθα | AT39: TRUE | AU39: TRUE | AV39: TRUE | AW39: 18 | AY39: we are being verbed (by it) [present passive indicative] | BA39: Verb Ending | BF39: 0 | BG39: 36 | BH39: 36 | BI39: 18 | BJ39: [active stem] +ομεθα | BL39: we are being verbed (by it) [present passive indicative] | BN39: Verb Ending | BT39: 0 | BU39: 36 | BV39: 36 | BW39: 18 | BX39: Verb Ending | BY39: [active stem] +ομεθα | CD39: we are being verbed (by it) [present passive indicative] | CE39: [active stem] +ομεθα | CF39: Chapter 18: Verb Ending | CH39: 0 | CI39: FALSE | CJ39: 5036 | CK39: 49 | CO39: 36 | CT39: FALSE | CU39: 5036 | CV39: 40 | CZ39: 36 | DE39: FALSE | DF39: 5036 | DG39: 156 | DH39: 36 | DL39: ἔτι [still, yet, even]
AE40: 37 | AF40: 18 | AG40: [active stem] +εσθε | AI40: ya'll are being verbed (by it) [present passive indicative] | AK40: Verb Ending | AQ40: 0 | AR40: 0.324 | AS40: [active stem] +εσθε | AT40: TRUE | AU40: TRUE | AV40: TRUE | AW40: 18 | AY40: ya'll are being verbed (by it) [present passive indicative] | BA40: Verb Ending | BF40: 0 | BG40: 37 | BH40: 37 | BI40: 18 | BJ40: [active stem] +εσθε | BL40: ya'll are being verbed (by it) [present passive indicative] | BN40: Verb Ending | BT40: 0 | BU40: 37 | BV40: 37 | BW40: 18 | BX40: Verb Ending | BY40: [active stem] +εσθε | CD40: ya'll are being verbed (by it) [present passive indicative] | CE40: [active stem] +εσθε | CF40: Chapter 18: Verb Ending | CH40: 0 | CI40: FALSE | CJ40: 5037 | CK40: 50 | CO40: 37 | CT40: FALSE | CU40: 5037 | CV40: 41 | CZ40: 37 | DE40: FALSE | DF40: 5037 | DG40: 157 | DH40: 37 | DL40: ἔχω [I have, I hold, I possess]
Y41: Word type for chart? | AA41: =IF(Z25="Noun Ending",TRUE,IF(Z25="Article",TRUE,IF(AND(Z25="Pronoun",AC41>0),TRUE,FALSE))) -> FALSE | AB41: Chart Sum: | AC41: =SUM(AA43:AC50) -> 0 | AE41: 38 | AF41: 18 | AG41: [active stem] +ονται | AI41: they are being verbed (by it) [present passive indicative] | AK41: Verb Ending | AQ41: 0 | AR41: 0.325 | AS41: [active stem] +ονται | AT41: TRUE | AU41: TRUE | AV41: TRUE | AW41: 18 | AY41: they are being verbed (by it) [present passive indicative] | BA41: Verb Ending | BF41: 0 | BG41: 38 | BH41: 38 | BI41: 18 | BJ41: [active stem] +ονται | BL41: they are being verbed (by it) [present passive indicative] | BN41: Verb Ending | BT41: 0 | BU41: 38 | BV41: 38 | BW41: 18 | BX41: Verb Ending | BY41: [active stem] +ονται | CD41: they are being verbed (by it) [present passive indicative] | CE41: [active stem] +ονται | CF41: Chapter 18: Verb Ending | CH41: 0 | CI41: FALSE | CJ41: 5038 | CK41: 51 | CO41: 38 | CT41: FALSE | CU41: 5038 | CV41: 42 | CZ41: 38 | DE41: FALSE | DF41: 5038 | DG41: 158 | DH41: 38 | DL41: ζάω [I live]
Y42: =Z29 -> assembly, congregation, church | AA42: masculine | AB42: feminine | AC42: neuter | AE42: 39 | AF42: 19 | AG42: [active stem] +σω | AI42: I will verb (it) [future active indicative] | AK42: Verb Ending | AQ42: 0 | AR42: 0.33 | AS42: [active stem] +σω | AT42: TRUE | AU42: TRUE | AV42: TRUE | AW42: 19 | AY42: I will verb (it) [future active indicative] | BA42: Verb Ending | BF42: 0 | BG42: 39 | BH42: 39 | BI42: 19 | BJ42: [active stem] +σω | BL42: I will verb (it) [future active indicative] | BN42: Verb Ending | BT42: 0 | BU42: 39 | BV42: 39 | BW42: 19 | BX42: Verb Ending | BY42: [active stem] +σω | CD42: I will verb (it) [future active indicative] | CE42: [active stem] +σω | CF42: Chapter 19: Verb Ending | CH42: 0 | CI42: FALSE | CJ42: 5039 | CK42: 52 | CO42: 39 | CT42: FALSE | CU42: 5039 | CV42: 43 | CZ42: 39 | DE42: FALSE | DF42: 5039 | DG42: 159 | DH42: 39 | DL42: ἡ ζωή [life]
X43: 1 | Y43: singular | Z43: nominative | AA43: =IF(NOT(OR(ISERR(SEARCH(AA$42,$Y$42,1)),ISERR(SEARCH($Z43,$Y$42,1)),ISERR(SEARCH($Y43,$Y$42,1)))),$X43,0) -> 0 | AB43: =IF(NOT(OR(ISERR(SEARCH(AB$42,$Y$42,1)),ISERR(SEARCH($Z43,$Y$42,1)),ISERR(SEARCH($Y43,$Y$42,1)))),$X43,0) -> 0 | AC43: =IF(NOT(OR(ISERR(SEARCH(AC$42,$Y$42,1)),ISERR(SEARCH($Z43,$Y$42,1)),ISERR(SEARCH($Y43,$Y$42,1)))),$X43,0) -> 0 | AE43: 40 | AF43: 19 | AG43: [active stem] +σες, +σεις | AI43: you will verb (it) [future active indicative] | AK43: Verb Ending | AQ43: 0 | AR43: 0.331 | AS43: [active stem] +σες, +σεις | AT43: TRUE | AU43: TRUE | AV43: TRUE | AW43: 19 | AY43: you will verb (it) [future active indicative] | BA43: Verb Ending | BF43: 0 | BG43: 40 | BH43: 40 | BI43: 19 | BJ43: [active stem] +σες, +σεις | BL43: you will verb (it) [future active indicative] | BN43: Verb Ending | BT43: 0 | BU43: 40 | BV43: 40 | BW43: 19 | BX43: Verb Ending | BY43: [active stem] +σες, +σεις | CD43: you will verb (it) [future active indicative] | CE43: [active stem] +σες, +σεις | CF43: Chapter 19: Verb Ending | CH43: 0 | CI43: FALSE | CJ43: 5040 | CK43: 53 | CO43: 40 | CT43: FALSE | CU43: 5040 | CV43: 44 | CZ43: 40 | DE43: FALSE | DF43: 5040 | DG43: 160 | DH43: 40 | DL43: ἤ [or, than]
X44: 2 | Y44: singular | Z44: genitive | AA44: =IF(NOT(OR(ISERR(SEARCH(AA$42,$Y$42,1)),ISERR(SEARCH($Z44,$Y$42,1)),ISERR(SEARCH($Y44,$Y$42,1)))),$X44,0) -> 0 | AB44: 0 | AC44: 0 | AE44: 41 | AF44: 19 | AG44: [active stem] +σει | AI44: he/she/it will verb (it) [future active indicative] | AK44: Verb Ending | AQ44: 0 | AR44: 0.332 | AS44: [active stem] +σει | AT44: TRUE | AU44: TRUE | AV44: TRUE | AW44: 19 | AY44: he/she/it will verb (it) [future active indicative] | BA44: Verb Ending | BF44: 0 | BG44: 41 | BH44: 41 | BI44: 19 | BJ44: [active stem] +σει | BL44: he/she/it will verb (it) [future active indicative] | BN44: Verb Ending | BT44: 0 | BU44: 41 | BV44: 41 | BW44: 19 | BX44: Verb Ending | BY44: [active stem] +σει | CD44: he/she/it will verb (it) [future active indicative] | CE44: [active stem] +σει | CF44: Chapter 19: Verb Ending | CH44: 0 | CI44: FALSE | CJ44: 5041 | CK44: 54 | CO44: 41 | CT44: FALSE | CU44: 5041 | CV44: 45 | CZ44: 41 | DE44: FALSE | DF44: 5041 | DG44: 161 | DH44: 41 | DL44: ἤδη [now, already (particle)]
X45: 3 | Y45: singular | Z45: dative | AA45: 0 | AB45: 0 | AC45: 0 | AE45: 42 | AF45: 19 | AG45: [active stem] +σομεν | AI45: we will verb (it) [future active indicative] | AK45: Verb Ending | AQ45: 0 | AR45: 0.333 | AS45: [active stem] +σομεν | AT45: TRUE | AU45: TRUE | AV45: TRUE | AW45: 19 | AY45: we will verb (it) [future active indicative] | BA45: Verb Ending | BF45: 0 | BG45: 42 | BH45: 42 | BI45: 19 | BJ45: [active stem] +σομεν | BL45: we will verb (it) [future active indicative] | BN45: Verb Ending | BT45: 0 | BU45: 42 | BV45: 42 | BW45: 19 | BX45: Verb Ending | BY45: [active stem] +σομεν | CD45: we will verb (it) [future active indicative] | CE45: [active stem] +σομεν | CF45: Chapter 19: Verb Ending | CH45: 0 | CI45: FALSE | CJ45: 5042 | CK45: 55 | CO45: 42 | CT45: FALSE | CU45: 5042 | CV45: 46 | CZ45: 42 | DE45: FALSE | DF45: 5042 | DG45: 162 | DH45: 42 | DL45: ἥκω [I have come]
X46: 4 | Y46: singular | Z46: accusative | AA46: 0 | AB46: 0 | AC46: 0 | AE46: 43 | AF46: 19 | AG46: [active stem] +σετε | AI46: ya'll will verb (it) [future active indicative] | AK46: Verb Ending | AQ46: 0 | AR46: 0.334 | AS46: [active stem] +σετε | AT46: TRUE | AU46: TRUE | AV46: TRUE | AW46: 19 | AY46: ya'll will verb (it) [future active indicative] | BA46: Verb Ending | BF46: 0 | BG46: 43 | BH46: 43 | BI46: 19 | BJ46: [active stem] +σετε | BL46: ya'll will verb (it) [future active indicative] | BN46: Verb Ending | BT46: 0 | BU46: 43 | BV46: 43 | BW46: 19 | BX46: Verb Ending | BY46: [active stem] +σετε | CD46: ya'll will verb (it) [future active indicative] | CE46: [active stem] +σετε | CF46: Chapter 19: Verb Ending | CH46: 0 | CI46: FALSE | CJ46: 5043 | CK46: 56 | CO46: 43 | CT46: FALSE | CU46: 5043 | CV46: 47 | CZ46: 43 | DE46: FALSE | DF46: 5043 | DG46: 163 | DH46: 43 | DL46: θύω [I sacrifice, I kill]
X47: 1 | Y47: plural | Z47: nominative | AA47: 0 | AB47: 0 | AC47: 0 | AE47: 44 | AF47: 19 | AG47: [active stem] +σονσι, +σοσιν | AI47: they will verb (it) [future active indicative] | AK47: Verb Ending | AQ47: 0 | AR47: 0.335 | AS47: [active stem] +σονσι, +σοσιν | AT47: TRUE | AU47: TRUE | AV47: TRUE | AW47: 19 | AY47: they will verb (it) [future active indicative] | BA47: Verb Ending | BF47: 0 | BG47: 44 | BH47: 44 | BI47: 19 | BJ47: [active stem] +σονσι, +σοσιν | BL47: they will verb (it) [future active indicative] | BN47: Verb Ending | BT47: 0 | BU47: 44 | BV47: 44 | BW47: 19 | BX47: Verb Ending | BY47: [active stem] +σονσι, +σοσιν | CD47: they will verb (it) [future active indicative] | CE47: [active stem] +σονσι, +σοσιν | CF47: Chapter 19: Verb Ending | CH47: 0 | CI47: FALSE | CJ47: 5044 | CK47: 57 | CO47: 44 | CT47: FALSE | CU47: 5044 | CV47: 48 | CZ47: 44 | DE47: FALSE | DF47: 5044 | DG47: 164 | DH47: 44 | DL47: ἴδε [See! Behold!]
X48: 2 | Y48: plural | Z48: genitive | AA48: 0 | AB48: 0 | AC48: 0 | AE48: 45 | AF48: 19 | AG48: [middle stem] +σομαι, | AI48: I will verb [future middle indicative] | AK48: Verb Ending | AQ48: 0 | AR48: 0.34 | AS48: [middle stem] +σομαι, | AT48: TRUE | AU48: TRUE | AV48: TRUE | AW48: 19 | AY48: I will verb [future middle indicative] | BA48: Verb Ending | BF48: 0 | BG48: 45 | BH48: 45 | BI48: 19 | BJ48: [middle stem] +σομαι, | BL48: I will verb [future middle indicative] | BN48: Verb Ending | BT48: 0 | BU48: 45 | BV48: 45 | BW48: 19 | BX48: Verb Ending | BY48: [middle stem] +σομαι, | CD48: I will verb [future middle indicative] | CE48: [middle stem] +σομαι, | CF48: Chapter 19: Verb Ending | CH48: 0 | CI48: FALSE | CJ48: 5045 | CK48: 58 | CO48: 45 | CT48: FALSE | CU48: 5045 | CV48: 49 | CZ48: 45 | DE48: FALSE | DF48: 5045 | DG48: 165 | DH48: 45 | DL48: ἵνα [that, in order that, so that]
X49: 3 | Y49: plural | Z49: dative | AA49: 0 | AB49: 0 | AC49: 0 | AE49: 46 | AF49: 19 | AG49: [middle stem] +σεσαι, +σῃ | AI49: you will verb [future middle indicative] | AK49: Verb Ending | AQ49: 0 | AR49: 0.341 | AS49: [middle stem] +σεσαι, +σῃ | AT49: TRUE | AU49: TRUE | AV49: TRUE | AW49: 19 | AY49: you will verb [future middle indicative] | BA49: Verb Ending | BF49: 0 | BG49: 46 | BH49: 46 | BI49: 19 | BJ49: [middle stem] +σεσαι, +σῃ | BL49: you will verb [future middle indicative] | BN49: Verb Ending | BT49: 0 | BU49: 46 | BV49: 46 | BW49: 19 | BX49: Verb Ending | BY49: [middle stem] +σεσαι, +σῃ | CD49: you will verb [future middle indicative] | CE49: [middle stem] +σεσαι, +σῃ | CF49: Chapter 19: Verb Ending | CH49: 0 | CI49: FALSE | CJ49: 5046 | CK49: 59 | CO49: 46 | CT49: FALSE | CU49: 5046 | CV49: 50 | CZ49: 46 | DE49: FALSE | DF49: 5046 | DG49: 166 | DH49: 46 | DL49: καί [and, even, also, namely, and yet (particle)]
X50: 4 | Y50: plural | Z50: accusative | AA50: 0 | AB50: 0 | AC50: 0 | AE50: 47 | AF50: 19 | AG50: [middle stem] +σεται | AI50: he/she/it will verb [future middle indicative] | AK50: Verb Ending | AQ50: 0 | AR50: 0.342 | AS50: [middle stem] +σεται | AT50: TRUE | AU50: TRUE | AV50: TRUE | AW50: 19 | AY50: he/she/it will verb [future middle indicative] | BA50: Verb Ending | BF50: 0 | BG50: 47 | BH50: 47 | BI50: 19 | BJ50: [middle stem] +σεται | BL50: he/she/it will verb [future middle indicative] | BN50: Verb Ending | BT50: 0 | BU50: 47 | BV50: 47 | BW50: 19 | BX50: Verb Ending | BY50: [middle stem] +σεται | CD50: he/she/it will verb [future middle indicative] | CE50: [middle stem] +σεται | CF50: Chapter 19: Verb Ending | CH50: 0 | CI50: FALSE | CJ50: 5047 | CK50: 60 | CO50: 47 | CT50: FALSE | CU50: 5047 | CV50: 51 | CZ50: 47 | DE50: FALSE | DF50: 5047 | DG50: 167 | DH50: 47 | DL50: κἄν [and if, even if (particle)]
AE51: 48 | AF51: 19 | AG51: [middle stem] +σομεθα | AI51: we will verb [future middle indicative] | AK51: Verb Ending | AQ51: 0 | AR51: 0.343 | AS51: [middle stem] +σομεθα | AT51: TRUE | AU51: TRUE | AV51: TRUE | AW51: 19 | AY51: we will verb [future middle indicative] | BA51: Verb Ending | BF51: 0 | BG51: 48 | BH51: 48 | BI51: 19 | BJ51: [middle stem] +σομεθα | BL51: we will verb [future middle indicative] | BN51: Verb Ending | BT51: 0 | BU51: 48 | BV51: 48 | BW51: 19 | BX51: Verb Ending | BY51: [middle stem] +σομεθα | CD51: we will verb [future middle indicative] | CE51: [middle stem] +σομεθα | CF51: Chapter 19: Verb Ending | CH51: 0 | CI51: FALSE | CJ51: 5048 | CK51: 61 | CO51: 48 | CT51: FALSE | CU51: 5048 | CV51: 52 | CZ51: 48 | DE51: FALSE | DF51: 5048 | DG51: 168 | DH51: 48 | DL51: λύω [I loose, I untie, I destroy, I release]
AE52: 49 | AF52: 19 | AG52: [middle stem] +σεσθε | AI52: ya'll will verb [future middle indicative] | AK52: Verb Ending | AQ52: 0 | AR52: 0.344 | AS52: [middle stem] +σεσθε | AT52: TRUE | AU52: TRUE | AV52: TRUE | AW52: 19 | AY52: ya'll will verb [future middle indicative] | BA52: Verb Ending | BF52: 0 | BG52: 49 | BH52: 49 | BI52: 19 | BJ52: [middle stem] +σεσθε | BL52: ya'll will verb [future middle indicative] | BN52: Verb Ending | BT52: 0 | BU52: 49 | BV52: 49 | BW52: 19 | BX52: Verb Ending | BY52: [middle stem] +σεσθε | CD52: ya'll will verb [future middle indicative] | CE52: [middle stem] +σεσθε | CF52: Chapter 19: Verb Ending | CH52: 0 | CI52: FALSE | CJ52: 5049 | CK52: 62 | CO52: 49 | CT52: FALSE | CU52: 5049 | CV52: 53 | CZ52: 49 | DE52: FALSE | DF52: 5049 | DG52: 169 | DH52: 49 | DL52: μέν [on the one hand, indeed (particle)]
AE53: 50 | AF53: 19 | AG53: [middle stem] +σονται | AI53: they will verb [future middle indicative] | AK53: Verb Ending | AQ53: 0 | AR53: 0.345 | AS53: [middle stem] +σονται | AT53: TRUE | AU53: TRUE | AV53: TRUE | AW53: 19 | AY53: they will verb [future middle indicative] | BA53: Verb Ending | BF53: 0 | BG53: 50 | BH53: 50 | BI53: 19 | BJ53: [middle stem] +σονται | BL53: they will verb [future middle indicative] | BN53: Verb Ending | BT53: 0 | BU53: 50 | BV53: 50 | BW53: 19 | BX53: Verb Ending | BY53: [middle stem] +σονται | CD53: they will verb [future middle indicative] | CE53: [middle stem] +σονται | CF53: Chapter 19: Verb Ending | CH53: 0 | CI53: FALSE | CJ53: 5050 | CK53: 63 | CO53: 50 | CT53: FALSE | CU53: 5050 | CV53: 54 | CZ53: 50 | DE53: FALSE | DF53: 5050 | DG53: 170 | DH53: 50 | DL53: μή [not, lest (particle; used in non-indicative moods like subjunctive or imperative)]
AE54: 51 | AF54: 21 | AG54: ἐ + [active stem] +ον | AI54: I was/they were verbing (it) [imperfect active indicative] | AK54: Verb Ending | AQ54: 0 | AR54: 0.35 | AS54: ἐ + [active stem] +ον | AT54: TRUE | AU54: TRUE | AV54: TRUE | AW54: 21 | AY54: I was/they were verbing (it) [imperfect active indicative] | BA54: Verb Ending | BF54: 0 | BG54: 51 | BH54: 51 | BI54: 21 | BJ54: ἐ + [active stem] +ον | BL54: I was/they were verbing (it) [imperfect active indicative] | BN54: Verb Ending | BT54: 0 | BU54: 51 | BV54: 51 | BW54: 21 | BX54: Verb Ending | BY54: ἐ + [active stem] +ον | CD54: I was/they were verbing (it) [imperfect active indicative] | CE54: ἐ + [active stem] +ον | CF54: Chapter 21: Verb Ending | CH54: 0 | CI54: FALSE | CJ54: 5051 | CK54: 64 | CO54: 51 | CT54: FALSE | CU54: 5051 | CV54: 55 | CZ54: 51 | DE54: FALSE | DF54: 5051 | DG54: 171 | DH54: 51 | DL54: μου [my/of me (genitive singular)]
AE55: 52 | AF55: 21 | AG55: ἐ + [active stem] +ες, +εις | AI55: you were verbing (it) [imperfect active indicative] | AK55: Verb Ending | AQ55: 0 | AR55: 0.351 | AS55: ἐ + [active stem] +ες, +εις | AT55: TRUE | AU55: TRUE | AV55: TRUE | AW55: 21 | AY55: you were verbing (it) [imperfect active indicative] | BA55: Verb Ending | BF55: 0 | BG55: 52 | BH55: 52 | BI55: 21 | BJ55: ἐ + [active stem] +ες, +εις | BL55: you were verbing (it) [imperfect active indicative] | BN55: Verb Ending | BT55: 0 | BU55: 52 | BV55: 52 | BW55: 21 | BX55: Verb Ending | BY55: ἐ + [active stem] +ες, +εις | CD55: you were verbing (it) [imperfect active indicative] | CE55: ἐ + [active stem] +ες, +εις | CF55: Chapter 21: Verb Ending | CH55: 0 | CI55: FALSE | CJ55: 5052 | CK55: 65 | CO55: 52 | CT55: FALSE | CU55: 5052 | CV55: 56 | CZ55: 52 | DE55: FALSE | DF55: 5052 | DG55: 172 | DH55: 52 | DL55: μου [my]
AE56: 53 | AF56: 21 | AG56: ἐ + [active stem] +ει | AI56: he/she/it was verbing (it) [imperfect active indicative] | AK56: Verb Ending | AQ56: 0 | AR56: 0.352 | AS56: ἐ + [active stem] +ει | AT56: TRUE | AU56: TRUE | AV56: TRUE | AW56: 21 | AY56: he/she/it was verbing (it) [imperfect active indicative] | BA56: Verb Ending | BF56: 0 | BG56: 53 | BH56: 53 | BI56: 21 | BJ56: ἐ + [active stem] +ει | BL56: he/she/it was verbing (it) [imperfect active indicative] | BN56: Verb Ending | BT56: 0 | BU56: 53 | BV56: 53 | BW56: 21 | BX56: Verb Ending | BY56: ἐ + [active stem] +ει | CD56: he/she/it was verbing (it) [imperfect active indicative] | CE56: ἐ + [active stem] +ει | CF56: Chapter 21: Verb Ending | CH56: 0 | CI56: FALSE | CJ56: 5053 | CK56: 66 | CO56: 53 | CT56: FALSE | CU56: 5053 | CV56: 57 | CZ56: 53 | DE56: FALSE | DF56: 5053 | DG56: 173 | DH56: 53 | DL56: ναί [yes, certainly]
AE57: 54 | AF57: 21 | AG57: ἐ + [active stem] +ομεν | AI57: we were verbing (it) [imperfect active indicative] | AK57: Verb Ending | AQ57: 0 | AR57: 0.353 | AS57: ἐ + [active stem] +ομεν | AT57: TRUE | AU57: TRUE | AV57: TRUE | AW57: 21 | AY57: we were verbing (it) [imperfect active indicative] | BA57: Verb Ending | BF57: 0 | BG57: 54 | BH57: 54 | BI57: 21 | BJ57: ἐ + [active stem] +ομεν | BL57: we were verbing (it) [imperfect active indicative] | BN57: Verb Ending | BT57: 0 | BU57: 54 | BV57: 54 | BW57: 21 | BX57: Verb Ending | BY57: ἐ + [active stem] +ομεν | CD57: we were verbing (it) [imperfect active indicative] | CE57: ἐ + [active stem] +ομεν | CF57: Chapter 21: Verb Ending | CH57: 0 | CI57: FALSE | CJ57: 5054 | CK57: 67 | CO57: 54 | CT57: FALSE | CU57: 5054 | CV57: 58 | CZ57: 54 | DE57: FALSE | DF57: 5054 | DG57: 174 | DH57: 54 | DL57: νῦν [now (particle)]
AE58: 55 | AF58: 21 | AG58: ἐ + [active stem] +ετε | AI58: ya'll were verbing (it) [imperfect active indicative] | AK58: Verb Ending | AQ58: 0 | AR58: 0.354 | AS58: ἐ + [active stem] +ετε | AT58: TRUE | AU58: TRUE | AV58: TRUE | AW58: 21 | AY58: ya'll were verbing (it) [imperfect active indicative] | BA58: Verb Ending | BF58: 0 | BG58: 55 | BH58: 55 | BI58: 21 | BJ58: ἐ + [active stem] +ετε | BL58: ya'll were verbing (it) [imperfect active indicative] | BN58: Verb Ending | BT58: 0 | BU58: 55 | BV58: 55 | BW58: 21 | BX58: Verb Ending | BY58: ἐ + [active stem] +ετε | CD58: ya'll were verbing (it) [imperfect active indicative] | CE58: ἐ + [active stem] +ετε | CF58: Chapter 21: Verb Ending | CH58: 0 | CI58: FALSE | CJ58: 5055 | CK58: 68 | CO58: 55 | CT58: FALSE | CU58: 5055 | CV58: 59 | CZ58: 55 | DE58: FALSE | DF58: 5055 | DG58: 175 | DH58: 55 | DL58: ἡ νύξ [night]
AE59: 56 | AF59: 21 | AG59: ἐ + [active stem] +ον | AI59: they were verbing (it) [imperfect active indicative] | AK59: Verb Ending | AQ59: 0 | AR59: 0.355 | AS59: ἐ + [active stem] +ον | AT59: TRUE | AU59: TRUE | AV59: TRUE | AW59: 21 | AY59: they were verbing (it) [imperfect active indicative] | BA59: Verb Ending | BF59: 0 | BG59: 56 | BH59: 56 | BI59: 21 | BJ59: ἐ + [active stem] +ον | BL59: they were verbing (it) [imperfect active indicative] | BN59: Verb Ending | BT59: 0 | BU59: 56 | BV59: 56 | BW59: 21 | BX59: Verb Ending | BY59: ἐ + [active stem] +ον | CD59: they were verbing (it) [imperfect active indicative] | CE59: ἐ + [active stem] +ον | CF59: Chapter 21: Verb Ending | CH59: 0 | CI59: FALSE | CJ59: 5056 | CK59: 69 | CO59: 56 | CT59: FALSE | CU59: 5056 | CV59: 60 | CZ59: 56 | DE59: FALSE | DF59: 5056 | DG59: 176 | DH59: 56 | DL59: ὁ [the (nominative, singular, masculine)]
AE60: 57 | AF60: 21 | AG60: ἐ + [active stem] +ομην | AI60: I was being verbed (by it) [imperfect passive indicative] | AK60: Verb Ending | AQ60: 0 | AR60: 0.36 | AS60: ἐ + [active stem] +ομην | AT60: TRUE | AU60: TRUE | AV60: TRUE | AW60: 21 | AY60: I was being verbed (by it) [imperfect passive indicative] | BA60: Verb Ending | BF60: 0 | BG60: 57 | BH60: 57 | BI60: 21 | BJ60: ἐ + [active stem] +ομην | BL60: I was being verbed (by it) [imperfect passive indicative] | BN60: Verb Ending | BT60: 0 | BU60: 57 | BV60: 57 | BW60: 21 | BX60: Verb Ending | BY60: ἐ + [active stem] +ομην | CD60: I was being verbed (by it) [imperfect passive indicative] | CE60: ἐ + [active stem] +ομην | CF60: Chapter 21: Verb Ending | CH60: 0 | CI60: FALSE | CJ60: 5057 | CK60: 70 | CO60: 57 | CT60: FALSE | CU60: 5057 | CV60: 61 | CZ60: 57 | DE60: FALSE | DF60: 5057 | DG60: 177 | DH60: 57 | DL60: ἡ [the (nominative, singular, feminine)]
AE61: 58 | AF61: 21 | AG61: ἐ + [active stem] +εσο | AI61: you were being verbed (by it) [imperfect passive indicative] | AK61: Verb Ending | AQ61: 0 | AR61: 0.361 | AS61: ἐ + [active stem] +εσο | AT61: TRUE | AU61: TRUE | AV61: TRUE | AW61: 21 | AY61: you were being verbed (by it) [imperfect passive indicative] | BA61: Verb Ending | BF61: 0 | BG61: 58 | BH61: 58 | BI61: 21 | BJ61: ἐ + [active stem] +εσο | BL61: you were being verbed (by it) [imperfect passive indicative] | BN61: Verb Ending | BT61: 0 | BU61: 58 | BV61: 58 | BW61: 21 | BX61: Verb Ending | BY61: ἐ + [active stem] +εσο | CD61: you were being verbed (by it) [imperfect passive indicative] | CE61: ἐ + [active stem] +εσο | CF61: Chapter 21: Verb Ending | CH61: 0 | CI61: FALSE | CJ61: 5058 | CK61: 71 | CO61: 58 | CT61: FALSE | CU61: 5058 | CV61: 62 | CZ61: 58 | DE61: FALSE | DF61: 5058 | DG61: 178 | DH61: 58 | DL61: τό [the (nominative or accusative, singular, neuter)]
AE62: 59 | AF62: 21 | AG62: ἐ + [active stem] +ετο | AI62: he/she/it was being verbed (by it) [imperfect passive indicative] | AK62: Verb Ending | AQ62: 0 | AR62: 0.362 | AS62: ἐ + [active stem] +ετο | AT62: TRUE | AU62: TRUE | AV62: TRUE | AW62: 21 | AY62: he/she/it was being verbed (by it) [imperfect passive indicative] | BA62: Verb Ending | BF62: 0 | BG62: 59 | BH62: 59 | BI62: 21 | BJ62: ἐ + [active stem] +ετο | BL62: he/she/it was being verbed (by it) [imperfect passive indicative] | BN62: Verb Ending | BT62: 0 | BU62: 59 | BV62: 59 | BW62: 21 | BX62: Verb Ending | BY62: ἐ + [active stem] +ετο | CD62: he/she/it was being verbed (by it) [imperfect passive indicative] | CE62: ἐ + [active stem] +ετο | CF62: Chapter 21: Verb Ending | CH62: 0 | CI62: FALSE | CJ62: 5059 | CK62: 72 | CO62: 59 | CT62: FALSE | CU62: 5059 | CV62: 63 | CZ62: 59 | DE62: FALSE | DF62: 5059 | DG62: 179 | DH62: 59 | DL62: τοῦ [the/of the (genitive, singular, masculine or neuter)]
AE63: 60 | AF63: 21 | AG63: ἐ + [active stem] +ομεθα | AI63: we were being verbed (by it) [imperfect passive indicative] | AK63: Verb Ending | AQ63: 0 | AR63: 0.363 | AS63: ἐ + [active stem] +ομεθα | AT63: TRUE | AU63: TRUE | AV63: TRUE | AW63: 21 | AY63: we were being verbed (by it) [imperfect passive indicative] | BA63: Verb Ending | BF63: 0 | BG63: 60 | BH63: 60 | BI63: 21 | BJ63: ἐ + [active stem] +ομεθα | BL63: we were being verbed (by it) [imperfect passive indicative] | BN63: Verb Ending | BT63: 0 | BU63: 60 | BV63: 60 | BW63: 21 | BX63: Verb Ending | BY63: ἐ + [active stem] +ομεθα | CD63: we were being verbed (by it) [imperfect passive indicative] | CE63: ἐ + [active stem] +ομεθα | CF63: Chapter 21: Verb Ending | CH63: 0 | CI63: FALSE | CJ63: 5060 | CK63: 73 | CO63: 60 | CT63: FALSE | CU63: 5060 | CV63: 64 | CZ63: 60 | DE63: FALSE | DF63: 5060 | DG63: 180 | DH63: 60 | DL63: τῆς [the/of the (genitive, singular, feminine)]
AE64: 61 | AF64: 21 | AG64: ἐ + [active stem] +εσθε | AI64: ya'll were being verbed (by it) [imperfect passive indicative] | AK64: Verb Ending | AQ64: 0 | AR64: 0.364 | AS64: ἐ + [active stem] +εσθε | AT64: TRUE | AU64: TRUE | AV64: TRUE | AW64: 21 | AY64: ya'll were being verbed (by it) [imperfect passive indicative] | BA64: Verb Ending | BF64: 0 | BG64: 61 | BH64: 61 | BI64: 21 | BJ64: ἐ + [active stem] +εσθε | BL64: ya'll were being verbed (by it) [imperfect passive indicative] | BN64: Verb Ending | BT64: 0 | BU64: 61 | BV64: 61 | BW64: 21 | BX64: Verb Ending | BY64: ἐ + [active stem] +εσθε | CD64: ya'll were being verbed (by it) [imperfect passive indicative] | CE64: ἐ + [active stem] +εσθε | CF64: Chapter 21: Verb Ending | CH64: 0 | CI64: FALSE | CJ64: 5061 | CK64: 74 | CO64: 61 | CT64: FALSE | CU64: 5061 | CV64: 65 | CZ64: 61 | DE64: FALSE | DF64: 5061 | DG64: 181 | DH64: 61 | DL64: τῷ [the/to the (dative, singular, masculine or neuter)]
AE65: 62 | AF65: 21 | AG65: ἐ + [active stem] +οντο | AI65: they were being verbed (by it) [imperfect passive indicative] | AK65: Verb Ending | AQ65: 0 | AR65: 0.365 | AS65: ἐ + [active stem] +οντο | AT65: TRUE | AU65: TRUE | AV65: TRUE | AW65: 21 | AY65: they were being verbed (by it) [imperfect passive indicative] | BA65: Verb Ending | BF65: 0 | BG65: 62 | BH65: 62 | BI65: 21 | BJ65: ἐ + [active stem] +οντο | BL65: they were being verbed (by it) [imperfect passive indicative] | BN65: Verb Ending | BT65: 0 | BU65: 62 | BV65: 62 | BW65: 21 | BX65: Verb Ending | BY65: ἐ + [active stem] +οντο | CD65: they were being verbed (by it) [imperfect passive indicative] | CE65: ἐ + [active stem] +οντο | CF65: Chapter 21: Verb Ending | CH65: 0 | CI65: FALSE | CJ65: 5062 | CK65: 75 | CO65: 62 | CT65: FALSE | CU65: 5062 | CV65: 66 | CZ65: 62 | DE65: FALSE | DF65: 5062 | DG65: 182 | DH65: 62 | DL65: τῇ [the/ to the (dative, singular, feminine)]
AE66: 63 | AF66: 21 | AG66: ἐ + [middle stem] +ομην | AI66: I was verbing [imperfect middle indicative] | AK66: Verb Ending | AQ66: 0 | AR66: 0.37 | AS66: ἐ + [middle stem] +ομην | AT66: TRUE | AU66: TRUE | AV66: TRUE | AW66: 21 | AY66: I was verbing [imperfect middle indicative] | BA66: Verb Ending | BF66: 0 | BG66: 63 | BH66: 63 | BI66: 21 | BJ66: ἐ + [middle stem] +ομην | BL66: I was verbing [imperfect middle indicative] | BN66: Verb Ending | BT66: 0 | BU66: 63 | BV66: 63 | BW66: 21 | BX66: Verb Ending | BY66: ἐ + [middle stem] +ομην | CD66: I was verbing [imperfect middle indicative] | CE66: ἐ + [middle stem] +ομην | CF66: Chapter 21: Verb Ending | CH66: 0 | CI66: FALSE | CJ66: 5063 | CK66: 76 | CO66: 63 | CT66: FALSE | CU66: 5063 | CV66: 67 | CZ66: 63 | DE66: FALSE | DF66: 5063 | DG66: 183 | DH66: 63 | DL66: τόν [the (accusative, singular, masculine)]
AB67: ■□Abc | AE67: 64 | AF67: 21 | AG67: ἐ + [middle stem] +εσο | AI67: you were verbing [imperfect middle indicative] | AK67: Verb Ending | AQ67: 0 | AR67: 0.371 | AS67: ἐ + [middle stem] +εσο | AT67: TRUE | AU67: TRUE | AV67: TRUE | AW67: 21 | AY67: you were verbing [imperfect middle indicative] | BA67: Verb Ending | BF67: 0 | BG67: 64 | BH67: 64 | BI67: 21 | BJ67: ἐ + [middle stem] +εσο | BL67: you were verbing [imperfect middle indicative] | BN67: Verb Ending | BT67: 0 | BU67: 64 | BV67: 64 | BW67: 21 | BX67: Verb Ending | BY67: ἐ + [middle stem] +εσο | CD67: you were verbing [imperfect middle indicative] | CE67: ἐ + [middle stem] +εσο | CF67: Chapter 21: Verb Ending | CH67: 0 | CI67: FALSE | CJ67: 5064 | CK67: 77 | CO67: 64 | CT67: FALSE | CU67: 5064 | CV67: 68 | CZ67: 64 | DE67: FALSE | DF67: 5064 | DG67: 184 | DH67: 64 | DL67: τήν [the (accusative, singular, feminine)]
Y68: M F N | Z68: =IF(AND(AC$11,AA$41,$AD$79>0),Y68&" "&AB68&AC68&AD68,"") ->  | AA68: 1 | AE68: 65 | AF68: 21 | AG68: ἐ + [middle stem] +ετο | AI68: he/she/it was verbing [imperfect middle indicative] | AK68: Verb Ending | AQ68: 0 | AR68: 0.372 | AS68: ἐ + [middle stem] +ετο | AT68: =IF(ISERR(FIND(AF68,$Y$22,1)),FALSE,TRUE) -> TRUE | AU68: TRUE | AV68: TRUE | AW68: 21 | AY68: he/she/it was verbing [imperfect middle indicative] | BA68: Verb Ending | BF68: 0 | BG68: =IF(AV68,AE68,AE68+5000) -> 65 | BH68: =RANK(BG68,BG$4:BG$2003,1) -> 65 | BI68: 21 | BJ68: =IF($AV68,BO68&AG68," ") -> ἐ + [middle stem] +ετο | BL68: he/she/it was verbing [imperfect middle indicative] | BN68: Verb Ending | BT68: 0 | BU68: 65 | BV68: =IF(BU68<=BJ$2,MATCH(BU68,BH$4:BH$2003,0),"") -> 65 | BW68: =VLOOKUP($BU68,BH$4:BQ$2003,2,0) -> 21 | BX68: =VLOOKUP($BU68,BH$4:BQ$2003,7,0) -> Verb Ending | BY68: =VLOOKUP($BU68,BH$4:BQ$2003,3,0) -> ἐ + [middle stem] +ετο | BZ68: =VLOOKUP($BU68,BH$4:BQ$2003,9,0) ->  | CA68: =VLOOKUP($BU68,BH$4:BQ$2003,10,0) ->  | CB68: =VLOOKUP($BU68,BH$4:BQ$2003,4,0) ->  | CC68: =VLOOKUP($BU68,BH$4:BQ$2003,6,0) ->  | CD68: =VLOOKUP($BU68,BH$4:BQ$2003,5,0) -> he/she/it was verbing [imperfect middle indicative] | CE68: =IF(AC$8,BY68,VLOOKUP($BU68,BH$4:BR$2003,11,0)&BY68) -> ἐ + [middle stem] +ετο | CF68: Chapter 21: Verb Ending | CG68: =VLOOKUP($BU68,BH$4:BS$2003,12,0) ->  | CH68: =VLOOKUP($BU68,BH$4:BT$2003,13,0) -> 0 | CI68: FALSE | CJ68: =IF(CI68,AE68,AE68+5000) -> 5065 | CK68: =RANK(CJ68,CJ$4:CJ$2003,1) -> 78 | CL68: =IF($CI68,IF(BB68=" ","",BB68&" ")&AG68," ") ->  | CO68: 65 | CP68: =IF(CO68<=CP$2,MATCH(CO68,CK$4:CK$2003,0),"") ->  | CQ68: =VLOOKUP($CO68,CK$4:CM$2003,2,0) ->  | CR68: =VLOOKUP($CO68,CK$4:CN$2003,3,0)&VLOOKUP($CO68,CK$4:CN$2003,4,0) ->  | CT68: =IF(ISERR(FIND(CW$2,AP68,1)),FALSE, TRUE) -> FALSE | CU68: =IF(CT68,AE68,AE68+5000) -> 5065 | CV68: =RANK(CU68,CU$4:CU$2003,1) -> 69 | CW68: =IF($CT68,IF(AH68=" ",""," ["&AH68&"]")," ") ->  | CX68: =IF($CT68,IF(AK68="Noun ","Noun",IF(AK68="Verb ","Verb",AK68))," ") ->  | CZ68: 65 | DA68: =IF(CZ68<=DA$2,MATCH(CZ68,CV$4:CV$2003,0),"") ->  | DB68: =VLOOKUP($CZ68,CV$4:CY$2003,4,0) ->  | DE68: =IF(AND(LEN(AG68)<=DF$2,AG68<>" "),TRUE,FALSE) -> FALSE | DF68: =IF(DE68,AE68,AE68+5000) -> 5065 | DG68: =RANK(DF68,DF$4:DF$2003,1) -> 185 | DH68: 65 | DI68: =IF(DH68<=DA$2,MATCH(DH68,DG$4:DG$2003,0),"") ->  | DJ68: =IF($DE68,IF(BB68=" ","",BB68&" ")&AG68," ") ->  | DL68: =IF($DH68<=$DI$2,VLOOKUP($DH68,DG$4:DK$2003,4,0)&" [" &VLOOKUP($DH68,DG$4:DK$2003,5,0) &"]"," ") -> οἱ [the (nominative, plural, masculine)]
Y69: Nom Sing | AA69: 2 | AB69: =IF(AND(AA43>0,NOT(AA46>0)),"■","□") -> □ | AC69: =IF(AB43>0,"■","□") -> □ | AD69: □ | AE69: 66 | AF69: 21 | AG69: ἐ + [middle stem] +ομεθα | AI69: we were verbing [imperfect middle indicative] | AK69: Verb Ending | AQ69: 0 | AR69: 0.373 | AS69: =IF(AG69="","",AG69) -> ἐ + [middle stem] +ομεθα | AT69: TRUE | AU69: =IF(ISERR(FIND(AK69,$Y$23,1)),FALSE,TRUE) -> TRUE | AV69: =AND(AT69,AU69) -> TRUE | AW69: =IF(AC$3,AF69," ") -> 21 | AX69: =IF(AC$4,AH69," ") ->  | AY69: =IF(TRUE,AI69," ") -> we were verbing [imperfect middle indicative] | AZ69: =IF(AC$6,AJ69," ") ->  | BA69: =IF(AC$7,AK69," ") -> Verb Ending | BB69: =IF(AC$8,AL69," ") ->  | BC69: =IF(AC$9,AM69," ") ->  | BD69: =IF(AC$10,AN69," ") ->  | BE69: =IF(AC$9,AO69," ") ->  | BF69: =IF(AC$12,AQ69," ") -> 0 | BG69: 66 | BH69: 66 | BI69: 21 | BJ69: ἐ + [middle stem] +ομεθα | BL69: we were verbing [imperfect middle indicative] | BN69: Verb Ending | BR69: =IF($AV69,IF(AL69=" ","",AL69&" "),"") ->  | BS69: =IF($AV69,BE69," ") ->  | BT69: 0 | BU69: 66 | BV69: 66 | BW69: 21 | BX69: Verb Ending | BY69: ἐ + [middle stem] +ομεθα | CD69: we were verbing [imperfect middle indicative] | CE69: ἐ + [middle stem] +ομεθα | CF69: =IF(BV69="","",IF(BW69="37","Extra", IF(BW69=38, "Index of Textbook","Chapter " &BW69))&": "&BX69) -> Chapter 21: Verb Ending | CH69: 0 | CI69: =IF(ISERR(SEARCH(CL$2,AY69,1)),FALSE, TRUE) -> FALSE | CJ69: 5066 | CK69: 79 | CM69: =IF($CI69,AY69," ") ->  | CN69: =IF($CI69,IF(AW69="37"," [Extra]",IF(AW69="38"," [Index]", " [Chap. "&TEXT(VALUE(AW69),"#")&"]"))," ") ->  | CO69: 66 | CT69: FALSE | CU69: 5066 | CV69: 70 | CY69: =IF($CT69,IF(BB69=" ","",BB69&" ")&AG69&CW69&": "&AY69& IF(AF69="37"," (Extra",IF(AF69="38"," (Index"," (Chapter "&TEXT(AF69,"#"))) &", "&CX69& IF(LEN(AM69)>1," ["&AM69&"]","") &IF(LEN(AN69)>1," ["&AN69&"]","") &")"," ") ->  | CZ69: 66 | DE69: FALSE | DF69: 5066 | DG69: 186 | DH69: 66 | DK69: =IF($DE69,AY69," ") ->  | DL69: αἱ [the (nominative, plural, feminine)]
Y70: Gen Sing | AA70: 3 | AB70: =IF(AA44>0,"■","□") -> □ | AC70: □ | AD70: □ | AE70: 67 | AF70: 21 | AG70: ἐ + [middle stem] +εσθε | AI70: ya'll were verbing [imperfect middle indicative] | AK70: Verb Ending | AQ70: 0 | AR70: 0.374 | AS70: ἐ + [middle stem] +εσθε | AT70: TRUE | AU70: TRUE | AV70: TRUE | AW70: 21 | AY70: ya'll were verbing [imperfect middle indicative] | BA70: Verb Ending | BF70: 0 | BG70: 67 | BH70: 67 | BI70: 21 | BJ70: ἐ + [middle stem] +εσθε | BL70: ya'll were verbing [imperfect middle indicative] | BN70: Verb Ending | BT70: 0 | BU70: 67 | BV70: 67 | BW70: 21 | BX70: Verb Ending | BY70: ἐ + [middle stem] +εσθε | CD70: ya'll were verbing [imperfect middle indicative] | CE70: ἐ + [middle stem] +εσθε | CF70: Chapter 21: Verb Ending | CH70: 0 | CI70: FALSE | CJ70: 5067 | CK70: 80 | CO70: 67 | CT70: FALSE | CU70: 5067 | CV70: 71 | CZ70: 67 | DE70: FALSE | DF70: 5067 | DG70: 187 | DH70: 67 | DL70: τά [the (nominative or accusative, plural, neuter)]
Y71: Dat Sing | AA71: 4 | AB71: =IF(AA45>0,"■","□") -> □ | AC71: □ | AD71: □ | AE71: 68 | AF71: 21 | AG71: ἐ + [middle stem] +οντο | AI71: they were verbing [imperfect middle indicative] | AK71: Verb Ending | AQ71: 0 | AR71: 0.375 | AS71: ἐ + [middle stem] +οντο | AT71: TRUE | AU71: TRUE | AV71: TRUE | AW71: 21 | AY71: they were verbing [imperfect middle indicative] | BA71: Verb Ending | BF71: 0 | BG71: 68 | BH71: 68 | BI71: 21 | BJ71: ἐ + [middle stem] +οντο | BL71: they were verbing [imperfect middle indicative] | BN71: Verb Ending | BT71: 0 | BU71: 68 | BV71: 68 | BW71: 21 | BX71: Verb Ending | BY71: ἐ + [middle stem] +οντο | CD71: they were verbing [imperfect middle indicative] | CE71: ἐ + [middle stem] +οντο | CF71: Chapter 21: Verb Ending | CH71: 0 | CI71: FALSE | CJ71: 5068 | CK71: 81 | CO71: 68 | CT71: FALSE | CU71: 5068 | CV71: 72 | CZ71: 68 | DE71: FALSE | DF71: 5068 | DG71: 188 | DH71: 68 | DL71: τῶν [the/of the (genitive, plural, masculine, feminine, neuter)]
Y72: Acc Sing | AA72: 5 | AB72: =IF(AA46>0,"■","□") -> □ | AC72: □ | AD72: □ | AE72: 69 | AF72: 37 | AG72: κατα-, κατε- | AI72: verb prefix adding "thoroughly" to meaning | AK72: Verb Ending | AP72: kata | AQ72: 0 | AR72: 0.99 | AS72: κατα-, κατε- | AT72: TRUE | AU72: TRUE | AV72: TRUE | AW72: 37 | AY72: verb prefix adding "thoroughly" to meaning | BA72: Verb Ending | BF72: 0 | BG72: 69 | BH72: 69 | BI72: 37 | BJ72: κατα-, κατε- | BL72: verb prefix adding "thoroughly" to meaning | BN72: Verb Ending | BT72: 0 | BU72: 69 | BV72: 69 | BW72: 37 | BX72: Verb Ending | BY72: κατα-, κατε- | CD72: verb prefix adding "thoroughly" to meaning | CE72: κατα-, κατε- | CF72: Extra: Verb Ending | CH72: 0 | CI72: FALSE | CJ72: 5069 | CK72: 82 | CO72: 69 | CT72: FALSE | CU72: 5069 | CV72: 73 | CZ72: 69 | DE72: FALSE | DF72: 5069 | DG72: 189 | DH72: 69 | DL72: τάς [the (accusative, plural, feminine)]
Y73: M F N | AA73: 6 | AE73: 70 | AF73: 04 | AG73: Ἀβραάμ | AH73: *ἀβρααμ | AI73: Abraham | AJ73: ah-brah-AHM | AK73: Proper Noun | AL73: ὁ | AP73: abraam | AQ73: 11 | AR73: 11 | AS73: Ἀβραάμ | AT73: TRUE | AU73: TRUE | AV73: TRUE | AW73: 04 | AX73: *ἀβρααμ | AY73: Abraham | AZ73: ah-brah-AHM | BA73: Proper Noun | BB73: ὁ | BF73: 11 | BG73: 70 | BH73: 70 | BI73: 04 | BJ73: ὁ Ἀβραάμ | BK73: *ἀβρααμ | BL73: Abraham | BM73: ah-brah-AHM | BN73: Proper Noun | BO73: ὁ | BR73: ὁ | BT73: 11 | BU73: 70 | BV73: 70 | BW73: 04 | BX73: Proper Noun | BY73: ὁ Ἀβραάμ | CB73: *ἀβρααμ | CC73: ah-brah-AHM | CD73: Abraham | CE73: ὁ Ἀβραάμ | CF73: Chapter 04: Proper Noun | CH73: 11 | CI73: FALSE | CJ73: 5070 | CK73: 83 | CO73: 70 | CT73: FALSE | CU73: 5070 | CV73: 74 | CZ73: 70 | DE73: FALSE | DF73: 5070 | DG73: 190 | DH73: 70 | DL73: ὅς [who/which/that (nominative, singular, masculine)]
Y74: Nom Plur | AA74: 7 | AB74: =IF(AA47>0,"■","□") -> □ | AC74: □ | AD74: □ | AE74: 71 | AF74: 09 | AG74: ἀγαθός | AH74: *ἀγαθο | AI74: good, useful | AJ74: ah-gah-THOSS | AK74: Adjective | AP74: agaqos | AQ74: 18 | AR74: 18 | AS74: ἀγαθός | AT74: TRUE | AU74: TRUE | AV74: TRUE | AW74: 09 | AX74: *ἀγαθο | AY74: good, useful | AZ74: ah-gah-THOSS | BA74: Adjective | BF74: 18 | BG74: 71 | BH74: 71 | BI74: 09 | BJ74: ἀγαθός | BK74: *ἀγαθο | BL74: good, useful | BM74: ah-gah-THOSS | BN74: Adjective | BT74: 18 | BU74: 71 | BV74: 71 | BW74: 09 | BX74: Adjective | BY74: ἀγαθός | CB74: *ἀγαθο | CC74: ah-gah-THOSS | CD74: good, useful | CE74: ἀγαθός | CF74: Chapter 09: Adjective | CH74: 18 | CI74: FALSE | CJ74: 5071 | CK74: 84 | CO74: 71 | CT74: FALSE | CU74: 5071 | CV74: 75 | CZ74: 71 | DE74: FALSE | DF74: 5071 | DG74: 191 | DH74: 71 | DL74: ἥ [who/which/that (nominative, singular, feminine)]
Y75: Gen Plur | AA75: 8 | AB75: □ | AC75: □ | AD75: □ | AE75: 72 | AF75: 38 | AG75: ἀγαλλιάω | AI75: I exult | AJ75: ah-gah-lee-AH-owe | AK75: Verb | AM75: - | AN75: - | AO75: ἠγαλλίασα | AP75: agalliaw hgalliasa | AQ75: 21 | AR75: 21 | AS75: ἀγαλλιάω | AT75: TRUE | AU75: TRUE | AV75: TRUE | AW75: 38 | AY75: I exult | AZ75: ah-gah-lee-AH-owe | BA75: Verb | BC75: - | BD75: - | BE75: ἠγαλλίασα | BF75: 21 | BG75: 72 | BH75: 72 | BI75: 38 | BJ75: ἀγαλλιάω | BL75: I exult | BM75: ah-gah-lee-AH-owe | BN75: Verb | BP75: - | BQ75: - | BS75: ἠγαλλίασα | BT75: 21 | BU75: 72 | BV75: 72 | BW75: 38 | BX75: Verb | BY75: ἀγαλλιάω | BZ75: - | CA75: - | CC75: ah-gah-lee-AH-owe | CD75: I exult | CE75: ἀγαλλιάω | CF75: Index of Textbook: Verb | CG75: ἠγαλλίασα | CH75: 21 | CI75: FALSE | CJ75: 5072 | CK75: 85 | CO75: 72 | CT75: FALSE | CU75: 5072 | CV75: 76 | CZ75: 72 | DE75: FALSE | DF75: 5072 | DG75: 192 | DH75: 72 | DL75: ὅ [who/whom/which/that (nominative or accusative, singular, neuter)]
Y76: Dat Plur | AA76: 9 | AB76: =IF(AA49>0,"■","□") -> □ | AC76: □ | AD76: □ | AE76: 73 | AF76: 17 | AG76: ἀγαπάω | AH76: *ἀγαπα | AI76: I love, I cherish | AJ76: ah-gah-PAY-owe | AK76: Verb | AM76: ἠγάπων | AN76: ἀγαπήσω | AO76: ἠγάπησα | AP76: agapaw hgapwn agaphsw hgaphsa | AQ76: 25 | AR76: 25 | AS76: ἀγαπάω | AT76: TRUE | AU76: TRUE | AV76: TRUE | AW76: 17 | AX76: *ἀγαπα | AY76: I love, I cherish | AZ76: ah-gah-PAY-owe | BA76: Verb | BC76: ἠγάπων | BD76: ἀγαπήσω | BE76: ἠγάπησα | BF76: 25 | BG76: 73 | BH76: 73 | BI76: 17 | BJ76: ἀγαπάω | BK76: *ἀγαπα | BL76: I love, I cherish | BM76: ah-gah-PAY-owe | BN76: Verb | BP76: ἠγάπων | BQ76: ἀγαπήσω | BS76: ἠγάπησα | BT76: 25 | BU76: 73 | BV76: 73 | BW76: 17 | BX76: Verb | BY76: ἀγαπάω | BZ76: ἠγάπων | CA76: ἀγαπήσω | CB76: *ἀγαπα | CC76: ah-gah-PAY-owe | CD76: I love, I cherish | CE76: ἀγαπάω | CF76: Chapter 17: Verb | CG76: ἠγάπησα | CH76: 25 | CI76: FALSE | CJ76: 5073 | CK76: 86 | CO76: 73 | CT76: FALSE | CU76: 5073 | CV76: 77 | CZ76: 73 | DE76: FALSE | DF76: 5073 | DG76: 193 | DH76: 73 | DL76: οὗ [of whom/of which/of whose (genitive, singular, masculine or neuter)]
Y77: Acc Plur | AA77: 10 | AB77: □ | AC77: □ | AD77: □ | AE77: 74 | AF77: 06 | AG77: ἀγάπη | AH77: *ἀγαπη | AI77: love | AJ77: ah-GAH-pay | AK77: Noun | AL77: ἡ | AP77: agaph | AQ77: 26 | AR77: 26 | AS77: ἀγάπη | AT77: TRUE | AU77: TRUE | AV77: TRUE | AW77: 06 | AX77: *ἀγαπη | AY77: love | AZ77: ah-GAH-pay | BA77: Noun | BB77: ἡ | BF77: 26 | BG77: 74 | BH77: 74 | BI77: 06 | BJ77: ἡ ἀγάπη | BK77: *ἀγαπη | BL77: love | BM77: ah-GAH-pay | BN77: Noun | BO77: ἡ | BR77: ἡ | BT77: 26 | BU77: 74 | BV77: 74 | BW77: 06 | BX77: Noun | BY77: ἡ ἀγάπη | CB77: *ἀγαπη | CC77: ah-GAH-pay | CD77: love | CE77: ἡ ἀγάπη | CF77: Chapter 06: Noun | CH77: 26 | CI77: FALSE | CJ77: 5074 | CK77: 87 | CO77: 74 | CT77: FALSE | CU77: 5074 | CV77: 78 | CZ77: 74 | DE77: FALSE | DF77: 5074 | DG77: 194 | DH77: 74 | DL77: ἧς [of whom/of which/of whose (genitive, singular, feminine)]
AE78: 75 | AF78: 09 | AG78: ἀγαπητός | AH78: *ἀγαπητο | AI78: beloved | AJ78: ah-ga-pay-TOSS | AK78: Adjective | AP78: agaphtos | AQ78: 27 | AR78: 27 | AS78: ἀγαπητός | AT78: TRUE | AU78: TRUE | AV78: TRUE | AW78: 09 | AX78: *ἀγαπητο | AY78: beloved | AZ78: ah-ga-pay-TOSS | BA78: Adjective | BF78: 27 | BG78: 75 | BH78: 75 | BI78: 09 | BJ78: ἀγαπητός | BK78: *ἀγαπητο | BL78: beloved | BM78: ah-ga-pay-TOSS | BN78: Adjective | BT78: 27 | BU78: 75 | BV78: 75 | BW78: 09 | BX78: Adjective | BY78: ἀγαπητός | CB78: *ἀγαπητο | CC78: ah-ga-pay-TOSS | CD78: beloved | CE78: ἀγαπητός | CF78: Chapter 09: Adjective | CH78: 27 | CI78: FALSE | CJ78: 5075 | CK78: 88 | CO78: 75 | CT78: FALSE | CU78: 5075 | CV78: 79 | CZ78: 75 | DE78: FALSE | DF78: 5075 | DG78: 195 | DH78: 75 | DL78: ᾧ [to whom/to which (dative, singular, masculine or neuter)]
AB79: Checkbox Count | AD79: =SUM(AB80:AD88) -> 0 | AE79: 76 | AF79: 37 | AG79: ἀγγελία | AI79: message | AJ79: ahng-ell-EE-ah | AK79: Noun | AL79: ἡ | AP79: aggelia | AQ79: 31a | AR79: 31.1 | AS79: ἀγγελία | AT79: TRUE | AU79: TRUE | AV79: TRUE | AW79: 37 | AY79: message | AZ79: ahng-ell-EE-ah | BA79: Noun | BB79: ἡ | BF79: 31a | BG79: 76 | BH79: 76 | BI79: 37 | BJ79: ἡ ἀγγελία | BL79: message | BM79: ahng-ell-EE-ah | BN79: Noun | BO79: ἡ | BR79: ἡ | BT79: 31a | BU79: 76 | BV79: 76 | BW79: 37 | BX79: Noun | BY79: ἡ ἀγγελία | CC79: ahng-ell-EE-ah | CD79: message | CE79: ἡ ἀγγελία | CF79: Extra: Noun | CH79: 31a | CI79: FALSE | CJ79: 5076 | CK79: 89 | CO79: 76 | CT79: FALSE | CU79: 5076 | CV79: 80 | CZ79: 76 | DE79: FALSE | DF79: 5076 | DG79: 196 | DH79: 76 | DL79: ᾗ [to whom/to which (dative, singular, feminine)]
AB80: =IF(AB69="■",1,0) -> 0 | AC80: =IF(AC69="■",1,0) -> 0 | AD80: =IF(AD69="■",1,0) -> 0 | AE80: 77 | AF80: 04 | AG80: ἄγγελος | AH80: *ἀγγελο | AI80: angel, messenger | AJ80: AHN-gell-oss | AK80: Noun | AL80: ὁ | AP80: aggelos | AQ80: 32a | AR80: 32.1 | AS80: ἄγγελος | AT80: TRUE | AU80: TRUE | AV80: TRUE | AW80: 04 | AX80: *ἀγγελο | AY80: angel, messenger | AZ80: AHN-gell-oss | BA80: Noun | BB80: ὁ | BF80: 32a | BG80: 77 | BH80: 77 | BI80: 04 | BJ80: ὁ ἄγγελος | BK80: *ἀγγελο | BL80: angel, messenger | BM80: AHN-gell-oss | BN80: Noun | BO80: =IF($AV80,IF(BB80=" ","",BB80&" "),"") -> ὁ | BR80: ὁ | BT80: 32a | BU80: 77 | BV80: 77 | BW80: 04 | BX80: Noun | BY80: ὁ ἄγγελος | CB80: *ἀγγελο | CC80: AHN-gell-oss | CD80: angel, messenger | CE80: ὁ ἄγγελος | CF80: Chapter 04: Noun | CH80: 32a | CI80: FALSE | CJ80: 5077 | CK80: 90 | CO80: 77 | CT80: FALSE | CU80: 5077 | CV80: 81 | CZ80: 77 | DE80: FALSE | DF80: 5077 | DG80: 197 | DH80: 77 | DL80: ὅν [whom/which/that (accusative, singular, masculine)]
AB81: =IF(AB70="■",1,0) -> 0 | AC81: 0 | AD81: 0 | AE81: 78 | AF81: 35 | AG81: ἁγιάζω | AH81: *ἁγιαδ | AI81: I consecrate, I sanctify | AJ81: hah-gi-AH-zoe | AK81: Verb | AM81: - | AN81: - | AO81: ἥγιασα | AP81: agiazw hgiasa | AQ81: 37 | AR81: 37 | AS81: ἁγιάζω | AT81: TRUE | AU81: TRUE | AV81: TRUE | AW81: 35 | AX81: *ἁγιαδ | AY81: I consecrate, I sanctify | AZ81: hah-gi-AH-zoe | BA81: Verb | BC81: - | BD81: - | BE81: ἥγιασα | BF81: 37 | BG81: 78 | BH81: 78 | BI81: 35 | BJ81: ἁγιάζω | BK81: *ἁγιαδ | BL81: I consecrate, I sanctify | BM81: hah-gi-AH-zoe | BN81: Verb | BP81: - | BQ81: - | BS81: ἥγιασα | BT81: 37 | BU81: 78 | BV81: 78 | BW81: 35 | BX81: Verb | BY81: ἁγιάζω | BZ81: - | CA81: - | CB81: *ἁγιαδ | CC81: hah-gi-AH-zoe | CD81: I consecrate, I sanctify | CE81: ἁγιάζω | CF81: Chapter 35: Verb | CG81: ἥγιασα | CH81: 37 | CI81: FALSE | CJ81: 5078 | CK81: 91 | CO81: 78 | CT81: FALSE | CU81: 5078 | CV81: 82 | CZ81: 78 | DE81: FALSE | DF81: 5078 | DG81: 198 | DH81: 78 | DL81: ἥν [whom/which/that (accusative, singular, feminine)]
AB82: 0 | AC82: 0 | AD82: 0 | AE82: 79 | AF82: 38 | AG82: ἁγιασμός | AH82: *ἁγιο | AI82: holiness, consecration | AJ82: Ha-gee-ahs-MOSS | AK82: Noun | AL82: ὁ | AP82: agiasmos | AQ82: 38 | AR82: 38 | AS82: ἁγιασμός | AT82: TRUE | AU82: TRUE | AV82: TRUE | AW82: 38 | AX82: *ἁγιο | AY82: holiness, consecration | AZ82: Ha-gee-ahs-MOSS | BA82: Noun | BB82: ὁ | BF82: 38 | BG82: 79 | BH82: 79 | BI82: 38 | BJ82: ὁ ἁγιασμός | BK82: *ἁγιο | BL82: holiness, consecration | BM82: Ha-gee-ahs-MOSS | BN82: Noun | BO82: ὁ | BR82: ὁ | BT82: 38 | BU82: 79 | BV82: 79 | BW82: 38 | BX82: Noun | BY82: ὁ ἁγιασμός | CB82: *ἁγιο | CC82: Ha-gee-ahs-MOSS | CD82: holiness, consecration | CE82: ὁ ἁγιασμός | CF82: Chapter 38: Noun | CH82: 38 | CI82: FALSE | CJ82: 5079 | CK82: 92 | CO82: 79 | CT82: FALSE | CU82: 5079 | CV82: 83 | CZ82: 79 | DE82: FALSE | DF82: 5079 | DG82: 199 | DH82: 79 | DL82: οἵ [who/which/that (nominative, plural, masculine)]
AB83: 0 | AC83: 0 | AD83: 0 | AE83: 80 | AF83: 09 | AG83: ἅγιος (noun) | AH83: *ἁγιο | AI83: saint, holy one | AJ83: HA-gi-oss | AK83: Noun | AL83: ὁ | AP83: agios | AQ83: 40 | AR83: 40 | AS83: ἅγιος (noun) | AT83: TRUE | AU83: TRUE | AV83: TRUE | AW83: 09 | AX83: *ἁγιο | AY83: saint, holy one | AZ83: HA-gi-oss | BA83: Noun | BB83: ὁ | BF83: 40 | BG83: 80 | BH83: 80 | BI83: 09 | BJ83: ὁ ἅγιος (noun) | BK83: *ἁγιο | BL83: saint, holy one | BM83: HA-gi-oss | BN83: Noun | BO83: ὁ | BR83: ὁ | BT83: 40 | BU83: 80 | BV83: 80 | BW83: 09 | BX83: Noun | BY83: ὁ ἅγιος (noun) | CB83: *ἁγιο | CC83: HA-gi-oss | CD83: saint, holy one | CE83: ὁ ἅγιος (noun) | CF83: Chapter 09: Noun | CH83: 40 | CI83: FALSE | CJ83: 5080 | CK83: 93 | CO83: 80 | CT83: FALSE | CU83: 5080 | CV83: 84 | CZ83: 80 | DE83: FALSE | DF83: 5080 | DG83: 200 | DH83: 80 | DL83: αἵ [who/which/that (nominative, plural, feminine)]
AB84: 0 | AC84: 0 | AD84: 0 | AE84: 81 | AF84: 09 | AG84: ἅγιος (adj) | AH84: *ἁγιο | AI84: holy | AJ84: HA-gi-oss | AK84: Adjective | AP84: agios | AQ84: 40 | AR84: 40.1 | AS84: ἅγιος (adj) | AT84: TRUE | AU84: TRUE | AV84: TRUE | AW84: 09 | AX84: *ἁγιο | AY84: holy | AZ84: HA-gi-oss | BA84: Adjective | BF84: 40 | BG84: 81 | BH84: 81 | BI84: 09 | BJ84: ἅγιος (adj) | BK84: *ἁγιο | BL84: holy | BM84: HA-gi-oss | BN84: Adjective | BT84: 40 | BU84: 81 | BV84: 81 | BW84: 09 | BX84: Adjective | BY84: ἅγιος (adj) | CB84: *ἁγιο | CC84: HA-gi-oss | CD84: holy | CE84: ἅγιος (adj) | CF84: Chapter 09: Adjective | CH84: 40 | CI84: FALSE | CJ84: 5081 | CK84: 94 | CO84: 81 | CT84: FALSE | CU84: 5081 | CV84: 85 | CZ84: 81 | DE84: FALSE | DF84: 5081 | DG84: 201 | DH84: 81 | DL84: ἅ [who/which/that/whom (nominative or accusative, plural, neuter)]
AB85: 0 | AC85: 0 | AD85: 0 | AE85: 82 | AF85: 38 | AG85: ἀγνοέω | AH85: *γνωσι | AI85: I do not know | AJ85: ahg-no-eh-owe | AK85: Verb | AM85: ἠγνόουν | AN85: - | AO85: ἠγνόησα | AP85: agnoew hgnooun hgnohsa | AQ85: 50 | AR85: 50 | AS85: ἀγνοέω | AT85: TRUE | AU85: TRUE | AV85: TRUE | AW85: 38 | AX85: *γνωσι | AY85: I do not know | AZ85: ahg-no-eh-owe | BA85: Verb | BC85: ἠγνόουν | BD85: - | BE85: ἠγνόησα | BF85: 50 | BG85: 82 | BH85: 82 | BI85: 38 | BJ85: ἀγνοέω | BK85: *γνωσι | BL85: I do not know | BM85: ahg-no-eh-owe | BN85: Verb | BP85: ἠγνόουν | BQ85: - | BS85: ἠγνόησα | BT85: 50 | BU85: 82 | BV85: 82 | BW85: 38 | BX85: Verb | BY85: ἀγνοέω | BZ85: ἠγνόουν | CA85: - | CB85: *γνωσι | CC85: ahg-no-eh-owe | CD85: I do not know | CE85: ἀγνοέω | CF85: Index of Textbook: Verb | CG85: ἠγνόησα | CH85: 50 | CI85: FALSE | CJ85: 5082 | CK85: 95 | CO85: 82 | CT85: FALSE | CU85: 5082 | CV85: 86 | CZ85: 82 | DE85: FALSE | DF85: 5082 | DG85: 202 | DH85: 82 | DL85: ὧν [of whom/of which/of whose (genitive, plural, masculine, feminine, neuter)]
AB86: 0 | AC86: 0 | AD86: 0 | AE86: 83 | AF86: 38 | AG86: ἀγορά | AI86: marketplace | AJ86: ah-gorr-AH | AK86: Noun | AL86: ἡ | AP86: agora | AQ86: 58 | AR86: 58 | AS86: ἀγορά | AT86: TRUE | AU86: TRUE | AV86: TRUE | AW86: 38 | AY86: marketplace | AZ86: ah-gorr-AH | BA86: Noun | BB86: ἡ | BF86: 58 | BG86: 83 | BH86: 83 | BI86: 38 | BJ86: ἡ ἀγορά | BL86: marketplace | BM86: ah-gorr-AH | BN86: Noun | BO86: ἡ | BR86: ἡ | BT86: 58 | BU86: 83 | BV86: 83 | BW86: 38 | BX86: Noun | BY86: ἡ ἀγορά | CC86: ah-gorr-AH | CD86: marketplace | CE86: ἡ ἀγορά | CF86: Chapter 38: Noun | CH86: 58 | CI86: FALSE | CJ86: 5083 | CK86: 96 | CO86: 83 | CT86: FALSE | CU86: 5083 | CV86: 87 | CZ86: 83 | DE86: FALSE | DF86: 5083 | DG86: 203 | DH86: 83 | DL86: οἷς [to whom/to which (dative, plural, masculine or neuter)]
AB87: 0 | AC87: 0 | AD87: 0 | AE87: 84 | AF87: 38 | AG87: ἀγοράζω | AI87: I buy | AJ87: ah-gorr-AH-zoe | AK87: Verb | AM87: ἠγόραζον | AO87: ἠγόρασα | AP87: agorazw hgorasa | AQ87: 59 | AR87: 59 | AS87: ἀγοράζω | AT87: TRUE | AU87: TRUE | AV87: TRUE | AW87: 38 | AY87: I buy | AZ87: ah-gorr-AH-zoe | BA87: Verb | BC87: ἠγόραζον | BD87: 0 | BE87: ἠγόρασα | BF87: 59 | BG87: 84 | BH87: 84 | BI87: 38 | BJ87: ἀγοράζω | BL87: I buy | BM87: ah-gorr-AH-zoe | BN87: Verb | BP87: ἠγόραζον | BQ87: 0 | BS87: ἠγόρασα | BT87: 59 | BU87: 84 | BV87: 84 | BW87: 38 | BX87: Verb | BY87: ἀγοράζω | BZ87: ἠγόραζον | CA87: 0 | CC87: ah-gorr-AH-zoe | CD87: I buy | CE87: ἀγοράζω | CF87: Index of Textbook: Verb | CG87: ἠγόρασα | CH87: 59 | CI87: FALSE | CJ87: 5084 | CK87: 97 | CO87: 84 | CT87: FALSE | CU87: 5084 | CV87: 88 | CZ87: 84 | DE87: FALSE | DF87: 5084 | DG87: 204 | DH87: 84 | DL87: αἷς [to whom/to which (dative, plural, feminine)]
AB88: 0 | AC88: 0 | AD88: 0 | AE88: 85 | AF88: 38 | AG88: Ἀγρίππας | AI88: Agrippa | AJ88: Ah-GRIP-ahs | AK88: Proper Noun | AL88: ὁ | AP88: agrippas | AQ88: 67 | AR88: 67 | AS88: Ἀγρίππας | AT88: TRUE | AU88: TRUE | AV88: TRUE | AW88: 38 | AY88: Agrippa | AZ88: Ah-GRIP-ahs | BA88: Proper Noun | BB88: ὁ | BF88: 67 | BG88: 85 | BH88: 85 | BI88: =IF(AV88,AW88," ") -> 38 | BJ88: ὁ Ἀγρίππας | BK88: =IF($AV88,AX88," ") ->  | BL88: =IF($AV88,AY88," ") -> Agrippa | BM88: =IF($AV88,AZ88," ") -> Ah-GRIP-ahs | BN88: =IF($AV88,BA88," ") -> Proper Noun | BO88: ὁ | BP88: =IF($AV88,BC88," ") ->  | BQ88: =IF($AV88,BD88," ") ->  | BR88: ὁ | BT88: =IF($AV88,BF88," ") -> 67 | BU88: 85 | BV88: 85 | BW88: 38 | BX88: Proper Noun | BY88: ὁ Ἀγρίππας | CC88: Ah-GRIP-ahs | CD88: Agrippa | CE88: ὁ Ἀγρίππας | CF88: Chapter 38: Proper Noun | CH88: 67 | CI88: FALSE | CJ88: 5085 | CK88: 98 | CO88: 85 | CT88: FALSE | CU88: 5085 | CV88: 89 | CZ88: 85 | DE88: FALSE | DF88: 5085 | DG88: 205 | DH88: 85 | DL88: οὕς [whom/which (accusative, plural, masculine)]
AE89: 86 | AF89: 38 | AG89: ἀγρός | AI89: field, land | AJ89: ah-grahs | AK89: Noun | AL89: ὁ | AP89: agros | AQ89: 68 | AR89: 68 | AS89: ἀγρός | AT89: TRUE | AU89: TRUE | AV89: TRUE | AW89: 38 | AY89: field, land | AZ89: ah-grahs | BA89: Noun | BB89: ὁ | BF89: 68 | BG89: 86 | BH89: 86 | BI89: 38 | BJ89: ὁ ἀγρός | BL89: field, land | BM89: ah-grahs | BN89: Noun | BO89: ὁ | BR89: ὁ | BT89: 68 | BU89: 86 | BV89: 86 | BW89: 38 | BX89: Noun | BY89: ὁ ἀγρός | CC89: ah-grahs | CD89: field, land | CE89: ὁ ἀγρός | CF89: Index of Textbook: Noun | CH89: 68 | CI89: FALSE | CJ89: 5086 | CK89: 99 | CO89: 86 | CT89: FALSE | CU89: 5086 | CV89: 90 | CZ89: 86 | DE89: FALSE | DF89: 5086 | DG89: 206 | DH89: 86 | DL89: ἅς [whom/which (accusative, plural, feminine)]
AE90: 87 | AF90: 24 | AG90: ἄγω | AH90: *ἀγ | AI90: I lead, I bring, I arrest | AJ90: AH-goe | AK90: Verb | AM90: ἦγον | AN90: ἄξω | AO90: ἤγαγον | AP90: agw hgon axw hgagon | AQ90: 71 | AR90: 71 | AS90: ἄγω | AT90: TRUE | AU90: TRUE | AV90: TRUE | AW90: 24 | AX90: *ἀγ | AY90: I lead, I bring, I arrest | AZ90: AH-goe | BA90: Verb | BC90: ἦγον | BD90: ἄξω | BE90: ἤγαγον | BF90: 71 | BG90: 87 | BH90: 87 | BI90: 24 | BJ90: ἄγω | BK90: *ἀγ | BL90: I lead, I bring, I arrest | BM90: AH-goe | BN90: Verb | BP90: ἦγον | BQ90: ἄξω | BS90: ἤγαγον | BT90: 71 | BU90: 87 | BV90: 87 | BW90: 24 | BX90: Verb | BY90: ἄγω | BZ90: ἦγον | CA90: ἄξω | CB90: *ἀγ | CC90: AH-goe | CD90: I lead, I bring, I arrest | CE90: ἄγω | CF90: Chapter 24: Verb | CG90: ἤγαγον | CH90: 71 | CI90: FALSE | CJ90: 5087 | CK90: 100 | CO90: 87 | CT90: FALSE | CU90: 5087 | CV90: 91 | CZ90: 87 | DE90: TRUE | DF90: 87 | DG90: 2 | DH90: 87 | DJ90: ἄγω | DK90: I lead, I bring, I arrest | DL90: ὅτι [whoever, whichever, whatever (neuter) (usually appears as ὅ τι)]
AE91: 88 | AF91: 38 | AG91: ἀδελφή | AI91: sister | AJ91: ah-dell-FAY | AK91: Noun | AL91: ἡ | AP91: adelfh | AQ91: 79 | AR91: 79 | AS91: ἀδελφή | AT91: TRUE | AU91: TRUE | AV91: TRUE | AW91: 38 | AY91: sister | AZ91: ah-dell-FAY | BA91: Noun | BB91: ἡ | BF91: 79 | BG91: 88 | BH91: 88 | BI91: 38 | BJ91: ἡ ἀδελφή | BL91: sister | BM91: ah-dell-FAY | BN91: Noun | BO91: ἡ | BR91: ἡ | BT91: 79 | BU91: 88 | BV91: 88 | BW91: 38 | BX91: Noun | BY91: ἡ ἀδελφή | CC91: ah-dell-FAY | CD91: sister | CE91: ἡ ἀδελφή | CF91: Chapter 38: Noun | CH91: 79 | CI91: FALSE | CJ91: 5088 | CK91: 101 | CO91: 88 | CT91: FALSE | CU91: 5088 | CV91: 92 | CZ91: 88 | DE91: FALSE | DF91: 5088 | DG91: 207 | DH91: 88 | DL91: ὄτε [when]
AE92: 89 | AF92: 11 | AG92: ἀδελφός | AH92: *ἀδελφο | AI92: brother | AJ92: ah-dell-FOSS | AK92: Noun | AL92: ὁ | AP92: adelfos | AQ92: 80 | AR92: 80 | AS92: ἀδελφός | AT92: TRUE | AU92: TRUE | AV92: TRUE | AW92: 11 | AX92: *ἀδελφο | AY92: brother | AZ92: ah-dell-FOSS | BA92: Noun | BB92: ὁ | BF92: 80 | BG92: 89 | BH92: 89 | BI92: 11 | BJ92: ὁ ἀδελφός | BK92: *ἀδελφο | BL92: brother | BM92: ah-dell-FOSS | BN92: Noun | BO92: ὁ | BR92: ὁ | BT92: 80 | BU92: 89 | BV92: 89 | BW92: 11 | BX92: Noun | BY92: ὁ ἀδελφός | CB92: *ἀδελφο | CC92: ah-dell-FOSS | CD92: brother | CE92: ὁ ἀδελφός | CF92: Chapter 11: Noun | CH92: 80 | CI92: FALSE | CJ92: 5089 | CK92: 102 | CO92: 89 | CT92: FALSE | CU92: 5089 | CV92: 93 | CZ92: 89 | DE92: FALSE | DF92: 5089 | DG92: 208 | DH92: 89 | DL92: ὅτι [that, since, because, or begin a quotation]
AE93: 90 | AF93: 38 | AG93: ᾁδης | AI93: Hades or hades ("the unseen place"; not a proper noun as used in the New Testament) | AJ93: HAH-dace | AK93: Noun | AL93: ὁ | AP93: adhs | AQ93: 86 | AR93: 86 | AS93: ᾁδης | AT93: TRUE | AU93: TRUE | AV93: TRUE | AW93: 38 | AX93: 0 | AY93: Hades or hades ("the unseen place"; not a proper noun as used in the New Testament) | AZ93: HAH-dace | BA93: Noun | BB93: ὁ | BF93: 86 | BG93: 90 | BH93: 90 | BI93: 38 | BJ93: ὁ ᾁδης | BK93: 0 | BL93: Hades or hades ("the unseen place"; not a proper noun as used in the New Testament) | BM93: HAH-dace | BN93: Noun | BO93: ὁ | BR93: ὁ | BT93: 86 | BU93: 90 | BV93: 90 | BW93: 38 | BX93: Noun | BY93: ὁ ᾁδης | CB93: 0 | CC93: HAH-dace | CD93: Hades or hades ("the unseen place"; not a proper noun as used in the New Testament) | CE93: ὁ ᾁδης | CF93: Chapter 38: Noun | CH93: 86 | CI93: FALSE | CJ93: 5090 | CK93: 103 | CO93: 90 | CT93: FALSE | CU93: 5090 | CV93: 94 | CZ93: 90 | DE93: FALSE | DF93: 5090 | DG93: 209 | DH93: 90 | DL93: οὗ [where]
AE94: 91 | AF94: 38 | AG94: ἀδικέω | AH94: *δικαιο | AI94: I injure, I do wrong | AJ94: ah-dee-KEH-owe | AK94: Verb | AM94: - | AN94: ἀδικήσω | AO94: ἠδίκησα | AP94: adikew adikhsw hdikhsa | AQ94: 91 | AR94: 91 | AS94: ἀδικέω | AT94: TRUE | AU94: TRUE | AV94: TRUE | AW94: 38 | AX94: *δικαιο | AY94: I injure, I do wrong | AZ94: ah-dee-KEH-owe | BA94: Verb | BC94: - | BD94: ἀδικήσω | BE94: ἠδίκησα | BF94: 91 | BG94: 91 | BH94: 91 | BI94: 38 | BJ94: ἀδικέω | BK94: *δικαιο | BL94: I injure, I do wrong | BM94: ah-dee-KEH-owe | BN94: Verb | BP94: - | BQ94: ἀδικήσω | BS94: ἠδίκησα | BT94: 91 | BU94: 91 | BV94: 91 | BW94: 38 | BX94: Verb | BY94: ἀδικέω | BZ94: - | CA94: ἀδικήσω | CB94: *δικαιο | CC94: ah-dee-KEH-owe | CD94: I injure, I do wrong | CE94: ἀδικέω | CF94: Index of Textbook: Verb | CG94: ἠδίκησα | CH94: 91 | CI94: FALSE | CJ94: 5091 | CK94: 104 | CO94: 91 | CT94: FALSE | CU94: 5091 | CV94: 95 | CZ94: 91 | DE94: FALSE | DF94: 5091 | DG94: 210 | DH94: 91 | DL94: οὖν [so, therefore, accordingly, then (particle)]
AE95: 92 | AF95: 38 | AG95: ἀδικία | AH95: *δικαιο | AI95: unrighteousness | AJ95: ah-dik-EE-ah | AK95: Noun | AL95: ἡ | AP95: adikia | AQ95: 93 | AR95: 93 | AS95: ἀδικία | AT95: TRUE | AU95: TRUE | AV95: TRUE | AW95: 38 | AX95: *δικαιο | AY95: unrighteousness | AZ95: ah-dik-EE-ah | BA95: Noun | BB95: ἡ | BF95: 93 | BG95: 92 | BH95: 92 | BI95: 38 | BJ95: ἡ ἀδικία | BK95: *δικαιο | BL95: unrighteousness | BM95: ah-dik-EE-ah | BN95: Noun | BO95: ἡ | BR95: ἡ | BT95: 93 | BU95: 92 | BV95: 92 | BW95: 38 | BX95: Noun | BY95: ἡ ἀδικία | CB95: *δικαιο | CC95: ah-dik-EE-ah | CD95: unrighteousness | CE95: ἡ ἀδικία | CF95: Index of Textbook: Noun | CH95: 93 | CI95: FALSE | CJ95: 5092 | CK95: 105 | CO95: 92 | CT95: FALSE | CU95: 5092 | CV95: 96 | CZ95: 92 | DE95: FALSE | DF95: 5092 | DG95: 211 | DH95: 92 | DL95: πᾶν [each, every, all (neuter)]
AE96: 93 | AF96: 38 | AG96: ἂδικος | AH96: *δικαιο | AI96: unjust | AJ96: AH-dee-koss | AK96: Adjective | AP96: adikos | AQ96: 94 | AR96: 94 | AS96: ἂδικος | AT96: TRUE | AU96: TRUE | AV96: TRUE | AW96: 38 | AX96: *δικαιο | AY96: unjust | AZ96: AH-dee-koss | BA96: Adjective | BF96: 94 | BG96: 93 | BH96: 93 | BI96: 38 | BJ96: ἂδικος | BK96: *δικαιο | BL96: unjust | BM96: AH-dee-koss | BN96: Adjective | BT96: 94 | BU96: 93 | BV96: 93 | BW96: 38 | BX96: Adjective | BY96: ἂδικος | CB96: *δικαιο | CC96: AH-dee-koss | CD96: unjust | CE96: ἂδικος | CF96: Chapter 38: Adjective | CH96: 94 | CI96: FALSE | CJ96: 5093 | CK96: 106 | CO96: 93 | CT96: FALSE | CU96: 5093 | CV96: 97 | CZ96: 93 | DE96: FALSE | DF96: 5093 | DG96: 212 | DH96: 93 | DL96: πᾶς [each, every, all (masculine)]
AE97: 94 | AF97: 38 | AG97: ἀδύνατος | AH97: *δυνα | AI97: impossible | AJ97: Ah-DOON-ah-toss | AK97: Adjective | AP97: adunatos | AQ97: 102 | AR97: 102 | AS97: ἀδύνατος | AT97: TRUE | AU97: TRUE | AV97: TRUE | AW97: 38 | AX97: *δυνα | AY97: impossible | AZ97: Ah-DOON-ah-toss | BA97: Adjective | BF97: 102 | BG97: 94 | BH97: 94 | BI97: 38 | BJ97: ἀδύνατος | BK97: *δυνα | BL97: impossible | BM97: Ah-DOON-ah-toss | BN97: Adjective | BT97: 102 | BU97: 94 | BV97: 94 | BW97: 38 | BX97: Adjective | BY97: ἀδύνατος | CB97: *δυνα | CC97: Ah-DOON-ah-toss | CD97: impossible | CE97: ἀδύνατος | CF97: Chapter 38: Adjective | CH97: 102 | CI97: FALSE | CJ97: 5094 | CK97: 107 | CO97: 94 | CT97: FALSE | CU97: 5094 | CV97: 98 | CZ97: 94 | DE97: FALSE | DF97: 5094 | DG97: 213 | DH97: 94 | DL97: ποῦ [where? (particle)]
AE98: 95 | AF98: 38 | AG98: ἀθετέω | AI98: I nullify, I reject | AJ98: ah-thet-EH-owe | AK98: Verb | AM98: - | AN98: ἀθετήσω | AO98: ἠθέτησα | AP98: aqetew aqethsw hqethsa | AQ98: 114 | AR98: 114 | AS98: ἀθετέω | AT98: TRUE | AU98: TRUE | AV98: TRUE | AW98: 38 | AY98: I nullify, I reject | AZ98: ah-thet-EH-owe | BA98: Verb | BC98: - | BD98: ἀθετήσω | BE98: ἠθέτησα | BF98: 114 | BG98: 95 | BH98: 95 | BI98: 38 | BJ98: ἀθετέω | BL98: I nullify, I reject | BM98: ah-thet-EH-owe | BN98: Verb | BP98: - | BQ98: ἀθετήσω | BS98: ἠθέτησα | BT98: 114 | BU98: 95 | BV98: 95 | BW98: 38 | BX98: Verb | BY98: ἀθετέω | BZ98: - | CA98: ἀθετήσω | CC98: ah-thet-EH-owe | CD98: I nullify, I reject | CE98: ἀθετέω | CF98: Index of Textbook: Verb | CG98: ἠθέτησα | CH98: 114 | CI98: FALSE | CJ98: 5095 | CK98: 108 | CO98: 95 | CT98: FALSE | CU98: 5095 | CV98: 99 | CZ98: 95 | DE98: FALSE | DF98: 5095 | DG98: 214 | DH98: 95 | DL98: πρό [before [genitive]]
AE99: 96 | AF99: 38 | AG99: Αἴγυπτος | AI99: Egypt | AJ99: EYE-goop-toss | AK99: Proper Noun | AL99: ἡ | AP99: aiguptos | AQ99: 125 | AR99: 125 | AS99: Αἴγυπτος | AT99: TRUE | AU99: TRUE | AV99: TRUE | AW99: 38 | AY99: Egypt | AZ99: EYE-goop-toss | BA99: Proper Noun | BB99: ἡ | BF99: 125 | BG99: 96 | BH99: 96 | BI99: 38 | BJ99: ἡ Αἴγυπτος | BL99: Egypt | BM99: EYE-goop-toss | BN99: Proper Noun | BO99: ἡ | BR99: ἡ | BT99: 125 | BU99: 96 | BV99: 96 | BW99: 38 | BX99: Proper Noun | BY99: ἡ Αἴγυπτος | CC99: EYE-goop-toss | CD99: Egypt | CE99: ἡ Αἴγυπτος | CF99: Chapter 38: Proper Noun | CH99: 125 | CI99: FALSE | CJ99: 5096 | CK99: 109 | CO99: 96 | CT99: FALSE | CU99: 5096 | CV99: 100 | CZ99: 96 | DE99: FALSE | DF99: 5096 | DG99: 215 | DH99: 96 | DL99: τό πῦρ [fire]
AE100: 97 | AF100: 24 | AG100: αἷμα | AH100: *αἱματ | AI100: blood | AJ100: HAY-mah | AK100: Noun | AL100: τό | AP100: aima | AQ100: 129 | AR100: 129 | AS100: αἷμα | AT100: TRUE | AU100: TRUE | AV100: TRUE | AW100: 24 | AX100: *αἱματ | AY100: blood | AZ100: HAY-mah | BA100: Noun | BB100: τό | BF100: 129 | BG100: 97 | BH100: 97 | BI100: 24 | BJ100: τό αἷμα | BK100: *αἱματ | BL100: blood | BM100: HAY-mah | BN100: Noun | BO100: τό | BR100: τό | BT100: 129 | BU100: 97 | BV100: 97 | BW100: 24 | BX100: Noun | BY100: τό αἷμα | CB100: *αἱματ | CC100: HAY-mah | CD100: blood | CE100: τό αἷμα | CF100: Chapter 24: Noun | CH100: 129 | CI100: FALSE | CJ100: 5097 | CK100: 110 | CO100: 97 | CT100: FALSE | CU100: 5097 | CV100: 101 | CZ100: 97 | DE100: FALSE | DF100: 5097 | DG100: 216 | DH100: 97 | DL100: πώς [somehow, perhaps (note the acute mark)]
AE101: 98 | AF101: 20 | AG101: αἴρω | AH101: *ἀρ | AI101: I raise, I take up, I take away | AJ101: EYE-roe | AK101: Verb | AM101: - | AN101: ἀρῶ | AO101: ἦρα | AP101: airw arw hra | AQ101: 142 | AR101: 142 | AS101: αἴρω | AT101: TRUE | AU101: TRUE | AV101: TRUE | AW101: 20 | AX101: *ἀρ | AY101: I raise, I take up, I take away | AZ101: EYE-roe | BA101: Verb | BC101: - | BD101: ἀρῶ | BE101: ἦρα | BF101: 142 | BG101: 98 | BH101: 98 | BI101: 20 | BJ101: αἴρω | BK101: *ἀρ | BL101: I raise, I take up, I take away | BM101: EYE-roe | BN101: Verb | BP101: - | BQ101: ἀρῶ | BS101: ἦρα | BT101: 142 | BU101: 98 | BV101: 98 | BW101: 20 | BX101: Verb | BY101: αἴρω | BZ101: - | CA101: ἀρῶ | CB101: *ἀρ | CC101: EYE-roe | CD101: I raise, I take up, I take away | CE101: αἴρω | CF101: Chapter 20: Verb | CG101: ἦρα | CH101: 142 | CI101: FALSE | CJ101: 5098 | CK101: 111 | CO101: 98 | CT101: FALSE | CU101: 5098 | CV101: 102 | CZ101: 98 | DE101: FALSE | DF101: 5098 | DG101: 217 | DH101: 98 | DL101: πῶς [how? (note the circumflex)]
AE102: 99 | AF102: 25 | AG102: αἰτέω | AH102: *αἰτε | AI102: I ask, I demand | AJ102: eye-TEH-owe | AK102: Verb | AM102: ᾔτουν | AN102: αἰτήσω | AO102: ᾔατησα | AP102: aitew htoun aithsw hathsa | AQ102: 154 | AR102: 154 | AS102: αἰτέω | AT102: TRUE | AU102: TRUE | AV102: TRUE | AW102: 25 | AX102: *αἰτε | AY102: I ask, I demand | AZ102: eye-TEH-owe | BA102: Verb | BC102: ᾔτουν | BD102: αἰτήσω | BE102: ᾔατησα | BF102: 154 | BG102: 99 | BH102: 99 | BI102: 25 | BJ102: αἰτέω | BK102: *αἰτε | BL102: I ask, I demand | BM102: eye-TEH-owe | BN102: Verb | BP102: ᾔτουν | BQ102: αἰτήσω | BS102: ᾔατησα | BT102: 154 | BU102: 99 | BV102: 99 | BW102: 25 | BX102: Verb | BY102: αἰτέω | BZ102: ᾔτουν | CA102: αἰτήσω | CB102: *αἰτε | CC102: eye-TEH-owe | CD102: I ask, I demand | CE102: αἰτέω | CF102: Chapter 25: Verb | CG102: ᾔατησα | CH102: 154 | CI102: FALSE | CJ102: 5099 | CK102: 112 | CO102: 99 | CT102: FALSE | CU102: 5099 | CV102: 103 | CZ102: 99 | DE102: FALSE | DF102: 5099 | DG102: 218 | DH102: 99 | DL102: σύ [you (singular)]
AE103: 100 | AF103: 38 | AG103: αἰτία | AI103: cause, guilt, charge, accusation | AJ103: ay-TEE-ah | AK103: Noun | AL103: ἡ | AP103: aitia | AQ103: 156 | AR103: 156 | AS103: αἰτία | AT103: TRUE | AU103: TRUE | AV103: TRUE | AW103: 38 | AY103: cause, guilt, charge, accusation | AZ103: ay-TEE-ah | BA103: Noun | BB103: ἡ | BF103: 156 | BG103: 100 | BH103: 100 | BI103: 38 | BJ103: ἡ αἰτία | BL103: cause, guilt, charge, accusation | BM103: ay-TEE-ah | BN103: Noun | BO103: ἡ | BR103: ἡ | BT103: 156 | BU103: 100 | BV103: 100 | BW103: 38 | BX103: Noun | BY103: ἡ αἰτία | CC103: ay-TEE-ah | CD103: cause, guilt, charge, accusation | CE103: ἡ αἰτία | CF103: Chapter 38: Noun | CH103: 156 | CI103: FALSE | CJ103: 5100 | CK103: 113 | CO103: 100 | CT103: FALSE | CU103: 5100 | CV103: 104 | CZ103: 100 | DE103: FALSE | DF103: 5100 | DG103: 219 | DH103: 100 | DL103: σε [you (accusative singular)]
AE104: 101 | AF104: 12 | AG104: αἰών | AH104: *αἰων | AI104: age, eternity | AJ104: eye-OWN | AK104: Noun | AL104: ὁ | AP104: aiwn | AQ104: 165 | AR104: 165 | AS104: αἰών | AT104: TRUE | AU104: TRUE | AV104: TRUE | AW104: 12 | AX104: *αἰων | AY104: age, eternity | AZ104: eye-OWN | BA104: Noun | BB104: ὁ | BF104: 165 | BG104: 101 | BH104: 101 | BI104: 12 | BJ104: ὁ αἰών | BK104: *αἰων | BL104: age, eternity | BM104: eye-OWN | BN104: Noun | BO104: ὁ | BR104: ὁ | BT104: 165 | BU104: 101 | BV104: 101 | BW104: 12 | BX104: Noun | BY104: ὁ αἰών | CB104: *αἰων | CC104: eye-OWN | CD104: age, eternity | CE104: ὁ αἰών | CF104: Chapter 12: Noun | CH104: 165 | CI104: FALSE | CJ104: 5101 | CK104: 114 | CO104: 101 | CT104: FALSE | CU104: 5101 | CV104: 105 | CZ104: 101 | DE104: FALSE | DF104: 5101 | DG104: 220 | DH104: 101 | DL104: σέ [you (emphatic accusative singular)]
AE105: 102 | AF105: 12 | AG105: εἰς τὸν αἰῶνα | AH105: *αἰων | AI105: forever | AJ105: ace TAHN eye-OWN-ah | AK105: Idiom | AP105: eis ton aiwna | AQ105: 1519, 165 | AR105: 165.2 | AS105: εἰς τὸν αἰῶνα | AT105: TRUE | AU105: TRUE | AV105: TRUE | AW105: 12 | AX105: *αἰων | AY105: forever | AZ105: ace TAHN eye-OWN-ah | BA105: Idiom | BF105: 1519, 165 | BG105: 102 | BH105: 102 | BI105: 12 | BJ105: εἰς τὸν αἰῶνα | BK105: *αἰων | BL105: forever | BM105: ace TAHN eye-OWN-ah | BN105: Idiom | BT105: 1519, 165 | BU105: 102 | BV105: 102 | BW105: 12 | BX105: Idiom | BY105: εἰς τὸν αἰῶνα | CB105: *αἰων | CC105: ace TAHN eye-OWN-ah | CD105: forever | CE105: εἰς τὸν αἰῶνα | CF105: Chapter 12: Idiom | CH105: 1519, 165 | CI105: FALSE | CJ105: 5102 | CK105: 115 | CO105: 102 | CT105: FALSE | CU105: 5102 | CV105: 106 | CZ105: 102 | DE105: FALSE | DF105: 5102 | DG105: 221 | DH105: 102 | DL105: σοῦ [your/of you (emphatic genitive singular)]
AE106: 103 | AF106: 12 | AG106: εἰς τοὺς αἰώνας | AH106: *αἰων | AI106: forever | AJ106: ace TOOS eye-OWE-nahs | AK106: Idiom | AP106: eis tous aiwnas | AQ106: 1519, 165 | AR106: 165.3 | AS106: εἰς τοὺς αἰώνας | AT106: TRUE | AU106: TRUE | AV106: TRUE | AW106: 12 | AX106: *αἰων | AY106: forever | AZ106: ace TOOS eye-OWE-nahs | BA106: Idiom | BF106: 1519, 165 | BG106: 103 | BH106: 103 | BI106: 12 | BJ106: εἰς τοὺς αἰώνας | BK106: *αἰων | BL106: forever | BM106: ace TOOS eye-OWE-nahs | BN106: Idiom | BT106: 1519, 165 | BU106: 103 | BV106: 103 | BW106: 12 | BX106: Idiom | BY106: εἰς τοὺς αἰώνας | CB106: *αἰων | CC106: ace TOOS eye-OWE-nahs | CD106: forever | CE106: εἰς τοὺς αἰώνας | CF106: Chapter 12: Idiom | CH106: 1519, 165 | CI106: FALSE | CJ106: 5103 | CK106: 116 | CO106: 103 | CT106: FALSE | CU106: 5103 | CV106: 107 | CZ106: 103 | DE106: FALSE | DF106: 5103 | DG106: 222 | DH106: 103 | DL106: σύ [you (nominative singular)]
AE107: 104 | AF107: 09 | AG107: αἰώνιος | AH107: *αἰωνιο | AI107: eternal | AJ107: eye-OWE-nee-oss | AK107: Adjective | AP107: aiwnios | AQ107: 166 | AR107: 166 | AS107: αἰώνιος | AT107: TRUE | AU107: TRUE | AV107: TRUE | AW107: 09 | AX107: *αἰωνιο | AY107: eternal | AZ107: eye-OWE-nee-oss | BA107: Adjective | BF107: 166 | BG107: 104 | BH107: 104 | BI107: 09 | BJ107: αἰώνιος | BK107: *αἰωνιο | BL107: eternal | BM107: eye-OWE-nee-oss | BN107: Adjective | BT107: 166 | BU107: 104 | BV107: 104 | BW107: 09 | BX107: Adjective | BY107: αἰώνιος | CB107: *αἰωνιο | CC107: eye-OWE-nee-oss | CD107: eternal | CE107: αἰώνιος | CF107: Chapter 09: Adjective | CH107: 166 | CI107: FALSE | CJ107: 5104 | CK107: 117 | CO107: 104 | CT107: FALSE | CU107: 5104 | CV107: 108 | CZ107: 104 | DE107: FALSE | DF107: 5104 | DG107: 223 | DH107: 104 | DL107: σοί [to you (emphatic dative singular)]
AE108: 105 | AF108: 38 | AG108: ἀκαθαρσία | AH108: *καθαρ | AI108: immorality, uncleanness | AJ108: Ah-kath- | AK108: Noun | AL108: ἡ | AP108: akaqarsia | AQ108: 167 | AR108: 167 | AS108: ἀκαθαρσία | AT108: TRUE | AU108: TRUE | AV108: TRUE | AW108: 38 | AX108: *καθαρ | AY108: immorality, uncleanness | AZ108: Ah-kath- | BA108: Noun | BB108: ἡ | BF108: 167 | BG108: 105 | BH108: 105 | BI108: 38 | BJ108: ἡ ἀκαθαρσία | BK108: *καθαρ | BL108: immorality, uncleanness | BM108: Ah-kath- | BN108: Noun | BO108: ἡ | BR108: ἡ | BT108: 167 | BU108: 105 | BV108: 105 | BW108: 38 | BX108: Noun | BY108: ἡ ἀκαθαρσία | CB108: *καθαρ | CC108: Ah-kath- | CD108: immorality, uncleanness | CE108: ἡ ἀκαθαρσία | CF108: Chapter 38: Noun | CH108: 167 | CI108: FALSE | CJ108: 5105 | CK108: 118 | CO108: 105 | CT108: FALSE | CU108: 5105 | CV108: 109 | CZ108: 105 | DE108: FALSE | DF108: 5105 | DG108: 224 | DH108: 105 | DL108: σός [your, of you (masculine)]
AE109: 106 | AF109: 38 | AG109: ἀκαθαρτος | AH109: *καθαρ | AI109: unclean, impure | AJ109: ah-kah-thar-toss | AK109: Adjective | AP109: akaqartos | AQ109: 169 | AR109: 169 | AS109: ἀκαθαρτος | AT109: TRUE | AU109: TRUE | AV109: TRUE | AW109: 38 | AX109: *καθαρ | AY109: unclean, impure | AZ109: ah-kah-thar-toss | BA109: Adjective | BF109: 169 | BG109: 106 | BH109: 106 | BI109: 38 | BJ109: ἀκαθαρτος | BK109: *καθαρ | BL109: unclean, impure | BM109: ah-kah-thar-toss | BN109: Adjective | BT109: 169 | BU109: 106 | BV109: 106 | BW109: 38 | BX109: Adjective | BY109: ἀκαθαρτος | CB109: *καθαρ | CC109: ah-kah-thar-toss | CD109: unclean, impure | CE109: ἀκαθαρτος | CF109: Index of Textbook: Adjective | CH109: 169 | CI109: FALSE | CJ109: 5106 | CK109: 119 | CO109: 106 | CT109: FALSE | CU109: 5106 | CV109: 110 | CZ109: 106 | DE109: FALSE | DF109: 5106 | DG109: 225 | DH109: 106 | DL109: σή [your, of you (feminine)]
AE110: 107 | AF110: 38 | AG110: ἄκανθα | AI110: thorn, thorny plant | AJ110: AH-kahn-thah | AK110: Noun | AL110: ἡ | AP110: akanqa | AQ110: 173 | AR110: 173 | AS110: ἄκανθα | AT110: TRUE | AU110: TRUE | AV110: TRUE | AW110: 38 | AY110: thorn, thorny plant | AZ110: AH-kahn-thah | BA110: Noun | BB110: ἡ | BF110: 173 | BG110: 107 | BH110: 107 | BI110: 38 | BJ110: ἡ ἄκανθα | BL110: thorn, thorny plant | BM110: AH-kahn-thah | BN110: Noun | BO110: ἡ | BR110: ἡ | BT110: 173 | BU110: 107 | BV110: 107 | BW110: 38 | BX110: Noun | BY110: ἡ ἄκανθα | CC110: AH-kahn-thah | CD110: thorn, thorny plant | CE110: ἡ ἄκανθα | CF110: Chapter 38: Noun | CH110: 173 | CI110: FALSE | CJ110: 5107 | CK110: 120 | CO110: 107 | CT110: FALSE | CU110: 5107 | CV110: 111 | CZ110: 107 | DE110: FALSE | DF110: 5107 | DG110: 226 | DH110: 107 | DL110: σόν [your, of you (neuter)]
AE111: 108 | AF111: 38 | AG111: ἀκοή | AI111: hearing, report | AJ111: ah-ko-ay | AK111: Noun | AL111: ἡ | AP111: akoh | AQ111: 189 | AR111: 189 | AS111: ἀκοή | AT111: TRUE | AU111: TRUE | AV111: TRUE | AW111: 38 | AY111: hearing, report | AZ111: ah-ko-ay | BA111: Noun | BB111: ἡ | BF111: 189 | BG111: 108 | BH111: 108 | BI111: 38 | BJ111: ἡ ἀκοή | BL111: hearing, report | BM111: ah-ko-ay | BN111: Noun | BO111: ἡ | BR111: ἡ | BT111: 189 | BU111: 108 | BV111: 108 | BW111: 38 | BX111: Noun | BY111: ἡ ἀκοή | CC111: ah-ko-ay | CD111: hearing, report | CE111: ἡ ἀκοή | CF111: Index of Textbook: Noun | CH111: 189 | CI111: FALSE | CJ111: 5108 | CK111: 121 | CO111: 108 | CT111: FALSE | CU111: 5108 | CV111: 112 | CZ111: 108 | DE111: FALSE | DF111: 5108 | DG111: 227 | DH111: 108 | DL111: σοι [to you (dative singular)]
AE112: 109 | AF112: 21 | AG112: ἀκολουθέω | AH112: *ἀκολουθε | AI112: I follow, I accompany | AJ112: ah-koll-oo-THEH-owe | AK112: Verb | AM112: ἠκολούθουν | AN112: ἀκολουθήσω | AO112: ἠκολούθησα | AP112: akolouqew hkolouqoun akolouqhsw hkolouqhsa | AQ112: 190 | AR112: 190 | AS112: ἀκολουθέω | AT112: TRUE | AU112: TRUE | AV112: TRUE | AW112: 21 | AX112: *ἀκολουθε | AY112: I follow, I accompany | AZ112: ah-koll-oo-THEH-owe | BA112: Verb | BC112: ἠκολούθουν | BD112: ἀκολουθήσω | BE112: ἠκολούθησα | BF112: 190 | BG112: 109 | BH112: 109 | BI112: 21 | BJ112: ἀκολουθέω | BK112: *ἀκολουθε | BL112: I follow, I accompany | BM112: ah-koll-oo-THEH-owe | BN112: Verb | BP112: ἠκολούθουν | BQ112: ἀκολουθήσω | BS112: ἠκολούθησα | BT112: 190 | BU112: 109 | BV112: 109 | BW112: 21 | BX112: Verb | BY112: ἀκολουθέω | BZ112: ἠκολούθουν | CA112: ἀκολουθήσω | CB112: *ἀκολουθε | CC112: ah-koll-oo-THEH-owe | CD112: I follow, I accompany | CE112: ἀκολουθέω | CF112: Chapter 21: Verb | CG112: ἠκολούθησα | CH112: 190 | CI112: TRUE | CJ112: 109 | CK112: 1 | CL112: ἀκολουθέω | CM112: I follow, I accompany | CN112: [Chap. 21] | CO112: 109 | CT112: FALSE | CU112: 5109 | CV112: 113 | CZ112: 109 | DE112: FALSE | DF112: 5109 | DG112: 228 | DH112: 109 | DL112: σου [your/of you (genitive singular)]
AE113: 110 | AF113: 16 | AG113: ἀκούω | AH113: *ἀκου | AI113: I hear, I learn, I obey, I understand | AJ113: ah-KOO-owe | AK113: Verb | AM113: ἤκουον | AN113: ἀκούσω | AO113: ἤκουσα | AP113: akouw hkouov akousw hkousa | AQ113: 191 | AR113: 191 | AS113: ἀκούω | AT113: TRUE | AU113: TRUE | AV113: TRUE | AW113: 16 | AX113: *ἀκου | AY113: I hear, I learn, I obey, I understand | AZ113: ah-KOO-owe | BA113: Verb | BC113: ἤκουον | BD113: ἀκούσω | BE113: ἤκουσα | BF113: 191 | BG113: 110 | BH113: 110 | BI113: 16 | BJ113: ἀκούω | BK113: *ἀκου | BL113: I hear, I learn, I obey, I understand | BM113: ah-KOO-owe | BN113: Verb | BP113: ἤκουον | BQ113: ἀκούσω | BS113: ἤκουσα | BT113: 191 | BU113: 110 | BV113: 110 | BW113: 16 | BX113: Verb | BY113: ἀκούω | BZ113: ἤκουον | CA113: ἀκούσω | CB113: *ἀκου | CC113: ah-KOO-owe | CD113: I hear, I learn, I obey, I understand | CE113: ἀκούω | CF113: Chapter 16: Verb | CG113: ἤκουσα | CH113: 191 | CI113: FALSE | CJ113: 5110 | CK113: 122 | CO113: 110 | CT113: FALSE | CU113: 5110 | CV113: 114 | CZ113: 110 | DE113: FALSE | DF113: 5110 | DG113: 229 | DH113: 110 | DL113: τέ [so, and so]
AE114: 111 | AF114: 38 | AG114: ἀκροβυστία | AI114: uncircumcision | AJ114: ahk-row-boost-EE-ah | AK114: Noun | AL114: ἡ | AP114: akrobustia | AQ114: 203 | AR114: 203 | AS114: ἀκροβυστία | AT114: TRUE | AU114: TRUE | AV114: TRUE | AW114: 38 | AY114: uncircumcision | AZ114: ahk-row-boost-EE-ah | BA114: Noun | BB114: ἡ | BF114: 203 | BG114: 111 | BH114: 111 | BI114: 38 | BJ114: ἡ ἀκροβυστία | BL114: uncircumcision | BM114: ahk-row-boost-EE-ah | BN114: Noun | BO114: ἡ | BR114: ἡ | BT114: 203 | BU114: 111 | BV114: 111 | BW114: 38 | BX114: Noun | BY114: ἡ ἀκροβυστία | CC114: ahk-row-boost-EE-ah | CD114: uncircumcision | CE114: ἡ ἀκροβυστία | CF114: Index of Textbook: Noun | CH114: 203 | CI114: FALSE | CJ114: 5111 | CK114: 123 | CO114: 111 | CT114: FALSE | CU114: 5111 | CV114: 115 | CZ114: 111 | DE114: FALSE | DF114: 5111 | DG114: 230 | DH114: 111 | DL114: τις [someone, something, anyone, anything (nominative, singular, masculine or feminine)]
AE115: 112 | AF115: 38 | AG115: ἀλέκτωρ | AI115: rooster | AJ115: ah-LEK-torr | AK115: Noun | AL115: ἡ | AP115: alektwr | AQ115: 220 | AR115: 220 | AS115: ἀλέκτωρ | AT115: TRUE | AU115: TRUE | AV115: TRUE | AW115: 38 | AY115: rooster | AZ115: ah-LEK-torr | BA115: Noun | BB115: ἡ | BF115: 220 | BG115: 112 | BH115: 112 | BI115: 38 | BJ115: ἡ ἀλέκτωρ | BL115: rooster | BM115: ah-LEK-torr | BN115: Noun | BO115: ἡ | BR115: ἡ | BT115: 220 | BU115: 112 | BV115: 112 | BW115: 38 | BX115: Noun | BY115: ἡ ἀλέκτωρ | CC115: ah-LEK-torr | CD115: rooster | CE115: ἡ ἀλέκτωρ | CF115: Index of Textbook: Noun | CH115: 220 | CI115: FALSE | CJ115: 5112 | CK115: 124 | CO115: 112 | CT115: FALSE | CU115: 5112 | CV115: 116 | CZ115: 112 | DE115: FALSE | DF115: 5112 | DG115: 231 | DH115: 112 | DL115: τι [someone, something, anyone, anything (nominative or accusative, singular, neuter)]
AE116: 113 | AF116: 14 | AG116: ἀλήθεια | AH116: *αληθεια | AI116: truth | AJ116: ah-LAY-thee-ah | AK116: Noun | AL116: ἡ | AP116: alhqeia | AQ116: 225 | AR116: 225 | AS116: ἀλήθεια | AT116: TRUE | AU116: TRUE | AV116: TRUE | AW116: 14 | AX116: *αληθεια | AY116: truth | AZ116: ah-LAY-thee-ah | BA116: Noun | BB116: ἡ | BF116: 225 | BG116: 113 | BH116: 113 | BI116: 14 | BJ116: ἡ ἀλήθεια | BK116: *αληθεια | BL116: truth | BM116: ah-LAY-thee-ah | BN116: Noun | BO116: ἡ | BR116: ἡ | BT116: 225 | BU116: 113 | BV116: 113 | BW116: 14 | BX116: Noun | BY116: ἡ ἀλήθεια | CB116: *αληθεια | CC116: ah-LAY-thee-ah | CD116: truth | CE116: ἡ ἀλήθεια | CF116: Chapter 14: Noun | CH116: 225 | CI116: FALSE | CJ116: 5113 | CK116: 125 | CO116: 113 | CT116: FALSE | CU116: 5113 | CV116: 117 | CZ116: 113 | DE116: FALSE | DF116: 5113 | DG116: 232 | DH116: 113 | DL116: τίς [who? what? which? (nominative, singular, masculine or feminine)]
AE117: 114 | AF117: 38 | AG117: ἀληθής | AH117: *ἀληθεια | AI117: true, truthful | AJ117: ah-lay-THACE | AK117: Adjective | AP117: alhqhs | AQ117: 227 | AR117: 227 | AS117: ἀληθής | AT117: TRUE | AU117: TRUE | AV117: TRUE | AW117: 38 | AX117: *ἀληθεια | AY117: true, truthful | AZ117: ah-lay-THACE | BA117: Adjective | BF117: 227 | BG117: 114 | BH117: 114 | BI117: 38 | BJ117: ἀληθής | BK117: *ἀληθεια | BL117: true, truthful | BM117: ah-lay-THACE | BN117: Adjective | BT117: 227 | BU117: 114 | BV117: 114 | BW117: 38 | BX117: Adjective | BY117: ἀληθής | CB117: *ἀληθεια | CC117: ah-lay-THACE | CD117: true, truthful | CE117: ἀληθής | CF117: Index of Textbook: Adjective | CH117: 227 | CI117: FALSE | CJ117: 5114 | CK117: 126 | CO117: 114 | CT117: FALSE | CU117: 5114 | CV117: 118 | CZ117: 114 | DE117: FALSE | DF117: 5114 | DG117: 233 | DH117: 114 | DL117: τί [why? who? what? which? (nominative or accusative, singular, neuter)]
AE118: 115 | AF118: 38 | AG118: ἀληθινός | AH118: *ἀληθεια | AI118: true, genuine | AJ118: ah-lay-thin-OSS | AK118: Adjective | AP118: alhqinos | AQ118: 228 | AR118: 228 | AS118: ἀληθινός | AT118: TRUE | AU118: TRUE | AV118: TRUE | AW118: 38 | AX118: *ἀληθεια | AY118: true, genuine | AZ118: ah-lay-thin-OSS | BA118: Adjective | BF118: 228 | BG118: 115 | BH118: 115 | BI118: 38 | BJ118: ἀληθινός | BK118: *ἀληθεια | BL118: true, genuine | BM118: ah-lay-thin-OSS | BN118: Adjective | BT118: 228 | BU118: 115 | BV118: 115 | BW118: 38 | BX118: Adjective | BY118: ἀληθινός | CB118: *ἀληθεια | CC118: ah-lay-thin-OSS | CD118: true, genuine | CE118: ἀληθινός | CF118: Index of Textbook: Adjective | CH118: 228 | CI118: FALSE | CJ118: 5115 | CK118: 127 | CO118: 115 | CT118: FALSE | CU118: 5115 | CV118: 119 | CZ118: 115 | DE118: FALSE | DF118: 5115 | DG118: 234 | DH118: 115 | DL118: τοι [assuredly, certainly (particle)]
AE119: 116 | AF119: 38 | AG119: ἀληθῶς | AH119: *ἀληθεια | AI119: truly | AJ119: ah-lay-THOCE | AK119: Adverb | AP119: alhqws | AQ119: 230 | AR119: 230 | AS119: ἀληθῶς | AT119: TRUE | AU119: TRUE | AV119: TRUE | AW119: 38 | AX119: *ἀληθεια | AY119: truly | AZ119: ah-lay-THOCE | BA119: Adverb | BF119: 230 | BG119: 116 | BH119: 116 | BI119: 38 | BJ119: ἀληθῶς | BK119: *ἀληθεια | BL119: truly | BM119: ah-lay-THOCE | BN119: Adverb | BT119: 230 | BU119: 116 | BV119: 116 | BW119: 38 | BX119: Adverb | BY119: ἀληθῶς | CB119: *ἀληθεια | CC119: ah-lay-THOCE | CD119: truly | CE119: ἀληθῶς | CF119: Index of Textbook: Adverb | CH119: 230 | CI119: FALSE | CJ119: 5116 | CK119: 128 | CO119: 116 | CT119: FALSE | CU119: 5116 | CV119: 120 | CZ119: 116 | DE119: FALSE | DF119: 5116 | DG119: 235 | DH119: 116 | DL119: ἔφη [he/she/it said/was saying/was affirming (3rd person singular)]
AE120: 117 | AF120: 08 | AG120: ἀλλά | AI120: but, yet, rather (particle) | AJ120: ahl-LAH | AK120: Conjunction | AP120: alla | AQ120: 235 | AR120: 235 | AS120: ἀλλά | AT120: TRUE | AU120: TRUE | AV120: TRUE | AW120: 08 | AY120: but, yet, rather (particle) | AZ120: ahl-LAH | BA120: Conjunction | BF120: 235 | BG120: 117 | BH120: 117 | BI120: 08 | BJ120: ἀλλά | BL120: but, yet, rather (particle) | BM120: ahl-LAH | BN120: Conjunction | BT120: 235 | BU120: 117 | BV120: 117 | BW120: 08 | BX120: Conjunction | BY120: ἀλλά | CC120: ahl-LAH | CD120: but, yet, rather (particle) | CE120: ἀλλά | CF120: Chapter 08: Conjunction | CH120: 235 | CI120: FALSE | CJ120: 5117 | CK120: 129 | CO120: 117 | CT120: FALSE | CU120: 5117 | CV120: 121 | CZ120: 117 | DE120: FALSE | DF120: 5117 | DG120: 236 | DH120: 117 | DL120: τό φῶς [light]
AE121: 118 | AF121: 09 | AG121: ἀλλήλωη | AH121: *ἀλληλο | AI121: one another [genitive plural…] | AJ121: ahl-LAY-low-ay | AK121: Noun | AL121: ἡ | AP121: allhlwn | AQ121: 240 | AR121: 240 | AS121: ἀλλήλωη | AT121: TRUE | AU121: TRUE | AV121: TRUE | AW121: 09 | AX121: *ἀλληλο | AY121: one another [genitive plural…] | AZ121: ahl-LAY-low-ay | BA121: Noun | BB121: ἡ | BF121: 240 | BG121: 118 | BH121: 118 | BI121: 09 | BJ121: ἡ ἀλλήλωη | BK121: *ἀλληλο | BL121: one another [genitive plural…] | BM121: ahl-LAY-low-ay | BN121: Noun | BO121: ἡ | BR121: ἡ | BT121: 240 | BU121: 118 | BV121: 118 | BW121: 09 | BX121: Noun | BY121: ἡ ἀλλήλωη | CB121: *ἀλληλο | CC121: ahl-LAY-low-ay | CD121: one another [genitive plural…] | CE121: ἡ ἀλλήλωη | CF121: Chapter 09: Noun | CH121: 240 | CI121: FALSE | CJ121: 5118 | CK121: 130 | CO121: 118 | CT121: FALSE | CU121: 5118 | CV121: 122 | CZ121: 118 | DE121: FALSE | DF121: 5118 | DG121: 237 | DH121: 118 | DL121: ὦ [oh!]
AE122: 119 | AF122: 06 | AG122: ἄλλος | AH122: *ἀλλο | AI122: other, another | AJ122: ALL-oss | AK122: Pronoun | AP122: allos | AQ122: 243 | AR122: 243 | AS122: ἄλλος | AT122: TRUE | AU122: TRUE | AV122: TRUE | AW122: 06 | AX122: *ἀλλο | AY122: other, another | AZ122: ALL-oss | BA122: Pronoun | BF122: 243 | BG122: 119 | BH122: 119 | BI122: 06 | BJ122: ἄλλος | BK122: *ἀλλο | BL122: other, another | BM122: ALL-oss | BN122: Pronoun | BT122: 243 | BU122: 119 | BV122: 119 | BW122: 06 | BX122: Pronoun | BY122: ἄλλος | CB122: *ἀλλο | CC122: ALL-oss | CD122: other, another | CE122: ἄλλος | CF122: Chapter 06: Pronoun | CH122: 243 | CI122: FALSE | CJ122: 5119 | CK122: 131 | CO122: 119 | CT122: FALSE | CU122: 5119 | CV122: 123 | CZ122: 119 | DE122: FALSE | DF122: 5119 | DG122: 238 | DH122: 119 | DL122: ὧδε [here]
AE123: 120 | AF123: 38 | AG123: ἀλλότριος | AH123: *ἀλλο | AI123: strange, not one's own | AJ123: ahl-LOT-ree-oss | AK123: Adjective | AP123: allotrios | AQ123: 245 | AR123: 245 | AS123: ἀλλότριος | AT123: TRUE | AU123: TRUE | AV123: TRUE | AW123: 38 | AX123: *ἀλλο | AY123: strange, not one's own | AZ123: ahl-LOT-ree-oss | BA123: Adjective | BF123: 245 | BG123: 120 | BH123: 120 | BI123: 38 | BJ123: ἀλλότριος | BK123: *ἀλλο | BL123: strange, not one's own | BM123: ahl-LOT-ree-oss | BN123: Adjective | BT123: 245 | BU123: 120 | BV123: 120 | BW123: 38 | BX123: Adjective | BY123: ἀλλότριος | CB123: *ἀλλο | CC123: ahl-LOT-ree-oss | CD123: strange, not one's own | CE123: ἀλλότριος | CF123: Chapter 38: Adjective | CH123: 245 | CI123: FALSE | CJ123: 5120 | CK123: 132 | CO123: 120 | CT123: FALSE | CU123: 5120 | CV123: 124 | CZ123: 120 | DE123: FALSE | DF123: 5120 | DG123: 239 | DH123: 120 | DL123: ἡ ὥρα [hour, occasion, moment]
AE124: 121 | AF124: 38 | AG124: ἅλυσις | AI124: chain | AJ124: HAH-loo-sis | AK124: Noun | AL124: ἡ | AP124: alusis | AQ124: 254 | AR124: 254 | AS124: ἅλυσις | AT124: TRUE | AU124: TRUE | AV124: TRUE | AW124: 38 | AY124: chain | AZ124: HAH-loo-sis | BA124: Noun | BB124: ἡ | BF124: 254 | BG124: 121 | BH124: 121 | BI124: 38 | BJ124: ἡ ἅλυσις | BL124: chain | BM124: HAH-loo-sis | BN124: Noun | BO124: ἡ | BR124: ἡ | BT124: 254 | BU124: 121 | BV124: 121 | BW124: 38 | BX124: Noun | BY124: ἡ ἅλυσις | CC124: HAH-loo-sis | CD124: chain | CE124: ἡ ἅλυσις | CF124: Chapter 38: Noun | CH124: 254 | CI124: FALSE | CJ124: 5121 | CK124: 133 | CO124: 121 | CT124: FALSE | CU124: 5121 | CV124: 125 | CZ124: 121 | DE124: FALSE | DF124: 5121 | DG124: 240 | DH124: 121 | DL124: ὡς [as, like, that, when, after, approximately]
AE125: 122 | AF125: 38 | AG125: ἅμα | AI125: together with [dative] | AJ125: HA-mah | AK125: Preposition | AP125: ama | AQ125: 260 | AR125: 260 | AS125: ἅμα | AT125: TRUE | AU125: TRUE | AV125: TRUE | AW125: 38 | AY125: together with [dative] | AZ125: HA-mah | BA125: Preposition | BF125: 260 | BG125: 122 | BH125: 122 | BI125: 38 | BJ125: ἅμα | BL125: together with [dative] | BM125: HA-mah | BN125: Preposition | BT125: 260 | BU125: 122 | BV125: 122 | BW125: 38 | BX125: Preposition | BY125: ἅμα | CC125: HA-mah | CD125: together with [dative] | CE125: ἅμα | CF125: Index of Textbook: Preposition | CH125: 260 | CI125: FALSE | CJ125: 5122 | CK125: 134 | CO125: 122 | CT125: FALSE | CU125: 5122 | CV125: 126 | CZ125: 122 | DE125: TRUE | DF125: 122 | DG125: 3 | DH125: 122 | DJ125: ἅμα | DK125: together with [dative]
AE126: 123 | AF126: 38 | AG126: ἅμα | AI126: at the same time | AJ126: HA-mah | AK126: Adverb | AP126: ama | AQ126: 260 | AR126: 260.1 | AS126: ἅμα | AT126: TRUE | AU126: TRUE | AV126: TRUE | AW126: 38 | AY126: at the same time | AZ126: HA-mah | BA126: Adverb | BF126: 260 | BG126: 123 | BH126: 123 | BI126: 38 | BJ126: ἅμα | BL126: at the same time | BM126: HA-mah | BN126: Adverb | BT126: 260 | BU126: 123 | BV126: 123 | BW126: 38 | BX126: Adverb | BY126: ἅμα | CC126: HA-mah | CD126: at the same time | CE126: ἅμα | CF126: Index of Textbook: Adverb | CH126: 260 | CI126: FALSE | CJ126: 5123 | CK126: 135 | CO126: 123 | CT126: FALSE | CU126: 5123 | CV126: 127 | CZ126: 123 | DE126: TRUE | DF126: 123 | DG126: 4 | DH126: 123 | DJ126: ἅμα | DK126: at the same time
AE127: 124 | AF127: 35 | AG127: ἁμαρτάνω | AH127: *ἁμαρτ | AI127: I sin | AJ127: ham-art-AH-noe | AK127: Verb | AM127: - | AN127: ἁμαρτήσω | AO127: ἡμάρτησα | AP127: amartanw amarthsw hmarthsa | AQ127: 264 | AR127: 264 | AS127: ἁμαρτάνω | AT127: TRUE | AU127: TRUE | AV127: TRUE | AW127: 35 | AX127: *ἁμαρτ | AY127: I sin | AZ127: ham-art-AH-noe | BA127: Verb | BC127: - | BD127: ἁμαρτήσω | BE127: ἡμάρτησα | BF127: 264 | BG127: 124 | BH127: 124 | BI127: 35 | BJ127: ἁμαρτάνω | BK127: *ἁμαρτ | BL127: I sin | BM127: ham-art-AH-noe | BN127: Verb | BP127: - | BQ127: ἁμαρτήσω | BS127: ἡμάρτησα | BT127: 264 | BU127: 124 | BV127: 124 | BW127: 35 | BX127: Verb | BY127: ἁμαρτάνω | BZ127: - | CA127: ἁμαρτήσω | CB127: *ἁμαρτ | CC127: ham-art-AH-noe | CD127: I sin | CE127: ἁμαρτάνω | CF127: Chapter 35: Verb | CG127: ἡμάρτησα | CH127: 264 | CI127: FALSE | CJ127: 5124 | CK127: 136 | CO127: 124 | CT127: FALSE | CU127: 5124 | CV127: 128 | CZ127: 124 | DE127: FALSE | DF127: 5124 | DG127: 241 | DH127: 124
AE128: 125 | AF128: 07 | AG128: ἁμαρτία | AH128: *ἁμαρτια | AI128: sin | AJ128: ha-mar-TEE-ah | AK128: Noun | AL128: ἡ | AP128: amartia | AQ128: 266 | AR128: 266 | AS128: ἁμαρτία | AT128: TRUE | AU128: TRUE | AV128: TRUE | AW128: 07 | AX128: *ἁμαρτια | AY128: sin | AZ128: ha-mar-TEE-ah | BA128: Noun | BB128: ἡ | BF128: 266 | BG128: 125 | BH128: 125 | BI128: 07 | BJ128: ἡ ἁμαρτία | BK128: *ἁμαρτια | BL128: sin | BM128: ha-mar-TEE-ah | BN128: Noun | BO128: ἡ | BR128: ἡ | BT128: 266 | BU128: 125 | BV128: 125 | BW128: 07 | BX128: Noun | BY128: ἡ ἁμαρτία | CB128: *ἁμαρτια | CC128: ha-mar-TEE-ah | CD128: sin | CE128: ἡ ἁμαρτία | CF128: Chapter 07: Noun | CH128: 266 | CI128: FALSE | CJ128: 5125 | CK128: 137 | CO128: 125 | CT128: FALSE | CU128: 5125 | CV128: 129 | CZ128: 125 | DE128: FALSE | DF128: 5125 | DG128: 242 | DH128: 125
AE129: 126 | AF129: 35 | AG129: ἁμαρτωλός [noun] | AH129: *ἁμαρτωλο | AI129: sinner | AJ129: ham-arr-toe-LOSS | AK129: Noun | AL129: ὁ | AP129: amartwlos | AQ129: 268 | AR129: 268 | AS129: ἁμαρτωλός [noun] | AT129: TRUE | AU129: TRUE | AV129: TRUE | AW129: 35 | AX129: *ἁμαρτωλο | AY129: sinner | AZ129: ham-arr-toe-LOSS | BA129: Noun | BB129: ὁ | BF129: 268 | BG129: 126 | BH129: 126 | BI129: 35 | BJ129: ὁ ἁμαρτωλός [noun] | BK129: *ἁμαρτωλο | BL129: sinner | BM129: ham-arr-toe-LOSS | BN129: Noun | BO129: ὁ | BR129: ὁ | BT129: 268 | BU129: 126 | BV129: 126 | BW129: 35 | BX129: Noun | BY129: ὁ ἁμαρτωλός [noun] | CB129: *ἁμαρτωλο | CC129: ham-arr-toe-LOSS | CD129: sinner | CE129: ὁ ἁμαρτωλός [noun] | CF129: Chapter 35: Noun | CH129: 268 | CI129: FALSE | CJ129: 5126 | CK129: 138 | CO129: 126 | CT129: FALSE | CU129: 5126 | CV129: 130 | CZ129: 126 | DE129: FALSE | DF129: 5126 | DG129: 243 | DH129: 126
AE130: 127 | AF130: 35 | AG130: ἁμαρτωλός [adjective] | AH130: *ἁμαρτωλο | AI130: sinful | AJ130: ham-arr-toe-LOSS | AK130: Adjective | AP130: amartwlos | AQ130: 268 | AR130: 268.1 | AS130: ἁμαρτωλός [adjective] | AT130: TRUE | AU130: TRUE | AV130: TRUE | AW130: 35 | AX130: *ἁμαρτωλο | AY130: sinful | AZ130: ham-arr-toe-LOSS | BA130: Adjective | BF130: 268 | BG130: 127 | BH130: 127 | BI130: 35 | BJ130: ἁμαρτωλός [adjective] | BK130: *ἁμαρτωλο | BL130: sinful | BM130: ham-arr-toe-LOSS | BN130: Adjective | BT130: 268 | BU130: 127 | BV130: 127 | BW130: 35 | BX130: Adjective | BY130: ἁμαρτωλός [adjective] | CB130: *ἁμαρτωλο | CC130: ham-arr-toe-LOSS | CD130: sinful | CE130: ἁμαρτωλός [adjective] | CF130: Chapter 35: Adjective | CH130: 268 | CI130: FALSE | CJ130: 5127 | CK130: 139 | CO130: 127 | CT130: FALSE | CU130: 5127 | CV130: 131 | CZ130: 127 | DE130: FALSE | DF130: 5127 | DG130: 244 | DH130: 127
AE131: 128 | AF131: 04 | AG131: ἀμῄν | AI131: truly, amen, let it be so | AJ131: ah-MANE | AK131: Adverb | AP131: amhn | AQ131: 281 | AR131: 281 | AS131: ἀμῄν | AT131: TRUE | AU131: TRUE | AV131: TRUE | AW131: 04 | AY131: truly, amen, let it be so | AZ131: ah-MANE | BA131: Adverb | BF131: 281 | BG131: 128 | BH131: 128 | BI131: 04 | BJ131: ἀμῄν | BL131: truly, amen, let it be so | BM131: ah-MANE | BN131: Adverb | BT131: 281 | BU131: 128 | BV131: 128 | BW131: 04 | BX131: Adverb | BY131: ἀμῄν | CC131: ah-MANE | CD131: truly, amen, let it be so | CE131: ἀμῄν | CF131: Chapter 04: Adverb | CH131: 281 | CI131: FALSE | CJ131: 5128 | CK131: 140 | CO131: 128 | CT131: FALSE | CU131: 5128 | CV131: 132 | CZ131: 128 | DE131: FALSE | DF131: 5128 | DG131: 245 | DH131: 128
AE132: 129 | AF132: 38 | AG132: ἀμπελών | AI132: vineyard | AJ132: ahm-pell-OWN | AK132: Noun | AL132: ὁ | AP132: ampelwn | AQ132: 290 | AR132: 290 | AS132: ἀμπελών | AT132: =IF(ISERR(FIND(AF132,$Y$22,1)),FALSE,TRUE) -> TRUE | AU132: TRUE | AV132: TRUE | AW132: 38 | AY132: vineyard | AZ132: ahm-pell-OWN | BA132: Noun | BB132: ὁ | BF132: 290 | BG132: =IF(AV132,AE132,AE132+5000) -> 129 | BH132: =RANK(BG132,BG$4:BG$2003,1) -> 129 | BI132: 38 | BJ132: =IF($AV132,BO132&AG132," ") -> ὁ ἀμπελών | BL132: vineyard | BM132: ahm-pell-OWN | BN132: Noun | BO132: ὁ | BR132: ὁ | BT132: 290 | BU132: 129 | BV132: =IF(BU132<=BJ$2,MATCH(BU132,BH$4:BH$2003,0),"") -> 129 | BW132: =VLOOKUP($BU132,BH$4:BQ$2003,2,0) -> 38 | BX132: =VLOOKUP($BU132,BH$4:BQ$2003,7,0) -> Noun | BY132: =VLOOKUP($BU132,BH$4:BQ$2003,3,0) -> ὁ ἀμπελών | BZ132: =VLOOKUP($BU132,BH$4:BQ$2003,9,0) ->  | CA132: =VLOOKUP($BU132,BH$4:BQ$2003,10,0) ->  | CB132: =VLOOKUP($BU132,BH$4:BQ$2003,4,0) ->  | CC132: =VLOOKUP($BU132,BH$4:BQ$2003,6,0) -> ahm-pell-OWN | CD132: =VLOOKUP($BU132,BH$4:BQ$2003,5,0) -> vineyard | CE132: =IF(AC$8,BY132,VLOOKUP($BU132,BH$4:BR$2003,11,0)&BY132) -> ὁ ἀμπελών | CF132: Index of Textbook: Noun | CG132: =VLOOKUP($BU132,BH$4:BS$2003,12,0) ->  | CH132: =VLOOKUP($BU132,BH$4:BT$2003,13,0) -> 290 | CI132: FALSE | CJ132: =IF(CI132,AE132,AE132+5000) -> 5129 | CK132: =RANK(CJ132,CJ$4:CJ$2003,1) -> 141 | CL132: =IF($CI132,IF(BB132=" ","",BB132&" ")&AG132," ") ->  | CO132: 129 | CP132: =IF(CO132<=CP$2,MATCH(CO132,CK$4:CK$2003,0),"") ->  | CQ132: =VLOOKUP($CO132,CK$4:CM$2003,2,0) ->  | CR132: =VLOOKUP($CO132,CK$4:CN$2003,3,0)&VLOOKUP($CO132,CK$4:CN$2003,4,0) ->  | CT132: =IF(ISERR(FIND(CW$2,AP132,1)),FALSE, TRUE) -> FALSE | CU132: =IF(CT132,AE132,AE132+5000) -> 5129 | CV132: =RANK(CU132,CU$4:CU$2003,1) -> 133 | CW132: =IF($CT132,IF(AH132=" ",""," ["&AH132&"]")," ") ->  | CX132: =IF($CT132,IF(AK132="Noun ","Noun",IF(AK132="Verb ","Verb",AK132))," ") ->  | CZ132: 129 | DA132: =IF(CZ132<=DA$2,MATCH(CZ132,CV$4:CV$2003,0),"") ->  | DB132: =VLOOKUP($CZ132,CV$4:CY$2003,4,0) ->  | DE132: =IF(AND(LEN(AG132)<=DF$2,AG132<>" "),TRUE,FALSE) -> FALSE | DF132: =IF(DE132,AE132,AE132+5000) -> 5129 | DG132: =RANK(DF132,DF$4:DF$2003,1) -> 246 | DH132: 129 | DI132: =IF(DH132<=DA$2,MATCH(DH132,DG$4:DG$2003,0),"") ->  | DJ132: =IF($DE132,IF(BB132=" ","",BB132&" ")&AG132," ") ->  | DL132: =IF($DH132<=$DI$2,VLOOKUP($DH132,DG$4:DK$2003,4,0)&" [" &VLOOKUP($DH132,DG$4:DK$2003,5,0) &"]"," ") -> 
AE133: 130 | AF133: 38 | AG133: ἀμφότεροι | AI133: both | AJ133: ahm-FOT-er-oy | AK133: Adjective | AP133: amfoteroi | AQ133: 297 | AR133: 297 | AS133: =IF(AG133="","",AG133) -> ἀμφότεροι | AT133: TRUE | AU133: =IF(ISERR(FIND(AK133,$Y$23,1)),FALSE,TRUE) -> TRUE | AV133: =AND(AT133,AU133) -> TRUE | AW133: =IF(AC$3,AF133," ") -> 38 | AX133: =IF(AC$4,AH133," ") ->  | AY133: =IF(TRUE,AI133," ") -> both | AZ133: =IF(AC$6,AJ133," ") -> ahm-FOT-er-oy | BA133: =IF(AC$7,AK133," ") -> Adjective | BB133: =IF(AC$8,AL133," ") ->  | BC133: =IF(AC$9,AM133," ") ->  | BD133: =IF(AC$10,AN133," ") ->  | BE133: =IF(AC$9,AO133," ") ->  | BF133: =IF(AC$12,AQ133," ") -> 297 | BG133: 130 | BH133: 130 | BI133: 38 | BJ133: ἀμφότεροι | BL133: both | BM133: ahm-FOT-er-oy | BN133: Adjective | BR133: =IF($AV133,IF(AL133=" ","",AL133&" "),"") ->  | BS133: =IF($AV133,BE133," ") ->  | BT133: 297 | BU133: 130 | BV133: 130 | BW133: 38 | BX133: Adjective | BY133: ἀμφότεροι | CC133: ahm-FOT-er-oy | CD133: both | CE133: ἀμφότεροι | CF133: =IF(BV133="","",IF(BW133="37","Extra", IF(BW133=38, "Index of Textbook","Chapter " &BW133))&": "&BX133) -> Index of Textbook: Adjective | CH133: 297 | CI133: =IF(ISERR(SEARCH(CL$2,AY133,1)),FALSE, TRUE) -> FALSE | CJ133: 5130 | CK133: 142 | CM133: =IF($CI133,AY133," ") ->  | CN133: =IF($CI133,IF(AW133="37"," [Extra]",IF(AW133="38"," [Index]", " [Chap. "&TEXT(VALUE(AW133),"#")&"]"))," ") ->  | CO133: 130 | CT133: FALSE | CU133: 5130 | CV133: 134 | CY133: =IF($CT133,IF(BB133=" ","",BB133&" ")&AG133&CW133&": "&AY133& IF(AF133="37"," (Extra",IF(AF133="38"," (Index"," (Chapter "&TEXT(AF133,"#"))) &", "&CX133& IF(LEN(AM133)>1," ["&AM133&"]","") &IF(LEN(AN133)>1," ["&AN133&"]","") &")"," ") ->  | CZ133: 130 | DE133: FALSE | DF133: 5130 | DG133: 247 | DH133: 130 | DK133: =IF($DE133,AY133," ") -> 
AE134: 131 | AF134: 14 | AG134: ἄν | AI134: modifies relative pronoun ("who" becomes "whoever") (particle) | AJ134: AHN | AK134: Pronoun | AP134: an | AQ134: 302 | AR134: 302 | AS134: ἄν | AT134: TRUE | AU134: TRUE | AV134: TRUE | AW134: 14 | AY134: modifies relative pronoun ("who" becomes "whoever") (particle) | AZ134: AHN | BA134: Pronoun | BF134: 302 | BG134: 131 | BH134: 131 | BI134: 14 | BJ134: ἄν | BL134: modifies relative pronoun ("who" becomes "whoever") (particle) | BM134: AHN | BN134: Pronoun | BT134: 302 | BU134: 131 | BV134: 131 | BW134: 14 | BX134: Pronoun | BY134: ἄν | CC134: AHN | CD134: modifies relative pronoun ("who" becomes "whoever") (particle) | CE134: ἄν | CF134: Chapter 14: Pronoun | CH134: 302 | CI134: FALSE | CJ134: 5131 | CK134: 143 | CO134: 131 | CT134: FALSE | CU134: 5131 | CV134: 135 | CZ134: 131 | DE134: TRUE | DF134: 131 | DG134: 5 | DH134: 131 | DJ134: ἄν | DK134: modifies relative pronoun ("who" becomes "whoever") (particle)
AE135: 132 | AF135: 11 | AG135: -ἄν | AI135: ending that changes "what" to "whatever" | AJ135: AHN | AK135: Noun Ending | AP135: an | AQ135: 302 | AR135: 302.1 | AS135: -ἄν | AT135: TRUE | AU135: TRUE | AV135: TRUE | AW135: 11 | AY135: ending that changes "what" to "whatever" | AZ135: AHN | BA135: Noun Ending | BF135: 302 | BG135: 132 | BH135: 132 | BI135: 11 | BJ135: -ἄν | BL135: ending that changes "what" to "whatever" | BM135: AHN | BN135: Noun Ending | BT135: 302 | BU135: 132 | BV135: 132 | BW135: 11 | BX135: Noun Ending | BY135: -ἄν | CC135: AHN | CD135: ending that changes "what" to "whatever" | CE135: -ἄν | CF135: Chapter 11: Noun Ending | CH135: 302 | CI135: FALSE | CJ135: 5132 | CK135: 144 | CO135: 132 | CT135: FALSE | CU135: 5132 | CV135: 136 | CZ135: 132 | DE135: TRUE | DF135: 132 | DG135: 6 | DH135: 132 | DJ135: -ἄν | DK135: ending that changes "what" to "whatever"
AE136: 133 | AF136: 38 | AG136: ἀνά | AI136: among, between, each | AJ136: ah-NA | AK136: Preposition | AP136: ana | AQ136: 303 | AR136: 303 | AS136: ἀνά | AT136: TRUE | AU136: TRUE | AV136: TRUE | AW136: 38 | AY136: among, between, each | AZ136: ah-NA | BA136: Preposition | BF136: 303 | BG136: 133 | BH136: 133 | BI136: 38 | BJ136: ἀνά | BL136: among, between, each | BM136: ah-NA | BN136: Preposition | BT136: 303 | BU136: 133 | BV136: 133 | BW136: 38 | BX136: Preposition | BY136: ἀνά | CC136: ah-NA | CD136: among, between, each | CE136: ἀνά | CF136: Index of Textbook: Preposition | CH136: 303 | CI136: FALSE | CJ136: 5133 | CK136: 145 | CO136: 133 | CT136: FALSE | CU136: 5133 | CV136: 137 | CZ136: 133 | DE136: TRUE | DF136: 133 | DG136: 7 | DH136: 133 | DJ136: ἀνά | DK136: among, between, each
AE137: 134 | AF137: 27 | AG137: ἀναβαίνω | AH137: *ἀνα + *βα | AI137: I go up | AJ137: ah-nah-BYE-noe | AK137: Verb | AM137: ἀνέβαινον | AN137: ἀναβήσομαι | AO137: ἀνέβην | AP137: anabainw anebainon anabhsomai anebhn | AQ137: 305 | AR137: 305 | AS137: ἀναβαίνω | AT137: TRUE | AU137: TRUE | AV137: TRUE | AW137: 27 | AX137: *ἀνα + *βα | AY137: I go up | AZ137: ah-nah-BYE-noe | BA137: Verb | BC137: ἀνέβαινον | BD137: ἀναβήσομαι | BE137: ἀνέβην | BF137: 305 | BG137: 134 | BH137: 134 | BI137: 27 | BJ137: ἀναβαίνω | BK137: *ἀνα + *βα | BL137: I go up | BM137: ah-nah-BYE-noe | BN137: Verb | BP137: ἀνέβαινον | BQ137: ἀναβήσομαι | BS137: ἀνέβην | BT137: 305 | BU137: 134 | BV137: 134 | BW137: 27 | BX137: Verb | BY137: ἀναβαίνω | BZ137: ἀνέβαινον | CA137: ἀναβήσομαι | CB137: *ἀνα + *βα | CC137: ah-nah-BYE-noe | CD137: I go up | CE137: ἀναβαίνω | CF137: Chapter 27: Verb | CG137: ἀνέβην | CH137: 305 | CI137: FALSE | CJ137: 5134 | CK137: 146 | CO137: 134 | CT137: FALSE | CU137: 5134 | CV137: 138 | CZ137: 134 | DE137: FALSE | DF137: 5134 | DG137: 248 | DH137: 134
AE138: 135 | AF138: 38 | AG138: ἀναβλέπω | AH138: *βλεπ | AI138: I look up, I receive sight | AJ138: ah-NA-BLEPP-owe | AK138: Verb | AM138: - | AN138: - | AO138: ἀνέβλεψα | AP138: anablepw anebleya | AQ138: 308 | AR138: 308 | AS138: ἀναβλέπω | AT138: TRUE | AU138: TRUE | AV138: TRUE | AW138: 38 | AX138: *βλεπ | AY138: I look up, I receive sight | AZ138: ah-NA-BLEPP-owe | BA138: Verb | BC138: - | BD138: - | BE138: ἀνέβλεψα | BF138: 308 | BG138: 135 | BH138: 135 | BI138: 38 | BJ138: ἀναβλέπω | BK138: *βλεπ | BL138: I look up, I receive sight | BM138: ah-NA-BLEPP-owe | BN138: Verb | BP138: - | BQ138: - | BS138: ἀνέβλεψα | BT138: 308 | BU138: 135 | BV138: 135 | BW138: 38 | BX138: Verb | BY138: ἀναβλέπω | BZ138: - | CA138: - | CB138: *βλεπ | CC138: ah-NA-BLEPP-owe | CD138: I look up, I receive sight | CE138: ἀναβλέπω | CF138: Index of Textbook: Verb | CG138: ἀνέβλεψα | CH138: 308 | CI138: FALSE | CJ138: 5135 | CK138: 147 | CO138: 135 | CT138: FALSE | CU138: 5135 | CV138: 139 | CZ138: 135 | DE138: FALSE | DF138: 5135 | DG138: 249 | DH138: 135
AE139: 136 | AF139: 38 | AG139: ἀναγγέλλω | AI139: I proclaim, I announce, I report | AJ139: ah-nang-ELL-owe | AK139: Verb | AM139: ἀνήγγελλον | AN139: ἀναγγελῶ | AO139: ἀνήγγειλα | AP139: Anaggellw anhggellon anaggelw anhggeila | AQ139: 312 | AR139: 312 | AS139: ἀναγγέλλω | AT139: TRUE | AU139: TRUE | AV139: TRUE | AW139: 38 | AY139: I proclaim, I announce, I report | AZ139: ah-nang-ELL-owe | BA139: Verb | BC139: ἀνήγγελλον | BD139: ἀναγγελῶ | BE139: ἀνήγγειλα | BF139: 312 | BG139: 136 | BH139: 136 | BI139: 38 | BJ139: ἀναγγέλλω | BL139: I proclaim, I announce, I report | BM139: ah-nang-ELL-owe | BN139: Verb | BP139: ἀνήγγελλον | BQ139: ἀναγγελῶ | BS139: ἀνήγγειλα | BT139: 312 | BU139: 136 | BV139: 136 | BW139: 38 | BX139: Verb | BY139: ἀναγγέλλω | BZ139: ἀνήγγελλον | CA139: ἀναγγελῶ | CC139: ah-nang-ELL-owe | CD139: I proclaim, I announce, I report | CE139: ἀναγγέλλω | CF139: Chapter 38: Verb | CG139: ἀνήγγειλα | CH139: 312 | CI139: FALSE | CJ139: 5136 | CK139: 148 | CO139: 136 | CT139: FALSE | CU139: 5136 | CV139: 140 | CZ139: 136 | DE139: FALSE | DF139: 5136 | DG139: 250 | DH139: 136
AE140: 137 | AF140: 38 | AG140: ἀναγινώσκω | AH140: *γνω | AI140: I read | AJ140: ah-nah-giin-OSE-koe | AK140: Verb | AM140: ἀνεγίνωσκον | AN140: - | AO140: ἀνέγνων | AP140: anaginwskw aneginwskon anegnwn | AQ140: 314 | AR140: 314 | AS140: ἀναγινώσκω | AT140: TRUE | AU140: TRUE | AV140: TRUE | AW140: 38 | AX140: *γνω | AY140: I read | AZ140: ah-nah-giin-OSE-koe | BA140: Verb | BC140: ἀνεγίνωσκον | BD140: - | BE140: ἀνέγνων | BF140: 314 | BG140: 137 | BH140: 137 | BI140: 38 | BJ140: ἀναγινώσκω | BK140: *γνω | BL140: I read | BM140: ah-nah-giin-OSE-koe | BN140: Verb | BP140: ἀνεγίνωσκον | BQ140: - | BS140: ἀνέγνων | BT140: 314 | BU140: 137 | BV140: 137 | BW140: 38 | BX140: Verb | BY140: ἀναγινώσκω | BZ140: ἀνεγίνωσκον | CA140: - | CB140: *γνω | CC140: ah-nah-giin-OSE-koe | CD140: I read | CE140: ἀναγινώσκω | CF140: Index of Textbook: Verb | CG140: ἀνέγνων | CH140: 314 | CI140: FALSE | CJ140: 5137 | CK140: 149 | CO140: 137 | CT140: FALSE | CU140: 5137 | CV140: 141 | CZ140: 137 | DE140: FALSE | DF140: 5137 | DG140: 251 | DH140: 137
AE141: 138 | AF141: 38 | AG141: ἀνάγκη | AI141: necessity, pressure, distress | AJ141: ah-NANG-kay | AK141: Noun | AL141: ἡ | AP141: anagkh | AQ141: 318 | AR141: 318 | AS141: ἀνάγκη | AT141: TRUE | AU141: TRUE | AV141: TRUE | AW141: 38 | AY141: necessity, pressure, distress | AZ141: ah-NANG-kay | BA141: Noun | BB141: ἡ | BF141: 318 | BG141: 138 | BH141: 138 | BI141: 38 | BJ141: ἡ ἀνάγκη | BL141: necessity, pressure, distress | BM141: ah-NANG-kay | BN141: Noun | BO141: ἡ | BR141: ἡ | BT141: 318 | BU141: 138 | BV141: 138 | BW141: 38 | BX141: Noun | BY141: ἡ ἀνάγκη | CC141: ah-NANG-kay | CD141: necessity, pressure, distress | CE141: ἡ ἀνάγκη | CF141: Index of Textbook: Noun | CH141: 318 | CI141: FALSE | CJ141: 5138 | CK141: 150 | CO141: 138 | CT141: FALSE | CU141: 5138 | CV141: 142 | CZ141: 138 | DE141: FALSE | DF141: 5138 | DG141: 252 | DH141: 138
AE142: 139 | AF142: 38 | AG142: ἀνάγω | AI142: I lead up; (middle) I put out to sea | AJ142: Ah-NAH-go | AK142: Verb | AM142: - | AN142: - | AO142: ἀνήγαγον | AP142: anagw anhgagon | AQ142: 321 | AR142: 321 | AS142: ἀνάγω | AT142: TRUE | AU142: TRUE | AV142: TRUE | AW142: 38 | AY142: I lead up; (middle) I put out to sea | AZ142: Ah-NAH-go | BA142: Verb | BC142: - | BD142: - | BE142: ἀνήγαγον | BF142: 321 | BG142: 139 | BH142: 139 | BI142: 38 | BJ142: ἀνάγω | BL142: I lead up; (middle) I put out to sea | BM142: Ah-NAH-go | BN142: Verb | BP142: - | BQ142: - | BS142: ἀνήγαγον | BT142: 321 | BU142: 139 | BV142: 139 | BW142: 38 | BX142: Verb | BY142: ἀνάγω | BZ142: - | CA142: - | CC142: Ah-NAH-go | CD142: I lead up; (middle) I put out to sea | CE142: ἀνάγω | CF142: Index of Textbook: Verb | CG142: ἀνήγαγον | CH142: 321 | CI142: FALSE | CJ142: 5139 | CK142: 151 | CO142: 139 | CT142: FALSE | CU142: 5139 | CV142: 143 | CZ142: 139 | DE142: FALSE | DF142: 5139 | DG142: 253 | DH142: 139
AE143: 140 | AF143: 38 | AG143: ἀναιρέω | AI143: I destroy, I slay, I make an end | AJ143: ahn-eye-REH-owe | AK143: Verb | AM143: - | AN143: ἀνελω | AO143: ἀνεῖλα | AP143: anairew anelw aneila | AQ143: 337 | AR143: 337 | AS143: ἀναιρέω | AT143: TRUE | AU143: TRUE | AV143: TRUE | AW143: 38 | AY143: I destroy, I slay, I make an end | AZ143: ahn-eye-REH-owe | BA143: Verb | BC143: - | BD143: ἀνελω | BE143: ἀνεῖλα | BF143: 337 | BG143: 140 | BH143: 140 | BI143: 38 | BJ143: ἀναιρέω | BL143: I destroy, I slay, I make an end | BM143: ahn-eye-REH-owe | BN143: Verb | BP143: - | BQ143: ἀνελω | BS143: ἀνεῖλα | BT143: 337 | BU143: 140 | BV143: 140 | BW143: 38 | BX143: Verb | BY143: ἀναιρέω | BZ143: - | CA143: ἀνελω | CC143: ahn-eye-REH-owe | CD143: I destroy, I slay, I make an end | CE143: ἀναιρέω | CF143: Index of Textbook: Verb | CG143: ἀνεῖλα | CH143: 337 | CI143: FALSE | CJ143: 5140 | CK143: 152 | CO143: 140 | CT143: FALSE | CU143: 5140 | CV143: 144 | CZ143: 140 | DE143: FALSE | DF143: 5140 | DG143: 254 | DH143: 140
AE144: 141 | AF144: 38 | AG144: ἀνάκειμαι | AI144: I recline | AJ144: ah-NAH-kay-my | AK144: Verb | AM144: ἀνεκειμην | AN144: - | AO144: - | AP144: anakeimai anekeimhn | AQ144: 345 | AR144: 345 | AS144: ἀνάκειμαι | AT144: TRUE | AU144: TRUE | AV144: TRUE | AW144: 38 | AY144: I recline | AZ144: ah-NAH-kay-my | BA144: Verb | BC144: ἀνεκειμην | BD144: - | BE144: - | BF144: 345 | BG144: 141 | BH144: 141 | BI144: 38 | BJ144: ἀνάκειμαι | BL144: I recline | BM144: ah-NAH-kay-my | BN144: Verb | BO144: =IF($AV144,IF(BB144=" ","",BB144&" "),"") ->  | BP144: ἀνεκειμην | BQ144: - | BS144: - | BT144: 345 | BU144: 141 | BV144: 141 | BW144: 38 | BX144: Verb | BY144: ἀνάκειμαι | BZ144: ἀνεκειμην | CA144: - | CC144: ah-NAH-kay-my | CD144: I recline | CE144: ἀνάκειμαι | CF144: Index of Textbook: Verb | CG144: - | CH144: 345 | CI144: FALSE | CJ144: 5141 | CK144: 153 | CO144: 141 | CT144: FALSE | CU144: 5141 | CV144: 145 | CZ144: 141 | DE144: FALSE | DF144: 5141 | DG144: 255 | DH144: 141
AE145: 142 | AF145: 38 | AG145: ἀνακρίνω | AI145: I question, I examine | AJ145: ah-nah-KREE-no | AK145: Verb | AM145: - | AN145: - | AO145: ἀνεκρινα | AP145: anakrinw anekrina | AQ145: 350 | AR145: 350 | AS145: ἀνακρίνω | AT145: TRUE | AU145: TRUE | AV145: TRUE | AW145: 38 | AY145: I question, I examine | AZ145: ah-nah-KREE-no | BA145: Verb | BC145: - | BD145: - | BE145: ἀνεκρινα | BF145: 350 | BG145: 142 | BH145: 142 | BI145: 38 | BJ145: ἀνακρίνω | BL145: I question, I examine | BM145: ah-nah-KREE-no | BN145: Verb | BP145: - | BQ145: - | BS145: ἀνεκρινα | BT145: 350 | BU145: 142 | BV145: 142 | BW145: 38 | BX145: Verb | BY145: ἀνακρίνω | BZ145: - | CA145: - | CC145: ah-nah-KREE-no | CD145: I question, I examine | CE145: ἀνακρίνω | CF145: Index of Textbook: Verb | CG145: ἀνεκρινα | CH145: 350 | CI145: FALSE | CJ145: 5142 | CK145: 154 | CO145: 142 | CT145: FALSE | CU145: 5142 | CV145: 146 | CZ145: 142 | DE145: FALSE | DF145: 5142 | DG145: 256 | DH145: 142
AE146: 143 | AF146: 38 | AG146: ἀναλαμβάνω | AI146: I take up | AJ146: ahn-ah-lahm-BAHN-owe | AK146: Verb | AO146: ἀνέλαβον | AP146: analambanw anelabon | AQ146: 353 | AR146: 353 | AS146: ἀναλαμβάνω | AT146: TRUE | AU146: TRUE | AV146: TRUE | AW146: 38 | AY146: I take up | AZ146: ahn-ah-lahm-BAHN-owe | BA146: Verb | BE146: ἀνέλαβον | BF146: 353 | BG146: 143 | BH146: 143 | BI146: 38 | BJ146: ἀναλαμβάνω | BL146: I take up | BM146: ahn-ah-lahm-BAHN-owe | BN146: Verb | BS146: ἀνέλαβον | BT146: 353 | BU146: 143 | BV146: 143 | BW146: 38 | BX146: Verb | BY146: ἀναλαμβάνω | CC146: ahn-ah-lahm-BAHN-owe | CD146: I take up | CE146: ἀναλαμβάνω | CF146: Chapter 38: Verb | CG146: ἀνέλαβον | CH146: 353 | CI146: FALSE | CJ146: 5143 | CK146: 155 | CO146: 143 | CT146: FALSE | CU146: 5143 | CV146: 147 | CZ146: 143 | DE146: FALSE | DF146: 5143 | DG146: 257 | DH146: 143
AE147: 144 | AF147: 38 | AG147: Ἁνανίας | AI147: Ananias | AJ147: hah-nah-NEE-ahss | AK147: Proper Noun | AL147: ὁ | AP147: ananias | AQ147: 367 | AR147: 367 | AS147: Ἁνανίας | AT147: TRUE | AU147: TRUE | AV147: TRUE | AW147: 38 | AY147: Ananias | AZ147: hah-nah-NEE-ahss | BA147: Proper Noun | BB147: ὁ | BF147: 367 | BG147: 144 | BH147: 144 | BI147: 38 | BJ147: ὁ Ἁνανίας | BL147: Ananias | BM147: hah-nah-NEE-ahss | BN147: Proper Noun | BO147: ὁ | BR147: ὁ | BT147: 367 | BU147: 144 | BV147: 144 | BW147: 38 | BX147: Proper Noun | BY147: ὁ Ἁνανίας | CC147: hah-nah-NEE-ahss | CD147: Ananias | CE147: ὁ Ἁνανίας | CF147: Chapter 38: Proper Noun | CH147: 367 | CI147: FALSE | CJ147: 5144 | CK147: 156 | CO147: 144 | CT147: FALSE | CU147: 5144 | CV147: 148 | CZ147: 144 | DE147: FALSE | DF147: 5144 | DG147: 258 | DH147: 144
AE148: 145 | AF148: 38 | AG148: ἀναπαύω | AI148: I give rest, I refresh, I take a rest | AJ148: ah-nah-POW-owe | AK148: Verb | AN148: ἀναπαύσω | AO148: ἀνέπαυσα | AP148: anapauw anapausw anepausa | AQ148: 373 | AR148: 373 | AS148: ἀναπαύω | AT148: TRUE | AU148: TRUE | AV148: TRUE | AW148: 38 | AY148: I give rest, I refresh, I take a rest | AZ148: ah-nah-POW-owe | BA148: Verb | BD148: ἀναπαύσω | BE148: ἀνέπαυσα | BF148: 373 | BG148: 145 | BH148: 145 | BI148: 38 | BJ148: ἀναπαύω | BL148: I give rest, I refresh, I take a rest | BM148: ah-nah-POW-owe | BN148: Verb | BQ148: ἀναπαύσω | BS148: ἀνέπαυσα | BT148: 373 | BU148: 145 | BV148: 145 | BW148: 38 | BX148: Verb | BY148: ἀναπαύω | CA148: ἀναπαύσω | CC148: ah-nah-POW-owe | CD148: I give rest, I refresh, I take a rest | CE148: ἀναπαύω | CF148: Chapter 38: Verb | CG148: ἀνέπαυσα | CH148: 373 | CI148: FALSE | CJ148: 5145 | CK148: 157 | CO148: 145 | CT148: FALSE | CU148: 5145 | CV148: 149 | CZ148: 145 | DE148: FALSE | DF148: 5145 | DG148: 259 | DH148: 145
AE149: 146 | AF149: 38 | AG149: ἀναπίπτω | AI149: I lie down, I recline | AJ149: ah-nah-PIP-toe | AK149: Verb | AO149: ἀνέπεσα | AP149: anapiptw anepesa | AQ149: 377 | AR149: 377 | AS149: ἀναπίπτω | AT149: TRUE | AU149: TRUE | AV149: TRUE | AW149: 38 | AY149: I lie down, I recline | AZ149: ah-nah-PIP-toe | BA149: Verb | BE149: ἀνέπεσα | BF149: 377 | BG149: 146 | BH149: 146 | BI149: 38 | BJ149: ἀναπίπτω | BL149: I lie down, I recline | BM149: ah-nah-PIP-toe | BN149: Verb | BS149: ἀνέπεσα | BT149: 377 | BU149: 146 | BV149: 146 | BW149: 38 | BX149: Verb | BY149: ἀναπίπτω | CC149: ah-nah-PIP-toe | CD149: I lie down, I recline | CE149: ἀναπίπτω | CF149: Chapter 38: Verb | CG149: ἀνέπεσα | CH149: 377 | CI149: FALSE | CJ149: 5146 | CK149: 158 | CO149: 146 | CT149: FALSE | CU149: 5146 | CV149: 150 | CZ149: 146 | DE149: FALSE | DF149: 5146 | DG149: 260 | DH149: 146
AE150: 147 | AF150: 35 | AG150: ἀνάστασις | AH150: *ἀναστασι | AI150: resurrection | AJ150: ahn-AH-stahss-iss | AK150: Noun | AL150: ἡ | AP150: anastasis | AQ150: 386 | AR150: 386 | AS150: ἀνάστασις | AT150: TRUE | AU150: TRUE | AV150: TRUE | AW150: 35 | AX150: *ἀναστασι | AY150: resurrection | AZ150: ahn-AH-stahss-iss | BA150: Noun | BB150: ἡ | BF150: 386 | BG150: 147 | BH150: 147 | BI150: 35 | BJ150: ἡ ἀνάστασις | BK150: *ἀναστασι | BL150: resurrection | BM150: ahn-AH-stahss-iss | BN150: Noun | BO150: ἡ | BR150: ἡ | BT150: 386 | BU150: 147 | BV150: 147 | BW150: 35 | BX150: Noun | BY150: ἡ ἀνάστασις | CB150: *ἀναστασι | CC150: ahn-AH-stahss-iss | CD150: resurrection | CE150: ἡ ἀνάστασις | CF150: Chapter 35: Noun | CH150: 386 | CI150: FALSE | CJ150: 5147 | CK150: 159 | CO150: 147 | CT150: FALSE | CU150: 5147 | CV150: 151 | CZ150: 147 | DE150: FALSE | DF150: 5147 | DG150: 261 | DH150: 147
AE151: 148 | AF151: 38 | AG151: ἀναστροφή | AI151: way of life, conduct, behavior | AJ151: ah-nah-stroff-AY | AK151: Noun | AL151: ἡ | AP151: anastrofh | AQ151: 391 | AR151: 391 | AS151: ἀναστροφή | AT151: TRUE | AU151: TRUE | AV151: TRUE | AW151: 38 | AY151: way of life, conduct, behavior | AZ151: ah-nah-stroff-AY | BA151: Noun | BB151: ἡ | BF151: 391 | BG151: 148 | BH151: 148 | BI151: 38 | BJ151: ἡ ἀναστροφή | BL151: way of life, conduct, behavior | BM151: ah-nah-stroff-AY | BN151: Noun | BO151: ἡ | BR151: ἡ | BT151: 391 | BU151: 148 | BV151: 148 | BW151: 38 | BX151: Noun | BY151: ἡ ἀναστροφή | CC151: ah-nah-stroff-AY | CD151: way of life, conduct, behavior | CE151: ἡ ἀναστροφή | CF151: Chapter 38: Noun | CH151: 391 | CI151: FALSE | CJ151: 5148 | CK151: 160 | CO151: 148 | CT151: FALSE | CU151: 5148 | CV151: 152 | CZ151: 148 | DE151: FALSE | DF151: 5148 | DG151: 262 | DH151: 148
AE152: 149 | AF152: 38 | AG152: ἀνατολή | AI152: east | AJ152: ah-nah-toll-AY | AK152: Noun | AL152: ἡ | AP152: anatolh | AQ152: 395 | AR152: 395 | AS152: ἀνατολή | AT152: TRUE | AU152: TRUE | AV152: TRUE | AW152: 38 | AY152: east | AZ152: ah-nah-toll-AY | BA152: Noun | BB152: ἡ | BF152: 395 | BG152: 149 | BH152: 149 | BI152: =IF(AV152,AW152," ") -> 38 | BJ152: ἡ ἀνατολή | BK152: =IF($AV152,AX152," ") ->  | BL152: =IF($AV152,AY152," ") -> east | BM152: =IF($AV152,AZ152," ") -> ah-nah-toll-AY | BN152: =IF($AV152,BA152," ") -> Noun | BO152: ἡ | BP152: =IF($AV152,BC152," ") ->  | BQ152: =IF($AV152,BD152," ") ->  | BR152: ἡ | BT152: =IF($AV152,BF152," ") -> 395 | BU152: 149 | BV152: 149 | BW152: 38 | BX152: Noun | BY152: ἡ ἀνατολή | CC152: ah-nah-toll-AY | CD152: east | CE152: ἡ ἀνατολή | CF152: Chapter 38: Noun | CH152: 395 | CI152: FALSE | CJ152: 5149 | CK152: 161 | CO152: 149 | CT152: FALSE | CU152: 5149 | CV152: 153 | CZ152: 149 | DE152: FALSE | DF152: 5149 | DG152: 263 | DH152: 149
AE153: 150 | AF153: 38 | AG153: ἀναφέρω | AI153: I offer up, I bring up | AJ153: ah-nah-FERR-owe | AK153: Verb | AM153: ἀνεφερόμην | AO153: ἀνήνεγκα/ἀνήνεκον | AP153: anaferw aneferomhn anhnegka anhnekon | AQ153: 399 | AR153: 399 | AS153: ἀναφέρω | AT153: TRUE | AU153: TRUE | AV153: TRUE | AW153: 38 | AY153: I offer up, I bring up | AZ153: ah-nah-FERR-owe | BA153: Verb | BC153: ἀνεφερόμην | BE153: ἀνήνεγκα/ἀνήνεκον | BF153: 399 | BG153: 150 | BH153: 150 | BI153: 38 | BJ153: ἀναφέρω | BL153: I offer up, I bring up | BM153: ah-nah-FERR-owe | BN153: Verb | BP153: ἀνεφερόμην | BS153: ἀνήνεγκα/ἀνήνεκον | BT153: 399 | BU153: 150 | BV153: 150 | BW153: 38 | BX153: Verb | BY153: ἀναφέρω | BZ153: ἀνεφερόμην | CC153: ah-nah-FERR-owe | CD153: I offer up, I bring up | CE153: ἀναφέρω | CF153: Chapter 38: Verb | CG153: ἀνήνεγκα/ἀνήνεκον | CH153: 399 | CI153: FALSE | CJ153: 5150 | CK153: 162 | CO153: 150 | CT153: FALSE | CU153: 5150 | CV153: 154 | CZ153: 150 | DE153: FALSE | DF153: 5150 | DG153: 264 | DH153: 150
AE154: 151 | AF154: 38 | AG154: ἀναχωρέω | AI154: I withdraw | AJ154: ah-nahk-owe-RAY-owe | AK154: Verb | AM154: - | AN154: - | AO154: ἀνεχώρησα | AP154: anacwrew anecwrhsa | AQ154: 402 | AR154: 402 | AS154: ἀναχωρέω | AT154: TRUE | AU154: TRUE | AV154: TRUE | AW154: 38 | AY154: I withdraw | AZ154: ah-nahk-owe-RAY-owe | BA154: Verb | BC154: - | BD154: - | BE154: ἀνεχώρησα | BF154: 402 | BG154: 151 | BH154: 151 | BI154: 38 | BJ154: ἀναχωρέω | BL154: I withdraw | BM154: ah-nahk-owe-RAY-owe | BN154: Verb | BP154: - | BQ154: - | BS154: ἀνεχώρησα | BT154: 402 | BU154: 151 | BV154: 151 | BW154: 38 | BX154: Verb | BY154: ἀναχωρέω | BZ154: - | CA154: - | CC154: ah-nahk-owe-RAY-owe | CD154: I withdraw | CE154: ἀναχωρέω | CF154: Index of Textbook: Verb | CG154: ἀνεχώρησα | CH154: 402 | CI154: FALSE | CJ154: 5151 | CK154: 163 | CO154: 151 | CT154: FALSE | CU154: 5151 | CV154: 155 | CZ154: 151 | DE154: FALSE | DF154: 5151 | DG154: 265 | DH154: 151
AE155: 152 | AF155: 38 | AG155: Ἀνδρέας | AI155: Andrew | AJ155: ahn-DREH-ahss | AK155: Proper Noun | AL155: ὁ | AP155: andreas | AQ155: 406 | AR155: 406 | AS155: Ἀνδρέας | AT155: TRUE | AU155: TRUE | AV155: TRUE | AW155: 38 | AY155: Andrew | AZ155: ahn-DREH-ahss | BA155: Proper Noun | BB155: ὁ | BF155: 406 | BG155: 152 | BH155: 152 | BI155: 38 | BJ155: ὁ Ἀνδρέας | BL155: Andrew | BM155: ahn-DREH-ahss | BN155: Proper Noun | BO155: ὁ | BR155: ὁ | BT155: 406 | BU155: 152 | BV155: 152 | BW155: 38 | BX155: Proper Noun | BY155: ὁ Ἀνδρέας | CC155: ahn-DREH-ahss | CD155: Andrew | CE155: ὁ Ἀνδρέας | CF155: Chapter 38: Proper Noun | CH155: 406 | CI155: FALSE | CJ155: 5152 | CK155: 164 | CO155: 152 | CT155: FALSE | CU155: 5152 | CV155: 156 | CZ155: 152 | DE155: FALSE | DF155: 5152 | DG155: 266 | DH155: 152
AE156: 153 | AF156: 38 | AG156: ἄνεμος | AI156: wind | AJ156: AH-nemm-oss | AK156: Noun | AL156: ὁ | AP156: anemos | AQ156: 417 | AR156: 417 | AS156: ἄνεμος | AT156: TRUE | AU156: TRUE | AV156: TRUE | AW156: 38 | AY156: wind | AZ156: AH-nemm-oss | BA156: Noun | BB156: ὁ | BF156: 417 | BG156: 153 | BH156: 153 | BI156: 38 | BJ156: ὁ ἄνεμος | BL156: wind | BM156: AH-nemm-oss | BN156: Noun | BO156: ὁ | BR156: ὁ | BT156: 417 | BU156: 153 | BV156: 153 | BW156: 38 | BX156: Noun | BY156: ὁ ἄνεμος | CC156: AH-nemm-oss | CD156: wind | CE156: ὁ ἄνεμος | CF156: Chapter 38: Noun | CH156: 417 | CI156: FALSE | CJ156: 5153 | CK156: 165 | CO156: 153 | CT156: FALSE | CU156: 5153 | CV156: 157 | CZ156: 153 | DE156: FALSE | DF156: 5153 | DG156: 267 | DH156: 153
AE157: 154 | AF157: 38 | AG157: ἀνέχομαι | AI157: I endure | AJ157: ah-NECK-omm-eye | AK157: Verb | AM157: ἀνηρχόμην | AN157: ἀνέξομαι | AO157: ἀνέσχόμην | AP157: anecomai anhrcomhn anexomai anescomhn | AQ157: 430 | AR157: 430 | AS157: ἀνέχομαι | AT157: TRUE | AU157: TRUE | AV157: TRUE | AW157: 38 | AX157: 0 | AY157: I endure | AZ157: ah-NECK-omm-eye | BA157: Verb | BC157: ἀνηρχόμην | BD157: ἀνέξομαι | BE157: ἀνέσχόμην | BF157: 430 | BG157: 154 | BH157: 154 | BI157: 38 | BJ157: ἀνέχομαι | BK157: 0 | BL157: I endure | BM157: ah-NECK-omm-eye | BN157: Verb | BP157: ἀνηρχόμην | BQ157: ἀνέξομαι | BS157: ἀνέσχόμην | BT157: 430 | BU157: 154 | BV157: 154 | BW157: 38 | BX157: Verb | BY157: ἀνέχομαι | BZ157: ἀνηρχόμην | CA157: ἀνέξομαι | CB157: 0 | CC157: ah-NECK-omm-eye | CD157: I endure | CE157: ἀνέχομαι | CF157: Chapter 38: Verb | CG157: ἀνέσχόμην | CH157: 430 | CI157: FALSE | CJ157: 5154 | CK157: 166 | CO157: 154 | CT157: FALSE | CU157: 5154 | CV157: 158 | CZ157: 154 | DE157: FALSE | DF157: 5154 | DG157: 268 | DH157: 154
AE158: 155 | AF158: 11 | AG158: ἀνήρ | AH158: *ἀνδρ | AI158: husband, male, man | AJ158: ah-NAIR | AK158: Noun | AL158: ὁ | AP158: anhr | AQ158: 435 | AR158: 435 | AS158: ἀνήρ | AT158: TRUE | AU158: TRUE | AV158: TRUE | AW158: 11 | AX158: *ἀνδρ | AY158: husband, male, man | AZ158: ah-NAIR | BA158: Noun | BB158: ὁ | BF158: 435 | BG158: 155 | BH158: 155 | BI158: 11 | BJ158: ὁ ἀνήρ | BK158: *ἀνδρ | BL158: husband, male, man | BM158: ah-NAIR | BN158: Noun | BO158: ὁ | BR158: ὁ | BT158: 435 | BU158: 155 | BV158: 155 | BW158: 11 | BX158: Noun | BY158: ὁ ἀνήρ | CB158: *ἀνδρ | CC158: ah-NAIR | CD158: husband, male, man | CE158: ὁ ἀνήρ | CF158: Chapter 11: Noun | CH158: 435 | CI158: FALSE | CJ158: 5155 | CK158: 167 | CO158: 155 | CT158: FALSE | CU158: 5155 | CV158: 159 | CZ158: 155 | DE158: FALSE | DF158: 5155 | DG158: 269 | DH158: 155
AE159: 156 | AF159: 11 | AG159: ἀνδρός | AH159: *ἀνδρ | AI159: husband, male, man | AJ159: ahn-DROSS | AK159: Noun | AL159: ὁ | AP159: andros | AQ159: 435 | AR159: 435.1 | AS159: ἀνδρός | AT159: TRUE | AU159: TRUE | AV159: TRUE | AW159: 11 | AX159: *ἀνδρ | AY159: husband, male, man | AZ159: ahn-DROSS | BA159: Noun | BB159: ὁ | BF159: 435 | BG159: 156 | BH159: 156 | BI159: 11 | BJ159: ὁ ἀνδρός | BK159: *ἀνδρ | BL159: husband, male, man | BM159: ahn-DROSS | BN159: Noun | BO159: ὁ | BR159: ὁ | BT159: 435 | BU159: 156 | BV159: 156 | BW159: 11 | BX159: Noun | BY159: ὁ ἀνδρός | CB159: *ἀνδρ | CC159: ahn-DROSS | CD159: husband, male, man | CE159: ὁ ἀνδρός | CF159: Chapter 11: Noun | CH159: 435 | CI159: FALSE | CJ159: 5156 | CK159: 168 | CO159: 156 | CT159: FALSE | CU159: 5156 | CV159: 160 | CZ159: 156 | DE159: FALSE | DF159: 5156 | DG159: 270 | DH159: 156
AE160: 157 | AF160: 38 | AG160: ἀνθίστημι | AI160: I oppose | AJ160: ahnth-EE-stay-mee | AK160: Verb | AM160: ἀνθιστόμην | AN160: - | AO160: ἀντέστην | AP160: anqisthmi antesthn | AQ160: 436 | AR160: 436 | AS160: ἀνθίστημι | AT160: TRUE | AU160: TRUE | AV160: TRUE | AW160: 38 | AY160: I oppose | AZ160: ahnth-EE-stay-mee | BA160: Verb | BC160: ἀνθιστόμην | BD160: - | BE160: ἀντέστην | BF160: 436 | BG160: 157 | BH160: 157 | BI160: 38 | BJ160: ἀνθίστημι | BL160: I oppose | BM160: ahnth-EE-stay-mee | BN160: Verb | BP160: ἀνθιστόμην | BQ160: - | BS160: ἀντέστην | BT160: 436 | BU160: 157 | BV160: 157 | BW160: 38 | BX160: Verb | BY160: ἀνθίστημι | BZ160: ἀνθιστόμην | CA160: - | CC160: ahnth-EE-stay-mee | CD160: I oppose | CE160: ἀνθίστημι | CF160: Index of Textbook: Verb | CG160: ἀντέστην | CH160: 436 | CI160: FALSE | CJ160: 5157 | CK160: 169 | CO160: 157 | CT160: FALSE | CU160: 5157 | CV160: 161 | CZ160: 157 | DE160: FALSE | DF160: 5157 | DG160: 271 | DH160: 157
AE161: 158 | AF161: 04 | AG161: ἄνθρωπος | AH161: *ἀνθρωπο | AI161: man, person, mankind, human | AJ161: AHN-throw-poss | AK161: Noun | AL161: ὁ | AP161: anqrwpos | AQ161: 444 | AR161: 444 | AS161: ἄνθρωπος | AT161: TRUE | AU161: TRUE | AV161: TRUE | AW161: 04 | AX161: *ἀνθρωπο | AY161: man, person, mankind, human | AZ161: AHN-throw-poss | BA161: Noun | BB161: ὁ | BF161: 444 | BG161: 158 | BH161: 158 | BI161: 04 | BJ161: ὁ ἄνθρωπος | BK161: *ἀνθρωπο | BL161: man, person, mankind, human | BM161: AHN-throw-poss | BN161: Noun | BO161: ὁ | BR161: ὁ | BT161: 444 | BU161: 158 | BV161: 158 | BW161: 04 | BX161: Noun | BY161: ὁ ἄνθρωπος | CB161: *ἀνθρωπο | CC161: AHN-throw-poss | CD161: man, person, mankind, human | CE161: ὁ ἄνθρωπος | CF161: Chapter 04: Noun | CH161: 444 | CI161: FALSE | CJ161: 5158 | CK161: 170 | CO161: 158 | CT161: FALSE | CU161: 5158 | CV161: 162 | CZ161: 158 | DE161: FALSE | DF161: 5158 | DG161: 272 | DH161: 158
AE162: 159 | AF162: 36 | AG162: ἀνίστημι | AH162: ἀνά + *στα | AI162: I rise, I get up, I raise (another) | AJ162: ahn-ISS-tay-mee | AK162: Verb | AM162: - | AN162: ἀναστήσω | AO162: ἀνέστησα | AP162: anisthmi anasthsw anesthsa | AQ162: 450 | AR162: 450 | AS162: ἀνίστημι | AT162: TRUE | AU162: TRUE | AV162: TRUE | AW162: 36 | AX162: ἀνά + *στα | AY162: I rise, I get up, I raise (another) | AZ162: ahn-ISS-tay-mee | BA162: Verb | BC162: - | BD162: ἀναστήσω | BE162: ἀνέστησα | BF162: 450 | BG162: 159 | BH162: 159 | BI162: 36 | BJ162: ἀνίστημι | BK162: ἀνά + *στα | BL162: I rise, I get up, I raise (another) | BM162: ahn-ISS-tay-mee | BN162: Verb | BP162: - | BQ162: ἀναστήσω | BS162: ἀνέστησα | BT162: 450 | BU162: 159 | BV162: 159 | BW162: 36 | BX162: Verb | BY162: ἀνίστημι | BZ162: - | CA162: ἀναστήσω | CB162: ἀνά + *στα | CC162: ahn-ISS-tay-mee | CD162: I rise, I get up, I raise (another) | CE162: ἀνίστημι | CF162: Chapter 36: Verb | CG162: ἀνέστησα | CH162: 450 | CI162: FALSE | CJ162: 5159 | CK162: 171 | CO162: 159 | CT162: FALSE | CU162: 5159 | CV162: 163 | CZ162: 159 | DE162: FALSE | DF162: 5159 | DG162: 273 | DH162: 159
AE163: 160 | AF163: 36 | AG163: ἀνοίγω | AH163: ἀνά + *οίγ | AI163: I open | AJ163: ahn-OY-goe | AK163: Verb | AM163: - | AN163: ἀνοίξω | AO163: ἠνέῳξα | AP163: anoigw anoixw hnewxa | AQ163: 455 | AR163: 455 | AS163: ἀνοίγω | AT163: TRUE | AU163: TRUE | AV163: TRUE | AW163: 36 | AX163: ἀνά + *οίγ | AY163: I open | AZ163: ahn-OY-goe | BA163: Verb | BC163: - | BD163: ἀνοίξω | BE163: ἠνέῳξα | BF163: 455 | BG163: 160 | BH163: 160 | BI163: 36 | BJ163: ἀνοίγω | BK163: ἀνά + *οίγ | BL163: I open | BM163: ahn-OY-goe | BN163: Verb | BP163: - | BQ163: ἀνοίξω | BS163: ἠνέῳξα | BT163: 455 | BU163: 160 | BV163: 160 | BW163: 36 | BX163: Verb | BY163: ἀνοίγω | BZ163: - | CA163: ἀνοίξω | CB163: ἀνά + *οίγ | CC163: ahn-OY-goe | CD163: I open | CE163: ἀνοίγω | CF163: Chapter 36: Verb | CG163: ἠνέῳξα | CH163: 455 | CI163: FALSE | CJ163: 5160 | CK163: 172 | CO163: 160 | CT163: FALSE | CU163: 5160 | CV163: 164 | CZ163: 160 | DE163: FALSE | DF163: 5160 | DG163: 274 | DH163: 160
AE164: 161 | AF164: 38 | AG164: ἀνομία | AH164: *νομο | AI164: lawlessness | AJ164: ah-nom-EE-ah | AK164: Noun | AL164: ἡ | AP164: anomia | AQ164: 458 | AR164: 458 | AS164: ἀνομία | AT164: TRUE | AU164: TRUE | AV164: TRUE | AW164: 38 | AX164: *νομο | AY164: lawlessness | AZ164: ah-nom-EE-ah | BA164: Noun | BB164: ἡ | BF164: 458 | BG164: 161 | BH164: 161 | BI164: 38 | BJ164: ἡ ἀνομία | BK164: *νομο | BL164: lawlessness | BM164: ah-nom-EE-ah | BN164: Noun | BO164: ἡ | BR164: ἡ | BT164: 458 | BU164: 161 | BV164: 161 | BW164: 38 | BX164: Noun | BY164: ἡ ἀνομία | CB164: *νομο | CC164: ah-nom-EE-ah | CD164: lawlessness | CE164: ἡ ἀνομία | CF164: Index of Textbook: Noun | CH164: 458 | CI164: FALSE | CJ164: 5161 | CK164: 173 | CO164: 161 | CT164: FALSE | CU164: 5161 | CV164: 165 | CZ164: 161 | DE164: FALSE | DF164: 5161 | DG164: 275 | DH164: 161
AE165: 162 | AF165: 38 | AG165: ἀντί | AI165: on behalf of, for, instead of [genitive] | AJ165: ahn-TEE | AK165: Preposition | AP165: anti | AQ165: 473 | AR165: 473 | AS165: ἀντί | AT165: TRUE | AU165: TRUE | AV165: TRUE | AW165: 38 | AY165: on behalf of, for, instead of [genitive] | AZ165: ahn-TEE | BA165: Preposition | BF165: 473 | BG165: 162 | BH165: 162 | BI165: 38 | BJ165: ἀντί | BL165: on behalf of, for, instead of [genitive] | BM165: ahn-TEE | BN165: Preposition | BT165: 473 | BU165: 162 | BV165: 162 | BW165: 38 | BX165: Preposition | BY165: ἀντί | CC165: ahn-TEE | CD165: on behalf of, for, instead of [genitive] | CE165: ἀντί | CF165: Index of Textbook: Preposition | CH165: 473 | CI165: FALSE | CJ165: 5162 | CK165: 174 | CO165: 162 | CT165: FALSE | CU165: 5162 | CV165: 166 | CZ165: 162 | DE165: FALSE | DF165: 5162 | DG165: 276 | DH165: 162
AE166: 163 | AF166: 37 | AG166: ἀντιβάλλω | AI166: I debate, (we) exchange | AJ166: ahn-tee-BALL-owe | AK166: Verb | AN166: ἀντιβαλῶ | AP166: antiballw | AQ166: 474 | AR166: 474 | AS166: ἀντιβάλλω | AT166: TRUE | AU166: TRUE | AV166: TRUE | AW166: 37 | AY166: I debate, (we) exchange | AZ166: ahn-tee-BALL-owe | BA166: Verb | BD166: ἀντιβαλῶ | BF166: 474 | BG166: 163 | BH166: 163 | BI166: 37 | BJ166: ἀντιβάλλω | BL166: I debate, (we) exchange | BM166: ahn-tee-BALL-owe | BN166: Verb | BQ166: ἀντιβαλῶ | BT166: 474 | BU166: 163 | BV166: 163 | BW166: 37 | BX166: Verb | BY166: ἀντιβάλλω | CA166: ἀντιβαλῶ | CC166: ahn-tee-BALL-owe | CD166: I debate, (we) exchange | CE166: ἀντιβάλλω | CF166: Extra: Verb | CH166: 474 | CI166: FALSE | CJ166: 5163 | CK166: 175 | CO166: 163 | CT166: FALSE | CU166: 5163 | CV166: 167 | CZ166: 163 | DE166: FALSE | DF166: 5163 | DG166: 277 | DH166: 163
AE167: 164 | AF167: 38 | AG167: Ἀντιόχεια | AI167: Antioch | AJ167: ahn-tee-OCK-ay-ah | AK167: Proper Noun | AL167: ἡ | AP167: antioceia | AQ167: 490 | AR167: 490 | AS167: Ἀντιόχεια | AT167: TRUE | AU167: TRUE | AV167: TRUE | AW167: 38 | AY167: Antioch | AZ167: ahn-tee-OCK-ay-ah | BA167: Proper Noun | BB167: ἡ | BF167: 490 | BG167: 164 | BH167: 164 | BI167: 38 | BJ167: ἡ Ἀντιόχεια | BL167: Antioch | BM167: ahn-tee-OCK-ay-ah | BN167: Proper Noun | BO167: ἡ | BR167: ἡ | BT167: 490 | BU167: 164 | BV167: 164 | BW167: 38 | BX167: Proper Noun | BY167: ἡ Ἀντιόχεια | CC167: ahn-tee-OCK-ay-ah | CD167: Antioch | CE167: ἡ Ἀντιόχεια | CF167: Chapter 38: Proper Noun | CH167: 490 | CI167: FALSE | CJ167: 5164 | CK167: 176 | CO167: 164 | CT167: FALSE | CU167: 5164 | CV167: 168 | CZ167: 164 | DE167: FALSE | DF167: 5164 | DG167: 278 | DH167: 164
AE168: 165 | AF168: 38 | AG168: ἄνωθεν | AI168: from above, again | AJ168: AH-knowth-en | AK168: Adverb | AP168: anwqen | AQ168: 509 | AR168: 509 | AS168: ἄνωθεν | AT168: TRUE | AU168: TRUE | AV168: TRUE | AW168: 38 | AY168: from above, again | AZ168: AH-knowth-en | BA168: Adverb | BF168: 509 | BG168: 165 | BH168: 165 | BI168: 38 | BJ168: ἄνωθεν | BL168: from above, again | BM168: AH-knowth-en | BN168: Adverb | BT168: 509 | BU168: 165 | BV168: 165 | BW168: 38 | BX168: Adverb | BY168: ἄνωθεν | CC168: AH-knowth-en | CD168: from above, again | CE168: ἄνωθεν | CF168: Index of Textbook: Adverb | CH168: 509 | CI168: FALSE | CJ168: 5165 | CK168: 177 | CO168: 165 | CT168: FALSE | CU168: 5165 | CV168: 169 | CZ168: 165 | DE168: FALSE | DF168: 5165 | DG168: 279 | DH168: 165
AE169: 166 | AF169: 38 | AG169: ἄξιος | AI169: worthy | AJ169: AX-ee-oss | AK169: Adjective | AP169: axios | AQ169: 514 | AR169: 514 | AS169: ἄξιος | AT169: TRUE | AU169: TRUE | AV169: TRUE | AW169: 38 | AY169: worthy | AZ169: AX-ee-oss | BA169: Adjective | BF169: 514 | BG169: 166 | BH169: 166 | BI169: 38 | BJ169: ἄξιος | BL169: worthy | BM169: AX-ee-oss | BN169: Adjective | BT169: 514 | BU169: 166 | BV169: 166 | BW169: 38 | BX169: Adjective | BY169: ἄξιος | CC169: AX-ee-oss | CD169: worthy | CE169: ἄξιος | CF169: Index of Textbook: Adjective | CH169: 514 | CI169: FALSE | CJ169: 5166 | CK169: 178 | CO169: 166 | CT169: FALSE | CU169: 5166 | CV169: 170 | CZ169: 166 | DE169: FALSE | DF169: 5166 | DG169: 280 | DH169: 166
AE170: 167 | AF170: 35 | AG170: ἀπαγγέλλω | AH170: ἀπό + *ἀγγελ | AI170: I report, I tell | AJ170: ah-pahng-ELL-owe | AK170: Verb | AM170: ἀπήγγελλον | AN170: ἀπαγγελῶ | AO170: ἀπήγγειλα | AP170: apaggellw aphggellon apaggelw aphggeila | AQ170: 518 | AR170: 518 | AS170: ἀπαγγέλλω | AT170: TRUE | AU170: TRUE | AV170: TRUE | AW170: 35 | AX170: ἀπό + *ἀγγελ | AY170: I report, I tell | AZ170: ah-pahng-ELL-owe | BA170: Verb | BC170: ἀπήγγελλον | BD170: ἀπαγγελῶ | BE170: ἀπήγγειλα | BF170: 518 | BG170: 167 | BH170: 167 | BI170: 35 | BJ170: ἀπαγγέλλω | BK170: ἀπό + *ἀγγελ | BL170: I report, I tell | BM170: ah-pahng-ELL-owe | BN170: Verb | BP170: ἀπήγγελλον | BQ170: ἀπαγγελῶ | BS170: ἀπήγγειλα | BT170: 518 | BU170: 167 | BV170: 167 | BW170: 35 | BX170: Verb | BY170: ἀπαγγέλλω | BZ170: ἀπήγγελλον | CA170: ἀπαγγελῶ | CB170: ἀπό + *ἀγγελ | CC170: ah-pahng-ELL-owe | CD170: I report, I tell | CE170: ἀπαγγέλλω | CF170: Chapter 35: Verb | CG170: ἀπήγγειλα | CH170: 518 | CI170: FALSE | CJ170: 5167 | CK170: 179 | CO170: 167 | CT170: FALSE | CU170: 5167 | CV170: 171 | CZ170: 167 | DE170: FALSE | DF170: 5167 | DG170: 281 | DH170: 167
AE171: 168 | AF171: 38 | AG171: ἀπάγω | AI171: I lead away | AJ171: ah-PAH-go | AK171: Verb | AM171: - | AN171: - | AO171: ἀπήγαγον | AP171: apagw aphgagon | AQ171: 520 | AR171: 520 | AS171: ἀπάγω | AT171: TRUE | AU171: TRUE | AV171: TRUE | AW171: 38 | AY171: I lead away | AZ171: ah-PAH-go | BA171: Verb | BC171: - | BD171: - | BE171: ἀπήγαγον | BF171: 520 | BG171: 168 | BH171: 168 | BI171: 38 | BJ171: ἀπάγω | BL171: I lead away | BM171: ah-PAH-go | BN171: Verb | BP171: - | BQ171: - | BS171: ἀπήγαγον | BT171: 520 | BU171: 168 | BV171: 168 | BW171: 38 | BX171: Verb | BY171: ἀπάγω | BZ171: - | CA171: - | CC171: ah-PAH-go | CD171: I lead away | CE171: ἀπάγω | CF171: Index of Textbook: Verb | CG171: ἀπήγαγον | CH171: 520 | CI171: FALSE | CJ171: 5168 | CK171: 180 | CO171: 168 | CT171: FALSE | CU171: 5168 | CV171: 172 | CZ171: 168 | DE171: FALSE | DF171: 5168 | DG171: 282 | DH171: 168
AE172: 169 | AF172: 38 | AG172: ἄπαξ | AI172: once, once for all | AJ172: AH-pahx | AK172: Adverb | AP172: apax | AQ172: 530 | AR172: 530 | AS172: ἄπαξ | AT172: TRUE | AU172: TRUE | AV172: TRUE | AW172: 38 | AY172: once, once for all | AZ172: AH-pahx | BA172: Adverb | BF172: 530 | BG172: 169 | BH172: 169 | BI172: 38 | BJ172: ἄπαξ | BL172: once, once for all | BM172: AH-pahx | BN172: Adverb | BT172: 530 | BU172: 169 | BV172: 169 | BW172: 38 | BX172: Adverb | BY172: ἄπαξ | CC172: AH-pahx | CD172: once, once for all | CE172: ἄπαξ | CF172: Index of Textbook: Adverb | CH172: 530 | CI172: FALSE | CJ172: 5169 | CK172: 181 | CO172: 169 | CT172: FALSE | CU172: 5169 | CV172: 173 | CZ172: 169 | DE172: FALSE | DF172: 5169 | DG172: 283 | DH172: 169
AE173: 170 | AF173: 38 | AG173: ἀπαρνέομαι | AI173: I deny | AJ173: ah-parr-NEH-omm-eye | AK173: Verb | AN173: ἀπαρνήσομαι | AO173: ἀπήρνησα | AP173: aparneomai aparnhsomai aphrnhsa | AQ173: 533 | AR173: 533 | AS173: ἀπαρνέομαι | AT173: TRUE | AU173: TRUE | AV173: TRUE | AW173: 38 | AY173: I deny | AZ173: ah-parr-NEH-omm-eye | BA173: Verb | BD173: ἀπαρνήσομαι | BE173: ἀπήρνησα | BF173: 533 | BG173: 170 | BH173: 170 | BI173: 38 | BJ173: ἀπαρνέομαι | BL173: I deny | BM173: ah-parr-NEH-omm-eye | BN173: Verb | BQ173: ἀπαρνήσομαι | BS173: ἀπήρνησα | BT173: 533 | BU173: 170 | BV173: 170 | BW173: 38 | BX173: Verb | BY173: ἀπαρνέομαι | CA173: ἀπαρνήσομαι | CC173: ah-parr-NEH-omm-eye | CD173: I deny | CE173: ἀπαρνέομαι | CF173: Chapter 38: Verb | CG173: ἀπήρνησα | CH173: 533 | CI173: FALSE | CJ173: 5170 | CK173: 182 | CO173: 170 | CT173: FALSE | CU173: 5170 | CV173: 174 | CZ173: 170 | DE173: FALSE | DF173: 5170 | DG173: 284 | DH173: 170
AE174: 171 | AF174: 38 | AG174: ἄπας | AI174: all | AJ174: AH-pass | AK174: Adjective | AP174: apas | AQ174: 537a | AR174: 537.2 | AS174: ἄπας | AT174: TRUE | AU174: TRUE | AV174: TRUE | AW174: 38 | AY174: all | AZ174: AH-pass | BA174: Adjective | BF174: 537a | BG174: 171 | BH174: 171 | BI174: 38 | BJ174: ἄπας | BL174: all | BM174: AH-pass | BN174: Adjective | BT174: 537a | BU174: 171 | BV174: 171 | BW174: 38 | BX174: Adjective | BY174: ἄπας | CC174: AH-pass | CD174: all | CE174: ἄπας | CF174: Index of Textbook: Adjective | CH174: 537a | CI174: FALSE | CJ174: 5171 | CK174: 183 | CO174: 171 | CT174: FALSE | CU174: 5171 | CV174: 175 | CZ174: 171 | DE174: FALSE | DF174: 5171 | DG174: 285 | DH174: 171
AE175: 172 | AF175: 38 | AG175: ἀπειθέω | AI175: I disobey | AJ175: ah-pay-THEH-owe | AK175: Verb | AN175: ἀπελεύσομαι | AO175: ἀπῆλθον | AP175: apeiqew apeleusomai aphlqon | AQ175: 544 | AR175: 544 | AS175: ἀπειθέω | AT175: TRUE | AU175: TRUE | AV175: TRUE | AW175: 38 | AY175: I disobey | AZ175: ah-pay-THEH-owe | BA175: Verb | BD175: ἀπελεύσομαι | BE175: ἀπῆλθον | BF175: 544 | BG175: 172 | BH175: 172 | BI175: 38 | BJ175: ἀπειθέω | BL175: I disobey | BM175: ah-pay-THEH-owe | BN175: Verb | BQ175: ἀπελεύσομαι | BS175: ἀπῆλθον | BT175: 544 | BU175: 172 | BV175: 172 | BW175: 38 | BX175: Verb | BY175: ἀπειθέω | CA175: ἀπελεύσομαι | CC175: ah-pay-THEH-owe | CD175: I disobey | CE175: ἀπειθέω | CF175: Chapter 38: Verb | CG175: ἀπῆλθον | CH175: 544 | CI175: FALSE | CJ175: 5172 | CK175: 184 | CO175: 172 | CT175: FALSE | CU175: 5172 | CV175: 176 | CZ175: 172 | DE175: FALSE | DF175: 5172 | DG175: 286 | DH175: 172
AE176: 173 | AF176: 23 | AG176: ἀπέρχομαι | AH176: *ἀπό + *ἐρχ/*ἐλευθ | AI176: I depart | AJ176: ah-PERKS-owe-my | AK176: Verb | AM176: - | AN176: ἀπελεύσομαι | AO176: ἀπῆλθον | AP176: apercomai apeleusomai aphlqon | AQ176: 565 | AR176: 565 | AS176: ἀπέρχομαι | AT176: TRUE | AU176: TRUE | AV176: TRUE | AW176: 23 | AX176: *ἀπό + *ἐρχ/*ἐλευθ | AY176: I depart | AZ176: ah-PERKS-owe-my | BA176: Verb | BC176: - | BD176: ἀπελεύσομαι | BE176: ἀπῆλθον | BF176: 565 | BG176: 173 | BH176: 173 | BI176: 23 | BJ176: ἀπέρχομαι | BK176: *ἀπό + *ἐρχ/*ἐλευθ | BL176: I depart | BM176: ah-PERKS-owe-my | BN176: Verb | BP176: - | BQ176: ἀπελεύσομαι | BS176: ἀπῆλθον | BT176: 565 | BU176: 173 | BV176: 173 | BW176: 23 | BX176: Verb | BY176: ἀπέρχομαι | BZ176: - | CA176: ἀπελεύσομαι | CB176: *ἀπό + *ἐρχ/*ἐλευθ | CC176: ah-PERKS-owe-my | CD176: I depart | CE176: ἀπέρχομαι | CF176: Chapter 23: Verb | CG176: ἀπῆλθον | CH176: 565 | CI176: FALSE | CJ176: 5173 | CK176: 185 | CO176: 173 | CT176: FALSE | CU176: 5173 | CV176: 177 | CZ176: 173 | DE176: FALSE | DF176: 5173 | DG176: 287 | DH176: 173
AE177: 174 | AF177: 38 | AG177: ἀπέχω | AI177: I receive in full; I am distant; I abstain | AJ177: ah-PEKH-owe | AK177: Verb | AM177: ἀπεῖχον | AP177: apecw apeicon | AQ177: 568 | AR177: 568 | AS177: ἀπέχω | AT177: TRUE | AU177: TRUE | AV177: TRUE | AW177: 38 | AY177: I receive in full; I am distant; I abstain | AZ177: ah-PEKH-owe | BA177: Verb | BC177: ἀπεῖχον | BF177: 568 | BG177: 174 | BH177: 174 | BI177: 38 | BJ177: ἀπέχω | BL177: I receive in full; I am distant; I abstain | BM177: ah-PEKH-owe | BN177: Verb | BP177: ἀπεῖχον | BT177: 568 | BU177: 174 | BV177: 174 | BW177: 38 | BX177: Verb | BY177: ἀπέχω | BZ177: ἀπεῖχον | CC177: ah-PEKH-owe | CD177: I receive in full; I am distant; I abstain | CE177: ἀπέχω | CF177: Chapter 38: Verb | CH177: 568 | CI177: FALSE | CJ177: 5174 | CK177: 186 | CO177: 174 | CT177: FALSE | CU177: 5174 | CV177: 178 | CZ177: 174 | DE177: FALSE | DF177: 5174 | DG177: 288 | DH177: 174
AE178: 175 | AF178: 38 | AG178: ἀπιστία | AH178: *πιστι | AI178: unbelief | AJ178: ah-piss-TEE-ah | AK178: Noun | AL178: ἡ | AP178: apistia | AQ178: 570 | AR178: 570 | AS178: ἀπιστία | AT178: TRUE | AU178: TRUE | AV178: TRUE | AW178: 38 | AX178: *πιστι | AY178: unbelief | AZ178: ah-piss-TEE-ah | BA178: Noun | BB178: ἡ | BF178: 570 | BG178: 175 | BH178: 175 | BI178: 38 | BJ178: ἡ ἀπιστία | BK178: *πιστι | BL178: unbelief | BM178: ah-piss-TEE-ah | BN178: Noun | BO178: ἡ | BR178: ἡ | BT178: 570 | BU178: 175 | BV178: 175 | BW178: 38 | BX178: Noun | BY178: ἡ ἀπιστία | CB178: *πιστι | CC178: ah-piss-TEE-ah | CD178: unbelief | CE178: ἡ ἀπιστία | CF178: Chapter 38: Noun | CH178: 570 | CI178: FALSE | CJ178: 5175 | CK178: 187 | CO178: 175 | CT178: FALSE | CU178: 5175 | CV178: 179 | CZ178: 175 | DE178: FALSE | DF178: 5175 | DG178: 289 | DH178: 175
AE179: 176 | AF179: 38 | AG179: ἄπιστος | AH179: *πιστο | AI179: unbelieving | AJ179: AH-piss-toss | AK179: Adjective | AP179: apistos | AQ179: 571 | AR179: 571 | AS179: ἄπιστος | AT179: TRUE | AU179: TRUE | AV179: TRUE | AW179: 38 | AX179: *πιστο | AY179: unbelieving | AZ179: AH-piss-toss | BA179: Adjective | BF179: 571 | BG179: 176 | BH179: 176 | BI179: 38 | BJ179: ἄπιστος | BK179: *πιστο | BL179: unbelieving | BM179: AH-piss-toss | BN179: Adjective | BT179: 571 | BU179: 176 | BV179: 176 | BW179: 38 | BX179: Adjective | BY179: ἄπιστος | CB179: *πιστο | CC179: AH-piss-toss | CD179: unbelieving | CE179: ἄπιστος | CF179: Chapter 38: Adjective | CH179: 571 | CI179: FALSE | CJ179: 5176 | CK179: 188 | CO179: 176 | CT179: FALSE | CU179: 5176 | CV179: 180 | CZ179: 176 | DE179: FALSE | DF179: 5176 | DG179: 290 | DH179: 176
AE180: 177 | AF180: 08 | AG180: ἀπό (ἀπʼ, ἀφʼ) [genitive] | AI180: (away) from [genitive] | AJ180: ah-POE | AK180: Preposition | AP180: apo | AQ180: 575 | AR180: 575 | AS180: ἀπό (ἀπʼ, ἀφʼ) [genitive] | AT180: TRUE | AU180: TRUE | AV180: TRUE | AW180: 08 | AY180: (away) from [genitive] | AZ180: ah-POE | BA180: Preposition | BF180: 575 | BG180: 177 | BH180: 177 | BI180: 08 | BJ180: ἀπό (ἀπʼ, ἀφʼ) [genitive] | BL180: (away) from [genitive] | BM180: ah-POE | BN180: Preposition | BT180: 575 | BU180: 177 | BV180: 177 | BW180: 08 | BX180: Preposition | BY180: ἀπό (ἀπʼ, ἀφʼ) [genitive] | CC180: ah-POE | CD180: (away) from [genitive] | CE180: ἀπό (ἀπʼ, ἀφʼ) [genitive] | CF180: Chapter 08: Preposition | CH180: 575 | CI180: FALSE | CJ180: 5177 | CK180: 189 | CO180: 177 | CT180: FALSE | CU180: 5177 | CV180: 181 | CZ180: 177 | DE180: FALSE | DF180: 5177 | DG180: 291 | DH180: 177
AE181: 178 | AF181: 38 | AG181: ἀποδίδωμι | AI181: I pay, I recompense; [middle]: I sell | AJ181: ah-pod-ID-owe-mee | AK181: Verb | AM181: ἀπεδίδουν | AN181: ἀποδώσω | AO181: ἀπέδωκα | AP181: apodidwmi apedidoun apodwsw apedwka | AQ181: 591 | AR181: 591 | AS181: ἀποδίδωμι | AT181: TRUE | AU181: TRUE | AV181: TRUE | AW181: 38 | AY181: I pay, I recompense; [middle]: I sell | AZ181: ah-pod-ID-owe-mee | BA181: Verb | BC181: ἀπεδίδουν | BD181: ἀποδώσω | BE181: ἀπέδωκα | BF181: 591 | BG181: 178 | BH181: 178 | BI181: 38 | BJ181: ἀποδίδωμι | BL181: I pay, I recompense; [middle]: I sell | BM181: ah-pod-ID-owe-mee | BN181: Verb | BP181: ἀπεδίδουν | BQ181: ἀποδώσω | BS181: ἀπέδωκα | BT181: 591 | BU181: 178 | BV181: 178 | BW181: 38 | BX181: Verb | BY181: ἀποδίδωμι | BZ181: ἀπεδίδουν | CA181: ἀποδώσω | CC181: ah-pod-ID-owe-mee | CD181: I pay, I recompense; [middle]: I sell | CE181: ἀποδίδωμι | CF181: Index of Textbook: Verb | CG181: ἀπέδωκα | CH181: 591 | CI181: TRUE | CJ181: 178 | CK181: 2 | CL181: ἀποδίδωμι | CM181: I pay, I recompense; [middle]: I sell | CN181: [Chap. 38] | CO181: 178 | CT181: FALSE | CU181: 5178 | CV181: 182 | CZ181: 178 | DE181: FALSE | DF181: 5178 | DG181: 292 | DH181: 178
AE182: 179 | AF182: 22 | AG182: ἀποθνῄσκω | AH182: *ἀπό + *θαν | AI182: I die, I am about to die, I am freed from | AJ182: ah-poth-NAY-skoe | AK182: Verb | AM182: ἀπέθνῃσκον | AN182: ἀποθανοῦμαι | AO182: ἀπέθανον | AP182: apoqnhskw apeqnhskon apoqanoumai apeqanon | AQ182: 599 | AR182: 599 | AS182: ἀποθνῄσκω | AT182: TRUE | AU182: TRUE | AV182: TRUE | AW182: 22 | AX182: *ἀπό + *θαν | AY182: I die, I am about to die, I am freed from | AZ182: ah-poth-NAY-skoe | BA182: Verb | BC182: ἀπέθνῃσκον | BD182: ἀποθανοῦμαι | BE182: ἀπέθανον | BF182: 599 | BG182: 179 | BH182: 179 | BI182: 22 | BJ182: ἀποθνῄσκω | BK182: *ἀπό + *θαν | BL182: I die, I am about to die, I am freed from | BM182: ah-poth-NAY-skoe | BN182: Verb | BP182: ἀπέθνῃσκον | BQ182: ἀποθανοῦμαι | BS182: ἀπέθανον | BT182: 599 | BU182: 179 | BV182: 179 | BW182: 22 | BX182: Verb | BY182: ἀποθνῄσκω | BZ182: ἀπέθνῃσκον | CA182: ἀποθανοῦμαι | CB182: *ἀπό + *θαν | CC182: ah-poth-NAY-skoe | CD182: I die, I am about to die, I am freed from | CE182: ἀποθνῄσκω | CF182: Chapter 22: Verb | CG182: ἀπέθανον | CH182: 599 | CI182: FALSE | CJ182: 5179 | CK182: 190 | CO182: 179 | CT182: FALSE | CU182: 5179 | CV182: 183 | CZ182: 179 | DE182: FALSE | DF182: 5179 | DG182: 293 | DH182: 179
AE183: 180 | AF183: 37 | AG183: ἀποκαθιστάνω/ἀποκαθίστημι | AI183: I restore | AJ183: ah-pok-ath-iss-TAHN-owe | AK183: Verb | AN183: ἀποκαταστήσω | AO183: ἀπεκατέστην | AP183: apokaqistanw apokaqisthmi apokatasthsw apekatesthn | AQ183: 600 | AR183: 600 | AS183: ἀποκαθιστάνω/ἀποκαθίστημι | AT183: TRUE | AU183: TRUE | AV183: TRUE | AW183: 37 | AY183: I restore | AZ183: ah-pok-ath-iss-TAHN-owe | BA183: Verb | BD183: ἀποκαταστήσω | BE183: ἀπεκατέστην | BF183: 600 | BG183: 180 | BH183: 180 | BI183: 37 | BJ183: ἀποκαθιστάνω/ἀποκαθίστημι | BL183: I restore | BM183: ah-pok-ath-iss-TAHN-owe | BN183: Verb | BQ183: ἀποκαταστήσω | BS183: ἀπεκατέστην | BT183: 600 | BU183: 180 | BV183: 180 | BW183: 37 | BX183: Verb | BY183: ἀποκαθιστάνω/ἀποκαθίστημι | CA183: ἀποκαταστήσω | CC183: ah-pok-ath-iss-TAHN-owe | CD183: I restore | CE183: ἀποκαθιστάνω/ἀποκαθίστημι | CF183: Extra: Verb | CG183: ἀπεκατέστην | CH183: 600 | CI183: FALSE | CJ183: 5180 | CK183: 191 | CO183: 180 | CT183: FALSE | CU183: 5180 | CV183: 184 | CZ183: 180 | DE183: FALSE | DF183: 5180 | DG183: 294 | DH183: 180
AE184: 181 | AF184: 38 | AG184: ἀποκαλύπτω | AI184: I reveal | AJ184: ah-pok-ah-LOOP-toe | AK184: Verb | AM184: - | AN184: ἀποκαλύψω | AO184: ἀπέκάλυψα | AP184: apokaluptw apokaluyw apekaluya | AQ184: 601 | AR184: 601 | AS184: ἀποκαλύπτω | AT184: TRUE | AU184: TRUE | AV184: TRUE | AW184: 38 | AY184: I reveal | AZ184: ah-pok-ah-LOOP-toe | BA184: Verb | BC184: - | BD184: ἀποκαλύψω | BE184: ἀπέκάλυψα | BF184: 601 | BG184: 181 | BH184: 181 | BI184: 38 | BJ184: ἀποκαλύπτω | BL184: I reveal | BM184: ah-pok-ah-LOOP-toe | BN184: Verb | BP184: - | BQ184: ἀποκαλύψω | BS184: ἀπέκάλυψα | BT184: 601 | BU184: 181 | BV184: 181 | BW184: 38 | BX184: Verb | BY184: ἀποκαλύπτω | BZ184: - | CA184: ἀποκαλύψω | CC184: ah-pok-ah-LOOP-toe | CD184: I reveal | CE184: ἀποκαλύπτω | CF184: Chapter 38: Verb | CG184: ἀπέκάλυψα | CH184: 601 | CI184: FALSE | CJ184: 5181 | CK184: 192 | CO184: 181 | CT184: FALSE | CU184: 5181 | CV184: 185 | CZ184: 181 | DE184: FALSE | DF184: 5181 | DG184: 295 | DH184: 181
AE185: 182 | AF185: 38 | AG185: ἀποκάλυψις | AI185: revelation | AJ185: ah-pock-AH-loop-sis | AK185: Noun | AL185: ἡ | AP185: apokaluyis | AQ185: 602 | AR185: 602 | AS185: ἀποκάλυψις | AT185: TRUE | AU185: TRUE | AV185: TRUE | AW185: 38 | AY185: revelation | AZ185: ah-pock-AH-loop-sis | BA185: Noun | BB185: ἡ | BF185: 602 | BG185: 182 | BH185: 182 | BI185: 38 | BJ185: ἡ ἀποκάλυψις | BL185: revelation | BM185: ah-pock-AH-loop-sis | BN185: Noun | BO185: ἡ | BR185: ἡ | BT185: 602 | BU185: 182 | BV185: 182 | BW185: 38 | BX185: Noun | BY185: ἡ ἀποκάλυψις | CC185: ah-pock-AH-loop-sis | CD185: revelation | CE185: ἡ ἀποκάλυψις | CF185: Chapter 38: Noun | CH185: 602 | CI185: FALSE | CJ185: 5182 | CK185: 193 | CO185: 182 | CT185: FALSE | CU185: 5182 | CV185: 186 | CZ185: 182 | DE185: FALSE | DF185: 5182 | DG185: 296 | DH185: 182
AE186: 183 | AF186: 18 | AG186: ἀποκρίνομαι | AH186: *ἀπο + *κριν | AI186: I answer | AJ186: ah-pok-RIN-om-eye | AK186: Verb | AM186: - | AN186: ἀπεκρινάμην | AO186: ἀπεκρινάμην | AP186: apokrinomai apekrinamhn apekrinamhn | AQ186: 611 | AR186: 611 | AS186: ἀποκρίνομαι | AT186: TRUE | AU186: TRUE | AV186: TRUE | AW186: 18 | AX186: *ἀπο + *κριν | AY186: I answer | AZ186: ah-pok-RIN-om-eye | BA186: Verb | BC186: - | BD186: ἀπεκρινάμην | BE186: ἀπεκρινάμην | BF186: 611 | BG186: 183 | BH186: 183 | BI186: 18 | BJ186: ἀποκρίνομαι | BK186: *ἀπο + *κριν | BL186: I answer | BM186: ah-pok-RIN-om-eye | BN186: Verb | BP186: - | BQ186: ἀπεκρινάμην | BS186: ἀπεκρινάμην | BT186: 611 | BU186: 183 | BV186: 183 | BW186: 18 | BX186: Verb | BY186: ἀποκρίνομαι | BZ186: - | CA186: ἀπεκρινάμην | CB186: *ἀπο + *κριν | CC186: ah-pok-RIN-om-eye | CD186: I answer | CE186: ἀποκρίνομαι | CF186: Chapter 18: Verb | CG186: ἀπεκρινάμην | CH186: 611 | CI186: FALSE | CJ186: 5183 | CK186: 194 | CO186: 183 | CT186: FALSE | CU186: 5183 | CV186: 187 | CZ186: 183 | DE186: FALSE | DF186: 5183 | DG186: 297 | DH186: 183
AE187: 184 | AF187: 09 | AG187: ἀπεκρίθη | AI187: he/she/it answered | AJ187: ah-pek-RITH-ay | AK187: Verb | AM187: - | AN187: - | AO187: see ἀποκρίνομαι | AP187: apekriqh apokrinw | AQ187: 611 | AR187: 611.1 | AS187: ἀπεκρίθη | AT187: TRUE | AU187: TRUE | AV187: TRUE | AW187: 09 | AY187: he/she/it answered | AZ187: ah-pek-RITH-ay | BA187: Verb | BC187: - | BD187: - | BE187: see ἀποκρίνομαι | BF187: 611 | BG187: 184 | BH187: 184 | BI187: 09 | BJ187: ἀπεκρίθη | BL187: he/she/it answered | BM187: ah-pek-RITH-ay | BN187: Verb | BP187: - | BQ187: - | BS187: see ἀποκρίνομαι | BT187: 611 | BU187: 184 | BV187: 184 | BW187: 09 | BX187: Verb | BY187: ἀπεκρίθη | BZ187: - | CA187: - | CC187: ah-pek-RITH-ay | CD187: he/she/it answered | CE187: ἀπεκρίθη | CF187: Chapter 09: Verb | CG187: see ἀποκρίνομαι | CH187: 611 | CI187: FALSE | CJ187: 5184 | CK187: 195 | CO187: 184 | CT187: FALSE | CU187: 5184 | CV187: 188 | CZ187: 184 | DE187: FALSE | DF187: 5184 | DG187: 298 | DH187: 184
AE188: 185 | AF188: 20 | AG188: ἀποκτείνω | AH188: *ἀπό + *κτεν | AI188: I kill | AJ188: ah-pok-TAY-noe | AK188: Verb | AM188: - | AN188: ἀποκτενῶ | AO188: ἀπέκτεινα | AP188: apokteinw apoktenw apekteina | AQ188: 615 | AR188: 615 | AS188: ἀποκτείνω | AT188: TRUE | AU188: TRUE | AV188: TRUE | AW188: 20 | AX188: *ἀπό + *κτεν | AY188: I kill | AZ188: ah-pok-TAY-noe | BA188: Verb | BC188: - | BD188: ἀποκτενῶ | BE188: ἀπέκτεινα | BF188: 615 | BG188: 185 | BH188: 185 | BI188: 20 | BJ188: ἀποκτείνω | BK188: *ἀπό + *κτεν | BL188: I kill | BM188: ah-pok-TAY-noe | BN188: Verb | BP188: - | BQ188: ἀποκτενῶ | BS188: ἀπέκτεινα | BT188: 615 | BU188: 185 | BV188: 185 | BW188: 20 | BX188: Verb | BY188: ἀποκτείνω | BZ188: - | CA188: ἀποκτενῶ | CB188: *ἀπό + *κτεν | CC188: ah-pok-TAY-noe | CD188: I kill | CE188: ἀποκτείνω | CF188: Chapter 20: Verb | CG188: ἀπέκτεινα | CH188: 615 | CI188: FALSE | CJ188: 5185 | CK188: 196 | CO188: 185 | CT188: FALSE | CU188: 5185 | CV188: 189 | CZ188: 185 | DE188: FALSE | DF188: 5185 | DG188: 299 | DH188: 185
AE189: 186 | AF189: 38 | AG189: ἀπολαμβάνω | AI189: I receive | AJ189: ah-poll-ahm-BAHN-owe | AK189: Verb | AM189: - | AN189: ἀπολήμψομαι | AO189: ἀπέλαβον | AP189: apolambanw apolhmyomai apelabon | AQ189: 618 | AR189: 618 | AS189: ἀπολαμβάνω | AT189: TRUE | AU189: TRUE | AV189: TRUE | AW189: 38 | AY189: I receive | AZ189: ah-poll-ahm-BAHN-owe | BA189: Verb | BC189: - | BD189: ἀπολήμψομαι | BE189: ἀπέλαβον | BF189: 618 | BG189: 186 | BH189: 186 | BI189: 38 | BJ189: ἀπολαμβάνω | BL189: I receive | BM189: ah-poll-ahm-BAHN-owe | BN189: Verb | BP189: - | BQ189: ἀπολήμψομαι | BS189: ἀπέλαβον | BT189: 618 | BU189: 186 | BV189: 186 | BW189: 38 | BX189: Verb | BY189: ἀπολαμβάνω | BZ189: - | CA189: ἀπολήμψομαι | CC189: ah-poll-ahm-BAHN-owe | CD189: I receive | CE189: ἀπολαμβάνω | CF189: Index of Textbook: Verb | CG189: ἀπέλαβον | CH189: 618 | CI189: FALSE | CJ189: 5186 | CK189: 197 | CO189: 186 | CT189: FALSE | CU189: 5186 | CV189: 190 | CZ189: 186 | DE189: FALSE | DF189: 5186 | DG189: 300 | DH189: 186
AE190: 187 | AF190: 33 | AG190: ἀπόλλυμι [active] | AH190: ἀπό + *όλ | AI190: I destroy, I kill | AJ190: app-OLL-oo-mee | AK190: Verb | AM190: ἀπώλλυον | AN190: ἀπολέσω | AO190: ἀπώλεσα | AP190: apollumi apwlluov apolesw apwlesa | AQ190: 622 | AR190: 622 | AS190: ἀπόλλυμι [active] | AT190: TRUE | AU190: TRUE | AV190: TRUE | AW190: 33 | AX190: ἀπό + *όλ | AY190: I destroy, I kill | AZ190: app-OLL-oo-mee | BA190: Verb | BC190: ἀπώλλυον | BD190: ἀπολέσω | BE190: ἀπώλεσα | BF190: 622 | BG190: 187 | BH190: 187 | BI190: 33 | BJ190: ἀπόλλυμι [active] | BK190: ἀπό + *όλ | BL190: I destroy, I kill | BM190: app-OLL-oo-mee | BN190: Verb | BP190: ἀπώλλυον | BQ190: ἀπολέσω | BS190: ἀπώλεσα | BT190: 622 | BU190: 187 | BV190: 187 | BW190: 33 | BX190: Verb | BY190: ἀπόλλυμι [active] | BZ190: ἀπώλλυον | CA190: ἀπολέσω | CB190: ἀπό + *όλ | CC190: app-OLL-oo-mee | CD190: I destroy, I kill | CE190: ἀπόλλυμι [active] | CF190: Chapter 33: Verb | CG190: ἀπώλεσα | CH190: 622 | CI190: FALSE | CJ190: 5187 | CK190: 198 | CO190: 187 | CT190: FALSE | CU190: 5187 | CV190: 191 | CZ190: 187 | DE190: FALSE | DF190: 5187 | DG190: 301 | DH190: 187
AE191: 188 | AF191: 33 | AG191: ἀπόλλυμι [middle] | AH191: ἀπό + *όλ | AI191: I perish, I die | AJ191: app-OLL-oo-mee | AK191: Verb | AM191: ἀπώλλυον | AN191: ἀπολέσω | AO191: ἀπώλεσα | AP191: apollumi apwlluon apolesw apwlesa | AQ191: 622 | AR191: 622.1 | AS191: ἀπόλλυμι [middle] | AT191: TRUE | AU191: TRUE | AV191: TRUE | AW191: 33 | AX191: ἀπό + *όλ | AY191: I perish, I die | AZ191: app-OLL-oo-mee | BA191: Verb | BC191: ἀπώλλυον | BD191: ἀπολέσω | BE191: ἀπώλεσα | BF191: 622 | BG191: 188 | BH191: 188 | BI191: 33 | BJ191: ἀπόλλυμι [middle] | BK191: ἀπό + *όλ | BL191: I perish, I die | BM191: app-OLL-oo-mee | BN191: Verb | BP191: ἀπώλλυον | BQ191: ἀπολέσω | BS191: ἀπώλεσα | BT191: 622 | BU191: 188 | BV191: 188 | BW191: 33 | BX191: Verb | BY191: ἀπόλλυμι [middle] | BZ191: ἀπώλλυον | CA191: ἀπολέσω | CB191: ἀπό + *όλ | CC191: app-OLL-oo-mee | CD191: I perish, I die | CE191: ἀπόλλυμι [middle] | CF191: Chapter 33: Verb | CG191: ἀπώλεσα | CH191: 622 | CI191: FALSE | CJ191: 5188 | CK191: 199 | CO191: 188 | CT191: FALSE | CU191: 5188 | CV191: 192 | CZ191: 188 | DE191: FALSE | DF191: 5188 | DG191: 302 | DH191: 188
AE192: 189 | AF192: 38 | AG192: Ἀπολλῶς | AI192: Apollos | AJ192: ah-poll-OSE | AK192: Proper Noun | AL192: ὁ | AP192: apollws | AQ192: 625 | AR192: 625 | AS192: Ἀπολλῶς | AT192: TRUE | AU192: TRUE | AV192: TRUE | AW192: 38 | AY192: Apollos | AZ192: ah-poll-OSE | BA192: Proper Noun | BB192: ὁ | BF192: 625 | BG192: 189 | BH192: 189 | BI192: 38 | BJ192: ὁ Ἀπολλῶς | BL192: Apollos | BM192: ah-poll-OSE | BN192: Proper Noun | BO192: ὁ | BR192: ὁ | BT192: 625 | BU192: 189 | BV192: 189 | BW192: 38 | BX192: Proper Noun | BY192: ὁ Ἀπολλῶς | CC192: ah-poll-OSE | CD192: Apollos | CE192: ὁ Ἀπολλῶς | CF192: Chapter 38: Proper Noun | CH192: 625 | CI192: FALSE | CJ192: 5189 | CK192: 200 | CO192: 189 | CT192: FALSE | CU192: 5189 | CV192: 193 | CZ192: 189 | DE192: FALSE | DF192: 5189 | DG192: 303 | DH192: 189
AE193: 190 | AF193: 38 | AG193: ἀπολογέομαι | AI193: I defend myself (with speech) | AJ193: ah-poll-ogg-EH-omm-eye | AK193: Verb | AM193: ἀπελογούμην | AN193: ἀπολογήσω | AO193: ἀπελογοησάμην | AP193: apologeomai apelogoumhn apologhsw apelogohsamhn | AQ193: 626 | AR193: 626 | AS193: ἀπολογέομαι | AT193: TRUE | AU193: TRUE | AV193: TRUE | AW193: 38 | AY193: I defend myself (with speech) | AZ193: ah-poll-ogg-EH-omm-eye | BA193: Verb | BC193: ἀπελογούμην | BD193: ἀπολογήσω | BE193: ἀπελογοησάμην | BF193: 626 | BG193: 190 | BH193: 190 | BI193: 38 | BJ193: ἀπολογέομαι | BL193: I defend myself (with speech) | BM193: ah-poll-ogg-EH-omm-eye | BN193: Verb | BP193: ἀπελογούμην | BQ193: ἀπολογήσω | BS193: ἀπελογοησάμην | BT193: 626 | BU193: 190 | BV193: 190 | BW193: 38 | BX193: Verb | BY193: ἀπολογέομαι | BZ193: ἀπελογούμην | CA193: ἀπολογήσω | CC193: ah-poll-ogg-EH-omm-eye | CD193: I defend myself (with speech) | CE193: ἀπολογέομαι | CF193: Chapter 38: Verb | CG193: ἀπελογοησάμην | CH193: 626 | CI193: FALSE | CJ193: 5190 | CK193: 201 | CO193: 190 | CT193: FALSE | CU193: 5190 | CV193: 194 | CZ193: 190 | DE193: FALSE | DF193: 5190 | DG193: 304 | DH193: 190
AE194: 191 | AF194: 37 | AG194: ἀπολογία | AI194: defense, answer | AJ194: ah-poll-ogg-EE-ah | AK194: Noun | AL194: ἡ | AP194: apologia | AQ194: 627 | AR194: 627 | AS194: ἀπολογία | AT194: TRUE | AU194: TRUE | AV194: TRUE | AW194: 37 | AY194: defense, answer | AZ194: ah-poll-ogg-EE-ah | BA194: Noun | BB194: ἡ | BF194: 627 | BG194: 191 | BH194: 191 | BI194: 37 | BJ194: ἡ ἀπολογία | BL194: defense, answer | BM194: ah-poll-ogg-EE-ah | BN194: Noun | BO194: ἡ | BR194: ἡ | BT194: 627 | BU194: 191 | BV194: 191 | BW194: 37 | BX194: Noun | BY194: ἡ ἀπολογία | CC194: ah-poll-ogg-EE-ah | CD194: defense, answer | CE194: ἡ ἀπολογία | CF194: Extra: Noun | CH194: 627 | CI194: FALSE | CJ194: 5191 | CK194: 202 | CO194: 191 | CT194: FALSE | CU194: 5191 | CV194: 195 | CZ194: 191 | DE194: FALSE | DF194: 5191 | DG194: 305 | DH194: 191
AE195: 192 | AF195: 38 | AG195: ἀπολύτρωσις | AI195: redemption | AJ195: ah-poll-OOH-trowe-sis | AK195: Noun | AL195: ἡ | AP195: apolutrwsis | AQ195: 629 | AR195: 629 | AS195: ἀπολύτρωσις | AT195: TRUE | AU195: TRUE | AV195: TRUE | AW195: 38 | AX195: 0 | AY195: redemption | AZ195: ah-poll-OOH-trowe-sis | BA195: Noun | BB195: ἡ | BF195: 629 | BG195: 192 | BH195: 192 | BI195: 38 | BJ195: ἡ ἀπολύτρωσις | BK195: 0 | BL195: redemption | BM195: ah-poll-OOH-trowe-sis | BN195: Noun | BO195: ἡ | BR195: ἡ | BT195: 629 | BU195: 192 | BV195: 192 | BW195: 38 | BX195: Noun | BY195: ἡ ἀπολύτρωσις | CB195: 0 | CC195: ah-poll-OOH-trowe-sis | CD195: redemption | CE195: ἡ ἀπολύτρωσις | CF195: Chapter 38: Noun | CH195: 629 | CI195: FALSE | CJ195: 5192 | CK195: 203 | CO195: 192 | CT195: FALSE | CU195: 5192 | CV195: 196 | CZ195: 192 | DE195: FALSE | DF195: 5192 | DG195: 306 | DH195: 192
AE196: 193 | AF196: 33 | AG196: ἀπολύω | AH196: ἀπό + *λυ | AI196: I release, I set free | AJ196: app-oll-OOH-owe | AK196: Verb | AM196: ἀπέλυον | AN196: ἀπολύσω | AO196: ἀπέλυσα | AP196: apoluw apeluon apolusw apelusa | AQ196: 630 | AR196: 630 | AS196: ἀπολύω | AT196: =IF(ISERR(FIND(AF196,$Y$22,1)),FALSE,TRUE) -> TRUE | AU196: TRUE | AV196: TRUE | AW196: 33 | AX196: ἀπό + *λυ | AY196: I release, I set free | AZ196: app-oll-OOH-owe | BA196: Verb | BC196: ἀπέλυον | BD196: ἀπολύσω | BE196: ἀπέλυσα | BF196: 630 | BG196: =IF(AV196,AE196,AE196+5000) -> 193 | BH196: =RANK(BG196,BG$4:BG$2003,1) -> 193 | BI196: 33 | BJ196: =IF($AV196,BO196&AG196," ") -> ἀπολύω | BK196: ἀπό + *λυ | BL196: I release, I set free | BM196: app-oll-OOH-owe | BN196: Verb | BP196: ἀπέλυον | BQ196: ἀπολύσω | BS196: ἀπέλυσα | BT196: 630 | BU196: 193 | BV196: =IF(BU196<=BJ$2,MATCH(BU196,BH$4:BH$2003,0),"") -> 193 | BW196: =VLOOKUP($BU196,BH$4:BQ$2003,2,0) -> 33 | BX196: =VLOOKUP($BU196,BH$4:BQ$2003,7,0) -> Verb | BY196: =VLOOKUP($BU196,BH$4:BQ$2003,3,0) -> ἀπολύω | BZ196: =VLOOKUP($BU196,BH$4:BQ$2003,9,0) -> ἀπέλυον | CA196: =VLOOKUP($BU196,BH$4:BQ$2003,10,0) -> ἀπολύσω | CB196: =VLOOKUP($BU196,BH$4:BQ$2003,4,0) -> ἀπό + *λυ | CC196: =VLOOKUP($BU196,BH$4:BQ$2003,6,0) -> app-oll-OOH-owe | CD196: =VLOOKUP($BU196,BH$4:BQ$2003,5,0) -> I release, I set free | CE196: =IF(AC$8,BY196,VLOOKUP($BU196,BH$4:BR$2003,11,0)&BY196) -> ἀπολύω | CF196: Chapter 33: Verb | CG196: =VLOOKUP($BU196,BH$4:BS$2003,12,0) -> ἀπέλυσα | CH196: =VLOOKUP($BU196,BH$4:BT$2003,13,0) -> 630 | CI196: FALSE | CJ196: =IF(CI196,AE196,AE196+5000) -> 5193 | CK196: =RANK(CJ196,CJ$4:CJ$2003,1) -> 204 | CL196: =IF($CI196,IF(BB196=" ","",BB196&" ")&AG196," ") ->  | CO196: 193 | CP196: =IF(CO196<=CP$2,MATCH(CO196,CK$4:CK$2003,0),"") ->  | CQ196: =VLOOKUP($CO196,CK$4:CM$2003,2,0) ->  | CR196: =VLOOKUP($CO196,CK$4:CN$2003,3,0)&VLOOKUP($CO196,CK$4:CN$2003,4,0) ->  | CT196: =IF(ISERR(FIND(CW$2,AP196,1)),FALSE, TRUE) -> FALSE | CU196: =IF(CT196,AE196,AE196+5000) -> 5193 | CV196: =RANK(CU196,CU$4:CU$2003,1) -> 197 | CW196: =IF($CT196,IF(AH196=" ",""," ["&AH196&"]")," ") ->  | CX196: =IF($CT196,IF(AK196="Noun ","Noun",IF(AK196="Verb ","Verb",AK196))," ") ->  | CZ196: 193 | DA196: =IF(CZ196<=DA$2,MATCH(CZ196,CV$4:CV$2003,0),"") ->  | DB196: =VLOOKUP($CZ196,CV$4:CY$2003,4,0) ->  | DE196: =IF(AND(LEN(AG196)<=DF$2,AG196<>" "),TRUE,FALSE) -> FALSE | DF196: =IF(DE196,AE196,AE196+5000) -> 5193 | DG196: =RANK(DF196,DF$4:DF$2003,1) -> 307 | DH196: 193 | DI196: =IF(DH196<=DA$2,MATCH(DH196,DG$4:DG$2003,0),"") ->  | DJ196: =IF($DE196,IF(BB196=" ","",BB196&" ")&AG196," ") ->  | DL196: =IF($DH196<=$DI$2,VLOOKUP($DH196,DG$4:DK$2003,4,0)&" [" &VLOOKUP($DH196,DG$4:DK$2003,5,0) &"]"," ") -> 
AE197: 194 | AF197: 37 | AG197: ἀπορέω | AI197: I am perplexed | AJ197: ah-porr-EH-owe | AK197: Verb | AM197: ἠπόρουν | AN197: ἀπορήσω | AO197: ἠπόρησα | AP197: aporew | AQ197: 639 | AR197: 639 | AS197: =IF(AG197="","",AG197) -> ἀπορέω | AT197: TRUE | AU197: =IF(ISERR(FIND(AK197,$Y$23,1)),FALSE,TRUE) -> TRUE | AV197: =AND(AT197,AU197) -> TRUE | AW197: =IF(AC$3,AF197," ") -> 37 | AX197: =IF(AC$4,AH197," ") ->  | AY197: =IF(TRUE,AI197," ") -> I am perplexed | AZ197: =IF(AC$6,AJ197," ") -> ah-porr-EH-owe | BA197: =IF(AC$7,AK197," ") -> Verb | BB197: =IF(AC$8,AL197," ") ->  | BC197: =IF(AC$9,AM197," ") -> ἠπόρουν | BD197: =IF(AC$10,AN197," ") -> ἀπορήσω | BE197: =IF(AC$9,AO197," ") -> ἠπόρησα | BF197: =IF(AC$12,AQ197," ") -> 639 | BG197: 194 | BH197: 194 | BI197: 37 | BJ197: ἀπορέω | BL197: I am perplexed | BM197: ah-porr-EH-owe | BN197: Verb | BP197: ἠπόρουν | BQ197: ἀπορήσω | BR197: =IF($AV197,IF(AL197=" ","",AL197&" "),"") ->  | BS197: =IF($AV197,BE197," ") -> ἠπόρησα | BT197: 639 | BU197: 194 | BV197: 194 | BW197: 37 | BX197: Verb | BY197: ἀπορέω | BZ197: ἠπόρουν | CA197: ἀπορήσω | CC197: ah-porr-EH-owe | CD197: I am perplexed | CE197: ἀπορέω | CF197: =IF(BV197="","",IF(BW197="37","Extra", IF(BW197=38, "Index of Textbook","Chapter " &BW197))&": "&BX197) -> Extra: Verb | CG197: ἠπόρησα | CH197: 639 | CI197: =IF(ISERR(SEARCH(CL$2,AY197,1)),FALSE, TRUE) -> FALSE | CJ197: 5194 | CK197: 205 | CM197: =IF($CI197,AY197," ") ->  | CN197: =IF($CI197,IF(AW197="37"," [Extra]",IF(AW197="38"," [Index]", " [Chap. "&TEXT(VALUE(AW197),"#")&"]"))," ") ->  | CO197: 194 | CT197: FALSE | CU197: 5194 | CV197: 198 | CY197: =IF($CT197,IF(BB197=" ","",BB197&" ")&AG197&CW197&": "&AY197& IF(AF197="37"," (Extra",IF(AF197="38"," (Index"," (Chapter "&TEXT(AF197,"#"))) &", "&CX197& IF(LEN(AM197)>1," ["&AM197&"]","") &IF(LEN(AN197)>1," ["&AN197&"]","") &")"," ") ->  | CZ197: 194 | DE197: FALSE | DF197: 5194 | DG197: 308 | DH197: 194 | DK197: =IF($DE197,AY197," ") -> 
AE198: 195 | AF198: 20 | AG198: ἀποστέλλω | AH198: *ἀπό + *στελ | AI198: I send (away) | AJ198: ah-poss-TELL-owe | AK198: Verb | AM198: - | AN198: ἀποστελῶ | AO198: ἀπέστειλα | AP198: apostellw apostelw apesteila | AQ198: 649 | AR198: 649 | AS198: ἀποστέλλω | AT198: TRUE | AU198: TRUE | AV198: TRUE | AW198: 20 | AX198: *ἀπό + *στελ | AY198: I send (away) | AZ198: ah-poss-TELL-owe | BA198: Verb | BC198: - | BD198: ἀποστελῶ | BE198: ἀπέστειλα | BF198: 649 | BG198: 195 | BH198: 195 | BI198: 20 | BJ198: ἀποστέλλω | BK198: *ἀπό + *στελ | BL198: I send (away) | BM198: ah-poss-TELL-owe | BN198: Verb | BP198: - | BQ198: ἀποστελῶ | BS198: ἀπέστειλα | BT198: 649 | BU198: 195 | BV198: 195 | BW198: 20 | BX198: Verb | BY198: ἀποστέλλω | BZ198: - | CA198: ἀποστελῶ | CB198: *ἀπό + *στελ | CC198: ah-poss-TELL-owe | CD198: I send (away) | CE198: ἀποστέλλω | CF198: Chapter 20: Verb | CG198: ἀπέστειλα | CH198: 649 | CI198: FALSE | CJ198: 5195 | CK198: 206 | CO198: 195 | CT198: FALSE | CU198: 5195 | CV198: 199 | CZ198: 195 | DE198: FALSE | DF198: 5195 | DG198: 309 | DH198: 195
AE199: 196 | AF199: 04 | AG199: ἀπόστολος | AH199: *ἀπόστολο | AI199: messenger, envoy, apostle | AJ199: ah-POSS-toll-oss | AK199: Noun | AL199: ὁ | AP199: apostolos | AQ199: 652 | AR199: 652 | AS199: ἀπόστολος | AT199: TRUE | AU199: TRUE | AV199: TRUE | AW199: 04 | AX199: *ἀπόστολο | AY199: messenger, envoy, apostle | AZ199: ah-POSS-toll-oss | BA199: Noun | BB199: ὁ | BF199: 652 | BG199: 196 | BH199: 196 | BI199: 04 | BJ199: ὁ ἀπόστολος | BK199: *ἀπόστολο | BL199: messenger, envoy, apostle | BM199: ah-POSS-toll-oss | BN199: Noun | BO199: ὁ | BR199: ὁ | BT199: 652 | BU199: 196 | BV199: 196 | BW199: 04 | BX199: Noun | BY199: ὁ ἀπόστολος | CB199: *ἀπόστολο | CC199: ah-POSS-toll-oss | CD199: messenger, envoy, apostle | CE199: ὁ ἀπόστολος | CF199: Chapter 04: Noun | CH199: 652 | CI199: FALSE | CJ199: 5196 | CK199: 207 | CO199: 196 | CT199: FALSE | CU199: 5196 | CV199: 200 | CZ199: 196 | DE199: FALSE | DF199: 5196 | DG199: 310 | DH199: 196
AE200: 197 | AF200: 38 | AG200: ἅπτω | AI200: I kindle; [middle]: I touch, I take hold of | AJ200: HAHP-toe | AK200: Verb | AM200: - | AN200: - | AO200: ἧψα | AP200: aptw | AQ200: 681 | AR200: 681 | AS200: ἅπτω | AT200: TRUE | AU200: TRUE | AV200: TRUE | AW200: 38 | AY200: I kindle; [middle]: I touch, I take hold of | AZ200: HAHP-toe | BA200: Verb | BC200: - | BD200: - | BE200: ἧψα | BF200: 681 | BG200: 197 | BH200: 197 | BI200: 38 | BJ200: ἅπτω | BL200: I kindle; [middle]: I touch, I take hold of | BM200: HAHP-toe | BN200: Verb | BP200: - | BQ200: - | BS200: ἧψα | BT200: 681 | BU200: 197 | BV200: 197 | BW200: 38 | BX200: Verb | BY200: ἅπτω | BZ200: - | CA200: - | CC200: HAHP-toe | CD200: I kindle; [middle]: I touch, I take hold of | CE200: ἅπτω | CF200: Index of Textbook: Verb | CG200: ἧψα | CH200: 681 | CI200: FALSE | CJ200: 5197 | CK200: 208 | CO200: 197 | CT200: FALSE | CU200: 5197 | CV200: 201 | CZ200: 197 | DE200: FALSE | DF200: 5197 | DG200: 311 | DH200: 197
AE201: 198 | AF201: 38 | AG201: ἀπώλεια | AI201: destruction | AJ201: Ah-POE-lay-ah | AK201: Noun | AL201: ἡ | AP201: apwleia | AQ201: 684 | AR201: 684 | AS201: ἀπώλεια | AT201: TRUE | AU201: =IF(ISERR(FIND(AK201,$Y$23,1)),FALSE,TRUE) -> TRUE | AV201: TRUE | AW201: 38 | AY201: destruction | AZ201: Ah-POE-lay-ah | BA201: Noun | BB201: ἡ | BF201: 684 | BG201: 198 | BH201: 198 | BI201: 38 | BJ201: ἡ ἀπώλεια | BL201: destruction | BM201: Ah-POE-lay-ah | BN201: Noun | BO201: ἡ | BR201: ἡ | BT201: 684 | BU201: 198 | BV201: 198 | BW201: 38 | BX201: Noun | BY201: ἡ ἀπώλεια | CC201: Ah-POE-lay-ah | CD201: destruction | CE201: ἡ ἀπώλεια | CF201: Chapter 38: Noun | CH201: 684 | CI201: FALSE | CJ201: 5198 | CK201: 209 | CO201: 198 | CT201: FALSE | CU201: 5198 | CV201: 202 | CZ201: 198 | DE201: FALSE | DF201: 5198 | DG201: 312 | DH201: 198
... 361 more rows

Sheet Selected List
A1: ="The selected list has " &FlashCards!P3&"." -> The selected list has 1504 words available.
A2: Greek Word | C2: English Definition
A3: =FlashCards!BY4 -> -ς, -ος | C3: =FlashCards!CD4 -> (nominative, singular, masculine)
A4: =FlashCards!BY5 -> -, -η, -α | C4: =FlashCards!CD5 -> (nominative, singular, feminine)
A5: =FlashCards!BY6 -> -ν, -ον | C5: =FlashCards!CD6 -> (nominative, singular, neuter; accusative, singular, masculine or neuter)
A6: =FlashCards!BY7 -> -υ, -ου | C6: =FlashCards!CD7 -> (genitive, singular, masculine or neuter)
A7: =FlashCards!BY8 -> -ς, -ης, -ας | C7: =FlashCards!CD8 -> (genitive, singular, feminine)
A8: =FlashCards!BY9 -> -ι, -ῳ | C8: =FlashCards!CD9 -> (dative, singular, masculine; dative, singular, neuter)
A9: =FlashCards!BY10 -> -ι, -ῃ, -ᾳ | C9: =FlashCards!CD10 -> (dative, singular, feminine)
A10: =FlashCards!BY11 -> -ν, -ην, -αν | C10: =FlashCards!CD11 -> (accusative, singular, feminine)
A11: =FlashCards!BY12 -> -ι, -οι | C11: =FlashCards!CD12 -> (nominative, plural, masculine)
A12: =FlashCards!BY13 -> -ες | C12: =FlashCards!CD13 -> (nominative, plural, masculine or feminine, 3ʳᵈ declension)
A13: =FlashCards!BY14 -> -ι, -αι | C13: =FlashCards!CD14 -> (nominative, plural, feminine)
A14: =FlashCards!BY15 -> -α | C14: =FlashCards!CD15 -> (nominative or accusative, plural, neuter)
A15: =FlashCards!BY16 -> -ων | C15: =FlashCards!CD16 -> (genitive, plural, masculine, feminine, neuter)
A16: =FlashCards!BY17 -> -ις, -οις | C16: =FlashCards!CD17 -> (dative, plural, masculine or neuter)
A17: =FlashCards!BY18 -> -ις, -αις | C17: =FlashCards!CD18 -> (dative, plural, feminine)
A18: =FlashCards!BY19 -> -σι(ν) | C18: =FlashCards!CD19 -> (dative, plural, masculine/ feminine/neuter, 3ʳᵈ declension)
A19: =FlashCards!BY20 -> -υς, -ους | C19: =FlashCards!CD20 -> (accusative, plural, masculine)
A20: =FlashCards!BY21 -> -ς, -ας | C20: =FlashCards!CD21 -> (accusative, plural, feminine)
A21: =FlashCards!BY22 -> -εύς | C21: =FlashCards!CD22 -> suffix for a person related to the stem (genitive, singular, masculine)
A22: =FlashCards!BY23 -> -ικός | C22: =FlashCards!CD23 -> converts a noun into an adjective ("king" becomes "royal")
A23: =FlashCards!BY24 -> [active stem] +ω | C23: =FlashCards!CD24 -> I am verbing (it) [present active indicative]
A24: =FlashCards!BY25 -> [active stem] +ες, +εις | C24: =FlashCards!CD25 -> you are verbing (it) [present active indicative]
A25: =FlashCards!BY26 -> [active stem] +ει | C25: =FlashCards!CD26 -> he/she/it is verbing (it) [present active indicative]
A26: =FlashCards!BY27 -> [active stem] +ομεν | C26: =FlashCards!CD27 -> we are verbing (it) [present active indicative]
A27: =FlashCards!BY28 -> [active stem] +ετε | C27: =FlashCards!CD28 -> ya'll are verbing (it) [present active indicative]
A28: =FlashCards!BY29 -> [active stem] +ονσι, +οσιν | C28: =FlashCards!CD29 -> they are verbing (it) [present active indicative]
A29: =FlashCards!BY30 -> [middle stem] +ομαι, | C29: =FlashCards!CD30 -> I verb, I am verbing [present middle indicative]
A30: =FlashCards!BY31 -> [middle stem] +εσαι, +ῃ | C30: =FlashCards!CD31 -> you verb, you are verbing [present middle indicative]
A31: =FlashCards!BY32 -> [middle stem] +εται | C31: =FlashCards!CD32 -> he/she/it verbs, he is verbing [present middle indicative]
A32: =FlashCards!BY33 -> [middle stem] +ομεθα | C32: =FlashCards!CD33 -> we verb, we are verbing [present middle indicative]
A33: =FlashCards!BY34 -> [middle stem] +εσθε | C33: =FlashCards!CD34 -> ya'll verb, ya'll are verbing [present middle indicative]
A34: =FlashCards!BY35 -> [middle stem] +ονται | C34: =FlashCards!CD35 -> they verb, they are verbing [present middle indicative]
A35: =FlashCards!BY36 -> [active stem] +ομαι | C35: =FlashCards!CD36 -> I am being verbed (by it) [present passive indicative]
A36: =FlashCards!BY37 -> [active stem] +εσαι, +ῃ | C36: =FlashCards!CD37 -> you are being verbed (by it) [present passive indicative]
A37: =FlashCards!BY38 -> [active stem] +εται | C37: =FlashCards!CD38 -> he/she/it is being verbed (by it) [present passive indicative]
A38: =FlashCards!BY39 -> [active stem] +ομεθα | C38: =FlashCards!CD39 -> we are being verbed (by it) [present passive indicative]
A39: =FlashCards!BY40 -> [active stem] +εσθε | C39: =FlashCards!CD40 -> ya'll are being verbed (by it) [present passive indicative]
A40: =FlashCards!BY41 -> [active stem] +ονται | C40: =FlashCards!CD41 -> they are being verbed (by it) [present passive indicative]
A41: =FlashCards!BY42 -> [active stem] +σω | C41: =FlashCards!CD42 -> I will verb (it) [future active indicative]
A42: =FlashCards!BY43 -> [active stem] +σες, +σεις | C42: =FlashCards!CD43 -> you will verb (it) [future active indicative]
A43: =FlashCards!BY44 -> [active stem] +σει | C43: =FlashCards!CD44 -> he/she/it will verb (it) [future active indicative]
A44: =FlashCards!BY45 -> [active stem] +σομεν | C44: =FlashCards!CD45 -> we will verb (it) [future active indicative]
A45: =FlashCards!BY46 -> [active stem] +σετε | C45: =FlashCards!CD46 -> ya'll will verb (it) [future active indicative]
A46: =FlashCards!BY47 -> [active stem] +σονσι, +σοσιν | C46: =FlashCards!CD47 -> they will verb (it) [future active indicative]
A47: =FlashCards!BY48 -> [middle stem] +σομαι, | C47: =FlashCards!CD48 -> I will verb [future middle indicative]
A48: =FlashCards!BY49 -> [middle stem] +σεσαι, +σῃ | C48: =FlashCards!CD49 -> you will verb [future middle indicative]
A49: =FlashCards!BY50 -> [middle stem] +σεται | C49: =FlashCards!CD50 -> he/she/it will verb [future middle indicative]
A50: =FlashCards!BY51 -> [middle stem] +σομεθα | C50: =FlashCards!CD51 -> we will verb [future middle indicative]
A51: =FlashCards!BY52 -> [middle stem] +σεσθε | C51: =FlashCards!CD52 -> ya'll will verb [future middle indicative]
A52: =FlashCards!BY53 -> [middle stem] +σονται | C52: =FlashCards!CD53 -> they will verb [future middle indicative]
A53: =FlashCards!BY54 -> ἐ + [active stem] +ον | C53: =FlashCards!CD54 -> I was/they were verbing (it) [imperfect active indicative]
A54: =FlashCards!BY55 -> ἐ + [active stem] +ες, +εις | C54: =FlashCards!CD55 -> you were verbing (it) [imperfect active indicative]
A55: =FlashCards!BY56 -> ἐ + [active stem] +ει | C55: =FlashCards!CD56 -> he/she/it was verbing (it) [imperfect active indicative]
A56: =FlashCards!BY57 -> ἐ + [active stem] +ομεν | C56: =FlashCards!CD57 -> we were verbing (it) [imperfect active indicative]
A57: =FlashCards!BY58 -> ἐ + [active stem] +ετε | C57: =FlashCards!CD58 -> ya'll were verbing (it) [imperfect active indicative]
A58: =FlashCards!BY59 -> ἐ + [active stem] +ον | C58: =FlashCards!CD59 -> they were verbing (it) [imperfect active indicative]
A59: =FlashCards!BY60 -> ἐ + [active stem] +ομην | C59: =FlashCards!CD60 -> I was being verbed (by it) [imperfect passive indicative]
A60: =FlashCards!BY61 -> ἐ + [active stem] +εσο | C60: =FlashCards!CD61 -> you were being verbed (by it) [imperfect passive indicative]
A61: =FlashCards!BY62 -> ἐ + [active stem] +ετο | C61: =FlashCards!CD62 -> he/she/it was being verbed (by it) [imperfect passive indicative]
A62: =FlashCards!BY63 -> ἐ + [active stem] +ομεθα | C62: =FlashCards!CD63 -> we were being verbed (by it) [imperfect passive indicative]
A63: =FlashCards!BY64 -> ἐ + [active stem] +εσθε | C63: =FlashCards!CD64 -> ya'll were being verbed (by it) [imperfect passive indicative]
A64: =FlashCards!BY65 -> ἐ + [active stem] +οντο | C64: =FlashCards!CD65 -> they were being verbed (by it) [imperfect passive indicative]
A65: =FlashCards!BY66 -> ἐ + [middle stem] +ομην | C65: =FlashCards!CD66 -> I was verbing [imperfect middle indicative]
A66: =FlashCards!BY67 -> ἐ + [middle stem] +εσο | C66: =FlashCards!CD67 -> you were verbing [imperfect middle indicative]
A67: =FlashCards!BY68 -> ἐ + [middle stem] +ετο | C67: =FlashCards!CD68 -> he/she/it was verbing [imperfect middle indicative]
A68: =FlashCards!BY69 -> ἐ + [middle stem] +ομεθα | C68: =FlashCards!CD69 -> we were verbing [imperfect middle indicative]
A69: =FlashCards!BY70 -> ἐ + [middle stem] +εσθε | C69: =FlashCards!CD70 -> ya'll were verbing [imperfect middle indicative]
A70: =FlashCards!BY71 -> ἐ + [middle stem] +οντο | C70: =FlashCards!CD71 -> they were verbing [imperfect middle indicative]
A71: =FlashCards!BY72 -> κατα-, κατε- | C71: =FlashCards!CD72 -> verb prefix adding "thoroughly" to meaning
A72: =FlashCards!BY73 -> ὁ Ἀβραάμ | C72: =FlashCards!CD73 -> Abraham
A73: =FlashCards!BY74 -> ἀγαθός | C73: =FlashCards!CD74 -> good, useful
A74: =FlashCards!BY75 -> ἀγαλλιάω | C74: =FlashCards!CD75 -> I exult
A75: =FlashCards!BY76 -> ἀγαπάω | C75: =FlashCards!CD76 -> I love, I cherish
A76: =FlashCards!BY77 -> ἡ ἀγάπη | C76: =FlashCards!CD77 -> love
A77: =FlashCards!BY78 -> ἀγαπητός | C77: =FlashCards!CD78 -> beloved
A78: =FlashCards!BY79 -> ἡ ἀγγελία | C78: =FlashCards!CD79 -> message
A79: =FlashCards!BY80 -> ὁ ἄγγελος | C79: =FlashCards!CD80 -> angel, messenger
A80: =FlashCards!BY81 -> ἁγιάζω | C80: =FlashCards!CD81 -> I consecrate, I sanctify
A81: =FlashCards!BY82 -> ὁ ἁγιασμός | C81: =FlashCards!CD82 -> holiness, consecration
A82: =FlashCards!BY83 -> ὁ ἅγιος (noun) | C82: =FlashCards!CD83 -> saint, holy one
A83: =FlashCards!BY84 -> ἅγιος (adj) | C83: =FlashCards!CD84 -> holy
A84: =FlashCards!BY85 -> ἀγνοέω | C84: =FlashCards!CD85 -> I do not know
A85: =FlashCards!BY86 -> ἡ ἀγορά | C85: =FlashCards!CD86 -> marketplace
A86: =FlashCards!BY87 -> ἀγοράζω | C86: =FlashCards!CD87 -> I buy
A87: =FlashCards!BY88 -> ὁ Ἀγρίππας | C87: =FlashCards!CD88 -> Agrippa
A88: =FlashCards!BY89 -> ὁ ἀγρός | C88: =FlashCards!CD89 -> field, land
A89: =FlashCards!BY90 -> ἄγω | C89: =FlashCards!CD90 -> I lead, I bring, I arrest
A90: =FlashCards!BY91 -> ἡ ἀδελφή | C90: =FlashCards!CD91 -> sister
A91: =FlashCards!BY92 -> ὁ ἀδελφός | C91: =FlashCards!CD92 -> brother
A92: =FlashCards!BY93 -> ὁ ᾁδης | C92: =FlashCards!CD93 -> Hades or hades ("the unseen place"; not a proper noun as used in the New Testament)
A93: =FlashCards!BY94 -> ἀδικέω | C93: =FlashCards!CD94 -> I injure, I do wrong
A94: =FlashCards!BY95 -> ἡ ἀδικία | C94: =FlashCards!CD95 -> unrighteousness
A95: =FlashCards!BY96 -> ἂδικος | C95: =FlashCards!CD96 -> unjust
A96: =FlashCards!BY97 -> ἀδύνατος | C96: =FlashCards!CD97 -> impossible
A97: =FlashCards!BY98 -> ἀθετέω | C97: =FlashCards!CD98 -> I nullify, I reject
A98: =FlashCards!BY99 -> ἡ Αἴγυπτος | C98: =FlashCards!CD99 -> Egypt
A99: =FlashCards!BY100 -> τό αἷμα | C99: =FlashCards!CD100 -> blood
A100: =FlashCards!BY101 -> αἴρω | C100: =FlashCards!CD101 -> I raise, I take up, I take away
A101: =FlashCards!BY102 -> αἰτέω | C101: =FlashCards!CD102 -> I ask, I demand
A102: =FlashCards!BY103 -> ἡ αἰτία | C102: =FlashCards!CD103 -> cause, guilt, charge, accusation
A103: =FlashCards!BY104 -> ὁ αἰών | C103: =FlashCards!CD104 -> age, eternity
A104: =FlashCards!BY105 -> εἰς τὸν αἰῶνα | C104: =FlashCards!CD105 -> forever
A105: =FlashCards!BY106 -> εἰς τοὺς αἰώνας | C105: =FlashCards!CD106 -> forever
A106: =FlashCards!BY107 -> αἰώνιος | C106: =FlashCards!CD107 -> eternal
A107: =FlashCards!BY108 -> ἡ ἀκαθαρσία | C107: =FlashCards!CD108 -> immorality, uncleanness
A108: =FlashCards!BY109 -> ἀκαθαρτος | C108: =FlashCards!CD109 -> unclean, impure
A109: =FlashCards!BY110 -> ἡ ἄκανθα | C109: =FlashCards!CD110 -> thorn, thorny plant
A110: =FlashCards!BY111 -> ἡ ἀκοή | C110: =FlashCards!CD111 -> hearing, report
A111: =FlashCards!BY112 -> ἀκολουθέω | C111: =FlashCards!CD112 -> I follow, I accompany
A112: =FlashCards!BY113 -> ἀκούω | C112: =FlashCards!CD113 -> I hear, I learn, I obey, I understand
A113: =FlashCards!BY114 -> ἡ ἀκροβυστία | C113: =FlashCards!CD114 -> uncircumcision
A114: =FlashCards!BY115 -> ἡ ἀλέκτωρ | C114: =FlashCards!CD115 -> rooster
A115: =FlashCards!BY116 -> ἡ ἀλήθεια | C115: =FlashCards!CD116 -> truth
A116: =FlashCards!BY117 -> ἀληθής | C116: =FlashCards!CD117 -> true, truthful
A117: =FlashCards!BY118 -> ἀληθινός | C117: =FlashCards!CD118 -> true, genuine
A118: =FlashCards!BY119 -> ἀληθῶς | C118: =FlashCards!CD119 -> truly
A119: =FlashCards!BY120 -> ἀλλά | C119: =FlashCards!CD120 -> but, yet, rather (particle)
A120: =FlashCards!BY121 -> ἡ ἀλλήλωη | C120: =FlashCards!CD121 -> one another [genitive plural…]
A121: =FlashCards!BY122 -> ἄλλος | C121: =FlashCards!CD122 -> other, another
A122: =FlashCards!BY123 -> ἀλλότριος | C122: =FlashCards!CD123 -> strange, not one's own
A123: =FlashCards!BY124 -> ἡ ἅλυσις | C123: =FlashCards!CD124 -> chain
A124: =FlashCards!BY125 -> ἅμα | C124: =FlashCards!CD125 -> together with [dative]
A125: =FlashCards!BY126 -> ἅμα | C125: =FlashCards!CD126 -> at the same time
A126: =FlashCards!BY127 -> ἁμαρτάνω | C126: =FlashCards!CD127 -> I sin
A127: =FlashCards!BY128 -> ἡ ἁμαρτία | C127: =FlashCards!CD128 -> sin
A128: =FlashCards!BY129 -> ὁ ἁμαρτωλός [noun] | C128: =FlashCards!CD129 -> sinner
A129: =FlashCards!BY130 -> ἁμαρτωλός [adjective] | C129: =FlashCards!CD130 -> sinful
A130: =FlashCards!BY131 -> ἀμῄν | C130: =FlashCards!CD131 -> truly, amen, let it be so
A131: =FlashCards!BY132 -> ὁ ἀμπελών | C131: =FlashCards!CD132 -> vineyard
A132: =FlashCards!BY133 -> ἀμφότεροι | C132: =FlashCards!CD133 -> both
A133: =FlashCards!BY134 -> ἄν | C133: =FlashCards!CD134 -> modifies relative pronoun ("who" becomes "whoever") (particle)
A134: =FlashCards!BY135 -> -ἄν | C134: =FlashCards!CD135 -> ending that changes "what" to "whatever"
A135: =FlashCards!BY136 -> ἀνά | C135: =FlashCards!CD136 -> among, between, each
A136: =FlashCards!BY137 -> ἀναβαίνω | C136: =FlashCards!CD137 -> I go up
A137: =FlashCards!BY138 -> ἀναβλέπω | C137: =FlashCards!CD138 -> I look up, I receive sight
A138: =FlashCards!BY139 -> ἀναγγέλλω | C138: =FlashCards!CD139 -> I proclaim, I announce, I report
A139: =FlashCards!BY140 -> ἀναγινώσκω | C139: =FlashCards!CD140 -> I read
A140: =FlashCards!BY141 -> ἡ ἀνάγκη | C140: =FlashCards!CD141 -> necessity, pressure, distress
A141: =FlashCards!BY142 -> ἀνάγω | C141: =FlashCards!CD142 -> I lead up; (middle) I put out to sea
A142: =FlashCards!BY143 -> ἀναιρέω | C142: =FlashCards!CD143 -> I destroy, I slay, I make an end
A143: =FlashCards!BY144 -> ἀνάκειμαι | C143: =FlashCards!CD144 -> I recline
A144: =FlashCards!BY145 -> ἀνακρίνω | C144: =FlashCards!CD145 -> I question, I examine
A145: =FlashCards!BY146 -> ἀναλαμβάνω | C145: =FlashCards!CD146 -> I take up
A146: =FlashCards!BY147 -> ὁ Ἁνανίας | C146: =FlashCards!CD147 -> Ananias
A147: =FlashCards!BY148 -> ἀναπαύω | C147: =FlashCards!CD148 -> I give rest, I refresh, I take a rest
A148: =FlashCards!BY149 -> ἀναπίπτω | C148: =FlashCards!CD149 -> I lie down, I recline
A149: =FlashCards!BY150 -> ἡ ἀνάστασις | C149: =FlashCards!CD150 -> resurrection
A150: =FlashCards!BY151 -> ἡ ἀναστροφή | C150: =FlashCards!CD151 -> way of life, conduct, behavior
A151: =FlashCards!BY152 -> ἡ ἀνατολή | C151: =FlashCards!CD152 -> east
A152: =FlashCards!BY153 -> ἀναφέρω | C152: =FlashCards!CD153 -> I offer up, I bring up
A153: =FlashCards!BY154 -> ἀναχωρέω | C153: =FlashCards!CD154 -> I withdraw
A154: =FlashCards!BY155 -> ὁ Ἀνδρέας | C154: =FlashCards!CD155 -> Andrew
A155: =FlashCards!BY156 -> ὁ ἄνεμος | C155: =FlashCards!CD156 -> wind
A156: =FlashCards!BY157 -> ἀνέχομαι | C156: =FlashCards!CD157 -> I endure
A157: =FlashCards!BY158 -> ὁ ἀνήρ | C157: =FlashCards!CD158 -> husband, male, man
A158: =FlashCards!BY159 -> ὁ ἀνδρός | C158: =FlashCards!CD159 -> husband, male, man
A159: =FlashCards!BY160 -> ἀνθίστημι | C159: =FlashCards!CD160 -> I oppose
A160: =FlashCards!BY161 -> ὁ ἄνθρωπος | C160: =FlashCards!CD161 -> man, person, mankind, human
A161: =FlashCards!BY162 -> ἀνίστημι | C161: =FlashCards!CD162 -> I rise, I get up, I raise (another)
A162: =FlashCards!BY163 -> ἀνοίγω | C162: =FlashCards!CD163 -> I open
A163: =FlashCards!BY164 -> ἡ ἀνομία | C163: =FlashCards!CD164 -> lawlessness
A164: =FlashCards!BY165 -> ἀντί | C164: =FlashCards!CD165 -> on behalf of, for, instead of [genitive]
A165: =FlashCards!BY166 -> ἀντιβάλλω | C165: =FlashCards!CD166 -> I debate, (we) exchange
A166: =FlashCards!BY167 -> ἡ Ἀντιόχεια | C166: =FlashCards!CD167 -> Antioch
A167: =FlashCards!BY168 -> ἄνωθεν | C167: =FlashCards!CD168 -> from above, again
A168: =FlashCards!BY169 -> ἄξιος | C168: =FlashCards!CD169 -> worthy
A169: =FlashCards!BY170 -> ἀπαγγέλλω | C169: =FlashCards!CD170 -> I report, I tell
A170: =FlashCards!BY171 -> ἀπάγω | C170: =FlashCards!CD171 -> I lead away
A171: =FlashCards!BY172 -> ἄπαξ | C171: =FlashCards!CD172 -> once, once for all
A172: =FlashCards!BY173 -> ἀπαρνέομαι | C172: =FlashCards!CD173 -> I deny
A173: =FlashCards!BY174 -> ἄπας | C173: =FlashCards!CD174 -> all
A174: =FlashCards!BY175 -> ἀπειθέω | C174: =FlashCards!CD175 -> I disobey
A175: =FlashCards!BY176 -> ἀπέρχομαι | C175: =FlashCards!CD176 -> I depart
A176: =FlashCards!BY177 -> ἀπέχω | C176: =FlashCards!CD177 -> I receive in full; I am distant; I abstain
A177: =FlashCards!BY178 -> ἡ ἀπιστία | C177: =FlashCards!CD178 -> unbelief
A178: =FlashCards!BY179 -> ἄπιστος | C178: =FlashCards!CD179 -> unbelieving
A179: =FlashCards!BY180 -> ἀπό (ἀπʼ, ἀφʼ) [genitive] | C179: =FlashCards!CD180 -> (away) from [genitive]
A180: =FlashCards!BY181 -> ἀποδίδωμι | C180: =FlashCards!CD181 -> I pay, I recompense; [middle]: I sell
A181: =FlashCards!BY182 -> ἀποθνῄσκω | C181: =FlashCards!CD182 -> I die, I am about to die, I am freed from
A182: =FlashCards!BY183 -> ἀποκαθιστάνω/ἀποκαθίστημι | C182: =FlashCards!CD183 -> I restore
A183: =FlashCards!BY184 -> ἀποκαλύπτω | C183: =FlashCards!CD184 -> I reveal
A184: =FlashCards!BY185 -> ἡ ἀποκάλυψις | C184: =FlashCards!CD185 -> revelation
A185: =FlashCards!BY186 -> ἀποκρίνομαι | C185: =FlashCards!CD186 -> I answer
A186: =FlashCards!BY187 -> ἀπεκρίθη | C186: =FlashCards!CD187 -> he/she/it answered
A187: =FlashCards!BY188 -> ἀποκτείνω | C187: =FlashCards!CD188 -> I kill
A188: =FlashCards!BY189 -> ἀπολαμβάνω | C188: =FlashCards!CD189 -> I receive
A189: =FlashCards!BY190 -> ἀπόλλυμι [active] | C189: =FlashCards!CD190 -> I destroy, I kill
A190: =FlashCards!BY191 -> ἀπόλλυμι [middle] | C190: =FlashCards!CD191 -> I perish, I die
A191: =FlashCards!BY192 -> ὁ Ἀπολλῶς | C191: =FlashCards!CD192 -> Apollos
A192: =FlashCards!BY193 -> ἀπολογέομαι | C192: =FlashCards!CD193 -> I defend myself (with speech)
A193: =FlashCards!BY194 -> ἡ ἀπολογία | C193: =FlashCards!CD194 -> defense, answer
A194: =FlashCards!BY195 -> ἡ ἀπολύτρωσις | C194: =FlashCards!CD195 -> redemption
A195: =FlashCards!BY196 -> ἀπολύω | C195: =FlashCards!CD196 -> I release, I set free
A196: =FlashCards!BY197 -> ἀπορέω | C196: =FlashCards!CD197 -> I am perplexed
A197: =FlashCards!BY198 -> ἀποστέλλω | C197: =FlashCards!CD198 -> I send (away)
A198: =FlashCards!BY199 -> ὁ ἀπόστολος | C198: =FlashCards!CD199 -> messenger, envoy, apostle
A199: =FlashCards!BY200 -> ἅπτω | C199: =FlashCards!CD200 -> I kindle; [middle]: I touch, I take hold of
A200: =FlashCards!BY201 -> ἡ ἀπώλεια | C200: =FlashCards!CD201 -> destruction
... 1802 more rows

Sheet Printables
B3: =INDIRECT( "FlashCards!"&IF(MOD(INT((ROW(B4)-4)/50),2)=0,"CF"&TEXT((ROW(B4)/6)+10/3-INT((ROW(B4)-4)/50)/3,"#"),"CF"&TEXT((ROW(B4)/6)+10/3-INT((ROW(B4)-4)/50)/3,"#"))) -> Chapter 07: Noun Ending | E3: =INDIRECT( "FlashCards!"&IF(MOD(INT((ROW(B4)-4)/50),2)=0,"CF"&TEXT((ROW(B4)/6)+10/3-INT((ROW(B4)-4)/50)/3+8,"#"),"CF"&TEXT((ROW(B4)/6)+10/3-INT((ROW(B4)-4)/50)/3+8,"#"))) -> Chapter 07: Noun Ending
B4: =INDIRECT( "FlashCards!"&IF(MOD(INT((ROW(B4)-4)/50),2)=0,"CE"&TEXT((ROW(B4)/6)+10/3-INT((ROW(B4)-4)/50)/3,"#"),"CD"&TEXT((ROW(B4)/6)+10/3-INT((ROW(B4)-4)/50)/3,"#"))) -> -ς, -ος | E4: =INDIRECT( "FlashCards!"&IF(MOD(INT((ROW(B4)-4)/50),2)=0,"CE"&TEXT((ROW(B4)/6)+10/3-INT((ROW(B4)-4)/50)/3+8,"#"),"CD"&TEXT((ROW(B4)/6)+10/3-INT((ROW(B4)-4)/50)/3+8,"#"))) -> -ι, -οι
B6: =INDIRECT( "FlashCards!"&IF(MOD(INT((ROW(B4)-4)/50),2)=0,"CC"&TEXT((ROW(B4)/6)+10/3-INT((ROW(B4)-4)/50)/3,"#"),"")) ->  | E6: =INDIRECT( "FlashCards!"&IF(MOD(INT((ROW(B4)-4)/50),2)=0,"CC"&TEXT((ROW(B4)/6)+10/3-INT((ROW(B4)-4)/50)/3+8,"#"),"CC"&TEXT((ROW(B4)/6)+10/3-INT((ROW(B4)-4)/50)/3+8,"#"))) -> 
B9: =INDIRECT( "FlashCards!"&IF(MOD(INT((ROW(B10)-4)/50),2)=0,"CF"&TEXT((ROW(B10)/6)+10/3-INT((ROW(B10)-4)/50)/3,"#"),"CF"&TEXT((ROW(B10)/6)+10/3-INT((ROW(B10)-4)/50)/3,"#"))) -> Chapter 07: Noun Ending | E9: =INDIRECT( "FlashCards!"&IF(MOD(INT((ROW(B10)-4)/50),2)=0,"CF"&TEXT((ROW(B10)/6)+10/3-INT((ROW(B10)-4)/50)/3+8,"#"),"CF"&TEXT((ROW(B10)/6)+10/3-INT((ROW(B10)-4)/50)/3+8,"#"))) -> Chapter 10: Noun Ending
B10: =INDIRECT( "FlashCards!"&IF(MOD(INT((ROW(B10)-4)/50),2)=0,"CE"&TEXT((ROW(B10)/6)+10/3-INT((ROW(B10)-4)/50)/3,"#"),"CD"&TEXT((ROW(B10)/6)+10/3-INT((ROW(B10)-4)/50)/3,"#"))) -> -, -η, -α | E10: =INDIRECT( "FlashCards!"&IF(MOD(INT((ROW(B10)-4)/50),2)=0,"CE"&TEXT((ROW(B10)/6)+10/3-INT((ROW(B10)-4)/50)/3+8,"#"),"CD"&TEXT((ROW(B10)/6)+10/3-INT((ROW(B10)-4)/50)/3+8,"#"))) -> -ες
B12: =INDIRECT( "FlashCards!"&IF(MOD(INT((ROW(B10)-4)/50),2)=0,"CC"&TEXT((ROW(B10)/6)+10/3-INT((ROW(B10)-4)/50)/3,"#"),"")) ->  | E12: =INDIRECT( "FlashCards!"&IF(MOD(INT((ROW(B10)-4)/50),2)=0,"CC"&TEXT((ROW(B10)/6)+10/3-INT((ROW(B10)-4)/50)/3+8,"#"),"CC"&TEXT((ROW(B10)/6)+10/3-INT((ROW(B10)-4)/50)/3+8,"#"))) -> 
B15: =INDIRECT( "FlashCards!"&IF(MOD(INT((ROW(B16)-4)/50),2)=0,"CF"&TEXT((ROW(B16)/6)+10/3-INT((ROW(B16)-4)/50)/3,"#"),"CF"&TEXT((ROW(B16)/6)+10/3-INT((ROW(B16)-4)/50)/3,"#"))) -> Chapter 07: Noun Ending | E15: =INDIRECT( "FlashCards!"&IF(MOD(INT((ROW(B16)-4)/50),2)=0,"CF"&TEXT((ROW(B16)/6)+10/3-INT((ROW(B16)-4)/50)/3+8,"#"),"CF"&TEXT((ROW(B16)/6)+10/3-INT((ROW(B16)-4)/50)/3+8,"#"))) -> Chapter 07: Noun Ending
B16: =INDIRECT( "FlashCards!"&IF(MOD(INT((ROW(B16)-4)/50),2)=0,"CE"&TEXT((ROW(B16)/6)+10/3-INT((ROW(B16)-4)/50)/3,"#"),"CD"&TEXT((ROW(B16)/6)+10/3-INT((ROW(B16)-4)/50)/3,"#"))) -> -ν, -ον | E16: =INDIRECT( "FlashCards!"&IF(MOD(INT((ROW(B16)-4)/50),2)=0,"CE"&TEXT((ROW(B16)/6)+10/3-INT((ROW(B16)-4)/50)/3+8,"#"),"CD"&TEXT((ROW(B16)/6)+10/3-INT((ROW(B16)-4)/50)/3+8,"#"))) -> -ι, -αι
B18: =INDIRECT( "FlashCards!"&IF(MOD(INT((ROW(B16)-4)/50),2)=0,"CC"&TEXT((ROW(B16)/6)+10/3-INT((ROW(B16)-4)/50)/3,"#"),"")) ->  | E18: =INDIRECT( "FlashCards!"&IF(MOD(INT((ROW(B16)-4)/50),2)=0,"CC"&TEXT((ROW(B16)/6)+10/3-INT((ROW(B16)-4)/50)/3+8,"#"),"CC"&TEXT((ROW(B16)/6)+10/3-INT((ROW(B16)-4)/50)/3+8,"#"))) -> 
B21: =INDIRECT( "FlashCards!"&IF(MOD(INT((ROW(B22)-4)/50),2)=0,"CF"&TEXT((ROW(B22)/6)+10/3-INT((ROW(B22)-4)/50)/3,"#"),"CF"&TEXT((ROW(B22)/6)+10/3-INT((ROW(B22)-4)/50)/3,"#"))) -> Chapter 07: Noun Ending | E21: =INDIRECT( "FlashCards!"&IF(MOD(INT((ROW(B22)-4)/50),2)=0,"CF"&TEXT((ROW(B22)/6)+10/3-INT((ROW(B22)-4)/50)/3+8,"#"),"CF"&TEXT((ROW(B22)/6)+10/3-INT((ROW(B22)-4)/50)/3+8,"#"))) -> Chapter 07: Noun Ending
B22: =INDIRECT( "FlashCards!"&IF(MOD(INT((ROW(B22)-4)/50),2)=0,"CE"&TEXT((ROW(B22)/6)+10/3-INT((ROW(B22)-4)/50)/3,"#"),"CD"&TEXT((ROW(B22)/6)+10/3-INT((ROW(B22)-4)/50)/3,"#"))) -> -υ, -ου | E22: =INDIRECT( "FlashCards!"&IF(MOD(INT((ROW(B22)-4)/50),2)=0,"CE"&TEXT((ROW(B22)/6)+10/3-INT((ROW(B22)-4)/50)/3+8,"#"),"CD"&TEXT((ROW(B22)/6)+10/3-INT((ROW(B22)-4)/50)/3+8,"#"))) -> -α
B24: =INDIRECT( "FlashCards!"&IF(MOD(INT((ROW(B22)-4)/50),2)=0,"CC"&TEXT((ROW(B22)/6)+10/3-INT((ROW(B22)-4)/50)/3,"#"),"")) ->  | E24: =INDIRECT( "FlashCards!"&IF(MOD(INT((ROW(B22)-4)/50),2)=0,"CC"&TEXT((ROW(B22)/6)+10/3-INT((ROW(B22)-4)/50)/3+8,"#"),"CC"&TEXT((ROW(B22)/6)+10/3-INT((ROW(B22)-4)/50)/3+8,"#"))) -> 
B27: =INDIRECT( "FlashCards!"&IF(MOD(INT((ROW(B28)-4)/50),2)=0,"CF"&TEXT((ROW(B28)/6)+10/3-INT((ROW(B28)-4)/50)/3,"#"),"CF"&TEXT((ROW(B28)/6)+10/3-INT((ROW(B28)-4)/50)/3,"#"))) -> Chapter 07: Noun Ending | E27: =INDIRECT( "FlashCards!"&IF(MOD(INT((ROW(B28)-4)/50),2)=0,"CF"&TEXT((ROW(B28)/6)+10/3-INT((ROW(B28)-4)/50)/3+8,"#"),"CF"&TEXT((ROW(B28)/6)+10/3-INT((ROW(B28)-4)/50)/3+8,"#"))) -> Chapter 07: Noun Ending
B28: =INDIRECT( "FlashCards!"&IF(MOD(INT((ROW(B28)-4)/50),2)=0,"CE"&TEXT((ROW(B28)/6)+10/3-INT((ROW(B28)-4)/50)/3,"#"),"CD"&TEXT((ROW(B28)/6)+10/3-INT((ROW(B28)-4)/50)/3,"#"))) -> -ς, -ης, -ας | E28: =INDIRECT( "FlashCards!"&IF(MOD(INT((ROW(B28)-4)/50),2)=0,"CE"&TEXT((ROW(B28)/6)+10/3-INT((ROW(B28)-4)/50)/3+8,"#"),"CD"&TEXT((ROW(B28)/6)+10/3-INT((ROW(B28)-4)/50)/3+8,"#"))) -> -ων
B30: =INDIRECT( "FlashCards!"&IF(MOD(INT((ROW(B28)-4)/50),2)=0,"CC"&TEXT((ROW(B28)/6)+10/3-INT((ROW(B28)-4)/50)/3,"#"),"")) ->  | E30: =INDIRECT( "FlashCards!"&IF(MOD(INT((ROW(B28)-4)/50),2)=0,"CC"&TEXT((ROW(B28)/6)+10/3-INT((ROW(B28)-4)/50)/3+8,"#"),"CC"&TEXT((ROW(B28)/6)+10/3-INT((ROW(B28)-4)/50)/3+8,"#"))) -> 
B33: =INDIRECT( "FlashCards!"&IF(MOD(INT((ROW(B34)-4)/50),2)=0,"CF"&TEXT((ROW(B34)/6)+10/3-INT((ROW(B34)-4)/50)/3,"#"),"CF"&TEXT((ROW(B34)/6)+10/3-INT((ROW(B34)-4)/50)/3,"#"))) -> Chapter 07: Noun Ending | E33: =INDIRECT( "FlashCards!"&IF(MOD(INT((ROW(B34)-4)/50),2)=0,"CF"&TEXT((ROW(B34)/6)+10/3-INT((ROW(B34)-4)/50)/3+8,"#"),"CF"&TEXT((ROW(B34)/6)+10/3-INT((ROW(B34)-4)/50)/3+8,"#"))) -> Chapter 07: Noun Ending
B34: =INDIRECT( "FlashCards!"&IF(MOD(INT((ROW(B34)-4)/50),2)=0,"CE"&TEXT((ROW(B34)/6)+10/3-INT((ROW(B34)-4)/50)/3,"#"),"CD"&TEXT((ROW(B34)/6)+10/3-INT((ROW(B34)-4)/50)/3,"#"))) -> -ι, -ῳ | E34: =INDIRECT( "FlashCards!"&IF(MOD(INT((ROW(B34)-4)/50),2)=0,"CE"&TEXT((ROW(B34)/6)+10/3-INT((ROW(B34)-4)/50)/3+8,"#"),"CD"&TEXT((ROW(B34)/6)+10/3-INT((ROW(B34)-4)/50)/3+8,"#"))) -> -ις, -οις
B36: =INDIRECT( "FlashCards!"&IF(MOD(INT((ROW(B34)-4)/50),2)=0,"CC"&TEXT((ROW(B34)/6)+10/3-INT((ROW(B34)-4)/50)/3,"#"),"")) ->  | E36: =INDIRECT( "FlashCards!"&IF(MOD(INT((ROW(B34)-4)/50),2)=0,"CC"&TEXT((ROW(B34)/6)+10/3-INT((ROW(B34)-4)/50)/3+8,"#"),"CC"&TEXT((ROW(B34)/6)+10/3-INT((ROW(B34)-4)/50)/3+8,"#"))) -> 
B39: =INDIRECT( "FlashCards!"&IF(MOD(INT((ROW(B40)-4)/50),2)=0,"CF"&TEXT((ROW(B40)/6)+10/3-INT((ROW(B40)-4)/50)/3,"#"),"CF"&TEXT((ROW(B40)/6)+10/3-INT((ROW(B40)-4)/50)/3,"#"))) -> Chapter 07: Noun Ending | E39: =INDIRECT( "FlashCards!"&IF(MOD(INT((ROW(B40)-4)/50),2)=0,"CF"&TEXT((ROW(B40)/6)+10/3-INT((ROW(B40)-4)/50)/3+8,"#"),"CF"&TEXT((ROW(B40)/6)+10/3-INT((ROW(B40)-4)/50)/3+8,"#"))) -> Chapter 07: Noun Ending
B40: =INDIRECT( "FlashCards!"&IF(MOD(INT((ROW(B40)-4)/50),2)=0,"CE"&TEXT((ROW(B40)/6)+10/3-INT((ROW(B40)-4)/50)/3,"#"),"CD"&TEXT((ROW(B40)/6)+10/3-INT((ROW(B40)-4)/50)/3,"#"))) -> -ι, -ῃ, -ᾳ | E40: =INDIRECT( "FlashCards!"&IF(MOD(INT((ROW(B40)-4)/50),2)=0,"CE"&TEXT((ROW(B40)/6)+10/3-INT((ROW(B40)-4)/50)/3+8,"#"),"CD"&TEXT((ROW(B40)/6)+10/3-INT((ROW(B40)-4)/50)/3+8,"#"))) -> -ις, -αις
B42: =INDIRECT( "FlashCards!"&IF(MOD(INT((ROW(B40)-4)/50),2)=0,"CC"&TEXT((ROW(B40)/6)+10/3-INT((ROW(B40)-4)/50)/3,"#"),"")) ->  | E42: =INDIRECT( "FlashCards!"&IF(MOD(INT((ROW(B40)-4)/50),2)=0,"CC"&TEXT((ROW(B40)/6)+10/3-INT((ROW(B40)-4)/50)/3+8,"#"),"CC"&TEXT((ROW(B40)/6)+10/3-INT((ROW(B40)-4)/50)/3+8,"#"))) -> 
B45: =INDIRECT( "FlashCards!"&IF(MOD(INT((ROW(B46)-4)/50),2)=0,"CF"&TEXT((ROW(B46)/6)+10/3-INT((ROW(B46)-4)/50)/3,"#"),"CF"&TEXT((ROW(B46)/6)+10/3-INT((ROW(B46)-4)/50)/3,"#"))) -> Chapter 07: Noun Ending | E45: =INDIRECT( "FlashCards!"&IF(MOD(INT((ROW(B46)-4)/50),2)=0,"CF"&TEXT((ROW(B46)/6)+10/3-INT((ROW(B46)-4)/50)/3+8,"#"),"CF"&TEXT((ROW(B46)/6)+10/3-INT((ROW(B46)-4)/50)/3+8,"#"))) -> Chapter 10: Noun Ending
B46: =INDIRECT( "FlashCards!"&IF(MOD(INT((ROW(B46)-4)/50),2)=0,"CE"&TEXT((ROW(B46)/6)+10/3-INT((ROW(B46)-4)/50)/3,"#"),"CD"&TEXT((ROW(B46)/6)+10/3-INT((ROW(B46)-4)/50)/3,"#"))) -> -ν, -ην, -αν | E46: =INDIRECT( "FlashCards!"&IF(MOD(INT((ROW(B46)-4)/50),2)=0,"CE"&TEXT((ROW(B46)/6)+10/3-INT((ROW(B46)-4)/50)/3+8,"#"),"CD"&TEXT((ROW(B46)/6)+10/3-INT((ROW(B46)-4)/50)/3+8,"#"))) -> -σι(ν)
B48: =INDIRECT( "FlashCards!"&IF(MOD(INT((ROW(B46)-4)/50),2)=0,"CC"&TEXT((ROW(B46)/6)+10/3-INT((ROW(B46)-4)/50)/3,"#"),"")) ->  | E48: =INDIRECT( "FlashCards!"&IF(MOD(INT((ROW(B46)-4)/50),2)=0,"CC"&TEXT((ROW(B46)/6)+10/3-INT((ROW(B46)-4)/50)/3+8,"#"),"CC"&TEXT((ROW(B46)/6)+10/3-INT((ROW(B46)-4)/50)/3+8,"#"))) -> 
B53: =E3 -> Chapter 07: Noun Ending | E53: =B3 -> Chapter 07: Noun Ending
B54: =INDIRECT( "FlashCards!"&IF(MOD(INT((ROW(B54)-4)/50),2)=0,"CE"&TEXT((ROW(B54)/6)+10/3-INT((ROW(B54)-4)/50)/3,"#"),"CD"&TEXT((ROW(B54)/6)+10/3-INT((ROW(B54)-4)/50)/3,"#"))) -> (nominative, plural, masculine) | E54: =INDIRECT( "FlashCards!"&IF(MOD(INT((ROW(B54)-4)/50),2)=0,"CE"&TEXT((ROW(B54)/6)+10/3-INT((ROW(B54)-4)/50)/3-8,"#"),"CD"&TEXT((ROW(B54)/6)+10/3-INT((ROW(B54)-4)/50)/3-8,"#"))) -> (nominative, singular, masculine)
B59: =E9 -> Chapter 10: Noun Ending | E59: =B9 -> Chapter 07: Noun Ending
B60: =INDIRECT( "FlashCards!"&IF(MOD(INT((ROW(B60)-4)/50),2)=0,"CE"&TEXT((ROW(B60)/6)+10/3-INT((ROW(B60)-4)/50)/3,"#"),"CD"&TEXT((ROW(B60)/6)+10/3-INT((ROW(B60)-4)/50)/3,"#"))) -> (nominative, plural, masculine or feminine, 3ʳᵈ declension) | E60: =INDIRECT( "FlashCards!"&IF(MOD(INT((ROW(B60)-4)/50),2)=0,"CE"&TEXT((ROW(B60)/6)+10/3-INT((ROW(B60)-4)/50)/3-8,"#"),"CD"&TEXT((ROW(B60)/6)+10/3-INT((ROW(B60)-4)/50)/3-8,"#"))) -> (nominative, singular, feminine)
B65: =E15 -> Chapter 07: Noun Ending | E65: =B15 -> Chapter 07: Noun Ending
B66: =INDIRECT( "FlashCards!"&IF(MOD(INT((ROW(B66)-4)/50),2)=0,"CE"&TEXT((ROW(B66)/6)+10/3-INT((ROW(B66)-4)/50)/3,"#"),"CD"&TEXT((ROW(B66)/6)+10/3-INT((ROW(B66)-4)/50)/3,"#"))) -> (nominative, plural, feminine) | E66: =INDIRECT( "FlashCards!"&IF(MOD(INT((ROW(B66)-4)/50),2)=0,"CE"&TEXT((ROW(B66)/6)+10/3-INT((ROW(B66)-4)/50)/3-8,"#"),"CD"&TEXT((ROW(B66)/6)+10/3-INT((ROW(B66)-4)/50)/3-8,"#"))) -> (nominative, singular, neuter; accusative, singular, masculine or neuter)
B71: =E21 -> Chapter 07: Noun Ending | E71: =B21 -> Chapter 07: Noun Ending
B72: =INDIRECT( "FlashCards!"&IF(MOD(INT((ROW(B72)-4)/50),2)=0,"CE"&TEXT((ROW(B72)/6)+10/3-INT((ROW(B72)-4)/50)/3,"#"),"CD"&TEXT((ROW(B72)/6)+10/3-INT((ROW(B72)-4)/50)/3,"#"))) -> (nominative or accusative, plural, neuter) | E72: =INDIRECT( "FlashCards!"&IF(MOD(INT((ROW(B72)-4)/50),2)=0,"CE"&TEXT((ROW(B72)/6)+10/3-INT((ROW(B72)-4)/50)/3-8,"#"),"CD"&TEXT((ROW(B72)/6)+10/3-INT((ROW(B72)-4)/50)/3-8,"#"))) -> (genitive, singular, masculine or neuter)
B77: =E27 -> Chapter 07: Noun Ending | E77: =B27 -> Chapter 07: Noun Ending
B78: =INDIRECT( "FlashCards!"&IF(MOD(INT((ROW(B78)-4)/50),2)=0,"CE"&TEXT((ROW(B78)/6)+10/3-INT((ROW(B78)-4)/50)/3,"#"),"CD"&TEXT((ROW(B78)/6)+10/3-INT((ROW(B78)-4)/50)/3,"#"))) -> (genitive, plural, masculine, feminine, neuter) | E78: =INDIRECT( "FlashCards!"&IF(MOD(INT((ROW(B78)-4)/50),2)=0,"CE"&TEXT((ROW(B78)/6)+10/3-INT((ROW(B78)-4)/50)/3-8,"#"),"CD"&TEXT((ROW(B78)/6)+10/3-INT((ROW(B78)-4)/50)/3-8,"#"))) -> (genitive, singular, feminine)
B83: =E33 -> Chapter 07: Noun Ending | E83: =B33 -> Chapter 07: Noun Ending
B84: =INDIRECT( "FlashCards!"&IF(MOD(INT((ROW(B84)-4)/50),2)=0,"CE"&TEXT((ROW(B84)/6)+10/3-INT((ROW(B84)-4)/50)/3,"#"),"CD"&TEXT((ROW(B84)/6)+10/3-INT((ROW(B84)-4)/50)/3,"#"))) -> (dative, plural, masculine or neuter) | E84: =INDIRECT( "FlashCards!"&IF(MOD(INT((ROW(B84)-4)/50),2)=0,"CE"&TEXT((ROW(B84)/6)+10/3-INT((ROW(B84)-4)/50)/3-8,"#"),"CD"&TEXT((ROW(B84)/6)+10/3-INT((ROW(B84)-4)/50)/3-8,"#"))) -> (dative, singular, masculine; dative, singular, neuter)
B89: =E39 -> Chapter 07: Noun Ending | E89: =B39 -> Chapter 07: Noun Ending
B90: =INDIRECT( "FlashCards!"&IF(MOD(INT((ROW(B90)-4)/50),2)=0,"CE"&TEXT((ROW(B90)/6)+10/3-INT((ROW(B90)-4)/50)/3,"#"),"CD"&TEXT((ROW(B90)/6)+10/3-INT((ROW(B90)-4)/50)/3,"#"))) -> (dative, plural, feminine) | E90: =INDIRECT( "FlashCards!"&IF(MOD(INT((ROW(B90)-4)/50),2)=0,"CE"&TEXT((ROW(B90)/6)+10/3-INT((ROW(B90)-4)/50)/3-8,"#"),"CD"&TEXT((ROW(B90)/6)+10/3-INT((ROW(B90)-4)/50)/3-8,"#"))) -> (dative, singular, feminine)
B95: =E45 -> Chapter 10: Noun Ending | E95: =B45 -> Chapter 07: Noun Ending
B96: =INDIRECT( "FlashCards!"&IF(MOD(INT((ROW(B96)-4)/50),2)=0,"CE"&TEXT((ROW(B96)/6)+10/3-INT((ROW(B96)-4)/50)/3,"#"),"CD"&TEXT((ROW(B96)/6)+10/3-INT((ROW(B96)-4)/50)/3,"#"))) -> (dative, plural, masculine/ feminine/neuter, 3ʳᵈ declension) | E96: =INDIRECT( "FlashCards!"&IF(MOD(INT((ROW(B96)-4)/50),2)=0,"CE"&TEXT((ROW(B96)/6)+10/3-INT((ROW(B96)-4)/50)/3-8,"#"),"CD"&TEXT((ROW(B96)/6)+10/3-INT((ROW(B96)-4)/50)/3-8,"#"))) -> (accusative, singular, feminine)
B103: =INDIRECT( "FlashCards!"&IF(MOD(INT((ROW(B104)-4)/50),2)=0,"CF"&TEXT((ROW(B104)/6)+10/3-INT((ROW(B104)-4)/50)/3,"#"),"CF"&TEXT((ROW(B104)/6)+10/3-INT((ROW(B104)-4)/50)/3,"#"))) -> Chapter 07: Noun Ending | E103: =INDIRECT( "FlashCards!"&IF(MOD(INT((ROW(B104)-4)/50),2)=0,"CF"&TEXT((ROW(B104)/6)+10/3-INT((ROW(B104)-4)/50)/3+8,"#"),"CF"&TEXT((ROW(B104)/6)+10/3-INT((ROW(B104)-4)/50)/3+8,"#"))) -> Chapter 16: Verb Ending
B104: =INDIRECT( "FlashCards!"&IF(MOD(INT((ROW(B104)-4)/50),2)=0,"CE"&TEXT((ROW(B104)/6)+10/3-INT((ROW(B104)-4)/50)/3,"#"),"CD"&TEXT((ROW(B104)/6)+10/3-INT((ROW(B104)-4)/50)/3,"#"))) -> -υς, -ους | E104: =INDIRECT( "FlashCards!"&IF(MOD(INT((ROW(B104)-4)/50),2)=0,"CE"&TEXT((ROW(B104)/6)+10/3-INT((ROW(B104)-4)/50)/3+8,"#"),"CD"&TEXT((ROW(B104)/6)+10/3-INT((ROW(B104)-4)/50)/3+8,"#"))) -> [active stem] +ετε
B106: =INDIRECT( "FlashCards!"&IF(MOD(INT((ROW(B104)-4)/50),2)=0,"CC"&TEXT((ROW(B104)/6)+10/3-INT((ROW(B104)-4)/50)/3,"#"),"")) ->  | E106: =INDIRECT( "FlashCards!"&IF(MOD(INT((ROW(B104)-4)/50),2)=0,"CC"&TEXT((ROW(B104)/6)+10/3-INT((ROW(B104)-4)/50)/3+8,"#"),"CC"&TEXT((ROW(B104)/6)+10/3-INT((ROW(B104)-4)/50)/3+8,"#"))) -> 
B109: =INDIRECT( "FlashCards!"&IF(MOD(INT((ROW(B110)-4)/50),2)=0,"CF"&TEXT((ROW(B110)/6)+10/3-INT((ROW(B110)-4)/50)/3,"#"),"CF"&TEXT((ROW(B110)/6)+10/3-INT((ROW(B110)-4)/50)/3,"#"))) -> Chapter 07: Noun Ending | E109: =INDIRECT( "FlashCards!"&IF(MOD(INT((ROW(B110)-4)/50),2)=0,"CF"&TEXT((ROW(B110)/6)+10/3-INT((ROW(B110)-4)/50)/3+8,"#"),"CF"&TEXT((ROW(B110)/6)+10/3-INT((ROW(B110)-4)/50)/3+8,"#"))) -> Chapter 16: Verb Ending
B110: =INDIRECT( "FlashCards!"&IF(MOD(INT((ROW(B110)-4)/50),2)=0,"CE"&TEXT((ROW(B110)/6)+10/3-INT((ROW(B110)-4)/50)/3,"#"),"CD"&TEXT((ROW(B110)/6)+10/3-INT((ROW(B110)-4)/50)/3,"#"))) -> -ς, -ας | E110: =INDIRECT( "FlashCards!"&IF(MOD(INT((ROW(B110)-4)/50),2)=0,"CE"&TEXT((ROW(B110)/6)+10/3-INT((ROW(B110)-4)/50)/3+8,"#"),"CD"&TEXT((ROW(B110)/6)+10/3-INT((ROW(B110)-4)/50)/3+8,"#"))) -> [active stem] +ονσι, +οσιν
B112: =INDIRECT( "FlashCards!"&IF(MOD(INT((ROW(B110)-4)/50),2)=0,"CC"&TEXT((ROW(B110)/6)+10/3-INT((ROW(B110)-4)/50)/3,"#"),"")) ->  | E112: =INDIRECT( "FlashCards!"&IF(MOD(INT((ROW(B110)-4)/50),2)=0,"CC"&TEXT((ROW(B110)/6)+10/3-INT((ROW(B110)-4)/50)/3+8,"#"),"CC"&TEXT((ROW(B110)/6)+10/3-INT((ROW(B110)-4)/50)/3+8,"#"))) -> 
B115: =INDIRECT( "FlashCards!"&IF(MOD(INT((ROW(B116)-4)/50),2)=0,"CF"&TEXT((ROW(B116)/6)+10/3-INT((ROW(B116)-4)/50)/3,"#"),"CF"&TEXT((ROW(B116)/6)+10/3-INT((ROW(B116)-4)/50)/3,"#"))) -> Chapter 19: Noun Ending | E115: =INDIRECT( "FlashCards!"&IF(MOD(INT((ROW(B116)-4)/50),2)=0,"CF"&TEXT((ROW(B116)/6)+10/3-INT((ROW(B116)-4)/50)/3+8,"#"),"CF"&TEXT((ROW(B116)/6)+10/3-INT((ROW(B116)-4)/50)/3+8,"#"))) -> Chapter 18: Verb Ending
B116: =INDIRECT( "FlashCards!"&IF(MOD(INT((ROW(B116)-4)/50),2)=0,"CE"&TEXT((ROW(B116)/6)+10/3-INT((ROW(B116)-4)/50)/3,"#"),"CD"&TEXT((ROW(B116)/6)+10/3-INT((ROW(B116)-4)/50)/3,"#"))) -> -εύς | E116: =INDIRECT( "FlashCards!"&IF(MOD(INT((ROW(B116)-4)/50),2)=0,"CE"&TEXT((ROW(B116)/6)+10/3-INT((ROW(B116)-4)/50)/3+8,"#"),"CD"&TEXT((ROW(B116)/6)+10/3-INT((ROW(B116)-4)/50)/3+8,"#"))) -> [middle stem] +ομαι,
B118: =INDIRECT( "FlashCards!"&IF(MOD(INT((ROW(B116)-4)/50),2)=0,"CC"&TEXT((ROW(B116)/6)+10/3-INT((ROW(B116)-4)/50)/3,"#"),"")) -> yoose | E118: =INDIRECT( "FlashCards!"&IF(MOD(INT((ROW(B116)-4)/50),2)=0,"CC"&TEXT((ROW(B116)/6)+10/3-INT((ROW(B116)-4)/50)/3+8,"#"),"CC"&TEXT((ROW(B116)/6)+10/3-INT((ROW(B116)-4)/50)/3+8,"#"))) -> 
B121: =INDIRECT( "FlashCards!"&IF(MOD(INT((ROW(B122)-4)/50),2)=0,"CF"&TEXT((ROW(B122)/6)+10/3-INT((ROW(B122)-4)/50)/3,"#"),"CF"&TEXT((ROW(B122)/6)+10/3-INT((ROW(B122)-4)/50)/3,"#"))) -> Extra: Noun Ending | E121: =INDIRECT( "FlashCards!"&IF(MOD(INT((ROW(B122)-4)/50),2)=0,"CF"&TEXT((ROW(B122)/6)+10/3-INT((ROW(B122)-4)/50)/3+8,"#"),"CF"&TEXT((ROW(B122)/6)+10/3-INT((ROW(B122)-4)/50)/3+8,"#"))) -> Chapter 18: Verb Ending
B122: =INDIRECT( "FlashCards!"&IF(MOD(INT((ROW(B122)-4)/50),2)=0,"CE"&TEXT((ROW(B122)/6)+10/3-INT((ROW(B122)-4)/50)/3,"#"),"CD"&TEXT((ROW(B122)/6)+10/3-INT((ROW(B122)-4)/50)/3,"#"))) -> -ικός | E122: =INDIRECT( "FlashCards!"&IF(MOD(INT((ROW(B122)-4)/50),2)=0,"CE"&TEXT((ROW(B122)/6)+10/3-INT((ROW(B122)-4)/50)/3+8,"#"),"CD"&TEXT((ROW(B122)/6)+10/3-INT((ROW(B122)-4)/50)/3+8,"#"))) -> [middle stem] +εσαι, +ῃ
B124: =INDIRECT( "FlashCards!"&IF(MOD(INT((ROW(B122)-4)/50),2)=0,"CC"&TEXT((ROW(B122)/6)+10/3-INT((ROW(B122)-4)/50)/3,"#"),"")) -> ee-KOSS | E124: =INDIRECT( "FlashCards!"&IF(MOD(INT((ROW(B122)-4)/50),2)=0,"CC"&TEXT((ROW(B122)/6)+10/3-INT((ROW(B122)-4)/50)/3+8,"#"),"CC"&TEXT((ROW(B122)/6)+10/3-INT((ROW(B122)-4)/50)/3+8,"#"))) -> 
B127: =INDIRECT( "FlashCards!"&IF(MOD(INT((ROW(B128)-4)/50),2)=0,"CF"&TEXT((ROW(B128)/6)+10/3-INT((ROW(B128)-4)/50)/3,"#"),"CF"&TEXT((ROW(B128)/6)+10/3-INT((ROW(B128)-4)/50)/3,"#"))) -> Chapter 16: Verb Ending | E127: =INDIRECT( "FlashCards!"&IF(MOD(INT((ROW(B128)-4)/50),2)=0,"CF"&TEXT((ROW(B128)/6)+10/3-INT((ROW(B128)-4)/50)/3+8,"#"),"CF"&TEXT((ROW(B128)/6)+10/3-INT((ROW(B128)-4)/50)/3+8,"#"))) -> Chapter 18: Verb Ending
B128: =INDIRECT( "FlashCards!"&IF(MOD(INT((ROW(B128)-4)/50),2)=0,"CE"&TEXT((ROW(B128)/6)+10/3-INT((ROW(B128)-4)/50)/3,"#"),"CD"&TEXT((ROW(B128)/6)+10/3-INT((ROW(B128)-4)/50)/3,"#"))) -> [active stem] +ω | E128: =INDIRECT( "FlashCards!"&IF(MOD(INT((ROW(B128)-4)/50),2)=0,"CE"&TEXT((ROW(B128)/6)+10/3-INT((ROW(B128)-4)/50)/3+8,"#"),"CD"&TEXT((ROW(B128)/6)+10/3-INT((ROW(B128)-4)/50)/3+8,"#"))) -> [middle stem] +εται
B130: =INDIRECT( "FlashCards!"&IF(MOD(INT((ROW(B128)-4)/50),2)=0,"CC"&TEXT((ROW(B128)/6)+10/3-INT((ROW(B128)-4)/50)/3,"#"),"")) ->  | E130: =INDIRECT( "FlashCards!"&IF(MOD(INT((ROW(B128)-4)/50),2)=0,"CC"&TEXT((ROW(B128)/6)+10/3-INT((ROW(B128)-4)/50)/3+8,"#"),"CC"&TEXT((ROW(B128)/6)+10/3-INT((ROW(B128)-4)/50)/3+8,"#"))) -> 
B133: =INDIRECT( "FlashCards!"&IF(MOD(INT((ROW(B134)-4)/50),2)=0,"CF"&TEXT((ROW(B134)/6)+10/3-INT((ROW(B134)-4)/50)/3,"#"),"CF"&TEXT((ROW(B134)/6)+10/3-INT((ROW(B134)-4)/50)/3,"#"))) -> Chapter 16: Verb Ending | E133: =INDIRECT( "FlashCards!"&IF(MOD(INT((ROW(B134)-4)/50),2)=0,"CF"&TEXT((ROW(B134)/6)+10/3-INT((ROW(B134)-4)/50)/3+8,"#"),"CF"&TEXT((ROW(B134)/6)+10/3-INT((ROW(B134)-4)/50)/3+8,"#"))) -> Chapter 18: Verb Ending
B134: =INDIRECT( "FlashCards!"&IF(MOD(INT((ROW(B134)-4)/50),2)=0,"CE"&TEXT((ROW(B134)/6)+10/3-INT((ROW(B134)-4)/50)/3,"#"),"CD"&TEXT((ROW(B134)/6)+10/3-INT((ROW(B134)-4)/50)/3,"#"))) -> [active stem] +ες, +εις | E134: =INDIRECT( "FlashCards!"&IF(MOD(INT((ROW(B134)-4)/50),2)=0,"CE"&TEXT((ROW(B134)/6)+10/3-INT((ROW(B134)-4)/50)/3+8,"#"),"CD"&TEXT((ROW(B134)/6)+10/3-INT((ROW(B134)-4)/50)/3+8,"#"))) -> [middle stem] +ομεθα
B136: =INDIRECT( "FlashCards!"&IF(MOD(INT((ROW(B134)-4)/50),2)=0,"CC"&TEXT((ROW(B134)/6)+10/3-INT((ROW(B134)-4)/50)/3,"#"),"")) ->  | E136: =INDIRECT( "FlashCards!"&IF(MOD(INT((ROW(B134)-4)/50),2)=0,"CC"&TEXT((ROW(B134)/6)+10/3-INT((ROW(B134)-4)/50)/3+8,"#"),"CC"&TEXT((ROW(B134)/6)+10/3-INT((ROW(B134)-4)/50)/3+8,"#"))) -> 
B139: =INDIRECT( "FlashCards!"&IF(MOD(INT((ROW(B140)-4)/50),2)=0,"CF"&TEXT((ROW(B140)/6)+10/3-INT((ROW(B140)-4)/50)/3,"#"),"CF"&TEXT((ROW(B140)/6)+10/3-INT((ROW(B140)-4)/50)/3,"#"))) -> Chapter 16: Verb Ending | E139: =INDIRECT( "FlashCards!"&IF(MOD(INT((ROW(B140)-4)/50),2)=0,"CF"&TEXT((ROW(B140)/6)+10/3-INT((ROW(B140)-4)/50)/3+8,"#"),"CF"&TEXT((ROW(B140)/6)+10/3-INT((ROW(B140)-4)/50)/3+8,"#"))) -> Chapter 18: Verb Ending
B140: =INDIRECT( "FlashCards!"&IF(MOD(INT((ROW(B140)-4)/50),2)=0,"CE"&TEXT((ROW(B140)/6)+10/3-INT((ROW(B140)-4)/50)/3,"#"),"CD"&TEXT((ROW(B140)/6)+10/3-INT((ROW(B140)-4)/50)/3,"#"))) -> [active stem] +ει | E140: =INDIRECT( "FlashCards!"&IF(MOD(INT((ROW(B140)-4)/50),2)=0,"CE"&TEXT((ROW(B140)/6)+10/3-INT((ROW(B140)-4)/50)/3+8,"#"),"CD"&TEXT((ROW(B140)/6)+10/3-INT((ROW(B140)-4)/50)/3+8,"#"))) -> [middle stem] +εσθε
B142: =INDIRECT( "FlashCards!"&IF(MOD(INT((ROW(B140)-4)/50),2)=0,"CC"&TEXT((ROW(B140)/6)+10/3-INT((ROW(B140)-4)/50)/3,"#"),"")) ->  | E142: =INDIRECT( "FlashCards!"&IF(MOD(INT((ROW(B140)-4)/50),2)=0,"CC"&TEXT((ROW(B140)/6)+10/3-INT((ROW(B140)-4)/50)/3+8,"#"),"CC"&TEXT((ROW(B140)/6)+10/3-INT((ROW(B140)-4)/50)/3+8,"#"))) -> 
B145: =INDIRECT( "FlashCards!"&IF(MOD(INT((ROW(B146)-4)/50),2)=0,"CF"&TEXT((ROW(B146)/6)+10/3-INT((ROW(B146)-4)/50)/3,"#"),"CF"&TEXT((ROW(B146)/6)+10/3-INT((ROW(B146)-4)/50)/3,"#"))) -> Chapter 16: Verb Ending | E145: =INDIRECT( "FlashCards!"&IF(MOD(INT((ROW(B146)-4)/50),2)=0,"CF"&TEXT((ROW(B146)/6)+10/3-INT((ROW(B146)-4)/50)/3+8,"#"),"CF"&TEXT((ROW(B146)/6)+10/3-INT((ROW(B146)-4)/50)/3+8,"#"))) -> Chapter 18: Verb Ending
B146: =INDIRECT( "FlashCards!"&IF(MOD(INT((ROW(B146)-4)/50),2)=0,"CE"&TEXT((ROW(B146)/6)+10/3-INT((ROW(B146)-4)/50)/3,"#"),"CD"&TEXT((ROW(B146)/6)+10/3-INT((ROW(B146)-4)/50)/3,"#"))) -> [active stem] +ομεν | E146: =INDIRECT( "FlashCards!"&IF(MOD(INT((ROW(B146)-4)/50),2)=0,"CE"&TEXT((ROW(B146)/6)+10/3-INT((ROW(B146)-4)/50)/3+8,"#"),"CD"&TEXT((ROW(B146)/6)+10/3-INT((ROW(B146)-4)/50)/3+8,"#"))) -> [middle stem] +ονται
B148: =INDIRECT( "FlashCards!"&IF(MOD(INT((ROW(B146)-4)/50),2)=0,"CC"&TEXT((ROW(B146)/6)+10/3-INT((ROW(B146)-4)/50)/3,"#"),"")) ->  | E148: =INDIRECT( "FlashCards!"&IF(MOD(INT((ROW(B146)-4)/50),2)=0,"CC"&TEXT((ROW(B146)/6)+10/3-INT((ROW(B146)-4)/50)/3+8,"#"),"CC"&TEXT((ROW(B146)/6)+10/3-INT((ROW(B146)-4)/50)/3+8,"#"))) -> 
B153: =E103 -> Chapter 16: Verb Ending | E153: =B103 -> Chapter 07: Noun Ending
B154: =INDIRECT( "FlashCards!"&IF(MOD(INT((ROW(B154)-4)/50),2)=0,"CE"&TEXT((ROW(B154)/6)+10/3-INT((ROW(B154)-4)/50)/3,"#"),"CD"&TEXT((ROW(B154)/6)+10/3-INT((ROW(B154)-4)/50)/3,"#"))) -> ya'll are verbing (it) [present active indicative] | E154: =INDIRECT( "FlashCards!"&IF(MOD(INT((ROW(B154)-4)/50),2)=0,"CE"&TEXT((ROW(B154)/6)+10/3-INT((ROW(B154)-4)/50)/3-8,"#"),"CD"&TEXT((ROW(B154)/6)+10/3-INT((ROW(B154)-4)/50)/3-8,"#"))) -> (accusative, plural, masculine)
B159: =E109 -> Chapter 16: Verb Ending | E159: =B109 -> Chapter 07: Noun Ending
B160: =INDIRECT( "FlashCards!"&IF(MOD(INT((ROW(B160)-4)/50),2)=0,"CE"&TEXT((ROW(B160)/6)+10/3-INT((ROW(B160)-4)/50)/3,"#"),"CD"&TEXT((ROW(B160)/6)+10/3-INT((ROW(B160)-4)/50)/3,"#"))) -> they are verbing (it) [present active indicative] | E160: =INDIRECT( "FlashCards!"&IF(MOD(INT((ROW(B160)-4)/50),2)=0,"CE"&TEXT((ROW(B160)/6)+10/3-INT((ROW(B160)-4)/50)/3-8,"#"),"CD"&TEXT((ROW(B160)/6)+10/3-INT((ROW(B160)-4)/50)/3-8,"#"))) -> (accusative, plural, feminine)
B165: =E115 -> Chapter 18: Verb Ending | E165: =B115 -> Chapter 19: Noun Ending
B166: =INDIRECT( "FlashCards!"&IF(MOD(INT((ROW(B166)-4)/50),2)=0,"CE"&TEXT((ROW(B166)/6)+10/3-INT((ROW(B166)-4)/50)/3,"#"),"CD"&TEXT((ROW(B166)/6)+10/3-INT((ROW(B166)-4)/50)/3,"#"))) -> I verb, I am verbing [present middle indicative] | E166: =INDIRECT( "FlashCards!"&IF(MOD(INT((ROW(B166)-4)/50),2)=0,"CE"&TEXT((ROW(B166)/6)+10/3-INT((ROW(B166)-4)/50)/3-8,"#"),"CD"&TEXT((ROW(B166)/6)+10/3-INT((ROW(B166)-4)/50)/3-8,"#"))) -> suffix for a person related to the stem (genitive, singular, masculine)
B171: =E121 -> Chapter 18: Verb Ending | E171: =B121 -> Extra: Noun Ending
B172: =INDIRECT( "FlashCards!"&IF(MOD(INT((ROW(B172)-4)/50),2)=0,"CE"&TEXT((ROW(B172)/6)+10/3-INT((ROW(B172)-4)/50)/3,"#"),"CD"&TEXT((ROW(B172)/6)+10/3-INT((ROW(B172)-4)/50)/3,"#"))) -> you verb, you are verbing [present middle indicative] | E172: =INDIRECT( "FlashCards!"&IF(MOD(INT((ROW(B172)-4)/50),2)=0,"CE"&TEXT((ROW(B172)/6)+10/3-INT((ROW(B172)-4)/50)/3-8,"#"),"CD"&TEXT((ROW(B172)/6)+10/3-INT((ROW(B172)-4)/50)/3-8,"#"))) -> converts a noun into an adjective ("king" becomes "royal")
B177: =E127 -> Chapter 18: Verb Ending | E177: =B127 -> Chapter 16: Verb Ending
B178: =INDIRECT( "FlashCards!"&IF(MOD(INT((ROW(B178)-4)/50),2)=0,"CE"&TEXT((ROW(B178)/6)+10/3-INT((ROW(B178)-4)/50)/3,"#"),"CD"&TEXT((ROW(B178)/6)+10/3-INT((ROW(B178)-4)/50)/3,"#"))) -> he/she/it verbs, he is verbing [present middle indicative] | E178: =INDIRECT( "FlashCards!"&IF(MOD(INT((ROW(B178)-4)/50),2)=0,"CE"&TEXT((ROW(B178)/6)+10/3-INT((ROW(B178)-4)/50)/3-8,"#"),"CD"&TEXT((ROW(B178)/6)+10/3-INT((ROW(B178)-4)/50)/3-8,"#"))) -> I am verbing (it) [present active indicative]
B183: =E133 -> Chapter 18: Verb Ending | E183: =B133 -> Chapter 16: Verb Ending
B184: =INDIRECT( "FlashCards!"&IF(MOD(INT((ROW(B184)-4)/50),2)=0,"CE"&TEXT((ROW(B184)/6)+10/3-INT((ROW(B184)-4)/50)/3,"#"),"CD"&TEXT((ROW(B184)/6)+10/3-INT((ROW(B184)-4)/50)/3,"#"))) -> we verb, we are verbing [present middle indicative] | E184: =INDIRECT( "FlashCards!"&IF(MOD(INT((ROW(B184)-4)/50),2)=0,"CE"&TEXT((ROW(B184)/6)+10/3-INT((ROW(B184)-4)/50)/3-8,"#"),"CD"&TEXT((ROW(B184)/6)+10/3-INT((ROW(B184)-4)/50)/3-8,"#"))) -> you are verbing (it) [present active indicative]
B189: =E139 -> Chapter 18: Verb Ending | E189: =B139 -> Chapter 16: Verb Ending
B190: =INDIRECT( "FlashCards!"&IF(MOD(INT((ROW(B190)-4)/50),2)=0,"CE"&TEXT((ROW(B190)/6)+10/3-INT((ROW(B190)-4)/50)/3,"#"),"CD"&TEXT((ROW(B190)/6)+10/3-INT((ROW(B190)-4)/50)/3,"#"))) -> ya'll verb, ya'll are verbing [present middle indicative] | E190: =INDIRECT( "FlashCards!"&IF(MOD(INT((ROW(B190)-4)/50),2)=0,"CE"&TEXT((ROW(B190)/6)+10/3-INT((ROW(B190)-4)/50)/3-8,"#"),"CD"&TEXT((ROW(B190)/6)+10/3-INT((ROW(B190)-4)/50)/3-8,"#"))) -> he/she/it is verbing (it) [present active indicative]
B195: =E145 -> Chapter 18: Verb Ending | E195: =B145 -> Chapter 16: Verb Ending
B196: =INDIRECT( "FlashCards!"&IF(MOD(INT((ROW(B196)-4)/50),2)=0,"CE"&TEXT((ROW(B196)/6)+10/3-INT((ROW(B196)-4)/50)/3,"#"),"CD"&TEXT((ROW(B196)/6)+10/3-INT((ROW(B196)-4)/50)/3,"#"))) -> they verb, they are verbing [present middle indicative] | E196: =INDIRECT( "FlashCards!"&IF(MOD(INT((ROW(B196)-4)/50),2)=0,"CE"&TEXT((ROW(B196)/6)+10/3-INT((ROW(B196)-4)/50)/3-8,"#"),"CD"&TEXT((ROW(B196)/6)+10/3-INT((ROW(B196)-4)/50)/3-8,"#"))) -> we are verbing (it) [present active indicative]
B203: =INDIRECT( "FlashCards!"&IF(MOD(INT((ROW(B204)-4)/50),2)=0,"CF"&TEXT((ROW(B204)/6)+10/3-INT((ROW(B204)-4)/50)/3,"#"),"CF"&TEXT((ROW(B204)/6)+10/3-INT((ROW(B204)-4)/50)/3,"#"))) -> Chapter 18: Verb Ending | E203: =INDIRECT( "FlashCards!"&IF(MOD(INT((ROW(B204)-4)/50),2)=0,"CF"&TEXT((ROW(B204)/6)+10/3-INT((ROW(B204)-4)/50)/3+8,"#"),"CF"&TEXT((ROW(B204)/6)+10/3-INT((ROW(B204)-4)/50)/3+8,"#"))) -> Chapter 19: Verb Ending
B204: =INDIRECT( "FlashCards!"&IF(MOD(INT((ROW(B204)-4)/50),2)=0,"CE"&TEXT((ROW(B204)/6)+10/3-INT((ROW(B204)-4)/50)/3,"#"),"CD"&TEXT((ROW(B204)/6)+10/3-INT((ROW(B204)-4)/50)/3,"#"))) -> [active stem] +ομαι | E204: =INDIRECT( "FlashCards!"&IF(MOD(INT((ROW(B204)-4)/50),2)=0,"CE"&TEXT((ROW(B204)/6)+10/3-INT((ROW(B204)-4)/50)/3+8,"#"),"CD"&TEXT((ROW(B204)/6)+10/3-INT((ROW(B204)-4)/50)/3+8,"#"))) -> [active stem] +σει
B206: =INDIRECT( "FlashCards!"&IF(MOD(INT((ROW(B204)-4)/50),2)=0,"CC"&TEXT((ROW(B204)/6)+10/3-INT((ROW(B204)-4)/50)/3,"#"),"")) ->  | E206: =INDIRECT( "FlashCards!"&IF(MOD(INT((ROW(B204)-4)/50),2)=0,"CC"&TEXT((ROW(B204)/6)+10/3-INT((ROW(B204)-4)/50)/3+8,"#"),"CC"&TEXT((ROW(B204)/6)+10/3-INT((ROW(B204)-4)/50)/3+8,"#"))) -> 
B209: =INDIRECT( "FlashCards!"&IF(MOD(INT((ROW(B210)-4)/50),2)=0,"CF"&TEXT((ROW(B210)/6)+10/3-INT((ROW(B210)-4)/50)/3,"#"),"CF"&TEXT((ROW(B210)/6)+10/3-INT((ROW(B210)-4)/50)/3,"#"))) -> Chapter 18: Verb Ending | E209: =INDIRECT( "FlashCards!"&IF(MOD(INT((ROW(B210)-4)/50),2)=0,"CF"&TEXT((ROW(B210)/6)+10/3-INT((ROW(B210)-4)/50)/3+8,"#"),"CF"&TEXT((ROW(B210)/6)+10/3-INT((ROW(B210)-4)/50)/3+8,"#"))) -> Chapter 19: Verb Ending
B210: =INDIRECT( "FlashCards!"&IF(MOD(INT((ROW(B210)-4)/50),2)=0,"CE"&TEXT((ROW(B210)/6)+10/3-INT((ROW(B210)-4)/50)/3,"#"),"CD"&TEXT((ROW(B210)/6)+10/3-INT((ROW(B210)-4)/50)/3,"#"))) -> [active stem] +εσαι, +ῃ | E210: =INDIRECT( "FlashCards!"&IF(MOD(INT((ROW(B210)-4)/50),2)=0,"CE"&TEXT((ROW(B210)/6)+10/3-INT((ROW(B210)-4)/50)/3+8,"#"),"CD"&TEXT((ROW(B210)/6)+10/3-INT((ROW(B210)-4)/50)/3+8,"#"))) -> [active stem] +σομεν
B212: =INDIRECT( "FlashCards!"&IF(MOD(INT((ROW(B210)-4)/50),2)=0,"CC"&TEXT((ROW(B210)/6)+10/3-INT((ROW(B210)-4)/50)/3,"#"),"")) ->  | E212: =INDIRECT( "FlashCards!"&IF(MOD(INT((ROW(B210)-4)/50),2)=0,"CC"&TEXT((ROW(B210)/6)+10/3-INT((ROW(B210)-4)/50)/3+8,"#"),"CC"&TEXT((ROW(B210)/6)+10/3-INT((ROW(B210)-4)/50)/3+8,"#"))) -> 
B215: =INDIRECT( "FlashCards!"&IF(MOD(INT((ROW(B216)-4)/50),2)=0,"CF"&TEXT((ROW(B216)/6)+10/3-INT((ROW(B216)-4)/50)/3,"#"),"CF"&TEXT((ROW(B216)/6)+10/3-INT((ROW(B216)-4)/50)/3,"#"))) -> Chapter 18: Verb Ending | E215: =INDIRECT( "FlashCards!"&IF(MOD(INT((ROW(B216)-4)/50),2)=0,"CF"&TEXT((ROW(B216)/6)+10/3-INT((ROW(B216)-4)/50)/3+8,"#"),"CF"&TEXT((ROW(B216)/6)+10/3-INT((ROW(B216)-4)/50)/3+8,"#"))) -> Chapter 19: Verb Ending
B216: =INDIRECT( "FlashCards!"&IF(MOD(INT((ROW(B216)-4)/50),2)=0,"CE"&TEXT((ROW(B216)/6)+10/3-INT((ROW(B216)-4)/50)/3,"#"),"CD"&TEXT((ROW(B216)/6)+10/3-INT((ROW(B216)-4)/50)/3,"#"))) -> [active stem] +εται | E216: =INDIRECT( "FlashCards!"&IF(MOD(INT((ROW(B216)-4)/50),2)=0,"CE"&TEXT((ROW(B216)/6)+10/3-INT((ROW(B216)-4)/50)/3+8,"#"),"CD"&TEXT((ROW(B216)/6)+10/3-INT((ROW(B216)-4)/50)/3+8,"#"))) -> [active stem] +σετε
B218: =INDIRECT( "FlashCards!"&IF(MOD(INT((ROW(B216)-4)/50),2)=0,"CC"&TEXT((ROW(B216)/6)+10/3-INT((ROW(B216)-4)/50)/3,"#"),"")) ->  | E218: =INDIRECT( "FlashCards!"&IF(MOD(INT((ROW(B216)-4)/50),2)=0,"CC"&TEXT((ROW(B216)/6)+10/3-INT((ROW(B216)-4)/50)/3+8,"#"),"CC"&TEXT((ROW(B216)/6)+10/3-INT((ROW(B216)-4)/50)/3+8,"#"))) -> 
B221: =INDIRECT( "FlashCards!"&IF(MOD(INT((ROW(B222)-4)/50),2)=0,"CF"&TEXT((ROW(B222)/6)+10/3-INT((ROW(B222)-4)/50)/3,"#"),"CF"&TEXT((ROW(B222)/6)+10/3-INT((ROW(B222)-4)/50)/3,"#"))) -> Chapter 18: Verb Ending | E221: =INDIRECT( "FlashCards!"&IF(MOD(INT((ROW(B222)-4)/50),2)=0,"CF"&TEXT((ROW(B222)/6)+10/3-INT((ROW(B222)-4)/50)/3+8,"#"),"CF"&TEXT((ROW(B222)/6)+10/3-INT((ROW(B222)-4)/50)/3+8,"#"))) -> Chapter 19: Verb Ending
B222: =INDIRECT( "FlashCards!"&IF(MOD(INT((ROW(B222)-4)/50),2)=0,"CE"&TEXT((ROW(B222)/6)+10/3-INT((ROW(B222)-4)/50)/3,"#"),"CD"&TEXT((ROW(B222)/6)+10/3-INT((ROW(B222)-4)/50)/3,"#"))) -> [active stem] +ομεθα | E222: =INDIRECT( "FlashCards!"&IF(MOD(INT((ROW(B222)-4)/50),2)=0,"CE"&TEXT((ROW(B222)/6)+10/3-INT((ROW(B222)-4)/50)/3+8,"#"),"CD"&TEXT((ROW(B222)/6)+10/3-INT((ROW(B222)-4)/50)/3+8,"#"))) -> [active stem] +σονσι, +σοσιν
B224: =INDIRECT( "FlashCards!"&IF(MOD(INT((ROW(B222)-4)/50),2)=0,"CC"&TEXT((ROW(B222)/6)+10/3-INT((ROW(B222)-4)/50)/3,"#"),"")) ->  | E224: =INDIRECT( "FlashCards!"&IF(MOD(INT((ROW(B222)-4)/50),2)=0,"CC"&TEXT((ROW(B222)/6)+10/3-INT((ROW(B222)-4)/50)/3+8,"#"),"CC"&TEXT((ROW(B222)/6)+10/3-INT((ROW(B222)-4)/50)/3+8,"#"))) -> 
B227: =INDIRECT( "FlashCards!"&IF(MOD(INT((ROW(B228)-4)/50),2)=0,"CF"&TEXT((ROW(B228)/6)+10/3-INT((ROW(B228)-4)/50)/3,"#"),"CF"&TEXT((ROW(B228)/6)+10/3-INT((ROW(B228)-4)/50)/3,"#"))) -> Chapter 18: Verb Ending | E227: =INDIRECT( "FlashCards!"&IF(MOD(INT((ROW(B228)-4)/50),2)=0,"CF"&TEXT((ROW(B228)/6)+10/3-INT((ROW(B228)-4)/50)/3+8,"#"),"CF"&TEXT((ROW(B228)/6)+10/3-INT((ROW(B228)-4)/50)/3+8,"#"))) -> Chapter 19: Verb Ending
B228: =INDIRECT( "FlashCards!"&IF(MOD(INT((ROW(B228)-4)/50),2)=0,"CE"&TEXT((ROW(B228)/6)+10/3-INT((ROW(B228)-4)/50)/3,"#"),"CD"&TEXT((ROW(B228)/6)+10/3-INT((ROW(B228)-4)/50)/3,"#"))) -> [active stem] +εσθε | E228: =INDIRECT( "FlashCards!"&IF(MOD(INT((ROW(B228)-4)/50),2)=0,"CE"&TEXT((ROW(B228)/6)+10/3-INT((ROW(B228)-4)/50)/3+8,"#"),"CD"&TEXT((ROW(B228)/6)+10/3-INT((ROW(B228)-4)/50)/3+8,"#"))) -> [middle stem] +σομαι,
B230: =INDIRECT( "FlashCards!"&IF(MOD(INT((ROW(B228)-4)/50),2)=0,"CC"&TEXT((ROW(B228)/6)+10/3-INT((ROW(B228)-4)/50)/3,"#"),"")) ->  | E230: =INDIRECT( "FlashCards!"&IF(MOD(INT((ROW(B228)-4)/50),2)=0,"CC"&TEXT((ROW(B228)/6)+10/3-INT((ROW(B228)-4)/50)/3+8,"#"),"CC"&TEXT((ROW(B228)/6)+10/3-INT((ROW(B228)-4)/50)/3+8,"#"))) -> 
B233: =INDIRECT( "FlashCards!"&IF(MOD(INT((ROW(B234)-4)/50),2)=0,"CF"&TEXT((ROW(B234)/6)+10/3-INT((ROW(B234)-4)/50)/3,"#"),"CF"&TEXT((ROW(B234)/6)+10/3-INT((ROW(B234)-4)/50)/3,"#"))) -> Chapter 18: Verb Ending | E233: =INDIRECT( "FlashCards!"&IF(MOD(INT((ROW(B234)-4)/50),2)=0,"CF"&TEXT((ROW(B234)/6)+10/3-INT((ROW(B234)-4)/50)/3+8,"#"),"CF"&TEXT((ROW(B234)/6)+10/3-INT((ROW(B234)-4)/50)/3+8,"#"))) -> Chapter 19: Verb Ending
B234: =INDIRECT( "FlashCards!"&IF(MOD(INT((ROW(B234)-4)/50),2)=0,"CE"&TEXT((ROW(B234)/6)+10/3-INT((ROW(B234)-4)/50)/3,"#"),"CD"&TEXT((ROW(B234)/6)+10/3-INT((ROW(B234)-4)/50)/3,"#"))) -> [active stem] +ονται | E234: =INDIRECT( "FlashCards!"&IF(MOD(INT((ROW(B234)-4)/50),2)=0,"CE"&TEXT((ROW(B234)/6)+10/3-INT((ROW(B234)-4)/50)/3+8,"#"),"CD"&TEXT((ROW(B234)/6)+10/3-INT((ROW(B234)-4)/50)/3+8,"#"))) -> [middle stem] +σεσαι, +σῃ
B236: =INDIRECT( "FlashCards!"&IF(MOD(INT((ROW(B234)-4)/50),2)=0,"CC"&TEXT((ROW(B234)/6)+10/3-INT((ROW(B234)-4)/50)/3,"#"),"")) ->  | E236: =INDIRECT( "FlashCards!"&IF(MOD(INT((ROW(B234)-4)/50),2)=0,"CC"&TEXT((ROW(B234)/6)+10/3-INT((ROW(B234)-4)/50)/3+8,"#"),"CC"&TEXT((ROW(B234)/6)+10/3-INT((ROW(B234)-4)/50)/3+8,"#"))) -> 
B239: =INDIRECT( "FlashCards!"&IF(MOD(INT((ROW(B240)-4)/50),2)=0,"CF"&TEXT((ROW(B240)/6)+10/3-INT((ROW(B240)-4)/50)/3,"#"),"CF"&TEXT((ROW(B240)/6)+10/3-INT((ROW(B240)-4)/50)/3,"#"))) -> Chapter 19: Verb Ending | E239: =INDIRECT( "FlashCards!"&IF(MOD(INT((ROW(B240)-4)/50),2)=0,"CF"&TEXT((ROW(B240)/6)+10/3-INT((ROW(B240)-4)/50)/3+8,"#"),"CF"&TEXT((ROW(B240)/6)+10/3-INT((ROW(B240)-4)/50)/3+8,"#"))) -> Chapter 19: Verb Ending
B240: =INDIRECT( "FlashCards!"&IF(MOD(INT((ROW(B240)-4)/50),2)=0,"CE"&TEXT((ROW(B240)/6)+10/3-INT((ROW(B240)-4)/50)/3,"#"),"CD"&TEXT((ROW(B240)/6)+10/3-INT((ROW(B240)-4)/50)/3,"#"))) -> [active stem] +σω | E240: =INDIRECT( "FlashCards!"&IF(MOD(INT((ROW(B240)-4)/50),2)=0,"CE"&TEXT((ROW(B240)/6)+10/3-INT((ROW(B240)-4)/50)/3+8,"#"),"CD"&TEXT((ROW(B240)/6)+10/3-INT((ROW(B240)-4)/50)/3+8,"#"))) -> [middle stem] +σεται
B242: =INDIRECT( "FlashCards!"&IF(MOD(INT((ROW(B240)-4)/50),2)=0,"CC"&TEXT((ROW(B240)/6)+10/3-INT((ROW(B240)-4)/50)/3,"#"),"")) ->  | E242: =INDIRECT( "FlashCards!"&IF(MOD(INT((ROW(B240)-4)/50),2)=0,"CC"&TEXT((ROW(B240)/6)+10/3-INT((ROW(B240)-4)/50)/3+8,"#"),"CC"&TEXT((ROW(B240)/6)+10/3-INT((ROW(B240)-4)/50)/3+8,"#"))) -> 
B245: =INDIRECT( "FlashCards!"&IF(MOD(INT((ROW(B246)-4)/50),2)=0,"CF"&TEXT((ROW(B246)/6)+10/3-INT((ROW(B246)-4)/50)/3,"#"),"CF"&TEXT((ROW(B246)/6)+10/3-INT((ROW(B246)-4)/50)/3,"#"))) -> Chapter 19: Verb Ending | E245: =INDIRECT( "FlashCards!"&IF(MOD(INT((ROW(B246)-4)/50),2)=0,"CF"&TEXT((ROW(B246)/6)+10/3-INT((ROW(B246)-4)/50)/3+8,"#"),"CF"&TEXT((ROW(B246)/6)+10/3-INT((ROW(B246)-4)/50)/3+8,"#"))) -> Chapter 19: Verb Ending
B246: =INDIRECT( "FlashCards!"&IF(MOD(INT((ROW(B246)-4)/50),2)=0,"CE"&TEXT((ROW(B246)/6)+10/3-INT((ROW(B246)-4)/50)/3,"#"),"CD"&TEXT((ROW(B246)/6)+10/3-INT((ROW(B246)-4)/50)/3,"#"))) -> [active stem] +σες, +σεις | E246: =INDIRECT( "FlashCards!"&IF(MOD(INT((ROW(B246)-4)/50),2)=0,"CE"&TEXT((ROW(B246)/6)+10/3-INT((ROW(B246)-4)/50)/3+8,"#"),"CD"&TEXT((ROW(B246)/6)+10/3-INT((ROW(B246)-4)/50)/3+8,"#"))) -> [middle stem] +σομεθα
B248: =INDIRECT( "FlashCards!"&IF(MOD(INT((ROW(B246)-4)/50),2)=0,"CC"&TEXT((ROW(B246)/6)+10/3-INT((ROW(B246)-4)/50)/3,"#"),"")) ->  | E248: =INDIRECT( "FlashCards!"&IF(MOD(INT((ROW(B246)-4)/50),2)=0,"CC"&TEXT((ROW(B246)/6)+10/3-INT((ROW(B246)-4)/50)/3+8,"#"),"CC"&TEXT((ROW(B246)/6)+10/3-INT((ROW(B246)-4)/50)/3+8,"#"))) -> 
B253: =E203 -> Chapter 19: Verb Ending | E253: =B203 -> Chapter 18: Verb Ending
B254: =INDIRECT( "FlashCards!"&IF(MOD(INT((ROW(B254)-4)/50),2)=0,"CE"&TEXT((ROW(B254)/6)+10/3-INT((ROW(B254)-4)/50)/3,"#"),"CD"&TEXT((ROW(B254)/6)+10/3-INT((ROW(B254)-4)/50)/3,"#"))) -> he/she/it will verb (it) [future active indicative] | E254: =INDIRECT( "FlashCards!"&IF(MOD(INT((ROW(B254)-4)/50),2)=0,"CE"&TEXT((ROW(B254)/6)+10/3-INT((ROW(B254)-4)/50)/3-8,"#"),"CD"&TEXT((ROW(B254)/6)+10/3-INT((ROW(B254)-4)/50)/3-8,"#"))) -> I am being verbed (by it) [present passive indicative]
B259: =E209 -> Chapter 19: Verb Ending | E259: =B209 -> Chapter 18: Verb Ending
B260: =INDIRECT( "FlashCards!"&IF(MOD(INT((ROW(B260)-4)/50),2)=0,"CE"&TEXT((ROW(B260)/6)+10/3-INT((ROW(B260)-4)/50)/3,"#"),"CD"&TEXT((ROW(B260)/6)+10/3-INT((ROW(B260)-4)/50)/3,"#"))) -> we will verb (it) [future active indicative] | E260: =INDIRECT( "FlashCards!"&IF(MOD(INT((ROW(B260)-4)/50),2)=0,"CE"&TEXT((ROW(B260)/6)+10/3-INT((ROW(B260)-4)/50)/3-8,"#"),"CD"&TEXT((ROW(B260)/6)+10/3-INT((ROW(B260)-4)/50)/3-8,"#"))) -> you are being verbed (by it) [present passive indicative]
B265: =E215 -> Chapter 19: Verb Ending | E265: =B215 -> Chapter 18: Verb Ending
B266: =INDIRECT( "FlashCards!"&IF(MOD(INT((ROW(B266)-4)/50),2)=0,"CE"&TEXT((ROW(B266)/6)+10/3-INT((ROW(B266)-4)/50)/3,"#"),"CD"&TEXT((ROW(B266)/6)+10/3-INT((ROW(B266)-4)/50)/3,"#"))) -> ya'll will verb (it) [future active indicative] | E266: =INDIRECT( "FlashCards!"&IF(MOD(INT((ROW(B266)-4)/50),2)=0,"CE"&TEXT((ROW(B266)/6)+10/3-INT((ROW(B266)-4)/50)/3-8,"#"),"CD"&TEXT((ROW(B266)/6)+10/3-INT((ROW(B266)-4)/50)/3-8,"#"))) -> he/she/it is being verbed (by it) [present passive indicative]
B271: =E221 -> Chapter 19: Verb Ending | E271: =B221 -> Chapter 18: Verb Ending
B272: =INDIRECT( "FlashCards!"&IF(MOD(INT((ROW(B272)-4)/50),2)=0,"CE"&TEXT((ROW(B272)/6)+10/3-INT((ROW(B272)-4)/50)/3,"#"),"CD"&TEXT((ROW(B272)/6)+10/3-INT((ROW(B272)-4)/50)/3,"#"))) -> they will verb (it) [future active indicative] | E272: =INDIRECT( "FlashCards!"&IF(MOD(INT((ROW(B272)-4)/50),2)=0,"CE"&TEXT((ROW(B272)/6)+10/3-INT((ROW(B272)-4)/50)/3-8,"#"),"CD"&TEXT((ROW(B272)/6)+10/3-INT((ROW(B272)-4)/50)/3-8,"#"))) -> we are being verbed (by it) [present passive indicative]
B277: =E227 -> Chapter 19: Verb Ending | E277: =B227 -> Chapter 18: Verb Ending
B278: =INDIRECT( "FlashCards!"&IF(MOD(INT((ROW(B278)-4)/50),2)=0,"CE"&TEXT((ROW(B278)/6)+10/3-INT((ROW(B278)-4)/50)/3,"#"),"CD"&TEXT((ROW(B278)/6)+10/3-INT((ROW(B278)-4)/50)/3,"#"))) -> I will verb [future middle indicative] | E278: =INDIRECT( "FlashCards!"&IF(MOD(INT((ROW(B278)-4)/50),2)=0,"CE"&TEXT((ROW(B278)/6)+10/3-INT((ROW(B278)-4)/50)/3-8,"#"),"CD"&TEXT((ROW(B278)/6)+10/3-INT((ROW(B278)-4)/50)/3-8,"#"))) -> ya'll are being verbed (by it) [present passive indicative]
B283: =E233 -> Chapter 19: Verb Ending | E283: =B233 -> Chapter 18: Verb Ending
B284: =INDIRECT( "FlashCards!"&IF(MOD(INT((ROW(B284)-4)/50),2)=0,"CE"&TEXT((ROW(B284)/6)+10/3-INT((ROW(B284)-4)/50)/3,"#"),"CD"&TEXT((ROW(B284)/6)+10/3-INT((ROW(B284)-4)/50)/3,"#"))) -> you will verb [future middle indicative] | E284: =INDIRECT( "FlashCards!"&IF(MOD(INT((ROW(B284)-4)/50),2)=0,"CE"&TEXT((ROW(B284)/6)+10/3-INT((ROW(B284)-4)/50)/3-8,"#"),"CD"&TEXT((ROW(B284)/6)+10/3-INT((ROW(B284)-4)/50)/3-8,"#"))) -> they are being verbed (by it) [present passive indicative]
B289: =E239 -> Chapter 19: Verb Ending | E289: =B239 -> Chapter 19: Verb Ending
B290: =INDIRECT( "FlashCards!"&IF(MOD(INT((ROW(B290)-4)/50),2)=0,"CE"&TEXT((ROW(B290)/6)+10/3-INT((ROW(B290)-4)/50)/3,"#"),"CD"&TEXT((ROW(B290)/6)+10/3-INT((ROW(B290)-4)/50)/3,"#"))) -> he/she/it will verb [future middle indicative] | E290: =INDIRECT( "FlashCards!"&IF(MOD(INT((ROW(B290)-4)/50),2)=0,"CE"&TEXT((ROW(B290)/6)+10/3-INT((ROW(B290)-4)/50)/3-8,"#"),"CD"&TEXT((ROW(B290)/6)+10/3-INT((ROW(B290)-4)/50)/3-8,"#"))) -> I will verb (it) [future active indicative]
B295: =E245 -> Chapter 19: Verb Ending | E295: =B245 -> Chapter 19: Verb Ending
B296: =INDIRECT( "FlashCards!"&IF(MOD(INT((ROW(B296)-4)/50),2)=0,"CE"&TEXT((ROW(B296)/6)+10/3-INT((ROW(B296)-4)/50)/3,"#"),"CD"&TEXT((ROW(B296)/6)+10/3-INT((ROW(B296)-4)/50)/3,"#"))) -> we will verb [future middle indicative] | E296: =INDIRECT( "FlashCards!"&IF(MOD(INT((ROW(B296)-4)/50),2)=0,"CE"&TEXT((ROW(B296)/6)+10/3-INT((ROW(B296)-4)/50)/3-8,"#"),"CD"&TEXT((ROW(B296)/6)+10/3-INT((ROW(B296)-4)/50)/3-8,"#"))) -> you will verb (it) [future active indicative]
B303: =INDIRECT( "FlashCards!"&IF(MOD(INT((ROW(B304)-4)/50),2)=0,"CF"&TEXT((ROW(B304)/6)+10/3-INT((ROW(B304)-4)/50)/3,"#"),"CF"&TEXT((ROW(B304)/6)+10/3-INT((ROW(B304)-4)/50)/3,"#"))) -> Chapter 19: Verb Ending | E303: =INDIRECT( "FlashCards!"&IF(MOD(INT((ROW(B304)-4)/50),2)=0,"CF"&TEXT((ROW(B304)/6)+10/3-INT((ROW(B304)-4)/50)/3+8,"#"),"CF"&TEXT((ROW(B304)/6)+10/3-INT((ROW(B304)-4)/50)/3+8,"#"))) -> Chapter 21: Verb Ending
B304: =INDIRECT( "FlashCards!"&IF(MOD(INT((ROW(B304)-4)/50),2)=0,"CE"&TEXT((ROW(B304)/6)+10/3-INT((ROW(B304)-4)/50)/3,"#"),"CD"&TEXT((ROW(B304)/6)+10/3-INT((ROW(B304)-4)/50)/3,"#"))) -> [middle stem] +σεσθε | E304: =INDIRECT( "FlashCards!"&IF(MOD(INT((ROW(B304)-4)/50),2)=0,"CE"&TEXT((ROW(B304)/6)+10/3-INT((ROW(B304)-4)/50)/3+8,"#"),"CD"&TEXT((ROW(B304)/6)+10/3-INT((ROW(B304)-4)/50)/3+8,"#"))) -> ἐ + [active stem] +ομην
B306: =INDIRECT( "FlashCards!"&IF(MOD(INT((ROW(B304)-4)/50),2)=0,"CC"&TEXT((ROW(B304)/6)+10/3-INT((ROW(B304)-4)/50)/3,"#"),"")) ->  | E306: =INDIRECT( "FlashCards!"&IF(MOD(INT((ROW(B304)-4)/50),2)=0,"CC"&TEXT((ROW(B304)/6)+10/3-INT((ROW(B304)-4)/50)/3+8,"#"),"CC"&TEXT((ROW(B304)/6)+10/3-INT((ROW(B304)-4)/50)/3+8,"#"))) -> 
B309: =INDIRECT( "FlashCards!"&IF(MOD(INT((ROW(B310)-4)/50),2)=0,"CF"&TEXT((ROW(B310)/6)+10/3-INT((ROW(B310)-4)/50)/3,"#"),"CF"&TEXT((ROW(B310)/6)+10/3-INT((ROW(B310)-4)/50)/3,"#"))) -> Chapter 19: Verb Ending | E309: =INDIRECT( "FlashCards!"&IF(MOD(INT((ROW(B310)-4)/50),2)=0,"CF"&TEXT((ROW(B310)/6)+10/3-INT((ROW(B310)-4)/50)/3+8,"#"),"CF"&TEXT((ROW(B310)/6)+10/3-INT((ROW(B310)-4)/50)/3+8,"#"))) -> Chapter 21: Verb Ending
B310: =INDIRECT( "FlashCards!"&IF(MOD(INT((ROW(B310)-4)/50),2)=0,"CE"&TEXT((ROW(B310)/6)+10/3-INT((ROW(B310)-4)/50)/3,"#"),"CD"&TEXT((ROW(B310)/6)+10/3-INT((ROW(B310)-4)/50)/3,"#"))) -> [middle stem] +σονται | E310: =INDIRECT( "FlashCards!"&IF(MOD(INT((ROW(B310)-4)/50),2)=0,"CE"&TEXT((ROW(B310)/6)+10/3-INT((ROW(B310)-4)/50)/3+8,"#"),"CD"&TEXT((ROW(B310)/6)+10/3-INT((ROW(B310)-4)/50)/3+8,"#"))) -> ἐ + [active stem] +εσο
B312: =INDIRECT( "FlashCards!"&IF(MOD(INT((ROW(B310)-4)/50),2)=0,"CC"&TEXT((ROW(B310)/6)+10/3-INT((ROW(B310)-4)/50)/3,"#"),"")) ->  | E312: =INDIRECT( "FlashCards!"&IF(MOD(INT((ROW(B310)-4)/50),2)=0,"CC"&TEXT((ROW(B310)/6)+10/3-INT((ROW(B310)-4)/50)/3+8,"#"),"CC"&TEXT((ROW(B310)/6)+10/3-INT((ROW(B310)-4)/50)/3+8,"#"))) -> 
B315: =INDIRECT( "FlashCards!"&IF(MOD(INT((ROW(B316)-4)/50),2)=0,"CF"&TEXT((ROW(B316)/6)+10/3-INT((ROW(B316)-4)/50)/3,"#"),"CF"&TEXT((ROW(B316)/6)+10/3-INT((ROW(B316)-4)/50)/3,"#"))) -> Chapter 21: Verb Ending | E315: =INDIRECT( "FlashCards!"&IF(MOD(INT((ROW(B316)-4)/50),2)=0,"CF"&TEXT((ROW(B316)/6)+10/3-INT((ROW(B316)-4)/50)/3+8,"#"),"CF"&TEXT((ROW(B316)/6)+10/3-INT((ROW(B316)-4)/50)/3+8,"#"))) -> Chapter 21: Verb Ending
B316: =INDIRECT( "FlashCards!"&IF(MOD(INT((ROW(B316)-4)/50),2)=0,"CE"&TEXT((ROW(B316)/6)+10/3-INT((ROW(B316)-4)/50)/3,"#"),"CD"&TEXT((ROW(B316)/6)+10/3-INT((ROW(B316)-4)/50)/3,"#"))) -> ἐ + [active stem] +ον | E316: =INDIRECT( "FlashCards!"&IF(MOD(INT((ROW(B316)-4)/50),2)=0,"CE"&TEXT((ROW(B316)/6)+10/3-INT((ROW(B316)-4)/50)/3+8,"#"),"CD"&TEXT((ROW(B316)/6)+10/3-INT((ROW(B316)-4)/50)/3+8,"#"))) -> ἐ + [active stem] +ετο
B318: =INDIRECT( "FlashCards!"&IF(MOD(INT((ROW(B316)-4)/50),2)=0,"CC"&TEXT((ROW(B316)/6)+10/3-INT((ROW(B316)-4)/50)/3,"#"),"")) ->  | E318: =INDIRECT( "FlashCards!"&IF(MOD(INT((ROW(B316)-4)/50),2)=0,"CC"&TEXT((ROW(B316)/6)+10/3-INT((ROW(B316)-4)/50)/3+8,"#"),"CC"&TEXT((ROW(B316)/6)+10/3-INT((ROW(B316)-4)/50)/3+8,"#"))) -> 
B321: =INDIRECT( "FlashCards!"&IF(MOD(INT((ROW(B322)-4)/50),2)=0,"CF"&TEXT((ROW(B322)/6)+10/3-INT((ROW(B322)-4)/50)/3,"#"),"CF"&TEXT((ROW(B322)/6)+10/3-INT((ROW(B322)-4)/50)/3,"#"))) -> Chapter 21: Verb Ending | E321: =INDIRECT( "FlashCards!"&IF(MOD(INT((ROW(B322)-4)/50),2)=0,"CF"&TEXT((ROW(B322)/6)+10/3-INT((ROW(B322)-4)/50)/3+8,"#"),"CF"&TEXT((ROW(B322)/6)+10/3-INT((ROW(B322)-4)/50)/3+8,"#"))) -> Chapter 21: Verb Ending
B322: =INDIRECT( "FlashCards!"&IF(MOD(INT((ROW(B322)-4)/50),2)=0,"CE"&TEXT((ROW(B322)/6)+10/3-INT((ROW(B322)-4)/50)/3,"#"),"CD"&TEXT((ROW(B322)/6)+10/3-INT((ROW(B322)-4)/50)/3,"#"))) -> ἐ + [active stem] +ες, +εις | E322: =INDIRECT( "FlashCards!"&IF(MOD(INT((ROW(B322)-4)/50),2)=0,"CE"&TEXT((ROW(B322)/6)+10/3-INT((ROW(B322)-4)/50)/3+8,"#"),"CD"&TEXT((ROW(B322)/6)+10/3-INT((ROW(B322)-4)/50)/3+8,"#"))) -> ἐ + [active stem] +ομεθα
B324: =INDIRECT( "FlashCards!"&IF(MOD(INT((ROW(B322)-4)/50),2)=0,"CC"&TEXT((ROW(B322)/6)+10/3-INT((ROW(B322)-4)/50)/3,"#"),"")) ->  | E324: =INDIRECT( "FlashCards!"&IF(MOD(INT((ROW(B322)-4)/50),2)=0,"CC"&TEXT((ROW(B322)/6)+10/3-INT((ROW(B322)-4)/50)/3+8,"#"),"CC"&TEXT((ROW(B322)/6)+10/3-INT((ROW(B322)-4)/50)/3+8,"#"))) -> 
B327: =INDIRECT( "FlashCards!"&IF(MOD(INT((ROW(B328)-4)/50),2)=0,"CF"&TEXT((ROW(B328)/6)+10/3-INT((ROW(B328)-4)/50)/3,"#"),"CF"&TEXT((ROW(B328)/6)+10/3-INT((ROW(B328)-4)/50)/3,"#"))) -> Chapter 21: Verb Ending | E327: =INDIRECT( "FlashCards!"&IF(MOD(INT((ROW(B328)-4)/50),2)=0,"CF"&TEXT((ROW(B328)/6)+10/3-INT((ROW(B328)-4)/50)/3+8,"#"),"CF"&TEXT((ROW(B328)/6)+10/3-INT((ROW(B328)-4)/50)/3+8,"#"))) -> Chapter 21: Verb Ending
B328: =INDIRECT( "FlashCards!"&IF(MOD(INT((ROW(B328)-4)/50),2)=0,"CE"&TEXT((ROW(B328)/6)+10/3-INT((ROW(B328)-4)/50)/3,"#"),"CD"&TEXT((ROW(B328)/6)+10/3-INT((ROW(B328)-4)/50)/3,"#"))) -> ἐ + [active stem] +ει | E328: =INDIRECT( "FlashCards!"&IF(MOD(INT((ROW(B328)-4)/50),2)=0,"CE"&TEXT((ROW(B328)/6)+10/3-INT((ROW(B328)-4)/50)/3+8,"#"),"CD"&TEXT((ROW(B328)/6)+10/3-INT((ROW(B328)-4)/50)/3+8,"#"))) -> ἐ + [active stem] +εσθε
B330: =INDIRECT( "FlashCards!"&IF(MOD(INT((ROW(B328)-4)/50),2)=0,"CC"&TEXT((ROW(B328)/6)+10/3-INT((ROW(B328)-4)/50)/3,"#"),"")) ->  | E330: =INDIRECT( "FlashCards!"&IF(MOD(INT((ROW(B328)-4)/50),2)=0,"CC"&TEXT((ROW(B328)/6)+10/3-INT((ROW(B328)-4)/50)/3+8,"#"),"CC"&TEXT((ROW(B328)/6)+10/3-INT((ROW(B328)-4)/50)/3+8,"#"))) -> 
B333: =INDIRECT( "FlashCards!"&IF(MOD(INT((ROW(B334)-4)/50),2)=0,"CF"&TEXT((ROW(B334)/6)+10/3-INT((ROW(B334)-4)/50)/3,"#"),"CF"&TEXT((ROW(B334)/6)+10/3-INT((ROW(B334)-4)/50)/3,"#"))) -> Chapter 21: Verb Ending | E333: =INDIRECT( "FlashCards!"&IF(MOD(INT((ROW(B334)-4)/50),2)=0,"CF"&TEXT((ROW(B334)/6)+10/3-INT((ROW(B334)-4)/50)/3+8,"#"),"CF"&TEXT((ROW(B334)/6)+10/3-INT((ROW(B334)-4)/50)/3+8,"#"))) -> Chapter 21: Verb Ending
B334: =INDIRECT( "FlashCards!"&IF(MOD(INT((ROW(B334)-4)/50),2)=0,"CE"&TEXT((ROW(B334)/6)+10/3-INT((ROW(B334)-4)/50)/3,"#"),"CD"&TEXT((ROW(B334)/6)+10/3-INT((ROW(B334)-4)/50)/3,"#"))) -> ἐ + [active stem] +ομεν | E334: =INDIRECT( "FlashCards!"&IF(MOD(INT((ROW(B334)-4)/50),2)=0,"CE"&TEXT((ROW(B334)/6)+10/3-INT((ROW(B334)-4)/50)/3+8,"#"),"CD"&TEXT((ROW(B334)/6)+10/3-INT((ROW(B334)-4)/50)/3+8,"#"))) -> ἐ + [active stem] +οντο
B336: =INDIRECT( "FlashCards!"&IF(MOD(INT((ROW(B334)-4)/50),2)=0,"CC"&TEXT((ROW(B334)/6)+10/3-INT((ROW(B334)-4)/50)/3,"#"),"")) ->  | E336: =INDIRECT( "FlashCards!"&IF(MOD(INT((ROW(B334)-4)/50),2)=0,"CC"&TEXT((ROW(B334)/6)+10/3-INT((ROW(B334)-4)/50)/3+8,"#"),"CC"&TEXT((ROW(B334)/6)+10/3-INT((ROW(B334)-4)/50)/3+8,"#"))) -> 
B339: =INDIRECT( "FlashCards!"&IF(MOD(INT((ROW(B340)-4)/50),2)=0,"CF"&TEXT((ROW(B340)/6)+10/3-INT((ROW(B340)-4)/50)/3,"#"),"CF"&TEXT((ROW(B340)/6)+10/3-INT((ROW(B340)-4)/50)/3,"#"))) -> Chapter 21: Verb Ending | E339: =INDIRECT( "FlashCards!"&IF(MOD(INT((ROW(B340)-4)/50),2)=0,"CF"&TEXT((ROW(B340)/6)+10/3-INT((ROW(B340)-4)/50)/3+8,"#"),"CF"&TEXT((ROW(B340)/6)+10/3-INT((ROW(B340)-4)/50)/3+8,"#"))) -> Chapter 21: Verb Ending
B340: =INDIRECT( "FlashCards!"&IF(MOD(INT((ROW(B340)-4)/50),2)=0,"CE"&TEXT((ROW(B340)/6)+10/3-INT((ROW(B340)-4)/50)/3,"#"),"CD"&TEXT((ROW(B340)/6)+10/3-INT((ROW(B340)-4)/50)/3,"#"))) -> ἐ + [active stem] +ετε | E340: =INDIRECT( "FlashCards!"&IF(MOD(INT((ROW(B340)-4)/50),2)=0,"CE"&TEXT((ROW(B340)/6)+10/3-INT((ROW(B340)-4)/50)/3+8,"#"),"CD"&TEXT((ROW(B340)/6)+10/3-INT((ROW(B340)-4)/50)/3+8,"#"))) -> ἐ + [middle stem] +ομην
B342: =INDIRECT( "FlashCards!"&IF(MOD(INT((ROW(B340)-4)/50),2)=0,"CC"&TEXT((ROW(B340)/6)+10/3-INT((ROW(B340)-4)/50)/3,"#"),"")) ->  | E342: =INDIRECT( "FlashCards!"&IF(MOD(INT((ROW(B340)-4)/50),2)=0,"CC"&TEXT((ROW(B340)/6)+10/3-INT((ROW(B340)-4)/50)/3+8,"#"),"CC"&TEXT((ROW(B340)/6)+10/3-INT((ROW(B340)-4)/50)/3+8,"#"))) -> 
B345: =INDIRECT( "FlashCards!"&IF(MOD(INT((ROW(B346)-4)/50),2)=0,"CF"&TEXT((ROW(B346)/6)+10/3-INT((ROW(B346)-4)/50)/3,"#"),"CF"&TEXT((ROW(B346)/6)+10/3-INT((ROW(B346)-4)/50)/3,"#"))) -> Chapter 21: Verb Ending | E345: =INDIRECT( "FlashCards!"&IF(MOD(INT((ROW(B346)-4)/50),2)=0,"CF"&TEXT((ROW(B346)/6)+10/3-INT((ROW(B346)-4)/50)/3+8,"#"),"CF"&TEXT((ROW(B346)/6)+10/3-INT((ROW(B346)-4)/50)/3+8,"#"))) -> Chapter 21: Verb Ending
B346: =INDIRECT( "FlashCards!"&IF(MOD(INT((ROW(B346)-4)/50),2)=0,"CE"&TEXT((ROW(B346)/6)+10/3-INT((ROW(B346)-4)/50)/3,"#"),"CD"&TEXT((ROW(B346)/6)+10/3-INT((ROW(B346)-4)/50)/3,"#"))) -> ἐ + [active stem] +ον | E346: =INDIRECT( "FlashCards!"&IF(MOD(INT((ROW(B346)-4)/50),2)=0,"CE"&TEXT((ROW(B346)/6)+10/3-INT((ROW(B346)-4)/50)/3+8,"#"),"CD"&TEXT((ROW(B346)/6)+10/3-INT((ROW(B346)-4)/50)/3+8,"#"))) -> ἐ + [middle stem] +εσο
B348: =INDIRECT( "FlashCards!"&IF(MOD(INT((ROW(B346)-4)/50),2)=0,"CC"&TEXT((ROW(B346)/6)+10/3-INT((ROW(B346)-4)/50)/3,"#"),"")) ->  | E348: =INDIRECT( "FlashCards!"&IF(MOD(INT((ROW(B346)-4)/50),2)=0,"CC"&TEXT((ROW(B346)/6)+10/3-INT((ROW(B346)-4)/50)/3+8,"#"),"CC"&TEXT((ROW(B346)/6)+10/3-INT((ROW(B346)-4)/50)/3+8,"#"))) -> 
B353: =E303 -> Chapter 21: Verb Ending | E353: =B303 -> Chapter 19: Verb Ending
B354: =INDIRECT( "FlashCards!"&IF(MOD(INT((ROW(B354)-4)/50),2)=0,"CE"&TEXT((ROW(B354)/6)+10/3-INT((ROW(B354)-4)/50)/3,"#"),"CD"&TEXT((ROW(B354)/6)+10/3-INT((ROW(B354)-4)/50)/3,"#"))) -> I was being verbed (by it) [imperfect passive indicative] | E354: =INDIRECT( "FlashCards!"&IF(MOD(INT((ROW(B354)-4)/50),2)=0,"CE"&TEXT((ROW(B354)/6)+10/3-INT((ROW(B354)-4)/50)/3-8,"#"),"CD"&TEXT((ROW(B354)/6)+10/3-INT((ROW(B354)-4)/50)/3-8,"#"))) -> ya'll will verb [future middle indicative]
B359: =E309 -> Chapter 21: Verb Ending | E359: =B309 -> Chapter 19: Verb Ending
B360: =INDIRECT( "FlashCards!"&IF(MOD(INT((ROW(B360)-4)/50),2)=0,"CE"&TEXT((ROW(B360)/6)+10/3-INT((ROW(B360)-4)/50)/3,"#"),"CD"&TEXT((ROW(B360)/6)+10/3-INT((ROW(B360)-4)/50)/3,"#"))) -> you were being verbed (by it) [imperfect passive indicative] | E360: =INDIRECT( "FlashCards!"&IF(MOD(INT((ROW(B360)-4)/50),2)=0,"CE"&TEXT((ROW(B360)/6)+10/3-INT((ROW(B360)-4)/50)/3-8,"#"),"CD"&TEXT((ROW(B360)/6)+10/3-INT((ROW(B360)-4)/50)/3-8,"#"))) -> they will verb [future middle indicative]
B365: =E315 -> Chapter 21: Verb Ending | E365: =B315 -> Chapter 21: Verb Ending
B366: =INDIRECT( "FlashCards!"&IF(MOD(INT((ROW(B366)-4)/50),2)=0,"CE"&TEXT((ROW(B366)/6)+10/3-INT((ROW(B366)-4)/50)/3,"#"),"CD"&TEXT((ROW(B366)/6)+10/3-INT((ROW(B366)-4)/50)/3,"#"))) -> he/she/it was being verbed (by it) [imperfect passive indicative] | E366: =INDIRECT( "FlashCards!"&IF(MOD(INT((ROW(B366)-4)/50),2)=0,"CE"&TEXT((ROW(B366)/6)+10/3-INT((ROW(B366)-4)/50)/3-8,"#"),"CD"&TEXT((ROW(B366)/6)+10/3-INT((ROW(B366)-4)/50)/3-8,"#"))) -> I was/they were verbing (it) [imperfect active indicative]
B371: =E321 -> Chapter 21: Verb Ending | E371: =B321 -> Chapter 21: Verb Ending
B372: =INDIRECT( "FlashCards!"&IF(MOD(INT((ROW(B372)-4)/50),2)=0,"CE"&TEXT((ROW(B372)/6)+10/3-INT((ROW(B372)-4)/50)/3,"#"),"CD"&TEXT((ROW(B372)/6)+10/3-INT((ROW(B372)-4)/50)/3,"#"))) -> we were being verbed (by it) [imperfect passive indicative] | E372: =INDIRECT( "FlashCards!"&IF(MOD(INT((ROW(B372)-4)/50),2)=0,"CE"&TEXT((ROW(B372)/6)+10/3-INT((ROW(B372)-4)/50)/3-8,"#"),"CD"&TEXT((ROW(B372)/6)+10/3-INT((ROW(B372)-4)/50)/3-8,"#"))) -> you were verbing (it) [imperfect active indicative]
B377: =E327 -> Chapter 21: Verb Ending | E377: =B327 -> Chapter 21: Verb Ending
B378: =INDIRECT( "FlashCards!"&IF(MOD(INT((ROW(B378)-4)/50),2)=0,"CE"&TEXT((ROW(B378)/6)+10/3-INT((ROW(B378)-4)/50)/3,"#"),"CD"&TEXT((ROW(B378)/6)+10/3-INT((ROW(B378)-4)/50)/3,"#"))) -> ya'll were being verbed (by it) [imperfect passive indicative] | E378: =INDIRECT( "FlashCards!"&IF(MOD(INT((ROW(B378)-4)/50),2)=0,"CE"&TEXT((ROW(B378)/6)+10/3-INT((ROW(B378)-4)/50)/3-8,"#"),"CD"&TEXT((ROW(B378)/6)+10/3-INT((ROW(B378)-4)/50)/3-8,"#"))) -> he/she/it was verbing (it) [imperfect active indicative]
B383: =E333 -> Chapter 21: Verb Ending | E383: =B333 -> Chapter 21: Verb Ending
B384: =INDIRECT( "FlashCards!"&IF(MOD(INT((ROW(B384)-4)/50),2)=0,"CE"&TEXT((ROW(B384)/6)+10/3-INT((ROW(B384)-4)/50)/3,"#"),"CD"&TEXT((ROW(B384)/6)+10/3-INT((ROW(B384)-4)/50)/3,"#"))) -> they were being verbed (by it) [imperfect passive indicative] | E384: =INDIRECT( "FlashCards!"&IF(MOD(INT((ROW(B384)-4)/50),2)=0,"CE"&TEXT((ROW(B384)/6)+10/3-INT((ROW(B384)-4)/50)/3-8,"#"),"CD"&TEXT((ROW(B384)/6)+10/3-INT((ROW(B384)-4)/50)/3-8,"#"))) -> we were verbing (it) [imperfect active indicative]
B389: =E339 -> Chapter 21: Verb Ending | E389: =B339 -> Chapter 21: Verb Ending
B390: =INDIRECT( "FlashCards!"&IF(MOD(INT((ROW(B390)-4)/50),2)=0,"CE"&TEXT((ROW(B390)/6)+10/3-INT((ROW(B390)-4)/50)/3,"#"),"CD"&TEXT((ROW(B390)/6)+10/3-INT((ROW(B390)-4)/50)/3,"#"))) -> I was verbing [imperfect middle indicative] | E390: =INDIRECT( "FlashCards!"&IF(MOD(INT((ROW(B390)-4)/50),2)=0,"CE"&TEXT((ROW(B390)/6)+10/3-INT((ROW(B390)-4)/50)/3-8,"#"),"CD"&TEXT((ROW(B390)/6)+10/3-INT((ROW(B390)-4)/50)/3-8,"#"))) -> ya'll were verbing (it) [imperfect active indicative]
B395: =E345 -> Chapter 21: Verb Ending | E395: =B345 -> Chapter 21: Verb Ending
B396: =INDIRECT( "FlashCards!"&IF(MOD(INT((ROW(B396)-4)/50),2)=0,"CE"&TEXT((ROW(B396)/6)+10/3-INT((ROW(B396)-4)/50)/3,"#"),"CD"&TEXT((ROW(B396)/6)+10/3-INT((ROW(B396)-4)/50)/3,"#"))) -> you were verbing [imperfect middle indicative] | E396: =INDIRECT( "FlashCards!"&IF(MOD(INT((ROW(B396)-4)/50),2)=0,"CE"&TEXT((ROW(B396)/6)+10/3-INT((ROW(B396)-4)/50)/3-8,"#"),"CD"&TEXT((ROW(B396)/6)+10/3-INT((ROW(B396)-4)/50)/3-8,"#"))) -> they were verbing (it) [imperfect active indicative]
B403: =INDIRECT( "FlashCards!"&IF(MOD(INT((ROW(B404)-4)/50),2)=0,"CF"&TEXT((ROW(B404)/6)+10/3-INT((ROW(B404)-4)/50)/3,"#"),"CF"&TEXT((ROW(B404)/6)+10/3-INT((ROW(B404)-4)/50)/3,"#"))) -> Chapter 21: Verb Ending | E403: =INDIRECT( "FlashCards!"&IF(MOD(INT((ROW(B404)-4)/50),2)=0,"CF"&TEXT((ROW(B404)/6)+10/3-INT((ROW(B404)-4)/50)/3+8,"#"),"CF"&TEXT((ROW(B404)/6)+10/3-INT((ROW(B404)-4)/50)/3+8,"#"))) -> Chapter 17: Verb
B404: =INDIRECT( "FlashCards!"&IF(MOD(INT((ROW(B404)-4)/50),2)=0,"CE"&TEXT((ROW(B404)/6)+10/3-INT((ROW(B404)-4)/50)/3,"#"),"CD"&TEXT((ROW(B404)/6)+10/3-INT((ROW(B404)-4)/50)/3,"#"))) -> ἐ + [middle stem] +ετο | E404: =INDIRECT( "FlashCards!"&IF(MOD(INT((ROW(B404)-4)/50),2)=0,"CE"&TEXT((ROW(B404)/6)+10/3-INT((ROW(B404)-4)/50)/3+8,"#"),"CD"&TEXT((ROW(B404)/6)+10/3-INT((ROW(B404)-4)/50)/3+8,"#"))) -> ἀγαπάω
B406: =INDIRECT( "FlashCards!"&IF(MOD(INT((ROW(B404)-4)/50),2)=0,"CC"&TEXT((ROW(B404)/6)+10/3-INT((ROW(B404)-4)/50)/3,"#"),"")) ->  | E406: =INDIRECT( "FlashCards!"&IF(MOD(INT((ROW(B404)-4)/50),2)=0,"CC"&TEXT((ROW(B404)/6)+10/3-INT((ROW(B404)-4)/50)/3+8,"#"),"CC"&TEXT((ROW(B404)/6)+10/3-INT((ROW(B404)-4)/50)/3+8,"#"))) -> ah-gah-PAY-owe
B409: =INDIRECT( "FlashCards!"&IF(MOD(INT((ROW(B410)-4)/50),2)=0,"CF"&TEXT((ROW(B410)/6)+10/3-INT((ROW(B410)-4)/50)/3,"#"),"CF"&TEXT((ROW(B410)/6)+10/3-INT((ROW(B410)-4)/50)/3,"#"))) -> Chapter 21: Verb Ending | E409: =INDIRECT( "FlashCards!"&IF(MOD(INT((ROW(B410)-4)/50),2)=0,"CF"&TEXT((ROW(B410)/6)+10/3-INT((ROW(B410)-4)/50)/3+8,"#"),"CF"&TEXT((ROW(B410)/6)+10/3-INT((ROW(B410)-4)/50)/3+8,"#"))) -> Chapter 06: Noun
B410: =INDIRECT( "FlashCards!"&IF(MOD(INT((ROW(B410)-4)/50),2)=0,"CE"&TEXT((ROW(B410)/6)+10/3-INT((ROW(B410)-4)/50)/3,"#"),"CD"&TEXT((ROW(B410)/6)+10/3-INT((ROW(B410)-4)/50)/3,"#"))) -> ἐ + [middle stem] +ομεθα | E410: =INDIRECT( "FlashCards!"&IF(MOD(INT((ROW(B410)-4)/50),2)=0,"CE"&TEXT((ROW(B410)/6)+10/3-INT((ROW(B410)-4)/50)/3+8,"#"),"CD"&TEXT((ROW(B410)/6)+10/3-INT((ROW(B410)-4)/50)/3+8,"#"))) -> ἡ ἀγάπη
B412: =INDIRECT( "FlashCards!"&IF(MOD(INT((ROW(B410)-4)/50),2)=0,"CC"&TEXT((ROW(B410)/6)+10/3-INT((ROW(B410)-4)/50)/3,"#"),"")) ->  | E412: =INDIRECT( "FlashCards!"&IF(MOD(INT((ROW(B410)-4)/50),2)=0,"CC"&TEXT((ROW(B410)/6)+10/3-INT((ROW(B410)-4)/50)/3+8,"#"),"CC"&TEXT((ROW(B410)/6)+10/3-INT((ROW(B410)-4)/50)/3+8,"#"))) -> ah-GAH-pay
B415: =INDIRECT( "FlashCards!"&IF(MOD(INT((ROW(B416)-4)/50),2)=0,"CF"&TEXT((ROW(B416)/6)+10/3-INT((ROW(B416)-4)/50)/3,"#"),"CF"&TEXT((ROW(B416)/6)+10/3-INT((ROW(B416)-4)/50)/3,"#"))) -> Chapter 21: Verb Ending | E415: =INDIRECT( "FlashCards!"&IF(MOD(INT((ROW(B416)-4)/50),2)=0,"CF"&TEXT((ROW(B416)/6)+10/3-INT((ROW(B416)-4)/50)/3+8,"#"),"CF"&TEXT((ROW(B416)/6)+10/3-INT((ROW(B416)-4)/50)/3+8,"#"))) -> Chapter 09: Adjective
B416: =INDIRECT( "FlashCards!"&IF(MOD(INT((ROW(B416)-4)/50),2)=0,"CE"&TEXT((ROW(B416)/6)+10/3-INT((ROW(B416)-4)/50)/3,"#"),"CD"&TEXT((ROW(B416)/6)+10/3-INT((ROW(B416)-4)/50)/3,"#"))) -> ἐ + [middle stem] +εσθε | E416: =INDIRECT( "FlashCards!"&IF(MOD(INT((ROW(B416)-4)/50),2)=0,"CE"&TEXT((ROW(B416)/6)+10/3-INT((ROW(B416)-4)/50)/3+8,"#"),"CD"&TEXT((ROW(B416)/6)+10/3-INT((ROW(B416)-4)/50)/3+8,"#"))) -> ἀγαπητός
B418: =INDIRECT( "FlashCards!"&IF(MOD(INT((ROW(B416)-4)/50),2)=0,"CC"&TEXT((ROW(B416)/6)+10/3-INT((ROW(B416)-4)/50)/3,"#"),"")) ->  | E418: =INDIRECT( "FlashCards!"&IF(MOD(INT((ROW(B416)-4)/50),2)=0,"CC"&TEXT((ROW(B416)/6)+10/3-INT((ROW(B416)-4)/50)/3+8,"#"),"CC"&TEXT((ROW(B416)/6)+10/3-INT((ROW(B416)-4)/50)/3+8,"#"))) -> ah-ga-pay-TOSS
B421: =INDIRECT( "FlashCards!"&IF(MOD(INT((ROW(B422)-4)/50),2)=0,"CF"&TEXT((ROW(B422)/6)+10/3-INT((ROW(B422)-4)/50)/3,"#"),"CF"&TEXT((ROW(B422)/6)+10/3-INT((ROW(B422)-4)/50)/3,"#"))) -> Chapter 21: Verb Ending | E421: =INDIRECT( "FlashCards!"&IF(MOD(INT((ROW(B422)-4)/50),2)=0,"CF"&TEXT((ROW(B422)/6)+10/3-INT((ROW(B422)-4)/50)/3+8,"#"),"CF"&TEXT((ROW(B422)/6)+10/3-INT((ROW(B422)-4)/50)/3+8,"#"))) -> Extra: Noun
B422: =INDIRECT( "FlashCards!"&IF(MOD(INT((ROW(B422)-4)/50),2)=0,"CE"&TEXT((ROW(B422)/6)+10/3-INT((ROW(B422)-4)/50)/3,"#"),"CD"&TEXT((ROW(B422)/6)+10/3-INT((ROW(B422)-4)/50)/3,"#"))) -> ἐ + [middle stem] +οντο | E422: =INDIRECT( "FlashCards!"&IF(MOD(INT((ROW(B422)-4)/50),2)=0,"CE"&TEXT((ROW(B422)/6)+10/3-INT((ROW(B422)-4)/50)/3+8,"#"),"CD"&TEXT((ROW(B422)/6)+10/3-INT((ROW(B422)-4)/50)/3+8,"#"))) -> ἡ ἀγγελία
B424: =INDIRECT( "FlashCards!"&IF(MOD(INT((ROW(B422)-4)/50),2)=0,"CC"&TEXT((ROW(B422)/6)+10/3-INT((ROW(B422)-4)/50)/3,"#"),"")) ->  | E424: =INDIRECT( "FlashCards!"&IF(MOD(INT((ROW(B422)-4)/50),2)=0,"CC"&TEXT((ROW(B422)/6)+10/3-INT((ROW(B422)-4)/50)/3+8,"#"),"CC"&TEXT((ROW(B422)/6)+10/3-INT((ROW(B422)-4)/50)/3+8,"#"))) -> ahng-ell-EE-ah
B427: =INDIRECT( "FlashCards!"&IF(MOD(INT((ROW(B428)-4)/50),2)=0,"CF"&TEXT((ROW(B428)/6)+10/3-INT((ROW(B428)-4)/50)/3,"#"),"CF"&TEXT((ROW(B428)/6)+10/3-INT((ROW(B428)-4)/50)/3,"#"))) -> Extra: Verb Ending | E427: =INDIRECT( "FlashCards!"&IF(MOD(INT((ROW(B428)-4)/50),2)=0,"CF"&TEXT((ROW(B428)/6)+10/3-INT((ROW(B428)-4)/50)/3+8,"#"),"CF"&TEXT((ROW(B428)/6)+10/3-INT((ROW(B428)-4)/50)/3+8,"#"))) -> Chapter 04: Noun
B428: =INDIRECT( "FlashCards!"&IF(MOD(INT((ROW(B428)-4)/50),2)=0,"CE"&TEXT((ROW(B428)/6)+10/3-INT((ROW(B428)-4)/50)/3,"#"),"CD"&TEXT((ROW(B428)/6)+10/3-INT((ROW(B428)-4)/50)/3,"#"))) -> κατα-, κατε- | E428: =INDIRECT( "FlashCards!"&IF(MOD(INT((ROW(B428)-4)/50),2)=0,"CE"&TEXT((ROW(B428)/6)+10/3-INT((ROW(B428)-4)/50)/3+8,"#"),"CD"&TEXT((ROW(B428)/6)+10/3-INT((ROW(B428)-4)/50)/3+8,"#"))) -> ὁ ἄγγελος
B430: =INDIRECT( "FlashCards!"&IF(MOD(INT((ROW(B428)-4)/50),2)=0,"CC"&TEXT((ROW(B428)/6)+10/3-INT((ROW(B428)-4)/50)/3,"#"),"")) ->  | E430: =INDIRECT( "FlashCards!"&IF(MOD(INT((ROW(B428)-4)/50),2)=0,"CC"&TEXT((ROW(B428)/6)+10/3-INT((ROW(B428)-4)/50)/3+8,"#"),"CC"&TEXT((ROW(B428)/6)+10/3-INT((ROW(B428)-4)/50)/3+8,"#"))) -> AHN-gell-oss
B433: =INDIRECT( "FlashCards!"&IF(MOD(INT((ROW(B434)-4)/50),2)=0,"CF"&TEXT((ROW(B434)/6)+10/3-INT((ROW(B434)-4)/50)/3,"#"),"CF"&TEXT((ROW(B434)/6)+10/3-INT((ROW(B434)-4)/50)/3,"#"))) -> Chapter 04: Proper Noun | E433: =INDIRECT( "FlashCards!"&IF(MOD(INT((ROW(B434)-4)/50),2)=0,"CF"&TEXT((ROW(B434)/6)+10/3-INT((ROW(B434)-4)/50)/3+8,"#"),"CF"&TEXT((ROW(B434)/6)+10/3-INT((ROW(B434)-4)/50)/3+8,"#"))) -> Chapter 35: Verb
B434: =INDIRECT( "FlashCards!"&IF(MOD(INT((ROW(B434)-4)/50),2)=0,"CE"&TEXT((ROW(B434)/6)+10/3-INT((ROW(B434)-4)/50)/3,"#"),"CD"&TEXT((ROW(B434)/6)+10/3-INT((ROW(B434)-4)/50)/3,"#"))) -> ὁ Ἀβραάμ | E434: =INDIRECT( "FlashCards!"&IF(MOD(INT((ROW(B434)-4)/50),2)=0,"CE"&TEXT((ROW(B434)/6)+10/3-INT((ROW(B434)-4)/50)/3+8,"#"),"CD"&TEXT((ROW(B434)/6)+10/3-INT((ROW(B434)-4)/50)/3+8,"#"))) -> ἁγιάζω
B436: =INDIRECT( "FlashCards!"&IF(MOD(INT((ROW(B434)-4)/50),2)=0,"CC"&TEXT((ROW(B434)/6)+10/3-INT((ROW(B434)-4)/50)/3,"#"),"")) -> ah-brah-AHM | E436: =INDIRECT( "FlashCards!"&IF(MOD(INT((ROW(B434)-4)/50),2)=0,"CC"&TEXT((ROW(B434)/6)+10/3-INT((ROW(B434)-4)/50)/3+8,"#"),"CC"&TEXT((ROW(B434)/6)+10/3-INT((ROW(B434)-4)/50)/3+8,"#"))) -> hah-gi-AH-zoe
B439: =INDIRECT( "FlashCards!"&IF(MOD(INT((ROW(B440)-4)/50),2)=0,"CF"&TEXT((ROW(B440)/6)+10/3-INT((ROW(B440)-4)/50)/3,"#"),"CF"&TEXT((ROW(B440)/6)+10/3-INT((ROW(B440)-4)/50)/3,"#"))) -> Chapter 09: Adjective | E439: =INDIRECT( "FlashCards!"&IF(MOD(INT((ROW(B440)-4)/50),2)=0,"CF"&TEXT((ROW(B440)/6)+10/3-INT((ROW(B440)-4)/50)/3+8,"#"),"CF"&TEXT((ROW(B440)/6)+10/3-INT((ROW(B440)-4)/50)/3+8,"#"))) -> Chapter 38: Noun
B440: =INDIRECT( "FlashCards!"&IF(MOD(INT((ROW(B440)-4)/50),2)=0,"CE"&TEXT((ROW(B440)/6)+10/3-INT((ROW(B440)-4)/50)/3,"#"),"CD"&TEXT((ROW(B440)/6)+10/3-INT((ROW(B440)-4)/50)/3,"#"))) -> ἀγαθός | E440: =INDIRECT( "FlashCards!"&IF(MOD(INT((ROW(B440)-4)/50),2)=0,"CE"&TEXT((ROW(B440)/6)+10/3-INT((ROW(B440)-4)/50)/3+8,"#"),"CD"&TEXT((ROW(B440)/6)+10/3-INT((ROW(B440)-4)/50)/3+8,"#"))) -> ὁ ἁγιασμός
B442: =INDIRECT( "FlashCards!"&IF(MOD(INT((ROW(B440)-4)/50),2)=0,"CC"&TEXT((ROW(B440)/6)+10/3-INT((ROW(B440)-4)/50)/3,"#"),"")) -> ah-gah-THOSS | E442: =INDIRECT( "FlashCards!"&IF(MOD(INT((ROW(B440)-4)/50),2)=0,"CC"&TEXT((ROW(B440)/6)+10/3-INT((ROW(B440)-4)/50)/3+8,"#"),"CC"&TEXT((ROW(B440)/6)+10/3-INT((ROW(B440)-4)/50)/3+8,"#"))) -> Ha-gee-ahs-MOSS
B445: =INDIRECT( "FlashCards!"&IF(MOD(INT((ROW(B446)-4)/50),2)=0,"CF"&TEXT((ROW(B446)/6)+10/3-INT((ROW(B446)-4)/50)/3,"#"),"CF"&TEXT((ROW(B446)/6)+10/3-INT((ROW(B446)-4)/50)/3,"#"))) -> Index of Textbook: Verb | E445: =INDIRECT( "FlashCards!"&IF(MOD(INT((ROW(B446)-4)/50),2)=0,"CF"&TEXT((ROW(B446)/6)+10/3-INT((ROW(B446)-4)/50)/3+8,"#"),"CF"&TEXT((ROW(B446)/6)+10/3-INT((ROW(B446)-4)/50)/3+8,"#"))) -> Chapter 09: Noun
B446: =INDIRECT( "FlashCards!"&IF(MOD(INT((ROW(B446)-4)/50),2)=0,"CE"&TEXT((ROW(B446)/6)+10/3-INT((ROW(B446)-4)/50)/3,"#"),"CD"&TEXT((ROW(B446)/6)+10/3-INT((ROW(B446)-4)/50)/3,"#"))) -> ἀγαλλιάω | E446: =INDIRECT( "FlashCards!"&IF(MOD(INT((ROW(B446)-4)/50),2)=0,"CE"&TEXT((ROW(B446)/6)+10/3-INT((ROW(B446)-4)/50)/3+8,"#"),"CD"&TEXT((ROW(B446)/6)+10/3-INT((ROW(B446)-4)/50)/3+8,"#"))) -> ὁ ἅγιος (noun)
B448: =INDIRECT( "FlashCards!"&IF(MOD(INT((ROW(B446)-4)/50),2)=0,"CC"&TEXT((ROW(B446)/6)+10/3-INT((ROW(B446)-4)/50)/3,"#"),"")) -> ah-gah-lee-AH-owe | E448: =INDIRECT( "FlashCards!"&IF(MOD(INT((ROW(B446)-4)/50),2)=0,"CC"&TEXT((ROW(B446)/6)+10/3-INT((ROW(B446)-4)/50)/3+8,"#"),"CC"&TEXT((ROW(B446)/6)+10/3-INT((ROW(B446)-4)/50)/3+8,"#"))) -> HA-gi-oss
B453: =E403 -> Chapter 17: Verb | E453: =B403 -> Chapter 21: Verb Ending
B454: =INDIRECT( "FlashCards!"&IF(MOD(INT((ROW(B454)-4)/50),2)=0,"CE"&TEXT((ROW(B454)/6)+10/3-INT((ROW(B454)-4)/50)/3,"#"),"CD"&TEXT((ROW(B454)/6)+10/3-INT((ROW(B454)-4)/50)/3,"#"))) -> I love, I cherish | E454: =INDIRECT( "FlashCards!"&IF(MOD(INT((ROW(B454)-4)/50),2)=0,"CE"&TEXT((ROW(B454)/6)+10/3-INT((ROW(B454)-4)/50)/3-8,"#"),"CD"&TEXT((ROW(B454)/6)+10/3-INT((ROW(B454)-4)/50)/3-8,"#"))) -> he/she/it was verbing [imperfect middle indicative]
B459: =E409 -> Chapter 06: Noun | E459: =B409 -> Chapter 21: Verb Ending
B460: =INDIRECT( "FlashCards!"&IF(MOD(INT((ROW(B460)-4)/50),2)=0,"CE"&TEXT((ROW(B460)/6)+10/3-INT((ROW(B460)-4)/50)/3,"#"),"CD"&TEXT((ROW(B460)/6)+10/3-INT((ROW(B460)-4)/50)/3,"#"))) -> love | E460: =INDIRECT( "FlashCards!"&IF(MOD(INT((ROW(B460)-4)/50),2)=0,"CE"&TEXT((ROW(B460)/6)+10/3-INT((ROW(B460)-4)/50)/3-8,"#"),"CD"&TEXT((ROW(B460)/6)+10/3-INT((ROW(B460)-4)/50)/3-8,"#"))) -> we were verbing [imperfect middle indicative]
B465: =E415 -> Chapter 09: Adjective | E465: =B415 -> Chapter 21: Verb Ending
B466: =INDIRECT( "FlashCards!"&IF(MOD(INT((ROW(B466)-4)/50),2)=0,"CE"&TEXT((ROW(B466)/6)+10/3-INT((ROW(B466)-4)/50)/3,"#"),"CD"&TEXT((ROW(B466)/6)+10/3-INT((ROW(B466)-4)/50)/3,"#"))) -> beloved | E466: =INDIRECT( "FlashCards!"&IF(MOD(INT((ROW(B466)-4)/50),2)=0,"CE"&TEXT((ROW(B466)/6)+10/3-INT((ROW(B466)-4)/50)/3-8,"#"),"CD"&TEXT((ROW(B466)/6)+10/3-INT((ROW(B466)-4)/50)/3-8,"#"))) -> ya'll were verbing [imperfect middle indicative]
B471: =E421 -> Extra: Noun | E471: =B421 -> Chapter 21: Verb Ending
B472: =INDIRECT( "FlashCards!"&IF(MOD(INT((ROW(B472)-4)/50),2)=0,"CE"&TEXT((ROW(B472)/6)+10/3-INT((ROW(B472)-4)/50)/3,"#"),"CD"&TEXT((ROW(B472)/6)+10/3-INT((ROW(B472)-4)/50)/3,"#"))) -> message | E472: =INDIRECT( "FlashCards!"&IF(MOD(INT((ROW(B472)-4)/50),2)=0,"CE"&TEXT((ROW(B472)/6)+10/3-INT((ROW(B472)-4)/50)/3-8,"#"),"CD"&TEXT((ROW(B472)/6)+10/3-INT((ROW(B472)-4)/50)/3-8,"#"))) -> they were verbing [imperfect middle indicative]
B477: =E427 -> Chapter 04: Noun | E477: =B427 -> Extra: Verb Ending
B478: =INDIRECT( "FlashCards!"&IF(MOD(INT((ROW(B478)-4)/50),2)=0,"CE"&TEXT((ROW(B478)/6)+10/3-INT((ROW(B478)-4)/50)/3,"#"),"CD"&TEXT((ROW(B478)/6)+10/3-INT((ROW(B478)-4)/50)/3,"#"))) -> angel, messenger | E478: =INDIRECT( "FlashCards!"&IF(MOD(INT((ROW(B478)-4)/50),2)=0,"CE"&TEXT((ROW(B478)/6)+10/3-INT((ROW(B478)-4)/50)/3-8,"#"),"CD"&TEXT((ROW(B478)/6)+10/3-INT((ROW(B478)-4)/50)/3-8,"#"))) -> verb prefix adding "thoroughly" to meaning
B483: =E433 -> Chapter 35: Verb | E483: =B433 -> Chapter 04: Proper Noun
B484: =INDIRECT( "FlashCards!"&IF(MOD(INT((ROW(B484)-4)/50),2)=0,"CE"&TEXT((ROW(B484)/6)+10/3-INT((ROW(B484)-4)/50)/3,"#"),"CD"&TEXT((ROW(B484)/6)+10/3-INT((ROW(B484)-4)/50)/3,"#"))) -> I consecrate, I sanctify | E484: =INDIRECT( "FlashCards!"&IF(MOD(INT((ROW(B484)-4)/50),2)=0,"CE"&TEXT((ROW(B484)/6)+10/3-INT((ROW(B484)-4)/50)/3-8,"#"),"CD"&TEXT((ROW(B484)/6)+10/3-INT((ROW(B484)-4)/50)/3-8,"#"))) -> Abraham
B489: =E439 -> Chapter 38: Noun | E489: =B439 -> Chapter 09: Adjective
B490: =INDIRECT( "FlashCards!"&IF(MOD(INT((ROW(B490)-4)/50),2)=0,"CE"&TEXT((ROW(B490)/6)+10/3-INT((ROW(B490)-4)/50)/3,"#"),"CD"&TEXT((ROW(B490)/6)+10/3-INT((ROW(B490)-4)/50)/3,"#"))) -> holiness, consecration | E490: =INDIRECT( "FlashCards!"&IF(MOD(INT((ROW(B490)-4)/50),2)=0,"CE"&TEXT((ROW(B490)/6)+10/3-INT((ROW(B490)-4)/50)/3-8,"#"),"CD"&TEXT((ROW(B490)/6)+10/3-INT((ROW(B490)-4)/50)/3-8,"#"))) -> good, useful
B495: =E445 -> Chapter 09: Noun | E495: =B445 -> Index of Textbook: Verb
B496: =INDIRECT( "FlashCards!"&IF(MOD(INT((ROW(B496)-4)/50),2)=0,"CE"&TEXT((ROW(B496)/6)+10/3-INT((ROW(B496)-4)/50)/3,"#"),"CD"&TEXT((ROW(B496)/6)+10/3-INT((ROW(B496)-4)/50)/3,"#"))) -> saint, holy one | E496: =INDIRECT( "FlashCards!"&IF(MOD(INT((ROW(B496)-4)/50),2)=0,"CE"&TEXT((ROW(B496)/6)+10/3-INT((ROW(B496)-4)/50)/3-8,"#"),"CD"&TEXT((ROW(B496)/6)+10/3-INT((ROW(B496)-4)/50)/3-8,"#"))) -> I exult
... 200 more rows

Sheet Index
C2: Lexical | D2: English Definition | E2: Strongs | S2: tot | T2: offset | U2: =B14 -> 1504 | V2: max? | W2: min? | X2: all strong | Y2: number | Z2: Plus? | AA2: Comma? | AB2: cleaned | AC2: err^2 | AD2: all i
B3: ▲ -10 | C3: =VLOOKUP(S3,FlashCards!$AE$4:$AQ$2003,3,TRUE) -> ᾁδης | D3: =VLOOKUP(S3,FlashCards!$AE$4:$AQ$2003,5,TRUE) -> Hades or hades ("the unseen place"; not a proper noun as used in the New Testament) | E3: =VLOOKUP(S3,FlashCards!$AE$4:$AQ$2003,13,TRUE) -> 86 | S3: =W3 -> 90 | T3: -10 | U3: =$H$10+T3 -> 90 | V3: =IF(U3>$U$2,U3-$U$2,U3) -> 90 | W3: =IF(V3<=0,V3+$U$2,V3) -> 90 | X3: =FlashCards!AQ4 -> 0 | Y3: =VALUE(X3) -> 0 | Z3: =IF(ISERR(FIND("+",X3,1)),0,FIND("+",X3,1)) -> 0 | AA3: =IF(ISERR(FIND(",",X3,1)),0,FIND(",",X3,1)) -> 0 | AB3: =IF(Z3>0,VALUE(LEFT(X3,Z3-1)),IF(AA3>0,VALUE(LEFT(X3,AA3-1)),IF(ISERR(Y3),VALUE(LEFT(X3,LEN(X3)-1)),Y3))) -> 0 | AC3: =(AB3-U$28)^2 -> 19749136 | AD3: =FlashCards!AE4 -> 1
B4: ▲ - 9 | C4: =VLOOKUP(S4,FlashCards!$AE$4:$AQ$2003,3,TRUE) -> ἀδικέω | D4: =VLOOKUP(S4,FlashCards!$AE$4:$AQ$2003,5,TRUE) -> I injure, I do wrong | E4: =VLOOKUP(S4,FlashCards!$AE$4:$AQ$2003,13,TRUE) -> 91 | S4: 91 | T4: -9 | U4: 91 | V4: 91 | W4: =IF(V4<=0,V4+$U$2,V4) -> 91 | X4: =FlashCards!AQ5 -> 0 | Y4: =VALUE(X4) -> 0 | Z4: =IF(ISERR(FIND("+",X4,1)),0,FIND("+",X4,1)) -> 0 | AA4: =IF(ISERR(FIND(",",X4,1)),0,FIND(",",X4,1)) -> 0 | AB4: =IF(Z4>0,VALUE(LEFT(X4,Z4-1)),IF(AA4>0,VALUE(LEFT(X4,AA4-1)),IF(ISERR(Y4),VALUE(LEFT(X4,LEN(X4)-1)),Y4))) -> 0 | AC4: =(AB4-U$28)^2 -> 19749136 | AD4: =FlashCards!AE5 -> 2
B5: ▲ - 8 | C5: =VLOOKUP(S5,FlashCards!$AE$4:$AQ$2003,3,TRUE) -> ἀδικία | D5: =VLOOKUP(S5,FlashCards!$AE$4:$AQ$2003,5,TRUE) -> unrighteousness | E5: =VLOOKUP(S5,FlashCards!$AE$4:$AQ$2003,13,TRUE) -> 93 | S5: 92 | T5: -8 | U5: 92 | V5: 92 | W5: 92 | X5: =FlashCards!AQ6 -> 0 | Y5: 0 | Z5: 0 | AA5: 0 | AB5: 0 | AC5: 19749136 | AD5: =FlashCards!AE6 -> 3
B6: ▲ - 7 | C6: =VLOOKUP(S6,FlashCards!$AE$4:$AQ$2003,3,TRUE) -> ἂδικος | D6: =VLOOKUP(S6,FlashCards!$AE$4:$AQ$2003,5,TRUE) -> unjust | E6: =VLOOKUP(S6,FlashCards!$AE$4:$AQ$2003,13,TRUE) -> 94 | G6: Jump to Index: | H6: 100 | I6: =" (1 to "&TEXT(FlashCards!BJ2,"#")&")" -> (1 to 1504) | S6: 93 | T6: -7 | U6: 93 | V6: 93 | W6: 93 | X6: =FlashCards!AQ7 -> 0 | Y6: 0 | Z6: 0 | AA6: 0 | AB6: 0 | AC6: 19749136 | AD6: =FlashCards!AE7 -> 4
B7: ▲ - 6 | C7: =VLOOKUP(S7,FlashCards!$AE$4:$AQ$2003,3,TRUE) -> ἀδύνατος | D7: =VLOOKUP(S7,FlashCards!$AE$4:$AQ$2003,5,TRUE) -> impossible | E7: =VLOOKUP(S7,FlashCards!$AE$4:$AQ$2003,13,TRUE) -> 102 | S7: 94 | T7: -6 | U7: 94 | V7: 94 | W7: 94 | X7: =FlashCards!AQ8 -> 0 | Y7: 0 | Z7: 0 | AA7: 0 | AB7: 0 | AC7: 19749136 | AD7: =FlashCards!AE8 -> 5
B8: ▲ - 5 | C8: =VLOOKUP(S8,FlashCards!$AE$4:$AQ$2003,3,TRUE) -> ἀθετέω | D8: =VLOOKUP(S8,FlashCards!$AE$4:$AQ$2003,5,TRUE) -> I nullify, I reject | E8: =VLOOKUP(S8,FlashCards!$AE$4:$AQ$2003,13,TRUE) -> 114 | G8: Jump to Strongs: | H8: 4444 | S8: 95 | T8: -5 | U8: 95 | V8: 95 | W8: 95 | X8: =FlashCards!AQ9 -> 0 | Y8: 0 | Z8: 0 | AA8: 0 | AB8: 0 | AC8: 19749136 | AD8: =FlashCards!AE9 -> 6
B9: ▲ - 4 | C9: =VLOOKUP(S9,FlashCards!$AE$4:$AQ$2003,3,TRUE) -> Αἴγυπτος | D9: =VLOOKUP(S9,FlashCards!$AE$4:$AQ$2003,5,TRUE) -> Egypt | E9: =VLOOKUP(S9,FlashCards!$AE$4:$AQ$2003,13,TRUE) -> 125 | S9: 96 | T9: -4 | U9: 96 | V9: 96 | W9: 96 | X9: =FlashCards!AQ10 -> 0 | Y9: 0 | Z9: 0 | AA9: 0 | AB9: 0 | AC9: 19749136 | AD9: =FlashCards!AE10 -> 7
B10: ▲ - 3 | C10: =VLOOKUP(S10,FlashCards!$AE$4:$AQ$2003,3,TRUE) -> αἷμα | D10: =VLOOKUP(S10,FlashCards!$AE$4:$AQ$2003,5,TRUE) -> blood | E10: =VLOOKUP(S10,FlashCards!$AE$4:$AQ$2003,13,TRUE) -> 129 | G10: Index: | H10: =VLOOKUP($B$13,FlashCards!$AE$4:$AQ$2003,1,TRUE) -> 100 | S10: 97 | T10: -3 | U10: 97 | V10: 97 | W10: 97 | X10: =FlashCards!AQ11 -> 0 | Y10: 0 | Z10: 0 | AA10: 0 | AB10: 0 | AC10: 19749136 | AD10: =FlashCards!AE11 -> 8
B11: ▲ - 2 | C11: =VLOOKUP(S11,FlashCards!$AE$4:$AQ$2003,3,TRUE) -> αἴρω | D11: =VLOOKUP(S11,FlashCards!$AE$4:$AQ$2003,5,TRUE) -> I raise, I take up, I take away | E11: =VLOOKUP(S11,FlashCards!$AE$4:$AQ$2003,13,TRUE) -> 142 | G11: Strongs: | H11: =E13 -> 156 | S11: 98 | T11: -2 | U11: 98 | V11: 98 | W11: 98 | X11: =FlashCards!AQ12 -> 0 | Y11: 0 | Z11: 0 | AA11: 0 | AB11: 0 | AC11: 19749136 | AD11: =FlashCards!AE12 -> 9
B12: ▲ - 1 | C12: =VLOOKUP(S12,FlashCards!$AE$4:$AQ$2003,3,TRUE) -> αἰτέω | D12: =VLOOKUP(S12,FlashCards!$AE$4:$AQ$2003,5,TRUE) -> I ask, I demand | E12: =VLOOKUP(S12,FlashCards!$AE$4:$AQ$2003,13,TRUE) -> 154 | G12: Lexical: | H12: =C13 -> αἰτία | S12: 99 | T12: -1 | U12: 99 | V12: 99 | W12: 99 | X12: =FlashCards!AQ13 -> 0 | Y12: 0 | Z12: 0 | AA12: 0 | AB12: 0 | AC12: 19749136 | AD12: =FlashCards!AE13 -> 10
B13: 100 | C13: =VLOOKUP($B$13,FlashCards!$AE$4:$AQ$2003,3,TRUE) -> αἰτία | D13: =VLOOKUP($B$13,FlashCards!$AE$4:$AQ$2003,5,TRUE) -> cause, guilt, charge, accusation | E13: =VLOOKUP($B$13,FlashCards!$AE$4:$AQ$2003,13,TRUE) -> 156 | G13: Pronunciation: | H13: =VLOOKUP($B$13,FlashCards!$AE$4:$AQ$2003,6,TRUE) -> ay-TEE-ah | S13: 100 | T13: 0 | U13: 100 | V13: 100 | W13: 100 | X13: =FlashCards!AQ14 -> 0 | Y13: 0 | Z13: 0 | AA13: 0 | AB13: 0 | AC13: 19749136 | AD13: =FlashCards!AE14 -> 11
B14: =FlashCards!BJ2 -> 1504 | G14: Chapter: | H14: =VLOOKUP($B$13,FlashCards!$AE$4:$AQ$2003,2,TRUE) -> 38 | S14: 100 | T14: 0 | U14: 100 | V14: =IF(U14>$U$2,U14-$U$2,U14) -> 100 | W14: 100 | X14: =FlashCards!AQ15 -> 0 | Y14: 0 | Z14: 0 | AA14: 0 | AB14: 0 | AC14: 19749136 | AD14: =FlashCards!AE15 -> 12
G15: Root: | H15: =VLOOKUP($B$13,FlashCards!$AE$4:$AQ$2003,4,TRUE) ->  | S15: 100 | T15: 0 | U15: 100 | V15: =IF(U15>$U$2,U15-$U$2,U15) -> 100 | W15: 100 | X15: =FlashCards!AQ16 -> 0 | Y15: 0 | Z15: 0 | AA15: 0 | AB15: 0 | AC15: 19749136 | AD15: =FlashCards!AE16 -> 13
B16: ▼ + 1 | C16: =VLOOKUP(S16,FlashCards!$AE$4:$AQ$2003,3,TRUE) -> αἰών | D16: =VLOOKUP(S16,FlashCards!$AE$4:$AQ$2003,5,TRUE) -> age, eternity | E16: =VLOOKUP(S16,FlashCards!$AE$4:$AQ$2003,13,TRUE) -> 165 | G16: Part of Speech: | H16: =VLOOKUP($B$13,FlashCards!$AE$4:$AQ$2003,7,TRUE) -> Noun | S16: 101 | T16: 1 | U16: 101 | V16: 101 | W16: 101 | X16: =FlashCards!AQ17 -> 0 | Y16: 0 | Z16: 0 | AA16: 0 | AB16: 0 | AC16: 19749136 | AD16: =FlashCards!AE17 -> 14
B17: ▼ + 2 | C17: =VLOOKUP(S17,FlashCards!$AE$4:$AQ$2003,3,TRUE) -> εἰς τὸν αἰῶνα | D17: =VLOOKUP(S17,FlashCards!$AE$4:$AQ$2003,5,TRUE) -> forever | E17: =VLOOKUP(S17,FlashCards!$AE$4:$AQ$2003,13,TRUE) -> 1519, 165 | G17: Article: | H17: =VLOOKUP($B$13,FlashCards!$AE$4:$AQ$2003,8,TRUE) -> ἡ | S17: 102 | T17: 2 | U17: 102 | V17: 102 | W17: 102 | X17: =FlashCards!AQ18 -> 0 | Y17: 0 | Z17: 0 | AA17: 0 | AB17: 0 | AC17: 19749136 | AD17: =FlashCards!AE18 -> 15
B18: ▼ + 3 | C18: =VLOOKUP(S18,FlashCards!$AE$4:$AQ$2003,3,TRUE) -> εἰς τοὺς αἰώνας | D18: =VLOOKUP(S18,FlashCards!$AE$4:$AQ$2003,5,TRUE) -> forever | E18: =VLOOKUP(S18,FlashCards!$AE$4:$AQ$2003,13,TRUE) -> 1519, 165 | G18: Imperfect: | H18: =VLOOKUP($B$13,FlashCards!$AE$4:$AQ$2003,9,TRUE) ->  | S18: 103 | T18: 3 | U18: 103 | V18: 103 | W18: 103 | X18: =FlashCards!AQ19 -> 0 | Y18: 0 | Z18: 0 | AA18: 0 | AB18: 0 | AC18: 19749136 | AD18: =FlashCards!AE19 -> 16
B19: ▼ + 4 | C19: =VLOOKUP(S19,FlashCards!$AE$4:$AQ$2003,3,TRUE) -> αἰώνιος | D19: =VLOOKUP(S19,FlashCards!$AE$4:$AQ$2003,5,TRUE) -> eternal | E19: =VLOOKUP(S19,FlashCards!$AE$4:$AQ$2003,13,TRUE) -> 166 | G19: Future: | H19: =VLOOKUP($B$13,FlashCards!$AE$4:$AQ$2003,10,TRUE) ->  | S19: 104 | T19: 4 | U19: 104 | V19: 104 | W19: 104 | X19: =FlashCards!AQ20 -> 0 | Y19: 0 | Z19: 0 | AA19: 0 | AB19: 0 | AC19: 19749136 | AD19: =FlashCards!AE20 -> 17
B20: ▼ + 5 | C20: =VLOOKUP(S20,FlashCards!$AE$4:$AQ$2003,3,TRUE) -> ἀκαθαρσία | D20: =VLOOKUP(S20,FlashCards!$AE$4:$AQ$2003,5,TRUE) -> immorality, uncleanness | E20: =VLOOKUP(S20,FlashCards!$AE$4:$AQ$2003,13,TRUE) -> 167 | G20: Aorist: | H20: =VLOOKUP($B$13,FlashCards!$AE$4:$AQ$2003,11,TRUE) ->  | S20: 105 | T20: 5 | U20: 105 | V20: 105 | W20: 105 | X20: =FlashCards!AQ21 -> 0 | Y20: 0 | Z20: 0 | AA20: 0 | AB20: 0 | AC20: 19749136 | AD20: =FlashCards!AE21 -> 18
B21: ▼ + 6 | C21: =VLOOKUP(S21,FlashCards!$AE$4:$AQ$2003,3,TRUE) -> ἀκαθαρτος | D21: =VLOOKUP(S21,FlashCards!$AE$4:$AQ$2003,5,TRUE) -> unclean, impure | E21: =VLOOKUP(S21,FlashCards!$AE$4:$AQ$2003,13,TRUE) -> 169 | G21: Definition: | H21: =D13 -> cause, guilt, charge, accusation | S21: 106 | T21: 6 | U21: 106 | V21: 106 | W21: 106 | X21: =FlashCards!AQ22 -> 0 | Y21: 0 | Z21: 0 | AA21: 0 | AB21: 0 | AC21: 19749136 | AD21: =FlashCards!AE22 -> 19
B22: ▼ + 7 | C22: =VLOOKUP(S22,FlashCards!$AE$4:$AQ$2003,3,TRUE) -> ἄκανθα | D22: =VLOOKUP(S22,FlashCards!$AE$4:$AQ$2003,5,TRUE) -> thorn, thorny plant | E22: =VLOOKUP(S22,FlashCards!$AE$4:$AQ$2003,13,TRUE) -> 173 | S22: 107 | T22: 7 | U22: 107 | V22: 107 | W22: 107 | X22: =FlashCards!AQ23 -> 0 | Y22: 0 | Z22: 0 | AA22: 0 | AB22: 0 | AC22: 19749136 | AD22: =FlashCards!AE23 -> 20
B23: ▼ + 8 | C23: =VLOOKUP(S23,FlashCards!$AE$4:$AQ$2003,3,TRUE) -> ἀκοή | D23: =VLOOKUP(S23,FlashCards!$AE$4:$AQ$2003,5,TRUE) -> hearing, report | E23: =VLOOKUP(S23,FlashCards!$AE$4:$AQ$2003,13,TRUE) -> 189 | S23: 108 | T23: 8 | U23: 108 | V23: 108 | W23: 108 | X23: =FlashCards!AQ24 -> 0 | Y23: 0 | Z23: 0 | AA23: 0 | AB23: 0 | AC23: 19749136 | AD23: =FlashCards!AE24 -> 21
B24: ▼ + 9 | C24: =VLOOKUP(S24,FlashCards!$AE$4:$AQ$2003,3,TRUE) -> ἀκολουθέω | D24: =VLOOKUP(S24,FlashCards!$AE$4:$AQ$2003,5,TRUE) -> I follow, I accompany | E24: =VLOOKUP(S24,FlashCards!$AE$4:$AQ$2003,13,TRUE) -> 190 | S24: 109 | T24: 9 | U24: 109 | V24: 109 | W24: 109 | X24: =FlashCards!AQ25 -> 0 | Y24: 0 | Z24: 0 | AA24: 0 | AB24: 0 | AC24: 19749136 | AD24: =FlashCards!AE25 -> 22
B25: ▼ +10 | C25: =VLOOKUP(S25,FlashCards!$AE$4:$AQ$2003,3,TRUE) -> ἀκούω | D25: =VLOOKUP(S25,FlashCards!$AE$4:$AQ$2003,5,TRUE) -> I hear, I learn, I obey, I understand | E25: =VLOOKUP(S25,FlashCards!$AE$4:$AQ$2003,13,TRUE) -> 191 | S25: =W25 -> 110 | T25: 10 | U25: 110 | V25: 110 | W25: 110 | X25: =FlashCards!AQ26 -> 0 | Y25: 0 | Z25: 0 | AA25: 0 | AB25: 0 | AC25: 19749136 | AD25: =FlashCards!AE26 -> 23
X26: =FlashCards!AQ27 -> 0 | Y26: 0 | Z26: 0 | AA26: 0 | AB26: 0 | AC26: 19749136 | AD26: =FlashCards!AE27 -> 24
